Workbook

Sheet Island Summary
A1: Island LOLE Benchmarking
B3: Run 1 | C3: Run 2 | D3: Run 3 | E3: Run 4 | F3: Run 5 | G3: Run 6 | H3: Run 7 | I3: Run 8 | J3: Run 9 | K3: Run 10 | L3: Run 11
A4: Model | B4: 2.15S | C4: 2.15S | D4: 2.15S | E4: 2.15S | F4: 2.15S | G4: 2.15S | H4: 2.15S | I4: 2.15S | J4: 2.15S | K4: 2.15S | L4: 2.15S
A5: Run # | B5: 12.04.04 | C5: 12.04.09 | D5: 12.04.14 | E5: 22.31.33 | F5: 17.27.20 | G5: 17.27.15 | H5: 22.31.38 | I5: 22.31.44 | J5: 10.12.15 | K5: 10.12.20 | L5: 10.12.25
A6: Runs | B6: 4800 | C6: 4800 | D6: 4800 | E6: 4800 | F6: 4800 | G6: 4800 | H6: 4800 | I6: 4800 | J6: 4800 | K6: 4800 | L6: 4800
A7: Escalator | B7: 1.028 | C7: 1.03 | D7: 1.032 | E7: 1.029 | F7: 1.031 | G7: 1.029 | H7: 1.031 | I7: 1.033 | J7: 1.033 | K7: 1.034 | L7: 1.035
A8: LOLE | B8: 0.08854166667 | C8: 0.0875 | D8: 0.09645833333 | E8: 0.08875 | F8: 0.093125 | G8: 0.0825 | H8: 0.094375 | I8: 0.09895833333 | J8: 0.1041666667 | K8: 0.1035416667 | L8: 0.105625
A9: LOLH | B9: 0.545625 | C9: 0.5427083333 | D9: 0.5827083333 | E9: 0.5604166667 | F9: 0.5604166667 | G9: 0.5385416667 | H9: 0.5822916667 | I9: 0.613125 | J9: 0.5966666667 | K9: 0.6139583333 | L9: 0.6164583333
A10: EUE | B10: 56.68238801 | C10: 55.29753353 | D10: 61.73756968 | E10: 60.91558006 | F10: 58.27074024 | G10: 56.64922096 | H10: 62.1691884 | I10: 62.07256919 | J10: 58.11749684 | K10: 65.1702304 | L10: 62.76833862
A11: Peak | B11: 1751.661051 | C11: 1755.536826 | D11: 1758.324498 | E11: 1753.131281 | F11: 1757.265685 | G11: 1753.508891 | H11: 1756.81584 | I11: 1760.122997 | J11: 1759.830728 | K11: 1761.751677 | L11: 1763.432335
A12: Loss @ Peak | B12: 38.31733816 | C12: 38.46231287 | D12: 38.57261814 | E12: 38.36993411 | F12: 38.57349272 | G12: 38.42641058 | H12: 38.46871863 | I12: 38.58565895 | J12: 38.60030545 | K12: 38.67695083 | L12: 38.71725505
A13: Peak with Losses | B13: 1789.978389 | C13: 1793.999139 | D13: 1796.897116 | E13: 1791.501215 | F13: 1795.839178 | G13: 1791.935302 | H13: 1795.284559 | I13: 1798.708656 | J13: 1798.431033 | K13: 1800.428628 | L13: 1802.14959
A14: Peak Losses | B14: 42.35489468 | C14: 42.13975665 | D14: 42.15848573 | E14: 42.20830243 | F14: 42.32964684 | G14: 42.04312295 | H14: 42.3608566 | I14: 42.40323568 | J14: 42.21944737 | K14: 42.29785793 | L14: 42.52914656
A15: Firm Capacity | B15: 2086.986 | C15: 2086.986 | D15: 2086.986 | E15: 2086.986 | F15: 2086.986 | G15: 2086.986 | H15: 2086.986 | I15: 2086.986 | J15: 2086.986 | K15: 2086.986 | L15: 2086.986
A16: Reserve Margin | B16: 335.3249493 | C16: 331.4491735 | D16: 328.6615024 | E16: 333.8547187 | F16: 329.7203152 | G16: 333.4771087 | H16: 330.1701596 | I16: 326.8630028 | J16: 327.1552723 | K16: 325.2343227 | L16: 323.5536649
A17: Reserve Margin % | B17: 0.1914325543 | C17: 0.1888021764 | D17: 0.1869174335 | E17: 0.1904333818 | F17: 0.1876325919 | G17: 0.1901770276 | H17: 0.1879366932 | I17: 0.1857046373 | J17: 0.185901557 | K17: 0.1846084933 | L17: 0.1834794896
A18: Reserve Magin w/Loss | B18: 297.0076111 | C18: 292.9868606 | D18: 290.0888843 | E18: 295.4847846 | F18: 291.1468225 | G18: 295.0506982 | H18: 291.7014409 | I18: 288.2773438 | J18: 288.5549669 | K18: 286.5573719 | L18: 284.8364098
A19: Reserve Margin % w/ Loss | B19: 0.165928043 | C19: 0.1633149394 | D19: 0.1614387834 | E19: 0.1649369713 | F19: 0.162122993 | G19: 0.1646547718 | H19: 0.1624820085 | I19: 0.1602690591 | J19: 0.1604481693 | K19: 0.1591606395 | L19: 0.1580536995

Sheet Reserve Margin Calculation
A1: Equation
A2: y = ax+b
A3: a | B3: 3.1801
A4: b | B4: -3.185
A5: y | B5: 0.1
A6: x | B6: =(B5-B4)/B3 -> 1.032986384
B8: P50 | C8: P90
A9: Island Peak (Unescalated) | B9: 1704
A10: Island Peak (Escalated) | B10: =B9*B6 -> 1760.208798 | C10: =B10-60 -> 1700.208798
A11: Losses @ Peak | B11: 38.58565895 | C11: 38.58565895
A12: Peak With Losses | B12: =B10+B11 -> 1798.794457 | C12: =C10+C11 -> 1738.794457
A13: Island Capacity | B13: 2086.986 | C13: 2086.986
A14: Reserve Margin | B14: =B13-B10 -> 326.7772015 | C14: =C13-C10 -> 386.7772015
A15: Reserve Margin % | B15: =B14/B10 -> 0.1856468402 | C15: =C14/C10 -> 0.2274880602
A16: Reserve Magin w/Loss | B16: =B13-B12 -> 288.1915426 | C16: =C13-C12 -> 348.1915426
A17: Reserve Margin % w/ Loss | B17: =B16/B12 -> 0.160213715 | C17: =C16/C12 -> 0.2002488225

Sheet Run 1
A3: Parent Name | B3: Collection | C3: Child Name | D3: Category | E3: Datetime | F3: Load (MW) | G3: Transmission Losses (MW) | H3: Unserved Energy Hours (h) | I3: Unserved Energy (MW) | K3: Daily Peak | L3: Daily Peak Load | M3: Average Unserved Energy Hours
A4: System | B4: Region | C4: Island | D4: - | E4: 2026-01-01 | F4: 1440.527562 | G4: 30.09262306 | H4: 0.0002083333333 | I4: 0.0312845796 | K4: 2026-01-01T17:00:00 | L4: =MAX(OFFSET($F$4:$F$27,(ROW()-4)*24,0)) -> 1598.689146 | M4: =VLOOKUP(L4,OFFSET($F$4:$H$27,(ROW()-4)*24,0),3,FALSE) -> 0 | P4: LOLE | Q4: =SUM(M4:M368) -> 0.08854166667
A5: System | B5: Region | C5: Island | D5: - | E5: 2026-01-01T01:00:00 | F5: 1408.347226 | G5: 29.90006488 | H5: 0 | I5: 0 | K5: 2026-01-02T17:00:00 | L5: =MAX(OFFSET($F$4:$F$27,(ROW()-4)*24,0)) -> 1472.443137 | M5: =VLOOKUP(L5,OFFSET($F$4:$H$27,(ROW()-4)*24,0),3,FALSE) -> 0 | P5: LOLH | Q5: =SUM(H4:H8763) -> 0.545625
A6: System | B6: Region | C6: Island | D6: - | E6: 2026-01-01T02:00:00 | F6: 1385.865767 | G6: 29.71076405 | H6: 0 | I6: 0 | K6: 2026-01-03T20:00:00 | L6: 1688.139898 | M6: 0.004583333333 | P6: EUE | Q6: =SUM(I4:I8763) -> 56.68238801
A7: System | B7: Region | C7: Island | D7: - | E7: 2026-01-01T03:00:00 | F7: 1371.335766 | G7: 29.67860199 | H7: 0.0004166666667 | I7: 0.01157647674 | K7: 2026-01-04T17:00:00 | L7: 1689.774465 | M7: 0.001875 | P7: Peak | Q7: =MAX(F4:F8763) -> 1751.661051
A8: System | B8: Region | C8: Island | D8: - | E8: 2026-01-01T04:00:00 | F8: 1370.172391 | G8: 29.66115574 | H8: 0.0004166666667 | I8: 0.03458944735 | K8: 2026-01-05T17:00:00 | L8: 1453.698816 | M8: 0.0004166666667 | P8: Loss @ Peak | Q8: =VLOOKUP(Q7,F4:G8763,2,FALSE) -> 38.31733816
A9: System | B9: Region | C9: Island | D9: - | E9: 2026-01-01T05:00:00 | F9: 1384.614382 | G9: 29.75720748 | H9: 0.0004166666667 | I9: 0.02083626788 | K9: 2026-01-06T17:00:00 | L9: 1690.058677 | M9: 0.001458333333 | P9: Peak with Losses | Q9: =Q7+Q8 -> 1789.978389
A10: System | B10: Region | C10: Island | D10: - | E10: 2026-01-01T06:00:00 | F10: 1412.889843 | G10: 30.69035402 | H10: 0.0002083333333 | I10: 0.02803702768 | K10: 2026-01-07T17:00:00 | L10: 1634.021758 | M10: 0.0004166666667 | P10: Peak Losses | Q10: =MAX(G4:G8763) -> 42.35489468
A11: System | B11: Region | C11: Island | D11: - | E11: 2026-01-01T07:00:00 | F11: 1452.020407 | G11: 31.10695004 | H11: 0 | I11: 0 | K11: 2026-01-08T17:00:00 | L11: 1665.783442 | M11: 0.001041666667 | P11: Firm Capacity | Q11: 2086.986
A12: System | B12: Region | C12: Island | D12: - | E12: 2026-01-01T08:00:00 | F12: 1483.219206 | G12: 31.49302299 | H12: 0.0002083333333 | I12: 0.04366023603 | K12: 2026-01-09T08:00:00 | L12: 1690.08907 | M12: 0.001875 | P12: Reserve Margin | Q12: =Q11-Q7 -> 335.3249493
A13: System | B13: Region | C13: Island | D13: - | E13: 2026-01-01T09:00:00 | F13: 1493.038007 | G13: 31.64351097 | H13: 0 | I13: 0 | K13: 2026-01-10T17:00:00 | L13: 1532.550891 | M13: 0 | P13: Reserve Margin % | Q13: =Q12/Q7 -> 0.1914325543
A14: System | B14: Region | C14: Island | D14: - | E14: 2026-01-01T10:00:00 | F14: 1503.721093 | G14: 31.80153765 | H14: 0.0002083333333 | I14: 0.04927735517 | K14: 2026-01-11T20:00:00 | L14: 1624.515199 | M14: 0 | P14: Reserve Magin w/Loss | Q14: =Q11-Q9 -> 297.0076111
A15: System | B15: Region | C15: Island | D15: - | E15: 2026-01-01T11:00:00 | F15: 1520.971818 | G15: 32.00808695 | H15: 0 | I15: 0 | K15: 2026-01-12T08:00:00 | L15: 1658.340986 | M15: 0.00125 | P15: Reserve Margin % w/ Loss | Q15: =Q14/Q9 -> 0.165928043
A16: System | B16: Region | C16: Island | D16: - | E16: 2026-01-01T12:00:00 | F16: 1530.06365 | G16: 32.23739463 | H16: 0.0002083333333 | I16: 0.04844793327 | K16: 2026-01-13T18:00:00 | L16: 1641.673715 | M16: 0.0002083333333
A17: System | B17: Region | C17: Island | D17: - | E17: 2026-01-01T13:00:00 | F17: 1530.455246 | G17: 32.19349044 | H17: 0.0002083333333 | I17: 0.007884840773 | K17: 2026-01-14T08:00:00 | L17: 1703.343838 | M17: 0.001875 | P17: Checks
A18: System | B18: Region | C18: Island | D18: - | E18: 2026-01-01T14:00:00 | F18: 1530.430238 | G18: 32.16936732 | H18: 0 | I18: 0 | K18: 2026-01-15T08:00:00 | L18: 1568.250067 | M18: 0.0004166666667 | P18: Island Energy (Original) | Q18: 8357
A19: System | B19: Region | C19: Island | D19: - | E19: 2026-01-01T15:00:00 | F19: 1535.034754 | G19: 32.22318519 | H19: 0 | I19: 0 | K19: 2026-01-16T17:00:00 | L19: 1481.941672 | M19: 0.0002083333333 | P19: Island Energy (Escalated) | Q19: =SUM(F4:F8763)/1000 -> 8590.977224
A20: System | B20: Region | C20: Island | D20: - | E20: 2026-01-01T16:00:00 | F20: 1552.177694 | G20: 32.50473791 | H20: 0.0004166666667 | I20: 0.0495579165 | K20: 2026-01-17T20:00:00 | L20: 1490.705915 | M20: 0.0004166666667 | P20: Escalation Factor Check | Q20: =Q19/Q18 -> 1.027997753
A21: System | B21: Region | C21: Island | D21: - | E21: 2026-01-01T17:00:00 | F21: 1598.689146 | G21: 33.2097592 | H21: 0 | I21: 0 | K21: 2026-01-18T18:00:00 | L21: 1572.757341 | M21: 0.0004166666667
A22: System | B22: Region | C22: Island | D22: - | E22: 2026-01-01T18:00:00 | F22: 1573.286465 | G22: 32.80989885 | H22: 0.000625 | I22: 0.1254931169 | K22: 2026-01-19T08:00:00 | L22: 1504.01441 | M22: 0 | P22: Island Peak (Original) | Q22: 1704
A23: System | B23: Region | C23: Island | D23: - | E23: 2026-01-01T19:00:00 | F23: 1551.954003 | G23: 32.50771353 | H23: 0.0004166666667 | I23: 0.04739421325 | K23: 2026-01-20T18:00:00 | L23: 1415.922914 | M23: 0.0002083333333 | P23: Island Peak (Escalated) | Q23: =MAX(F4:F8763) -> 1751.661051
A24: System | B24: Region | C24: Island | D24: - | E24: 2026-01-01T20:00:00 | F24: 1534.790946 | G24: 32.22376366 | H24: 0.0004166666667 | I24: 0.08839727382 | K24: 2026-01-21T18:00:00 | L24: 1481.080785 | M24: 0 | P24: Escalation Factor Check | Q24: =Q23/Q22 -> 1.0279701
A25: System | B25: Region | C25: Island | D25: - | E25: 2026-01-01T21:00:00 | F25: 1505.744808 | G25: 31.78192699 | H25: 0 | I25: 0 | K25: 2026-01-22T08:00:00 | L25: 1495.424593 | M25: 0
A26: System | B26: Region | C26: Island | D26: - | E26: 2026-01-01T22:00:00 | F26: 1464.77357 | G26: 31.22501659 | H26: 0.0002083333333 | I26: 0.03951546704 | K26: 2026-01-23T18:00:00 | L26: 1527.374994 | M26: 0.0002083333333
A27: System | B27: Region | C27: Island | D27: - | E27: 2026-01-01T23:00:00 | F27: 1388.501189 | G27: 29.75570229 | H27: 0 | I27: 0 | K27: 2026-01-24T10:00:00 | L27: 1532.740594 | M27: 0
A28: System | B28: Region | C28: Island | D28: - | E28: 2026-01-02 | F28: 1309.394959 | G28: 22.20744388 | H28: 0 | I28: 0 | K28: 2026-01-25T18:00:00 | L28: 1440.629601 | M28: 0
A29: System | B29: Region | C29: Island | D29: - | E29: 2026-01-02T01:00:00 | F29: 1253.712048 | G29: 20.94470997 | H29: 0 | I29: 0 | K29: 2026-01-26T18:00:00 | L29: 1602.129518 | M29: 0.0008333333333
A30: System | B30: Region | C30: Island | D30: - | E30: 2026-01-02T02:00:00 | F30: 1233.563717 | G30: 20.49010912 | H30: 0 | I30: 0 | K30: 2026-01-27T17:00:00 | L30: 1694.006419 | M30: 0.002916666667
A31: System | B31: Region | C31: Island | D31: - | E31: 2026-01-02T03:00:00 | F31: 1230.371504 | G31: 20.45987591 | H31: 0 | I31: 0 | K31: 2026-01-28T08:00:00 | L31: 1407.19349 | M31: 0
A32: System | B32: Region | C32: Island | D32: - | E32: 2026-01-02T04:00:00 | F32: 1239.297299 | G32: 20.59451416 | H32: 0 | I32: 0 | K32: 2026-01-29T18:00:00 | L32: 1382.235518 | M32: 0.0002083333333
A33: System | B33: Region | C33: Island | D33: - | E33: 2026-01-02T05:00:00 | F33: 1257.334887 | G33: 21.01921565 | H33: 0 | I33: 0 | K33: 2026-01-30T12:00:00 | L33: 1488.434458 | M33: 0
A34: System | B34: Region | C34: Island | D34: - | E34: 2026-01-02T06:00:00 | F34: 1294.687031 | G34: 27.1392073 | H34: 0 | I34: 0 | K34: 2026-01-31T18:00:00 | L34: 1443.083717 | M34: 0.0002083333333
A35: System | B35: Region | C35: Island | D35: - | E35: 2026-01-02T07:00:00 | F35: 1362.513713 | G35: 28.56782416 | H35: 0.0002083333333 | I35: 0.01490894003 | K35: 2026-02-01T10:00:00 | L35: 1316.233437 | M35: 0.0004166666667
A36: System | B36: Region | C36: Island | D36: - | E36: 2026-01-02T08:00:00 | F36: 1399.901518 | G36: 29.31654691 | H36: 0 | I36: 0 | K36: 2026-02-02T17:00:00 | L36: 1623.6499 | M36: 0.0004166666667
A37: System | B37: Region | C37: Island | D37: - | E37: 2026-01-02T09:00:00 | F37: 1439.121915 | G37: 30.05580183 | H37: 0 | I37: 0 | K37: 2026-02-03T18:00:00 | L37: 1525.959403 | M37: 0.0004166666667
A38: System | B38: Region | C38: Island | D38: - | E38: 2026-01-02T10:00:00 | F38: 1439.497404 | G38: 30.03306043 | H38: 0 | I38: 0 | K38: 2026-02-04T08:00:00 | L38: 1601.590514 | M38: 0.0004166666667
A39: System | B39: Region | C39: Island | D39: - | E39: 2026-01-02T11:00:00 | F39: 1447.078105 | G39: 30.21848493 | H39: 0 | I39: 0 | K39: 2026-02-05T08:00:00 | L39: 1647.191703 | M39: 0.00125
A40: System | B40: Region | C40: Island | D40: - | E40: 2026-01-02T12:00:00 | F40: 1438.074759 | G40: 30.02897337 | H40: 0 | I40: 0 | K40: 2026-02-06T12:00:00 | L40: 1444.300461 | M40: 0
A41: System | B41: Region | C41: Island | D41: - | E41: 2026-01-02T13:00:00 | F41: 1415.471429 | G41: 29.67294211 | H41: 0.000625 | I41: 0.1012184837 | K41: 2026-02-07T18:00:00 | L41: 1552.165075 | M41: 0.0008333333333
A42: System | B42: Region | C42: Island | D42: - | E42: 2026-01-02T14:00:00 | F42: 1372.719897 | G42: 28.79936935 | H42: 0 | I42: 0 | K42: 2026-02-08T19:00:00 | L42: 1580.724157 | M42: 0.0008333333333
A43: System | B43: Region | C43: Island | D43: - | E43: 2026-01-02T15:00:00 | F43: 1351.152066 | G43: 28.34490831 | H43: 0 | I43: 0 | K43: 2026-02-09T08:00:00 | L43: 1737.967294 | M43: 0.01041666667
A44: System | B44: Region | C44: Island | D44: - | E44: 2026-01-02T16:00:00 | F44: 1371.715039 | G44: 28.78845027 | H44: 0.0002083333333 | I44: 0.04450611003 | K44: 2026-02-10T08:00:00 | L44: 1686.801894 | M44: 0.003541666667
A45: System | B45: Region | C45: Island | D45: - | E45: 2026-01-02T17:00:00 | F45: 1472.443137 | G45: 30.62648642 | H45: 0 | I45: 0 | K45: 2026-02-11T18:00:00 | L45: 1549.750884 | M45: 0.0002083333333
A46: System | B46: Region | C46: Island | D46: - | E46: 2026-01-02T18:00:00 | F46: 1456.279426 | G46: 30.35651122 | H46: 0 | I46: 0 | K46: 2026-02-12T12:00:00 | L46: 1684.63287 | M46: 0.00375
A47: System | B47: Region | C47: Island | D47: - | E47: 2026-01-02T19:00:00 | F47: 1418.546585 | G47: 29.79494856 | H47: 0.0002083333333 | I47: 0.04017549353 | K47: 2026-02-13T08:00:00 | L47: 1549.780466 | M47: 0.0002083333333
A48: System | B48: Region | C48: Island | D48: - | E48: 2026-01-02T20:00:00 | F48: 1409.592536 | G48: 29.53563675 | H48: 0.0002083333333 | I48: 0.01814278059 | K48: 2026-02-14T18:00:00 | L48: 1508.440194 | M48: 0.0008333333333
A49: System | B49: Region | C49: Island | D49: - | E49: 2026-01-02T21:00:00 | F49: 1387.12124 | G49: 29.09568613 | H49: 0 | I49: 0 | K49: 2026-02-15T18:00:00 | L49: 1493.126474 | M49: 0.000625
A50: System | B50: Region | C50: Island | D50: - | E50: 2026-01-02T22:00:00 | F50: 1347.521037 | G50: 28.28266287 | H50: 0.0002083333333 | I50: 0.02213702601 | K50: 2026-02-16T18:00:00 | L50: 1506.295303 | M50: 0.0002083333333
A51: System | B51: Region | C51: Island | D51: - | E51: 2026-01-02T23:00:00 | F51: 1294.341222 | G51: 21.86340375 | H51: 0 | I51: 0 | K51: 2026-02-17T18:00:00 | L51: 1570.531005 | M51: 0.000625
A52: System | B52: Region | C52: Island | D52: - | E52: 2026-01-03 | F52: 1223.060903 | G52: 25.57897551 | H52: 0 | I52: 0 | K52: 2026-02-18T08:00:00 | L52: 1550.051185 | M52: 0.000625
A53: System | B53: Region | C53: Island | D53: - | E53: 2026-01-03T01:00:00 | F53: 1178.359312 | G53: 24.83327814 | H53: 0 | I53: 0 | K53: 2026-02-19T18:00:00 | L53: 1476.212208 | M53: 0
A54: System | B54: Region | C54: Island | D54: - | E54: 2026-01-03T02:00:00 | F54: 1184.209519 | G54: 24.88823833 | H54: 0 | I54: 0 | K54: 2026-02-20T08:00:00 | L54: 1365.704685 | M54: 0
A55: System | B55: Region | C55: Island | D55: - | E55: 2026-01-03T03:00:00 | F55: 1188.988503 | G55: 24.94367026 | H55: 0.0002083333333 | I55: 0.004748875681 | K55: 2026-02-21T19:00:00 | L55: 1537.474332 | M55: 0
A56: System | B56: Region | C56: Island | D56: - | E56: 2026-01-03T04:00:00 | F56: 1203.221248 | G56: 25.22968705 | H56: 0 | I56: 0 | K56: 2026-02-22T10:00:00 | L56: 1499.022383 | M56: 0.0002083333333
A57: System | B57: Region | C57: Island | D57: - | E57: 2026-01-03T05:00:00 | F57: 1219.937611 | G57: 25.53794297 | H57: 0 | I57: 0 | K57: 2026-02-23T18:00:00 | L57: 1390.594357 | M57: 0.0004166666667
A58: System | B58: Region | C58: Island | D58: - | E58: 2026-01-03T06:00:00 | F58: 1257.064776 | G58: 28.6597079 | H58: 0 | I58: 0 | K58: 2026-02-24T19:00:00 | L58: 1651.411192 | M58: 0
A59: System | B59: Region | C59: Island | D59: - | E59: 2026-01-03T07:00:00 | F59: 1317.245325 | G59: 29.36101113 | H59: 0.0002083333333 | I59: 0.02245019793 | K59: 2026-02-25T08:00:00 | L59: 1651.57905 | M59: 0.001666666667
A60: System | B60: Region | C60: Island | D60: - | E60: 2026-01-03T08:00:00 | F60: 1372.634732 | G60: 29.97589356 | H60: 0.0004166666667 | I60: 0.04082926284 | K60: 2026-02-26T08:00:00 | L60: 1478.605764 | M60: 0.0004166666667
A61: System | B61: Region | C61: Island | D61: - | E61: 2026-01-03T09:00:00 | F61: 1449.644981 | G61: 30.95402511 | H61: 0.0004166666667 | I61: 0.06448011417 | K61: 2026-02-27T08:00:00 | L61: 1490.690642 | M61: 0.0002083333333
A62: System | B62: Region | C62: Island | D62: - | E62: 2026-01-03T10:00:00 | F62: 1454.608687 | G62: 31.00907807 | H62: 0 | I62: 0 | K62: 2026-02-28T19:00:00 | L62: 1578.120535 | M62: 0.0002083333333
A63: System | B63: Region | C63: Island | D63: - | E63: 2026-01-03T11:00:00 | F63: 1446.871811 | G63: 30.86991886 | H63: 0 | I63: 0 | K63: 2026-03-01T10:00:00 | L63: 1438.067049 | M63: 0.0008333333333
A64: System | B64: Region | C64: Island | D64: - | E64: 2026-01-03T12:00:00 | F64: 1456.383885 | G64: 31.0007087 | H64: 0 | I64: 0 | K64: 2026-03-02T09:00:00 | L64: 1588.083207 | M64: 0.0004166666667
A65: System | B65: Region | C65: Island | D65: - | E65: 2026-01-03T13:00:00 | F65: 1456.211867 | G65: 30.98088432 | H65: 0.0004166666667 | I65: 0.05124601626 | K65: 2026-03-03T19:00:00 | L65: 1632.614903 | M65: 0.0008333333333
A66: System | B66: Region | C66: Island | D66: - | E66: 2026-01-03T14:00:00 | F66: 1480.451886 | G66: 31.34936128 | H66: 0.000625 | I66: 0.1174830199 | K66: 2026-03-04T07:00:00 | L66: 1565.671884 | M66: 0.0008333333333
A67: System | B67: Region | C67: Island | D67: - | E67: 2026-01-03T15:00:00 | F67: 1485.595653 | G67: 31.38744331 | H67: 0.0004166666667 | I67: 0.01550201568 | K67: 2026-03-05T20:00:00 | L67: 1509.729724 | M67: 0.0002083333333
A68: System | B68: Region | C68: Island | D68: - | E68: 2026-01-03T16:00:00 | F68: 1533.938663 | G68: 32.04816289 | H68: 0.0002083333333 | I68: 0.04967014374 | K68: 2026-03-06T08:00:00 | L68: 1678.317831 | M68: 0.004166666667
A69: System | B69: Region | C69: Island | D69: - | E69: 2026-01-03T17:00:00 | F69: 1671.975055 | G69: 35.102423 | H69: 0.003541666667 | I69: 0.2012285045 | K69: 2026-03-07T08:00:00 | L69: =MAX(OFFSET($F$4:$F$27,(ROW()-4)*24,0)) -> 1548.151512 | M69: =VLOOKUP(L69,OFFSET($F$4:$H$27,(ROW()-4)*24,0),3,FALSE) -> 0
A70: System | B70: Region | C70: Island | D70: - | E70: 2026-01-03T18:00:00 | F70: 1654.658553 | G70: 35.03861485 | H70: 0.002083333333 | I70: 0.09226149984 | K70: 2026-03-08T08:00:00 | L70: 1386.933866 | M70: 0.0002083333333
A71: System | B71: Region | C71: Island | D71: - | E71: 2026-01-03T19:00:00 | F71: 1660.028083 | G71: 34.94491942 | H71: 0.003541666667 | I71: 0.1126016081 | K71: 2026-03-09T07:00:00 | L71: 1545.383434 | M71: 0.0004166666667
A72: System | B72: Region | C72: Island | D72: - | E72: 2026-01-03T20:00:00 | F72: 1688.139898 | G72: 35.33490488 | H72: 0.004583333333 | I72: 0.1476366861 | K72: 2026-03-10T07:00:00 | L72: 1719.76232 | M72: 0.004375
A73: System | B73: Region | C73: Island | D73: - | E73: 2026-01-03T21:00:00 | F73: 1672.396435 | G73: 35.06210934 | H73: 0.00375 | I73: 0.2812461069 | K73: 2026-03-11T07:00:00 | L73: 1600.145448 | M73: 0.001041666667
A74: System | B74: Region | C74: Island | D74: - | E74: 2026-01-03T22:00:00 | F74: 1641.703529 | G74: 34.11391597 | H74: 0.002291666667 | I74: 0.09992527197 | K74: 2026-03-12T19:00:00 | L74: 1513.323713 | M74: 0
A75: System | B75: Region | C75: Island | D75: - | E75: 2026-01-03T23:00:00 | F75: 1573.091484 | G75: 30.56776848 | H75: 0 | I75: 0 | K75: 2026-03-13T08:00:00 | L75: 1701.010215 | M75: 0.001666666667
A76: System | B76: Region | C76: Island | D76: - | E76: 2026-01-04 | F76: 1516.855743 | G76: 35.45535531 | H76: 0 | I76: 0 | K76: 2026-03-14T10:00:00 | L76: 1629.724534 | M76: 0.0004166666667
A77: System | B77: Region | C77: Island | D77: - | E77: 2026-01-04T01:00:00 | F77: 1428.906018 | G77: 36.07497716 | H77: 0.0002083333333 | I77: 0.02274696865 | K77: 2026-03-15T09:00:00 | L77: 1569.333316 | M77: 0.00125
A78: System | B78: Region | C78: Island | D78: - | E78: 2026-01-04T02:00:00 | F78: 1413.459513 | G78: 36.31859183 | H78: 0 | I78: 0 | K78: 2026-03-16T10:00:00 | L78: 1621.543567 | M78: 0.0008333333333
A79: System | B79: Region | C79: Island | D79: - | E79: 2026-01-04T03:00:00 | F79: 1447.546558 | G79: 35.88656657 | H79: 0 | I79: 0 | K79: 2026-03-17T07:00:00 | L79: 1368.129179 | M79: 0.0002083333333
A80: System | B80: Region | C80: Island | D80: - | E80: 2026-01-04T04:00:00 | F80: 1466.142959 | G80: 35.8002384 | H80: 0 | I80: 0 | K80: 2026-03-18T16:00:00 | L80: 1351.892614 | M80: 0.0002083333333
A81: System | B81: Region | C81: Island | D81: - | E81: 2026-01-04T05:00:00 | F81: 1461.246936 | G81: 35.94993589 | H81: 0.0004166666667 | I81: 0.1018815473 | K81: 2026-03-19T07:00:00 | L81: 1307.037255 | M81: 0
A82: System | B82: Region | C82: Island | D82: - | E82: 2026-01-04T06:00:00 | F82: 1497.770602 | G82: 33.75918049 | H82: 0 | I82: 0 | K82: 2026-03-20T07:00:00 | L82: 1440.256781 | M82: 0.0004166666667
A83: System | B83: Region | C83: Island | D83: - | E83: 2026-01-04T07:00:00 | F83: 1531.337889 | G83: 34.18888822 | H83: 0.0002083333333 | I83: 0.0321062542 | K83: 2026-03-21T08:00:00 | L83: 1320.075649 | M83: 0
A84: System | B84: Region | C84: Island | D84: - | E84: 2026-01-04T08:00:00 | F84: 1559.978031 | G84: 34.62823433 | H84: 0.000625 | I84: 0.06789109139 | K84: 2026-03-22T10:00:00 | L84: 1433.051159 | M84: 0
A85: System | B85: Region | C85: Island | D85: - | E85: 2026-01-04T09:00:00 | F85: 1638.417722 | G85: 36.2484765 | H85: 0.002083333333 | I85: 0.2228329385 | K85: 2026-03-23T19:00:00 | L85: 1543.776271 | M85: 0
A86: System | B86: Region | C86: Island | D86: - | E86: 2026-01-04T10:00:00 | F86: 1652.718344 | G86: 36.64063533 | H86: 0.003125 | I86: 0.08412295479 | K86: 2026-03-24T07:00:00 | L86: 1494.443652 | M86: 0.0002083333333
A87: System | B87: Region | C87: Island | D87: - | E87: 2026-01-04T11:00:00 | F87: 1634.417637 | G87: 36.13568787 | H87: 0.001458333333 | I87: 0.2353150973 | K87: 2026-03-25T07:00:00 | L87: 1460.166017 | M87: 0
A88: System | B88: Region | C88: Island | D88: - | E88: 2026-01-04T12:00:00 | F88: 1609.106692 | G88: 35.50346287 | H88: 0.0004166666667 | I88: 0.0358519157 | K88: 2026-03-26T07:00:00 | L88: 1420.902002 | M88: 0
A89: System | B89: Region | C89: Island | D89: - | E89: 2026-01-04T13:00:00 | F89: 1592.440243 | G89: 35.21439102 | H89: 0.000625 | I89: 0.008237753441 | K89: 2026-03-27T07:00:00 | L89: 1205.750133 | M89: 0
A90: System | B90: Region | C90: Island | D90: - | E90: 2026-01-04T14:00:00 | F90: 1589.584682 | G90: 35.09281983 | H90: 0.0004166666667 | I90: 0.1125918853 | K90: 2026-03-28T19:00:00 | L90: 1184.367054 | M90: 0
A91: System | B91: Region | C91: Island | D91: - | E91: 2026-01-04T15:00:00 | F91: 1601.862568 | G91: 35.39270545 | H91: 0 | I91: 0 | K91: 2026-03-29T20:00:00 | L91: 1242.6497 | M91: 0
A92: System | B92: Region | C92: Island | D92: - | E92: 2026-01-04T16:00:00 | F92: 1634.492144 | G92: 36.10711876 | H92: 0.001041666667 | I92: 0.0493929479 | K92: 2026-03-30T07:00:00 | L92: 1385.98694 | M92: 0
A93: System | B93: Region | C93: Island | D93: - | E93: 2026-01-04T17:00:00 | F93: 1689.774465 | G93: 36.93783792 | H93: 0.001875 | I93: 0.1123453053 | K93: 2026-03-31T07:00:00 | L93: 1347.514884 | M93: 0
A94: System | B94: Region | C94: Island | D94: - | E94: 2026-01-04T18:00:00 | F94: 1670.56383 | G94: 36.53773419 | H94: 0.001458333333 | I94: 0.105641764 | K94: 2026-04-01T07:00:00 | L94: 1259.226929 | M94: 0.0002083333333
A95: System | B95: Region | C95: Island | D95: - | E95: 2026-01-04T19:00:00 | F95: 1650.791153 | G95: 36.18437438 | H95: 0.000625 | I95: 0.09262133811 | K95: 2026-04-02T20:00:00 | L95: 1289.965793 | M95: 0
A96: System | B96: Region | C96: Island | D96: - | E96: 2026-01-04T20:00:00 | F96: 1649.710203 | G96: 36.15192361 | H96: 0.0002083333333 | I96: 0.009298135534 | K96: 2026-04-03T08:00:00 | L96: 1227.757034 | M96: 0
A97: System | B97: Region | C97: Island | D97: - | E97: 2026-01-04T21:00:00 | F97: 1618.666723 | G97: 35.53619932 | H97: 0 | I97: 0 | K97: 2026-04-04T09:00:00 | L97: 1141.738998 | M97: 0
A98: System | B98: Region | C98: Island | D98: - | E98: 2026-01-04T22:00:00 | F98: 1548.674103 | G98: 34.26007987 | H98: 0.0004166666667 | I98: 0.1206983613 | K98: 2026-04-05T20:00:00 | L98: 1330.165157 | M98: 0
A99: System | B99: Region | C99: Island | D99: - | E99: 2026-01-04T23:00:00 | F99: 1456.423889 | G99: 35.83493209 | H99: 0.0002083333333 | I99: 0.03349099155 | K99: 2026-04-06T20:00:00 | L99: 1383.461987 | M99: 0.0002083333333
A100: System | B100: Region | C100: Island | D100: - | E100: 2026-01-05 | F100: 1367.752004 | G100: 22.6638644 | H100: 0 | I100: 0 | K100: 2026-04-07T07:00:00 | L100: 1442.982476 | M100: 0
A101: System | B101: Region | C101: Island | D101: - | E101: 2026-01-05T01:00:00 | F101: 1319.98818 | G101: 21.54614764 | H101: 0.0002083333333 | I101: 0.006131108443 | K101: 2026-04-08T07:00:00 | L101: 1388.054022 | M101: 0
A102: System | B102: Region | C102: Island | D102: - | E102: 2026-01-05T02:00:00 | F102: 1293.724808 | G102: 20.8830791 | H102: 0.0002083333333 | I102: 0.0008055812435 | K102: 2026-04-09T07:00:00 | L102: 1454.981177 | M102: 0.0004166666667
A103: System | B103: Region | C103: Island | D103: - | E103: 2026-01-05T03:00:00 | F103: 1279.259557 | G103: 20.52586095 | H103: 0.0002083333333 | I103: 0.009446433803 | K103: 2026-04-10T07:00:00 | L103: 1403.658557 | M103: 0.0004166666667
A104: System | B104: Region | C104: Island | D104: - | E104: 2026-01-05T04:00:00 | F104: 1273.649224 | G104: 20.38760751 | H104: 0 | I104: 0 | K104: 2026-04-11T09:00:00 | L104: 1307.440532 | M104: 0
A105: System | B105: Region | C105: Island | D105: - | E105: 2026-01-05T05:00:00 | F105: 1273.632753 | G105: 20.40124327 | H105: 0.0002083333333 | I105: 0.008359819737 | K105: 2026-04-12T09:00:00 | L105: 1129.293062 | M105: 0
A106: System | B106: Region | C106: Island | D106: - | E106: 2026-01-05T06:00:00 | F106: 1303.613273 | G106: 26.87694626 | H106: 0 | I106: 0 | K106: 2026-04-13T07:00:00 | L106: 1229.057405 | M106: 0
A107: System | B107: Region | C107: Island | D107: - | E107: 2026-01-05T07:00:00 | F107: 1398.974254 | G107: 28.88404888 | H107: 0.0002083333333 | I107: 0.0183372474 | K107: 2026-04-14T07:00:00 | L107: 1128.282242 | M107: 0
A108: System | B108: Region | C108: Island | D108: - | E108: 2026-01-05T08:00:00 | F108: 1439.481284 | G108: 29.7166565 | H108: 0.0002083333333 | I108: 0.03932407602 | K108: 2026-04-15T07:00:00 | L108: 1046.113861 | M108: 0
A109: System | B109: Region | C109: Island | D109: - | E109: 2026-01-05T09:00:00 | F109: 1424.71363 | G109: 29.41014635 | H109: 0.0002083333333 | I109: 0.03319017374 | K109: 2026-04-16T20:00:00 | L109: 1427.162366 | M109: 0
A110: System | B110: Region | C110: Island | D110: - | E110: 2026-01-05T10:00:00 | F110: 1422.203708 | G110: 29.36232896 | H110: 0 | I110: 0 | K110: 2026-04-17T07:00:00 | L110: 1440.783489 | M110: 0
A111: System | B111: Region | C111: Island | D111: - | E111: 2026-01-05T11:00:00 | F111: 1411.806323 | G111: 29.13752553 | H111: 0 | I111: 0 | K111: 2026-04-18T20:00:00 | L111: 1077.270998 | M111: 0
A112: System | B112: Region | C112: Island | D112: - | E112: 2026-01-05T12:00:00 | F112: 1394.491837 | G112: 28.78036155 | H112: 0 | I112: 0 | K112: 2026-04-19T09:00:00 | L112: 1217.68773 | M112: 0
A113: System | B113: Region | C113: Island | D113: - | E113: 2026-01-05T13:00:00 | F113: 1363.271875 | G113: 28.10805174 | H113: 0 | I113: 0 | K113: 2026-04-20T07:00:00 | L113: 1315.154263 | M113: 0.0002083333333
A114: System | B114: Region | C114: Island | D114: - | E114: 2026-01-05T14:00:00 | F114: 1336.330728 | G114: 27.549574 | H114: 0.0004166666667 | I114: 0.04237412869 | K114: 2026-04-21T07:00:00 | L114: 1296.913695 | M114: 0
A115: System | B115: Region | C115: Island | D115: - | E115: 2026-01-05T15:00:00 | F115: 1333.853474 | G115: 27.50017611 | H115: 0 | I115: 0 | K115: 2026-04-22T07:00:00 | L115: 1274.64211 | M115: 0.0002083333333
A116: System | B116: Region | C116: Island | D116: - | E116: 2026-01-05T16:00:00 | F116: 1366.768163 | G116: 28.18166766 | H116: 0.0002083333333 | I116: 0.01419280809 | K116: 2026-04-23T07:00:00 | L116: 1139.76845 | M116: 0
A117: System | B117: Region | C117: Island | D117: - | E117: 2026-01-05T17:00:00 | F117: 1453.698816 | G117: 29.99279796 | H117: 0.0004166666667 | I117: 0.06740051146 | K117: 2026-04-24T07:00:00 | L117: 1109.848854 | M117: 0
A118: System | B118: Region | C118: Island | D118: - | E118: 2026-01-05T18:00:00 | F118: 1449.515128 | G118: 29.93357201 | H118: 0.0008333333333 | I118: 0.1362570478 | K118: 2026-04-25T11:00:00 | L118: 1151.555882 | M118: 0
A119: System | B119: Region | C119: Island | D119: - | E119: 2026-01-05T19:00:00 | F119: 1445.254796 | G119: 29.81143678 | H119: 0.0002083333333 | I119: 0.003665128879 | K119: 2026-04-26T11:00:00 | L119: 1119.372711 | M119: 0
A120: System | B120: Region | C120: Island | D120: - | E120: 2026-01-05T20:00:00 | F120: 1437.67227 | G120: 29.70764868 | H120: 0.0002083333333 | I120: 0.03301908856 | K120: 2026-04-27T20:00:00 | L120: 1071.038238 | M120: 0
A121: System | B121: Region | C121: Island | D121: - | E121: 2026-01-05T21:00:00 | F121: 1421.806385 | G121: 29.39315684 | H121: 0 | I121: 0 | K121: 2026-04-28T07:00:00 | L121: 1160.578581 | M121: 0
A122: System | B122: Region | C122: Island | D122: - | E122: 2026-01-05T22:00:00 | F122: 1381.72205 | G122: 28.53837762 | H122: 0 | I122: 0 | K122: 2026-04-29T07:00:00 | L122: 1122.670439 | M122: 0
A123: System | B123: Region | C123: Island | D123: - | E123: 2026-01-05T23:00:00 | F123: 1303.595027 | G123: 21.11150374 | H123: 0 | I123: 0 | K123: 2026-04-30T08:00:00 | L123: 1204.516003 | M123: 0
A124: System | B124: Region | C124: Island | D124: - | E124: 2026-01-06 | F124: 1227.61912 | G124: 27.91878086 | H124: 0 | I124: 0 | K124: 2026-05-01T07:00:00 | L124: 1252.727098 | M124: 0
A125: System | B125: Region | C125: Island | D125: - | E125: 2026-01-06T01:00:00 | F125: 1184.097658 | G125: 27.27901727 | H125: 0 | I125: 0 | K125: 2026-05-02T09:00:00 | L125: 1089.799339 | M125: 0
A126: System | B126: Region | C126: Island | D126: - | E126: 2026-01-06T02:00:00 | F126: 1198.869143 | G126: 27.49961743 | H126: 0 | I126: 0 | K126: 2026-05-03T09:00:00 | L126: 1041.219113 | M126: 0
A127: System | B127: Region | C127: Island | D127: - | E127: 2026-01-06T03:00:00 | F127: 1215.301455 | G127: 27.64654255 | H127: 0 | I127: 0 | K127: 2026-05-04T07:00:00 | L127: 1030.712354 | M127: 0
A128: System | B128: Region | C128: Island | D128: - | E128: 2026-01-06T04:00:00 | F128: 1238.747119 | G128: 27.98239354 | H128: 0 | I128: 0 | K128: 2026-05-05T07:00:00 | L128: 995.1707808 | M128: 0
A129: System | B129: Region | C129: Island | D129: - | E129: 2026-01-06T05:00:00 | F129: 1292.245458 | G129: 28.65617337 | H129: 0.0002083333333 | I129: 0.00727406288 | K129: 2026-05-06T07:00:00 | L129: 980.8013017 | M129: 0
A130: System | B130: Region | C130: Island | D130: - | E130: 2026-01-06T06:00:00 | F130: 1359.917043 | G130: 29.93913804 | H130: 0 | I130: 0 | K130: 2026-05-07T07:00:00 | L130: 1028.505759 | M130: 0
A131: System | B131: Region | C131: Island | D131: - | E131: 2026-01-06T07:00:00 | F131: 1477.166599 | G131: 30.95464435 | H131: 0.0004166666667 | I131: 0.07117489855 | K131: 2026-05-08T09:00:00 | L131: 1196.649298 | M131: 0
A132: System | B132: Region | C132: Island | D132: - | E132: 2026-01-06T08:00:00 | F132: 1564.668626 | G132: 32.15458835 | H132: 0.000625 | I132: 0.1178772697 | K132: 2026-05-09T09:00:00 | L132: 1115.891542 | M132: 0
A133: System | B133: Region | C133: Island | D133: - | E133: 2026-01-06T09:00:00 | F133: 1580.47867 | G133: 32.46742959 | H133: 0.000625 | I133: 0.2321387587 | K133: 2026-05-10T09:00:00 | L133: =MAX(OFFSET($F$4:$F$27,(ROW()-4)*24,0)) -> 1140.953574 | M133: =VLOOKUP(L133,OFFSET($F$4:$H$27,(ROW()-4)*24,0),3,FALSE) -> 0
A134: System | B134: Region | C134: Island | D134: - | E134: 2026-01-06T10:00:00 | F134: 1578.011285 | G134: 32.38800335 | H134: 0.000625 | I134: 0.1090693259 | K134: 2026-05-11T08:00:00 | L134: 1034.846212 | M134: 0
A135: System | B135: Region | C135: Island | D135: - | E135: 2026-01-06T11:00:00 | F135: 1571.545668 | G135: 32.28119225 | H135: 0.0002083333333 | I135: 0.008047851298 | K135: 2026-05-12T07:00:00 | L135: 1117.336704 | M135: 0
A136: System | B136: Region | C136: Island | D136: - | E136: 2026-01-06T12:00:00 | F136: 1563.651424 | G136: 32.14876357 | H136: 0.000625 | I136: 0.1610883876 | K136: 2026-05-13T20:00:00 | L136: 1073.022762 | M136: 0
A137: System | B137: Region | C137: Island | D137: - | E137: 2026-01-06T13:00:00 | F137: 1546.60849 | G137: 31.85031517 | H137: 0 | I137: 0 | K137: 2026-05-14T07:00:00 | L137: 1077.241308 | M137: 0
A138: System | B138: Region | C138: Island | D138: - | E138: 2026-01-06T14:00:00 | F138: 1551.301327 | G138: 31.93191282 | H138: 0.0004166666667 | I138: 0.1198008365 | K138: 2026-05-15T07:00:00 | L138: 991.1763864 | M138: 0
A139: System | B139: Region | C139: Island | D139: - | E139: 2026-01-06T15:00:00 | F139: 1563.715178 | G139: 32.11136496 | H139: 0.0004166666667 | I139: 0.1553513812 | K139: 2026-05-16T09:00:00 | L139: 824.1965847 | M139: 0
A140: System | B140: Region | C140: Island | D140: - | E140: 2026-01-06T16:00:00 | F140: 1615.317749 | G140: 32.98686606 | H140: 0.000625 | I140: 0.009621704259 | K140: 2026-05-17T09:00:00 | L140: 891.8808578 | M140: 0
A141: System | B141: Region | C141: Island | D141: - | E141: 2026-01-06T17:00:00 | F141: 1690.058677 | G141: 34.57449417 | H141: 0.001458333333 | I141: 0.1127796376 | K141: 2026-05-18T11:00:00 | L141: 978.7717514 | M141: 0
A142: System | B142: Region | C142: Island | D142: - | E142: 2026-01-06T18:00:00 | F142: 1682.661229 | G142: 34.33345071 | H142: 0.0004166666667 | I142: 0.0814702032 | K142: 2026-05-19T07:00:00 | L142: 946.550753 | M142: 0
A143: System | B143: Region | C143: Island | D143: - | E143: 2026-01-06T19:00:00 | F143: 1662.796536 | G143: 33.95656048 | H143: 0.001875 | I143: 0.1807899181 | K143: 2026-05-20T20:00:00 | L143: 836.0362346 | M143: 0
A144: System | B144: Region | C144: Island | D144: - | E144: 2026-01-06T20:00:00 | F144: 1649.185186 | G144: 33.69225816 | H144: 0.001041666667 | I144: 0.1176538278 | K144: 2026-05-21T07:00:00 | L144: 884.7367194 | M144: 0
A145: System | B145: Region | C145: Island | D145: - | E145: 2026-01-06T21:00:00 | F145: 1617.078853 | G145: 33.14470843 | H145: 0.0002083333333 | I145: 8.410562913e-05 | K145: 2026-05-22T07:00:00 | L145: 893.9724664 | M145: 0
A146: System | B146: Region | C146: Island | D146: - | E146: 2026-01-06T22:00:00 | F146: 1561.168588 | G146: 32.13914327 | H146: 0.0002083333333 | I146: 0.05604708587 | K146: 2026-05-23T11:00:00 | L146: 907.9312065 | M146: 0
A147: System | B147: Region | C147: Island | D147: - | E147: 2026-01-06T23:00:00 | F147: 1464.746592 | G147: 30.15417175 | H147: 0.0002083333333 | I147: 0.02446770167 | K147: 2026-05-24T09:00:00 | L147: 947.8729048 | M147: 0
A148: System | B148: Region | C148: Island | D148: - | E148: 2026-01-07 | F148: 1371.797127 | G148: 29.42918137 | H148: 0.0002083333333 | I148: 0.007233043302 | K148: 2026-05-25T07:00:00 | L148: 894.6936429 | M148: 0
A149: System | B149: Region | C149: Island | D149: - | E149: 2026-01-07T01:00:00 | F149: 1351.111746 | G149: 29.14437714 | H149: 0 | I149: 0 | K149: 2026-05-26T07:00:00 | L149: 812.2242006 | M149: 0
A150: System | B150: Region | C150: Island | D150: - | E150: 2026-01-07T02:00:00 | F150: 1337.522537 | G150: 29.08994424 | H150: 0.0002083333333 | I150: 0.01775108407 | K150: 2026-05-27T09:00:00 | L150: 826.21071 | M150: 0
A151: System | B151: Region | C151: Island | D151: - | E151: 2026-01-07T03:00:00 | F151: 1337.287255 | G151: 29.11038713 | H151: 0.0002083333333 | I151: 0.007525296429 | K151: 2026-05-28T09:00:00 | L151: 836.8910768 | M151: 0
A152: System | B152: Region | C152: Island | D152: - | E152: 2026-01-07T04:00:00 | F152: 1347.328777 | G152: 29.12746534 | H152: 0 | I152: 0 | K152: 2026-05-29T11:00:00 | L152: 888.9307888 | M152: 0
A153: System | B153: Region | C153: Island | D153: - | E153: 2026-01-07T05:00:00 | F153: 1364.089408 | G153: 29.25988052 | H153: 0.0004166666667 | I153: 0.0166839202 | K153: 2026-05-30T09:00:00 | L153: 842.2498369 | M153: 0
A154: System | B154: Region | C154: Island | D154: - | E154: 2026-01-07T06:00:00 | F154: 1414.252301 | G154: 30.44974158 | H154: 0.0002083333333 | I154: 0.02829204293 | K154: 2026-05-31T11:00:00 | L154: 788.587229 | M154: 0
A155: System | B155: Region | C155: Island | D155: - | E155: 2026-01-07T07:00:00 | F155: 1527.025378 | G155: 31.78158462 | H155: 0.0004166666667 | I155: 0.01174165295 | K155: 2026-06-01T07:00:00 | L155: 912.646163 | M155: 0
A156: System | B156: Region | C156: Island | D156: - | E156: 2026-01-07T08:00:00 | F156: 1583.814127 | G156: 32.72021233 | H156: 0.0004166666667 | I156: 0.1127160202 | K156: 2026-06-02T07:00:00 | L156: 949.7601215 | M156: 0
A157: System | B157: Region | C157: Island | D157: - | E157: 2026-01-07T09:00:00 | F157: 1594.033395 | G157: 32.88623154 | H157: 0.000625 | I157: 0.01315354117 | K157: 2026-06-03T07:00:00 | L157: 892.9450379 | M157: 0
A158: System | B158: Region | C158: Island | D158: - | E158: 2026-01-07T10:00:00 | F158: 1581.154887 | G158: 32.65482273 | H158: 0.0004166666667 | I158: 0.1396658697 | K158: 2026-06-04T07:00:00 | L158: 906.9002994 | M158: 0
A159: System | B159: Region | C159: Island | D159: - | E159: 2026-01-07T11:00:00 | F159: 1566.647101 | G159: 32.35190142 | H159: 0 | I159: 0 | K159: 2026-06-05T07:00:00 | L159: 905.7922925 | M159: 0
A160: System | B160: Region | C160: Island | D160: - | E160: 2026-01-07T12:00:00 | F160: 1563.165793 | G160: 32.32866739 | H160: 0 | I160: 0 | K160: 2026-06-06T10:00:00 | L160: 855.77435 | M160: 0
A161: System | B161: Region | C161: Island | D161: - | E161: 2026-01-07T13:00:00 | F161: 1535.710017 | G161: 31.8946675 | H161: 0.000625 | I161: 0.09220443733 | K161: 2026-06-07T11:00:00 | L161: 875.9828091 | M161: 0
A162: System | B162: Region | C162: Island | D162: - | E162: 2026-01-07T14:00:00 | F162: 1518.079637 | G162: 31.58820094 | H162: 0.0002083333333 | I162: 0.04802581594 | K162: 2026-06-08T07:00:00 | L162: 940.6413278 | M162: 0
A163: System | B163: Region | C163: Island | D163: - | E163: 2026-01-07T15:00:00 | F163: 1524.833829 | G163: 31.67777127 | H163: 0 | I163: 0 | K163: 2026-06-09T07:00:00 | L163: 865.8609819 | M163: 0
A164: System | B164: Region | C164: Island | D164: - | E164: 2026-01-07T16:00:00 | F164: 1561.266339 | G164: 32.2728256 | H164: 0.000625 | I164: 0.1061866359 | K164: 2026-06-10T07:00:00 | L164: 803.2981793 | M164: 0
A165: System | B165: Region | C165: Island | D165: - | E165: 2026-01-07T17:00:00 | F165: 1634.021758 | G165: 33.473092 | H165: 0.0004166666667 | I165: 0.0739624683 | K165: 2026-06-11T07:00:00 | L165: 790.5270324 | M165: 0
A166: System | B166: Region | C166: Island | D166: - | E166: 2026-01-07T18:00:00 | F166: 1619.291484 | G166: 33.23940205 | H166: 0.0008333333333 | I166: 0.1568549207 | K166: 2026-06-12T11:00:00 | L166: 792.3544773 | M166: 0
A167: System | B167: Region | C167: Island | D167: - | E167: 2026-01-07T19:00:00 | F167: 1596.95376 | G167: 32.85560503 | H167: 0.0004166666667 | I167: 0.1318368554 | K167: 2026-06-13T16:00:00 | L167: 838.9925869 | M167: 0
A168: System | B168: Region | C168: Island | D168: - | E168: 2026-01-07T20:00:00 | F168: 1579.568358 | G168: 32.54018973 | H168: 0.0004166666667 | I168: 0.1217114374 | K168: 2026-06-14T10:00:00 | L168: 935.6648824 | M168: 0
A169: System | B169: Region | C169: Island | D169: - | E169: 2026-01-07T21:00:00 | F169: 1552.586296 | G169: 32.11192151 | H169: 0 | I169: 0 | K169: 2026-06-15T08:00:00 | L169: 936.7910339 | M169: 0
A170: System | B170: Region | C170: Island | D170: - | E170: 2026-01-07T22:00:00 | F170: 1502.01684 | G170: 31.37886358 | H170: 0 | I170: 0 | K170: 2026-06-16T07:00:00 | L170: 844.8732911 | M170: 0
A171: System | B171: Region | C171: Island | D171: - | E171: 2026-01-07T23:00:00 | F171: 1427.448401 | G171: 29.75872668 | H171: 0.0004166666667 | I171: 0.03937743503 | K171: 2026-06-17T11:00:00 | L171: 894.7064866 | M171: 0
A172: System | B172: Region | C172: Island | D172: - | E172: 2026-01-08 | F172: 1360.442464 | G172: 28.16163302 | H172: 0 | I172: 0 | K172: 2026-06-18T07:00:00 | L172: 825.2986449 | M172: 0
A173: System | B173: Region | C173: Island | D173: - | E173: 2026-01-08T01:00:00 | F173: 1319.846606 | G173: 27.5788788 | H173: 0 | I173: 0 | K173: 2026-06-19T08:00:00 | L173: 746.9309806 | M173: 0
A174: System | B174: Region | C174: Island | D174: - | E174: 2026-01-08T02:00:00 | F174: 1317.306841 | G174: 27.67537029 | H174: 0 | I174: 0 | K174: 2026-06-20T11:00:00 | L174: 744.9766741 | M174: 0
A175: System | B175: Region | C175: Island | D175: - | E175: 2026-01-08T03:00:00 | F175: 1317.519596 | G175: 27.66866775 | H175: 0.0004166666667 | I175: 0.01014948584 | K175: 2026-06-21T10:00:00 | L175: 737.1605499 | M175: 0
A176: System | B176: Region | C176: Island | D176: - | E176: 2026-01-08T04:00:00 | F176: 1336.155011 | G176: 27.89860165 | H176: 0.0002083333333 | I176: 0.0007098052265 | K176: 2026-06-22T11:00:00 | L176: 767.4715766 | M176: 0
A177: System | B177: Region | C177: Island | D177: - | E177: 2026-01-08T05:00:00 | F177: 1355.455848 | G177: 28.12686027 | H177: 0 | I177: 0 | K177: 2026-06-23T21:00:00 | L177: 807.3911403 | M177: 0
A178: System | B178: Region | C178: Island | D178: - | E178: 2026-01-08T06:00:00 | F178: 1408.196584 | G178: 30.06542915 | H178: 0.0002083333333 | I178: 0.02810589522 | K178: 2026-06-24T09:00:00 | L178: 880.8602748 | M178: 0
A179: System | B179: Region | C179: Island | D179: - | E179: 2026-01-08T07:00:00 | F179: 1502.333041 | G179: 31.11679446 | H179: 0 | I179: 0 | K179: 2026-06-25T10:00:00 | L179: 902.7999583 | M179: 0
A180: System | B180: Region | C180: Island | D180: - | E180: 2026-01-08T08:00:00 | F180: 1577.816888 | G180: 32.21994098 | H180: 0.0004166666667 | I180: 0.09584318074 | K180: 2026-06-26T09:00:00 | L180: 892.9176698 | M180: 0
A181: System | B181: Region | C181: Island | D181: - | E181: 2026-01-08T09:00:00 | F181: 1594.568437 | G181: 32.53575829 | H181: 0.000625 | I181: 0.06535022476 | K181: 2026-06-27T10:00:00 | L181: 848.8815711 | M181: 0
A182: System | B182: Region | C182: Island | D182: - | E182: 2026-01-08T10:00:00 | F182: 1596.96428 | G182: 32.58547295 | H182: 0.0004166666667 | I182: 0.08828343023 | K182: 2026-06-28T11:00:00 | L182: 754.8154561 | M182: 0
A183: System | B183: Region | C183: Island | D183: - | E183: 2026-01-08T11:00:00 | F183: 1606.780568 | G183: 32.75372874 | H183: 0.0004166666667 | I183: 0.002763751984 | K183: 2026-06-29T11:00:00 | L183: 796.2546464 | M183: 0
A184: System | B184: Region | C184: Island | D184: - | E184: 2026-01-08T12:00:00 | F184: 1603.489799 | G184: 32.70539182 | H184: 0.0002083333333 | I184: 0.0617254191 | K184: 2026-06-30T09:00:00 | L184: 787.502009 | M184: 0
A185: System | B185: Region | C185: Island | D185: - | E185: 2026-01-08T13:00:00 | F185: 1579.560025 | G185: 32.30409048 | H185: 0.000625 | I185: 0.1148506646 | K185: 2026-07-01T11:00:00 | L185: 725.5237787 | M185: 0
A186: System | B186: Region | C186: Island | D186: - | E186: 2026-01-08T14:00:00 | F186: 1560.77786 | G186: 31.98255181 | H186: 0.000625 | I186: 0.1146230114 | K186: 2026-07-02T16:00:00 | L186: 744.1769913 | M186: 0
A187: System | B187: Region | C187: Island | D187: - | E187: 2026-01-08T15:00:00 | F187: 1563.50267 | G187: 32.06883515 | H187: 0.0002083333333 | I187: 0.05167215711 | K187: 2026-07-03T11:00:00 | L187: 759.8756731 | M187: 0
A188: System | B188: Region | C188: Island | D188: - | E188: 2026-01-08T16:00:00 | F188: 1579.31977 | G188: 32.3299141 | H188: 0.0004166666667 | I188: 0.107697892 | K188: 2026-07-04T11:00:00 | L188: 680.3879114 | M188: 0
A189: System | B189: Region | C189: Island | D189: - | E189: 2026-01-08T17:00:00 | F189: 1665.783442 | G189: 33.99278396 | H189: 0.001041666667 | I189: 0.1191999575 | K189: 2026-07-05T11:00:00 | L189: 711.7317202 | M189: 0
A190: System | B190: Region | C190: Island | D190: - | E190: 2026-01-08T18:00:00 | F190: 1656.186204 | G190: 33.79854205 | H190: 0.001041666667 | I190: 0.03295077843 | K190: 2026-07-06T11:00:00 | L190: 846.9688979 | M190: 0
A191: System | B191: Region | C191: Island | D191: - | E191: 2026-01-08T19:00:00 | F191: 1630.979819 | G191: 33.32534596 | H191: 0.001041666667 | I191: 0.1263482925 | K191: 2026-07-07T10:00:00 | L191: 824.1844404 | M191: 0
A192: System | B192: Region | C192: Island | D192: - | E192: 2026-01-08T20:00:00 | F192: 1617.205571 | G192: 33.0540654 | H192: 0.000625 | I192: 0.1305390002 | K192: 2026-07-08T11:00:00 | L192: 764.8176314 | M192: 0
A193: System | B193: Region | C193: Island | D193: - | E193: 2026-01-08T21:00:00 | F193: 1590.106296 | G193: 32.58580721 | H193: 0.0004166666667 | I193: 0.1377958791 | K193: 2026-07-09T11:00:00 | L193: 702.1900055 | M193: 0
A194: System | B194: Region | C194: Island | D194: - | E194: 2026-01-08T22:00:00 | F194: 1545.270164 | G194: 31.79739466 | H194: 0.0004166666667 | I194: 0.1282370018 | K194: 2026-07-10T10:00:00 | L194: 727.3605688 | M194: 0
A195: System | B195: Region | C195: Island | D195: - | E195: 2026-01-08T23:00:00 | F195: 1462.428857 | G195: 29.31138109 | H195: 0.0004166666667 | I195: 0.09453633327 | K195: 2026-07-11T11:00:00 | L195: 764.6012709 | M195: 0
A196: System | B196: Region | C196: Island | D196: - | E196: 2026-01-09 | F196: 1414.037655 | G196: 30.02747312 | H196: 0.0002083333333 | I196: 0.01560332845 | K196: 2026-07-12T09:00:00 | L196: 739.0637812 | M196: 0
A197: System | B197: Region | C197: Island | D197: - | E197: 2026-01-09T01:00:00 | F197: 1396.768745 | G197: 29.88374147 | H197: 0.0002083333333 | I197: 0.01966422749 | K197: 2026-07-13T11:00:00 | L197: =MAX(OFFSET($F$4:$F$27,(ROW()-4)*24,0)) -> 818.2919086 | M197: =VLOOKUP(L197,OFFSET($F$4:$H$27,(ROW()-4)*24,0),3,FALSE) -> 0
A198: System | B198: Region | C198: Island | D198: - | E198: 2026-01-09T02:00:00 | F198: 1398.980095 | G198: 29.85772075 | H198: 0 | I198: 0 | K198: 2026-07-14T11:00:00 | L198: 731.3064547 | M198: 0
A199: System | B199: Region | C199: Island | D199: - | E199: 2026-01-09T03:00:00 | F199: 1408.335683 | G199: 29.93751053 | H199: 0.0002083333333 | I199: 0.02124281968 | K199: 2026-07-15T12:00:00 | L199: 673.5374427 | M199: 0
A200: System | B200: Region | C200: Island | D200: - | E200: 2026-01-09T04:00:00 | F200: 1423.467714 | G200: 30.08825071 | H200: 0.0004166666667 | I200: 0.0434091944 | K200: 2026-07-16T11:00:00 | L200: 756.9174495 | M200: 0
A201: System | B201: Region | C201: Island | D201: - | E201: 2026-01-09T05:00:00 | F201: 1447.140768 | G201: 30.25301628 | H201: 0.0002083333333 | I201: 0.02405712082 | K201: 2026-07-17T10:00:00 | L201: 733.2489868 | M201: 0
A202: System | B202: Region | C202: Island | D202: - | E202: 2026-01-09T06:00:00 | F202: 1502.87982 | G202: 31.52800092 | H202: 0 | I202: 0 | K202: 2026-07-18T11:00:00 | L202: 732.1758313 | M202: 0
... 8561 more rows

Sheet Run 2
A3: Parent Name | B3: Collection | C3: Child Name | D3: Category | E3: Datetime | F3: Load (MW) | G3: Transmission Losses (MW) | H3: Unserved Energy Hours (h) | I3: Unserved Energy (MW) | K3: Daily Peak | L3: Daily Peak Load | M3: Average Unserved Energy Hours
A4: System | B4: Region | C4: Island | D4: - | E4: 2026-01-01 | F4: 1444.401533 | G4: 30.44429326 | H4: 0.0002083333333 | I4: 0.03572231446 | K4: 2026-01-01T17:00:00 | L4: =MAX(OFFSET($F$4:$F$27,(ROW()-4)*24,0)) -> 1601.847297 | M4: =VLOOKUP(L4,OFFSET($F$4:$H$27,(ROW()-4)*24,0),3,FALSE) -> 0.0002083333333 | P4: LOLE | Q4: =SUM(M4:M368) -> 0.0875
A5: System | B5: Region | C5: Island | D5: - | E5: 2026-01-01T01:00:00 | F5: 1411.401432 | G5: 30.24598902 | H5: 0.0004166666667 | I5: 0.03154346522 | K5: 2026-01-02T17:00:00 | L5: =MAX(OFFSET($F$4:$F$27,(ROW()-4)*24,0)) -> 1475.084665 | M5: =VLOOKUP(L5,OFFSET($F$4:$H$27,(ROW()-4)*24,0),3,FALSE) -> 0 | P5: LOLH | Q5: =SUM(H4:H8763) -> 0.5427083333
A6: System | B6: Region | C6: Island | D6: - | E6: 2026-01-01T02:00:00 | F6: 1388.678709 | G6: 30.12268255 | H6: 0 | I6: 0 | K6: 2026-01-03T20:00:00 | L6: 1691.16514 | M6: 0.003541666667 | P6: EUE | Q6: =SUM(I4:I8763) -> 55.29753353
A7: System | B7: Region | C7: Island | D7: - | E7: 2026-01-01T03:00:00 | F7: 1374.238695 | G7: 30.04590273 | H7: 0 | I7: 0 | K7: 2026-01-04T17:00:00 | L7: 1693.064437 | M7: 0.002708333333 | P7: Peak | Q7: =MAX(F4:F8763) -> 1755.536826
A8: System | B8: Region | C8: Island | D8: - | E8: 2026-01-01T04:00:00 | F8: 1372.782005 | G8: 30.0452164 | H8: 0 | I8: 0 | K8: 2026-01-05T17:00:00 | L8: 1456.566203 | M8: 0 | P8: Loss @ Peak | Q8: =VLOOKUP(Q7,F4:G8763,2,FALSE) -> 38.46231287
A9: System | B9: Region | C9: Island | D9: - | E9: 2026-01-01T05:00:00 | F9: 1387.355723 | G9: 30.14793585 | H9: 0.0002083333333 | I9: 0.03075804635 | K9: 2026-01-06T17:00:00 | L9: 1692.787655 | M9: 0.001041666667 | P9: Peak with Losses | Q9: =Q7+Q8 -> 1793.999139
A10: System | B10: Region | C10: Island | D10: - | E10: 2026-01-01T06:00:00 | F10: 1415.644602 | G10: 30.7887406 | H10: 0 | I10: 0 | K10: 2026-01-07T17:00:00 | L10: 1637.409552 | M10: 0.0004166666667 | P10: Peak Losses | Q10: =MAX(G4:G8763) -> 42.13975665
A11: System | B11: Region | C11: Island | D11: - | E11: 2026-01-01T07:00:00 | F11: 1454.863399 | G11: 31.20793958 | H11: 0.0002083333333 | I11: 0.00274704778 | K11: 2026-01-08T17:00:00 | L11: 1669.252248 | M11: 0.000625 | P11: Firm Capacity | Q11: 2086.986
A12: System | B12: Region | C12: Island | D12: - | E12: 2026-01-01T08:00:00 | F12: 1486.159631 | G12: 31.57382644 | H12: 0 | I12: 0 | K12: 2026-01-09T08:00:00 | L12: 1693.035631 | M12: 0.002083333333 | P12: Reserve Margin | Q12: =Q11-Q7 -> 331.4491735
A13: System | B13: Region | C13: Island | D13: - | E13: 2026-01-01T09:00:00 | F13: 1496.138373 | G13: 31.7650905 | H13: 0 | I13: 0 | K13: 2026-01-10T17:00:00 | L13: 1535.69436 | M13: 0.0002083333333 | P13: Reserve Margin % | Q13: =Q12/Q7 -> 0.1888021764
A14: System | B14: Region | C14: Island | D14: - | E14: 2026-01-01T10:00:00 | F14: 1506.666794 | G14: 31.89258319 | H14: 0.0002083333333 | I14: 0.05763075692 | K14: 2026-01-11T20:00:00 | L14: 1627.653982 | M14: 0 | P14: Reserve Magin w/Loss | Q14: =Q11-Q9 -> 292.9868606
A15: System | B15: Region | C15: Island | D15: - | E15: 2026-01-01T11:00:00 | F15: 1524.031868 | G15: 32.1109463 | H15: 0.0002083333333 | I15: 0.04157670515 | K15: 2026-01-12T08:00:00 | L15: 1662.072262 | M15: 0.000625 | P15: Reserve Margin % w/ Loss | Q15: =Q14/Q9 -> 0.1633149394
A16: System | B16: Region | C16: Island | D16: - | E16: 2026-01-01T12:00:00 | F16: 1533.347228 | G16: 32.29301939 | H16: 0.0002083333333 | I16: 0.002412838465 | K16: 2026-01-13T18:00:00 | L16: 1645.106135 | M16: 0.0008333333333
A17: System | B17: Region | C17: Island | D17: - | E17: 2026-01-01T13:00:00 | F17: 1533.442672 | G17: 32.31166755 | H17: 0 | I17: 0 | K17: 2026-01-14T08:00:00 | L17: 1706.505356 | M17: 0.002291666667 | P17: Checks
A18: System | B18: Region | C18: Island | D18: - | E18: 2026-01-01T14:00:00 | F18: 1533.469447 | G18: 32.22592562 | H18: 0 | I18: 0 | K18: 2026-01-15T08:00:00 | L18: 1571.05201 | M18: 0.0004166666667 | P18: Island Energy (Original) | Q18: 8357
A19: System | B19: Region | C19: Island | D19: - | E19: 2026-01-01T15:00:00 | F19: 1537.957781 | G19: 32.3196996 | H19: 0.0004166666667 | I19: 0.05755202869 | K19: 2026-01-16T17:00:00 | L19: 1485.438628 | M19: 0 | P19: Island Energy (Escalated) | Q19: =SUM(F4:F8763)/1000 -> 8607.741672
A20: System | B20: Region | C20: Island | D20: - | E20: 2026-01-01T16:00:00 | F20: 1555.48035 | G20: 32.60842823 | H20: 0 | I20: 0 | K20: 2026-01-17T20:00:00 | L20: 1494.120047 | M20: 0.0004166666667 | P20: Escalation Factor Check | Q20: =Q19/Q18 -> 1.03000379
A21: System | B21: Region | C21: Island | D21: - | E21: 2026-01-01T17:00:00 | F21: 1601.847297 | G21: 33.36336318 | H21: 0.0002083333333 | I21: 0.06318695524 | K21: 2026-01-18T18:00:00 | L21: 1575.794738 | M21: 0.000625
A22: System | B22: Region | C22: Island | D22: - | E22: 2026-01-01T18:00:00 | F22: 1576.885057 | G22: 32.96204464 | H22: 0.0002083333333 | I22: 0.0514313771 | K22: 2026-01-19T08:00:00 | L22: 1507.234397 | M22: 0.0002083333333 | P22: Island Peak (Original) | Q22: 1704
A23: System | B23: Region | C23: Island | D23: - | E23: 2026-01-01T19:00:00 | F23: 1555.436883 | G23: 32.63663083 | H23: 0.0004166666667 | I23: 0.0230102292 | K23: 2026-01-20T18:00:00 | L23: 1418.792635 | M23: 0 | P23: Island Peak (Escalated) | Q23: =MAX(F4:F8763) -> 1755.536826
A24: System | B24: Region | C24: Island | D24: - | E24: 2026-01-01T20:00:00 | F24: 1538.36442 | G24: 32.34474164 | H24: 0.000625 | I24: 0.1643030273 | K24: 2026-01-21T18:00:00 | L24: 1483.351683 | M24: 0.000625 | P24: Escalation Factor Check | Q24: =Q23/Q22 -> 1.030244616
A25: System | B25: Region | C25: Island | D25: - | E25: 2026-01-01T21:00:00 | F25: 1509.176384 | G25: 31.87481773 | H25: 0.0002083333333 | I25: 0.04433104962 | K25: 2026-01-22T08:00:00 | L25: 1498.441822 | M25: 0
A26: System | B26: Region | C26: Island | D26: - | E26: 2026-01-01T22:00:00 | F26: 1467.846191 | G26: 31.32824725 | H26: 0.0002083333333 | I26: 0.03193212346 | K26: 2026-01-23T18:00:00 | L26: 1530.047323 | M26: 0.000625
A27: System | B27: Region | C27: Island | D27: - | E27: 2026-01-01T23:00:00 | F27: 1391.217228 | G27: 30.13952547 | H27: 0.0002083333333 | I27: 0.01751377395 | K27: 2026-01-24T10:00:00 | L27: 1535.504634 | M27: 0.0002083333333
A28: System | B28: Region | C28: Island | D28: - | E28: 2026-01-02 | F28: 1311.805864 | G28: 22.41640892 | H28: 0 | I28: 0 | K28: 2026-01-25T18:00:00 | L28: 1443.466337 | M28: 0
A29: System | B29: Region | C29: Island | D29: - | E29: 2026-01-02T01:00:00 | F29: 1256.010756 | G29: 21.21669434 | H29: 0 | I29: 0 | K29: 2026-01-26T18:00:00 | L29: 1605.593759 | M29: 0.000625
A30: System | B30: Region | C30: Island | D30: - | E30: 2026-01-02T02:00:00 | F30: 1235.581886 | G30: 20.72296276 | H30: 0 | I30: 0 | K30: 2026-01-27T17:00:00 | L30: 1697.198438 | M30: 0.003958333333
A31: System | B31: Region | C31: Island | D31: - | E31: 2026-01-02T03:00:00 | F31: 1232.404583 | G31: 20.66353317 | H31: 0 | I31: 0 | K31: 2026-01-28T08:00:00 | L31: 1410.157495 | M31: 0.0002083333333
A32: System | B32: Region | C32: Island | D32: - | E32: 2026-01-02T04:00:00 | F32: 1241.447086 | G32: 20.87806726 | H32: 0 | I32: 0 | K32: 2026-01-29T18:00:00 | L32: 1385.299381 | M32: 0
A33: System | B33: Region | C33: Island | D33: - | E33: 2026-01-02T05:00:00 | F33: 1259.752183 | G33: 21.27829581 | H33: 0 | I33: 0 | K33: 2026-01-30T12:00:00 | L33: 1490.986373 | M33: 0
A34: System | B34: Region | C34: Island | D34: - | E34: 2026-01-02T06:00:00 | F34: 1297.150543 | G34: 27.26610597 | H34: 0.0002083333333 | I34: 0.00472042933 | K34: 2026-01-31T18:00:00 | L34: 1445.881174 | M34: 0
A35: System | B35: Region | C35: Island | D35: - | E35: 2026-01-02T07:00:00 | F35: 1365.318171 | G35: 28.68767252 | H35: 0.0002083333333 | I35: 0.02133098396 | K35: 2026-02-01T10:00:00 | L35: 1318.85324 | M35: 0
A36: System | B36: Region | C36: Island | D36: - | E36: 2026-01-02T08:00:00 | F36: 1402.743901 | G36: 29.44219618 | H36: 0.0002083333333 | I36: 0.01491505638 | K36: 2026-02-02T17:00:00 | L36: 1626.545058 | M36: 0.000625
A37: System | B37: Region | C37: Island | D37: - | E37: 2026-01-02T09:00:00 | F37: 1442.00809 | G37: 30.14128096 | H37: 0.0004166666667 | I37: 0.06391497139 | K37: 2026-02-03T18:00:00 | L37: 1528.876831 | M37: 0
A38: System | B38: Region | C38: Island | D38: - | E38: 2026-01-02T10:00:00 | F38: 1442.096829 | G38: 30.15543873 | H38: 0 | I38: 0 | K38: 2026-02-04T08:00:00 | L38: 1604.205752 | M38: 0.000625
A39: System | B39: Region | C39: Island | D39: - | E39: 2026-01-02T11:00:00 | F39: 1449.700653 | G39: 30.28085195 | H39: 0.0002083333333 | I39: 0.03150846381 | K39: 2026-02-05T08:00:00 | L39: 1650.296195 | M39: 0.0004166666667
A40: System | B40: Region | C40: Island | D40: - | E40: 2026-01-02T12:00:00 | F40: 1440.901973 | G40: 30.12281331 | H40: 0.0002083333333 | I40: 0.0355230437 | K40: 2026-02-06T12:00:00 | L40: 1447.168191 | M40: 0
A41: System | B41: Region | C41: Island | D41: - | E41: 2026-01-02T13:00:00 | F41: 1418.386298 | G41: 29.77060207 | H41: 0 | I41: 0 | K41: 2026-02-07T18:00:00 | L41: 1555.590156 | M41: 0.0004166666667
A42: System | B42: Region | C42: Island | D42: - | E42: 2026-01-02T14:00:00 | F42: 1375.196568 | G42: 28.95934765 | H42: 0.0002083333333 | I42: 0.01911080851 | K42: 2026-02-08T19:00:00 | L42: 1583.745108 | M42: 0.0008333333333
A43: System | B43: Region | C43: Island | D43: - | E43: 2026-01-02T15:00:00 | F43: 1353.488935 | G43: 28.46660278 | H43: 0.0004166666667 | I43: 0.02853616823 | K43: 2026-02-09T08:00:00 | L43: 1740.760586 | M43: 0.007916666667
A44: System | B44: Region | C44: Island | D44: - | E44: 2026-01-02T16:00:00 | F44: 1373.859598 | G44: 28.88260107 | H44: 0 | I44: 0 | K44: 2026-02-10T08:00:00 | L44: 1689.904861 | M44: 0.002916666667
A45: System | B45: Region | C45: Island | D45: - | E45: 2026-01-02T17:00:00 | F45: 1475.084665 | G45: 30.69146381 | H45: 0 | I45: 0 | K45: 2026-02-11T18:00:00 | L45: 1552.642943 | M45: 0
A46: System | B46: Region | C46: Island | D46: - | E46: 2026-01-02T18:00:00 | F46: 1459.287264 | G46: 30.4451905 | H46: 0.0002083333333 | I46: 0.04699350667 | K46: 2026-02-12T12:00:00 | L46: 1687.771601 | M46: 0.003125
A47: System | B47: Region | C47: Island | D47: - | E47: 2026-01-02T19:00:00 | F47: 1421.523343 | G47: 29.81816998 | H47: 0 | I47: 0 | K47: 2026-02-13T08:00:00 | L47: 1553.078513 | M47: 0.0004166666667
A48: System | B48: Region | C48: Island | D48: - | E48: 2026-01-02T20:00:00 | F48: 1412.387856 | G48: 29.65081158 | H48: 0 | I48: 0 | K48: 2026-02-14T18:00:00 | L48: 1511.649775 | M48: 0.0002083333333
A49: System | B49: Region | C49: Island | D49: - | E49: 2026-01-02T21:00:00 | F49: 1389.889713 | G49: 29.2225566 | H49: 0.0008333333333 | I49: 0.07218898457 | K49: 2026-02-15T18:00:00 | L49: 1496.117587 | M49: 0.0002083333333
A50: System | B50: Region | C50: Island | D50: - | E50: 2026-01-02T22:00:00 | F50: 1350.12375 | G50: 28.41995711 | H50: 0.0002083333333 | I50: 0.02589772908 | K50: 2026-02-16T18:00:00 | L50: 1509.341991 | M50: 0
A51: System | B51: Region | C51: Island | D51: - | E51: 2026-01-02T23:00:00 | F51: 1297.134445 | G51: 22.16536397 | H51: 0 | I51: 0 | K51: 2026-02-17T18:00:00 | L51: 1573.541922 | M51: 0.0002083333333
A52: System | B52: Region | C52: Island | D52: - | E52: 2026-01-03 | F52: 1225.897986 | G52: 26.30320736 | H52: 0 | I52: 0 | K52: 2026-02-18T08:00:00 | L52: 1553.088151 | M52: 0.0002083333333
A53: System | B53: Region | C53: Island | D53: - | E53: 2026-01-03T01:00:00 | F53: 1181.009157 | G53: 25.46823416 | H53: 0 | I53: 0 | K53: 2026-02-19T18:00:00 | L53: 1478.602855 | M53: 0.0002083333333
A54: System | B54: Region | C54: Island | D54: - | E54: 2026-01-03T02:00:00 | F54: 1186.60959 | G54: 25.63856104 | H54: 0 | I54: 0 | K54: 2026-02-20T08:00:00 | L54: 1367.723792 | M54: 0
A55: System | B55: Region | C55: Island | D55: - | E55: 2026-01-03T03:00:00 | F55: 1191.229983 | G55: 25.65623802 | H55: 0 | I55: 0 | K55: 2026-02-21T19:00:00 | L55: 1539.823741 | M55: 0.0004166666667
A56: System | B56: Region | C56: Island | D56: - | E56: 2026-01-03T04:00:00 | F56: 1205.607506 | G56: 25.94067541 | H56: 0 | I56: 0 | K56: 2026-02-22T10:00:00 | L56: 1502.165974 | M56: 0.000625
A57: System | B57: Region | C57: Island | D57: - | E57: 2026-01-03T05:00:00 | F57: 1222.558102 | G57: 26.27661244 | H57: 0 | I57: 0 | K57: 2026-02-23T18:00:00 | L57: 1393.235172 | M57: 0.0002083333333
A58: System | B58: Region | C58: Island | D58: - | E58: 2026-01-03T06:00:00 | F58: 1259.393996 | G58: 28.76086328 | H58: 0 | I58: 0 | K58: 2026-02-24T19:00:00 | L58: 1654.484304 | M58: 0.001666666667
A59: System | B59: Region | C59: Island | D59: - | E59: 2026-01-03T07:00:00 | F59: 1320.054874 | G59: 29.47111686 | H59: 0 | I59: 0 | K59: 2026-02-25T08:00:00 | L59: 1654.66729 | M59: 0.002083333333
A60: System | B60: Region | C60: Island | D60: - | E60: 2026-01-03T08:00:00 | F60: 1375.685221 | G60: 30.05778019 | H60: 0.000625 | I60: 0.04929685178 | K60: 2026-02-26T08:00:00 | L60: 1481.462957 | M60: 0.0002083333333
A61: System | B61: Region | C61: Island | D61: - | E61: 2026-01-03T09:00:00 | F61: 1452.702575 | G61: 31.02665265 | H61: 0.0002083333333 | I61: 0.04086355873 | K61: 2026-02-27T08:00:00 | L61: 1493.619801 | M61: 0.0004166666667
A62: System | B62: Region | C62: Island | D62: - | E62: 2026-01-03T10:00:00 | F62: 1457.747467 | G62: 31.10372642 | H62: 0 | I62: 0 | K62: 2026-02-28T19:00:00 | L62: 1581.390193 | M62: 0.0002083333333
A63: System | B63: Region | C63: Island | D63: - | E63: 2026-01-03T11:00:00 | F63: 1449.93311 | G63: 30.94131313 | H63: 0 | I63: 0 | K63: 2026-03-01T10:00:00 | L63: 1441.000497 | M63: 0
A64: System | B64: Region | C64: Island | D64: - | E64: 2026-01-03T12:00:00 | F64: 1459.350976 | G64: 31.08287444 | H64: 0 | I64: 0 | K64: 2026-03-02T09:00:00 | L64: 1591.202288 | M64: 0.0002083333333
A65: System | B65: Region | C65: Island | D65: - | E65: 2026-01-03T13:00:00 | F65: 1459.230654 | G65: 31.08809148 | H65: 0.0002083333333 | I65: 0.005145209863 | K65: 2026-03-03T19:00:00 | L65: 1635.293673 | M65: 0.000625
A66: System | B66: Region | C66: Island | D66: - | E66: 2026-01-03T14:00:00 | F66: 1483.743115 | G66: 31.42879614 | H66: 0 | I66: 0 | K66: 2026-03-04T07:00:00 | L66: 1569.23131 | M66: 0
A67: System | B67: Region | C67: Island | D67: - | E67: 2026-01-03T15:00:00 | F67: 1488.74859 | G67: 31.46120752 | H67: 0 | I67: 0 | K67: 2026-03-05T20:00:00 | L67: 1512.331021 | M67: 0
A68: System | B68: Region | C68: Island | D68: - | E68: 2026-01-03T16:00:00 | F68: 1536.849114 | G68: 32.11915204 | H68: 0.0002083333333 | I68: 0.002632884963 | K68: 2026-03-06T08:00:00 | L68: 1682.160081 | M68: 0.003958333333
A69: System | B69: Region | C69: Island | D69: - | E69: 2026-01-03T17:00:00 | F69: 1675.192427 | G69: 35.2022837 | H69: 0.003333333333 | I69: 0.0785345182 | K69: 2026-03-07T08:00:00 | L69: =MAX(OFFSET($F$4:$F$27,(ROW()-4)*24,0)) -> 1551.538889 | M69: =VLOOKUP(L69,OFFSET($F$4:$H$27,(ROW()-4)*24,0),3,FALSE) -> 0
A70: System | B70: Region | C70: Island | D70: - | E70: 2026-01-03T18:00:00 | F70: 1657.673528 | G70: 35.11842617 | H70: 0.005625 | I70: 0.2658454373 | K70: 2026-03-08T08:00:00 | L70: 1389.842971 | M70: 0.0002083333333
A71: System | B71: Region | C71: Island | D71: - | E71: 2026-01-03T19:00:00 | F71: 1663.056083 | G71: 34.97552572 | H71: 0.003125 | I71: 0.1819605229 | K71: 2026-03-09T07:00:00 | L71: 1548.113538 | M71: 0
A72: System | B72: Region | C72: Island | D72: - | E72: 2026-01-03T20:00:00 | F72: 1691.16514 | G72: 35.40223671 | H72: 0.003541666667 | I72: 0.1757926765 | K72: 2026-03-10T07:00:00 | L72: 1723.476263 | M72: 0.004583333333
A73: System | B73: Region | C73: Island | D73: - | E73: 2026-01-03T21:00:00 | F73: 1675.541928 | G73: 35.16035991 | H73: 0.004583333333 | I73: 0.1888603886 | K73: 2026-03-11T07:00:00 | L73: 1603.262838 | M73: 0.000625
A74: System | B74: Region | C74: Island | D74: - | E74: 2026-01-03T22:00:00 | F74: 1644.938416 | G74: 34.23516319 | H74: 0.001875 | I74: 0.07356723132 | K74: 2026-03-12T19:00:00 | L74: 1515.785093 | M74: 0.0004166666667
A75: System | B75: Region | C75: Island | D75: - | E75: 2026-01-03T23:00:00 | F75: 1576.065024 | G75: 30.69105932 | H75: 0 | I75: 0 | K75: 2026-03-13T08:00:00 | L75: 1704.403296 | M75: 0.001875
A76: System | B76: Region | C76: Island | D76: - | E76: 2026-01-04 | F76: 1519.720627 | G76: 35.74420019 | H76: 0.0002083333333 | I76: 0.06584792601 | K76: 2026-03-14T10:00:00 | L76: 1633.725734 | M76: 0
A77: System | B77: Region | C77: Island | D77: - | E77: 2026-01-04T01:00:00 | F77: 1431.857204 | G77: 36.36307442 | H77: 0.0002083333333 | I77: 0.01958920853 | K77: 2026-03-15T09:00:00 | L77: 1572.291602 | M77: 0
A78: System | B78: Region | C78: Island | D78: - | E78: 2026-01-04T02:00:00 | F78: 1415.926775 | G78: 36.55133619 | H78: 0 | I78: 0 | K78: 2026-03-16T10:00:00 | L78: 1624.863444 | M78: 0.0004166666667
A79: System | B79: Region | C79: Island | D79: - | E79: 2026-01-04T03:00:00 | F79: 1450.010754 | G79: 36.27565662 | H79: 0 | I79: 0 | K79: 2026-03-17T07:00:00 | L79: 1370.487658 | M79: 0.0004166666667
A80: System | B80: Region | C80: Island | D80: - | E80: 2026-01-04T04:00:00 | F80: 1468.971242 | G80: 35.95206861 | H80: 0 | I80: 0 | K80: 2026-03-18T16:00:00 | L80: 1355.082746 | M80: 0
A81: System | B81: Region | C81: Island | D81: - | E81: 2026-01-04T05:00:00 | F81: 1464.290021 | G81: 36.15324683 | H81: 0.000625 | I81: 0.07872931778 | K81: 2026-03-19T07:00:00 | L81: 1309.952723 | M81: 0
A82: System | B82: Region | C82: Island | D82: - | E82: 2026-01-04T06:00:00 | F82: 1500.720932 | G82: 33.99418419 | H82: 0 | I82: 0 | K82: 2026-03-20T07:00:00 | L82: 1443.821304 | M82: 0.0004166666667
A83: System | B83: Region | C83: Island | D83: - | E83: 2026-01-04T07:00:00 | F83: 1534.725843 | G83: 34.38854378 | H83: 0.0004166666667 | I83: 0.02866546009 | K83: 2026-03-21T08:00:00 | L83: 1322.482333 | M83: 0
A84: System | B84: Region | C84: Island | D84: - | E84: 2026-01-04T08:00:00 | F84: 1563.242245 | G84: 34.83268082 | H84: 0.00125 | I84: 0.07248461 | K84: 2026-03-22T10:00:00 | L84: 1435.698308 | M84: 0
A85: System | B85: Region | C85: Island | D85: - | E85: 2026-01-04T09:00:00 | F85: 1641.795354 | G85: 36.4436955 | H85: 0.002708333333 | I85: 0.2421262593 | K85: 2026-03-23T19:00:00 | L85: 1547.237814 | M85: 0
A86: System | B86: Region | C86: Island | D86: - | E86: 2026-01-04T10:00:00 | F86: 1655.581704 | G86: 36.83978508 | H86: 0.00125 | I86: 0.0319128058 | K86: 2026-03-24T07:00:00 | L86: 1497.081821 | M86: 0.0002083333333
A87: System | B87: Region | C87: Island | D87: - | E87: 2026-01-04T11:00:00 | F87: 1637.214178 | G87: 36.31221918 | H87: 0.00125 | I87: 0.0868291259 | K87: 2026-03-25T07:00:00 | L87: 1463.068642 | M87: 0.0002083333333
A88: System | B88: Region | C88: Island | D88: - | E88: 2026-01-04T12:00:00 | F88: 1611.992077 | G88: 35.73016745 | H88: 0.001041666667 | I88: 0.09689313622 | K88: 2026-03-26T07:00:00 | L88: 1423.734395 | M88: 0.0002083333333
A89: System | B89: Region | C89: Island | D89: - | E89: 2026-01-04T13:00:00 | F89: 1595.332672 | G89: 35.3986097 | H89: 0.0002083333333 | I89: 0.00223849769 | K89: 2026-03-27T07:00:00 | L89: 1207.989164 | M89: 0
A90: System | B90: Region | C90: Island | D90: - | E90: 2026-01-04T14:00:00 | F90: 1592.145186 | G90: 35.32027051 | H90: 0.0004166666667 | I90: 0.1209294886 | K90: 2026-03-28T19:00:00 | L90: 1186.700081 | M90: 0
A91: System | B91: Region | C91: Island | D91: - | E91: 2026-01-04T15:00:00 | F91: 1604.141814 | G91: 35.58877041 | H91: 0.000625 | I91: 0.03537999068 | K91: 2026-03-29T20:00:00 | L91: 1244.611059 | M91: 0
A92: System | B92: Region | C92: Island | D92: - | E92: 2026-01-04T16:00:00 | F92: 1637.31265 | G92: 36.2429174 | H92: 0.00125 | I92: 0.1429679872 | K92: 2026-03-30T07:00:00 | L92: 1388.551182 | M92: 0
A93: System | B93: Region | C93: Island | D93: - | E93: 2026-01-04T17:00:00 | F93: 1693.064437 | G93: 37.0607446 | H93: 0.002708333333 | I93: 0.1195447966 | K93: 2026-03-31T07:00:00 | L93: 1349.879171 | M93: 0
A94: System | B94: Region | C94: Island | D94: - | E94: 2026-01-04T18:00:00 | F94: 1673.424302 | G94: 36.65452593 | H94: 0.0008333333333 | I94: 0.08377332634 | K94: 2026-04-01T07:00:00 | L94: 1261.385954 | M94: 0
A95: System | B95: Region | C95: Island | D95: - | E95: 2026-01-04T19:00:00 | F95: 1653.611451 | G95: 36.32207615 | H95: 0.0008333333333 | I95: 0.15970804 | K95: 2026-04-02T20:00:00 | L95: 1292.523886 | M95: 0
A96: System | B96: Region | C96: Island | D96: - | E96: 2026-01-04T20:00:00 | F96: 1652.594974 | G96: 36.3541201 | H96: 0.00125 | I96: 0.06265134653 | K96: 2026-04-03T08:00:00 | L96: 1230.096595 | M96: 0.0002083333333
A97: System | B97: Region | C97: Island | D97: - | E97: 2026-01-04T21:00:00 | F97: 1621.644549 | G97: 35.73337216 | H97: 0.000625 | I97: 0.02290034215 | K97: 2026-04-04T09:00:00 | L97: 1144.286559 | M97: 0
A98: System | B98: Region | C98: Island | D98: - | E98: 2026-01-04T22:00:00 | F98: 1551.831611 | G98: 34.53042728 | H98: 0 | I98: 0 | K98: 2026-04-05T20:00:00 | L98: 1332.896711 | M98: 0.0004166666667
A99: System | B99: Region | C99: Island | D99: - | E99: 2026-01-04T23:00:00 | F99: 1459.246386 | G99: 36.16125495 | H99: 0.0002083333333 | I99: 0.02033271839 | K99: 2026-04-06T20:00:00 | L99: 1386.278724 | M99: 0
A100: System | B100: Region | C100: Island | D100: - | E100: 2026-01-05 | F100: 1370.262738 | G100: 22.87159797 | H100: 0 | I100: 0 | K100: 2026-04-07T07:00:00 | L100: 1445.847472 | M100: 0.0002083333333
A101: System | B101: Region | C101: Island | D101: - | E101: 2026-01-05T01:00:00 | F101: 1322.426939 | G101: 21.71520731 | H101: 0 | I101: 0 | K101: 2026-04-08T07:00:00 | L101: 1391.125735 | M101: 0
A102: System | B102: Region | C102: Island | D102: - | E102: 2026-01-05T02:00:00 | F102: 1296.039053 | G102: 21.03311755 | H102: 0 | I102: 0 | K102: 2026-04-09T07:00:00 | L102: 1457.872569 | M102: 0
A103: System | B103: Region | C103: Island | D103: - | E103: 2026-01-05T03:00:00 | F103: 1281.569005 | G103: 20.71414579 | H103: 0 | I103: 0 | K103: 2026-04-10T07:00:00 | L103: 1406.356435 | M103: 0.0002083333333
A104: System | B104: Region | C104: Island | D104: - | E104: 2026-01-05T04:00:00 | F104: 1276.278661 | G104: 20.59533354 | H104: 0 | I104: 0 | K104: 2026-04-11T09:00:00 | L104: 1310.01243 | M104: 0.0002083333333
A105: System | B105: Region | C105: Island | D105: - | E105: 2026-01-05T05:00:00 | F105: 1276.233447 | G105: 20.57332474 | H105: 0 | I105: 0 | K105: 2026-04-12T09:00:00 | L105: 1131.551772 | M105: 0
A106: System | B106: Region | C106: Island | D106: - | E106: 2026-01-05T06:00:00 | F106: 1306.229451 | G106: 26.98900649 | H106: 0 | I106: 0 | K106: 2026-04-13T07:00:00 | L106: 1231.2825 | M106: 0
A107: System | B107: Region | C107: Island | D107: - | E107: 2026-01-05T07:00:00 | F107: 1401.535158 | G107: 28.96617728 | H107: 0 | I107: 0 | K107: 2026-04-14T07:00:00 | L107: 1130.081672 | M107: 0
A108: System | B108: Region | C108: Island | D108: - | E108: 2026-01-05T08:00:00 | F108: 1442.222722 | G108: 29.82276874 | H108: 0.0004166666667 | I108: 0.07101936352 | K108: 2026-04-15T07:00:00 | L108: 1047.919172 | M108: 0
A109: System | B109: Region | C109: Island | D109: - | E109: 2026-01-05T09:00:00 | F109: 1427.67849 | G109: 29.49698513 | H109: 0 | I109: 0 | K109: 2026-04-16T20:00:00 | L109: 1429.861544 | M109: 0
A110: System | B110: Region | C110: Island | D110: - | E110: 2026-01-05T10:00:00 | F110: 1425.206326 | G110: 29.48253796 | H110: 0.000625 | I110: 0.107954568 | K110: 2026-04-17T07:00:00 | L110: 1443.518183 | M110: 0
A111: System | B111: Region | C111: Island | D111: - | E111: 2026-01-05T11:00:00 | F111: 1414.781585 | G111: 29.25148898 | H111: 0 | I111: 0 | K111: 2026-04-18T20:00:00 | L111: 1079.039791 | M111: 0
A112: System | B112: Region | C112: Island | D112: - | E112: 2026-01-05T12:00:00 | F112: 1396.742378 | G112: 28.87014748 | H112: 0 | I112: 0 | K112: 2026-04-19T09:00:00 | L112: 1220.337641 | M112: 0
A113: System | B113: Region | C113: Island | D113: - | E113: 2026-01-05T13:00:00 | F113: 1365.514137 | G113: 28.2189363 | H113: 0.0002083333333 | I113: 0.01610767674 | K113: 2026-04-20T07:00:00 | L113: 1317.972581 | M113: 0.0002083333333
A114: System | B114: Region | C114: Island | D114: - | E114: 2026-01-05T14:00:00 | F114: 1338.689636 | G114: 27.66924056 | H114: 0 | I114: 0 | K114: 2026-04-21T07:00:00 | L114: 1299.35639 | M114: 0
A115: System | B115: Region | C115: Island | D115: - | E115: 2026-01-05T15:00:00 | F115: 1336.166134 | G115: 27.61630144 | H115: 0 | I115: 0 | K115: 2026-04-22T07:00:00 | L115: 1277.346379 | M115: 0
A116: System | B116: Region | C116: Island | D116: - | E116: 2026-01-05T16:00:00 | F116: 1369.29279 | G116: 28.31232149 | H116: 0.0004166666667 | I116: 0.0371159616 | K116: 2026-04-23T07:00:00 | L116: 1141.887587 | M116: 0
A117: System | B117: Region | C117: Island | D117: - | E117: 2026-01-05T17:00:00 | F117: 1456.566203 | G117: 30.07433352 | H117: 0 | I117: 0 | K117: 2026-04-24T07:00:00 | L117: 1112.132516 | M117: 0
A118: System | B118: Region | C118: Island | D118: - | E118: 2026-01-05T18:00:00 | F118: 1452.490658 | G118: 30.00943163 | H118: 0.0002083333333 | I118: 0.02599602039 | K118: 2026-04-25T11:00:00 | L118: 1153.670286 | M118: 0
A119: System | B119: Region | C119: Island | D119: - | E119: 2026-01-05T19:00:00 | F119: 1448.472299 | G119: 29.93556998 | H119: 0 | I119: 0 | K119: 2026-04-26T11:00:00 | L119: 1121.768957 | M119: 0
A120: System | B120: Region | C120: Island | D120: - | E120: 2026-01-05T20:00:00 | F120: 1441.027561 | G120: 29.79980762 | H120: 0 | I120: 0 | K120: 2026-04-27T20:00:00 | L120: 1073.215156 | M120: 0
A121: System | B121: Region | C121: Island | D121: - | E121: 2026-01-05T21:00:00 | F121: 1424.864147 | G121: 29.48787041 | H121: 0.0002083333333 | I121: 0.04659044023 | K121: 2026-04-28T07:00:00 | L121: 1162.257694 | M121: 0
A122: System | B122: Region | C122: Island | D122: - | E122: 2026-01-05T22:00:00 | F122: 1384.71004 | G122: 28.64844925 | H122: 0.0004166666667 | I122: 0.04662012306 | K122: 2026-04-29T07:00:00 | L122: 1124.81694 | M122: 0
A123: System | B123: Region | C123: Island | D123: - | E123: 2026-01-05T23:00:00 | F123: 1306.238263 | G123: 21.31071024 | H123: 0 | I123: 0 | K123: 2026-04-30T08:00:00 | L123: 1206.999866 | M123: 0
A124: System | B124: Region | C124: Island | D124: - | E124: 2026-01-06 | F124: 1230.453223 | G124: 28.43424328 | H124: 0 | I124: 0 | K124: 2026-05-01T07:00:00 | L124: 1254.986045 | M124: 0
A125: System | B125: Region | C125: Island | D125: - | E125: 2026-01-06T01:00:00 | F125: 1186.825038 | G125: 27.91162544 | H125: 0 | I125: 0 | K125: 2026-05-02T09:00:00 | L125: 1091.814814 | M125: 0
A126: System | B126: Region | C126: Island | D126: - | E126: 2026-01-06T02:00:00 | F126: 1201.556622 | G126: 28.11357136 | H126: 0 | I126: 0 | K126: 2026-05-03T09:00:00 | L126: 1043.196598 | M126: 0
A127: System | B127: Region | C127: Island | D127: - | E127: 2026-01-06T03:00:00 | F127: 1218.291187 | G127: 28.25796949 | H127: 0 | I127: 0 | K127: 2026-05-04T07:00:00 | L127: 1032.547293 | M127: 0
A128: System | B128: Region | C128: Island | D128: - | E128: 2026-01-06T04:00:00 | F128: 1241.631445 | G128: 28.58978511 | H128: 0 | I128: 0 | K128: 2026-05-05T07:00:00 | L128: 997.0377475 | M128: 0
A129: System | B129: Region | C129: Island | D129: - | E129: 2026-01-06T05:00:00 | F129: 1295.155715 | G129: 29.07421247 | H129: 0 | I129: 0 | K129: 2026-05-06T07:00:00 | L129: 982.9603776 | M129: 0
A130: System | B130: Region | C130: Island | D130: - | E130: 2026-01-06T06:00:00 | F130: 1362.777653 | G130: 30.0270669 | H130: 0.0002083333333 | I130: 0.03606326468 | K130: 2026-05-07T07:00:00 | L130: 1030.36658 | M130: 0
A131: System | B131: Region | C131: Island | D131: - | E131: 2026-01-06T07:00:00 | F131: 1480.056885 | G131: 30.99701845 | H131: 0 | I131: 0 | K131: 2026-05-08T09:00:00 | L131: 1198.870164 | M131: 0
A132: System | B132: Region | C132: Island | D132: - | E132: 2026-01-06T08:00:00 | F132: 1568.090994 | G132: 32.26560335 | H132: 0.0002083333333 | I132: 0.0827149743 | K132: 2026-05-09T09:00:00 | L132: 1118.571973 | M132: 0
A133: System | B133: Region | C133: Island | D133: - | E133: 2026-01-06T09:00:00 | F133: 1583.693725 | G133: 32.56242302 | H133: 0 | I133: 0 | K133: 2026-05-10T09:00:00 | L133: =MAX(OFFSET($F$4:$F$27,(ROW()-4)*24,0)) -> 1142.914414 | M133: =VLOOKUP(L133,OFFSET($F$4:$H$27,(ROW()-4)*24,0),3,FALSE) -> 0
A134: System | B134: Region | C134: Island | D134: - | E134: 2026-01-06T10:00:00 | F134: 1581.318739 | G134: 32.4407977 | H134: 0 | I134: 0 | K134: 2026-05-11T08:00:00 | L134: 1036.676447 | M134: 0
A135: System | B135: Region | C135: Island | D135: - | E135: 2026-01-06T11:00:00 | F135: 1574.81459 | G135: 32.36872171 | H135: 0.0004166666667 | I135: 0.06037836407 | K135: 2026-05-12T07:00:00 | L135: 1119.400872 | M135: 0
A136: System | B136: Region | C136: Island | D136: - | E136: 2026-01-06T12:00:00 | F136: 1566.860866 | G136: 32.19638025 | H136: 0 | I136: 0 | K136: 2026-05-13T20:00:00 | L136: 1075.121091 | M136: 0
A137: System | B137: Region | C137: Island | D137: - | E137: 2026-01-06T13:00:00 | F137: 1549.836073 | G137: 31.90780222 | H137: 0.0004166666667 | I137: 0.05732713324 | K137: 2026-05-14T07:00:00 | L137: 1079.295446 | M137: 0
A138: System | B138: Region | C138: Island | D138: - | E138: 2026-01-06T14:00:00 | F138: 1554.274379 | G138: 31.98292553 | H138: 0 | I138: 0 | K138: 2026-05-15T07:00:00 | L138: 992.9776359 | M138: 0
A139: System | B139: Region | C139: Island | D139: - | E139: 2026-01-06T15:00:00 | F139: 1566.669514 | G139: 32.17318041 | H139: 0 | I139: 0 | K139: 2026-05-16T09:00:00 | L139: 825.5479362 | M139: 0
A140: System | B140: Region | C140: Island | D140: - | E140: 2026-01-06T16:00:00 | F140: 1618.092878 | G140: 33.06890363 | H140: 0.0004166666667 | I140: 0.01353992669 | K140: 2026-05-17T09:00:00 | L140: 893.6741813 | M140: 0
A141: System | B141: Region | C141: Island | D141: - | E141: 2026-01-06T17:00:00 | F141: 1692.787655 | G141: 34.68211 | H141: 0.001041666667 | I141: 0.02165655412 | K141: 2026-05-18T11:00:00 | L141: 980.8806406 | M141: 0
A142: System | B142: Region | C142: Island | D142: - | E142: 2026-01-06T18:00:00 | F142: 1685.642268 | G142: 34.49503991 | H142: 0.000625 | I142: 0.01297873314 | K142: 2026-05-19T07:00:00 | L142: 948.6490738 | M142: 0
A143: System | B143: Region | C143: Island | D143: - | E143: 2026-01-06T19:00:00 | F143: 1666.021362 | G143: 34.03710262 | H143: 0.001041666667 | I143: 0.097780599 | K143: 2026-05-20T20:00:00 | L143: 837.8075636 | M143: 0
A144: System | B144: Region | C144: Island | D144: - | E144: 2026-01-06T20:00:00 | F144: 1652.48335 | G144: 33.75954198 | H144: 0.0008333333333 | I144: 0.097421337 | K144: 2026-05-21T07:00:00 | L144: 886.5235925 | M144: 0
A145: System | B145: Region | C145: Island | D145: - | E145: 2026-01-06T21:00:00 | F145: 1620.170634 | G145: 33.22970419 | H145: 0.0008333333333 | I145: 0.08111319029 | K145: 2026-05-22T07:00:00 | L145: 895.2787722 | M145: 0
A146: System | B146: Region | C146: Island | D146: - | E146: 2026-01-06T22:00:00 | F146: 1564.352473 | G146: 32.21638023 | H146: 0.0002083333333 | I146: 0.05781369264 | K146: 2026-05-23T11:00:00 | L146: 909.473672 | M146: 0
A147: System | B147: Region | C147: Island | D147: - | E147: 2026-01-06T23:00:00 | F147: 1467.78881 | G147: 30.32675765 | H147: 0.0002083333333 | I147: 0.03628933174 | K147: 2026-05-24T09:00:00 | L147: 949.6680144 | M147: 0
A148: System | B148: Region | C148: Island | D148: - | E148: 2026-01-07 | F148: 1374.513994 | G148: 29.72044794 | H148: 0 | I148: 0 | K148: 2026-05-25T07:00:00 | L148: 896.7416002 | M148: 0
A149: System | B149: Region | C149: Island | D149: - | E149: 2026-01-07T01:00:00 | F149: 1353.762373 | G149: 29.68739055 | H149: 0.0002083333333 | I149: 0.01308829025 | K149: 2026-05-26T07:00:00 | L149: 813.720626 | M149: 0
A150: System | B150: Region | C150: Island | D150: - | E150: 2026-01-07T02:00:00 | F150: 1340.164473 | G150: 29.49079022 | H150: 0 | I150: 0 | K150: 2026-05-27T09:00:00 | L150: 827.4449518 | M150: 0
A151: System | B151: Region | C151: Island | D151: - | E151: 2026-01-07T03:00:00 | F151: 1340.059664 | G151: 29.54900626 | H151: 0.0002083333333 | I151: 0.01624326903 | K151: 2026-05-28T09:00:00 | L151: 838.748352 | M151: 0
A152: System | B152: Region | C152: Island | D152: - | E152: 2026-01-07T04:00:00 | F152: 1350.204599 | G152: 29.55901042 | H152: 0 | I152: 0 | K152: 2026-05-29T11:00:00 | L152: 890.7615091 | M152: 0
A153: System | B153: Region | C153: Island | D153: - | E153: 2026-01-07T05:00:00 | F153: 1367.019763 | G153: 29.65785758 | H153: 0 | I153: 0 | K153: 2026-05-30T09:00:00 | L153: 843.6820568 | M153: 0
A154: System | B154: Region | C154: Island | D154: - | E154: 2026-01-07T06:00:00 | F154: 1417.400372 | G154: 30.51421308 | H154: 0 | I154: 0 | K154: 2026-05-31T11:00:00 | L154: 789.9751141 | M154: 0
A155: System | B155: Region | C155: Island | D155: - | E155: 2026-01-07T07:00:00 | F155: 1530.157481 | G155: 31.90300132 | H155: 0.0004166666667 | I155: 0.05446823651 | K155: 2026-06-01T07:00:00 | L155: 914.7014164 | M155: 0
A156: System | B156: Region | C156: Island | D156: - | E156: 2026-01-07T08:00:00 | F156: 1587.010438 | G156: 32.85843226 | H156: 0.0002083333333 | I156: 0.006015977364 | K156: 2026-06-02T07:00:00 | L156: 951.5051491 | M156: 0
A157: System | B157: Region | C157: Island | D157: - | E157: 2026-01-07T09:00:00 | F157: 1597.127832 | G157: 32.99511541 | H157: 0 | I157: 0 | K157: 2026-06-03T07:00:00 | L157: 894.440649 | M157: 0
A158: System | B158: Region | C158: Island | D158: - | E158: 2026-01-07T10:00:00 | F158: 1583.805927 | G158: 32.73717749 | H158: 0.0002083333333 | I158: 0.005792876086 | K158: 2026-06-04T07:00:00 | L158: 908.4642301 | M158: 0
A159: System | B159: Region | C159: Island | D159: - | E159: 2026-01-07T11:00:00 | F159: 1569.16589 | G159: 32.48413342 | H159: 0.000625 | I159: 0.1629165158 | K159: 2026-06-05T07:00:00 | L159: 907.5485389 | M159: 0
A160: System | B160: Region | C160: Island | D160: - | E160: 2026-01-07T12:00:00 | F160: 1565.543407 | G160: 32.4136895 | H160: 0.0004166666667 | I160: 0.06265891609 | K160: 2026-06-06T10:00:00 | L160: 857.4265554 | M160: 0
A161: System | B161: Region | C161: Island | D161: - | E161: 2026-01-07T13:00:00 | F161: 1538.275895 | G161: 31.94280735 | H161: 0 | I161: 0 | K161: 2026-06-07T11:00:00 | L161: 877.4744154 | M161: 0
A162: System | B162: Region | C162: Island | D162: - | E162: 2026-01-07T14:00:00 | F162: 1520.424211 | G162: 31.65523763 | H162: 0.0002083333333 | I162: 0.04536256578 | K162: 2026-06-08T07:00:00 | L162: 942.6440597 | M162: 0
A163: System | B163: Region | C163: Island | D163: - | E163: 2026-01-07T15:00:00 | F163: 1527.519135 | G163: 31.74141157 | H163: 0 | I163: 0 | K163: 2026-06-09T07:00:00 | L163: 867.6441151 | M163: 0
A164: System | B164: Region | C164: Island | D164: - | E164: 2026-01-07T16:00:00 | F164: 1564.161831 | G164: 32.34070432 | H164: 0.0002083333333 | I164: 0.0001417297559 | K164: 2026-06-10T07:00:00 | L164: 804.7435775 | M164: 0
A165: System | B165: Region | C165: Island | D165: - | E165: 2026-01-07T17:00:00 | F165: 1637.409552 | G165: 33.60604486 | H165: 0.0004166666667 | I165: 0.004192625438 | K165: 2026-06-11T07:00:00 | L165: 792.0359344 | M165: 0
A166: System | B166: Region | C166: Island | D166: - | E166: 2026-01-07T18:00:00 | F166: 1622.224212 | G166: 33.28485446 | H166: 0.000625 | I166: 0.07336061592 | K166: 2026-06-12T11:00:00 | L166: 793.7920507 | M166: 0
A167: System | B167: Region | C167: Island | D167: - | E167: 2026-01-07T19:00:00 | F167: 1599.923846 | G167: 32.9032303 | H167: 0.0002083333333 | I167: 0.02371687101 | K167: 2026-06-13T16:00:00 | L167: 840.5966275 | M167: 0
A168: System | B168: Region | C168: Island | D168: - | E168: 2026-01-07T20:00:00 | F168: 1582.321922 | G168: 32.5915338 | H168: 0.0002083333333 | I168: 0.08187287362 | K168: 2026-06-14T10:00:00 | L168: 937.5275926 | M168: 0
A169: System | B169: Region | C169: Island | D169: - | E169: 2026-01-07T21:00:00 | F169: 1555.131415 | G169: 32.1882629 | H169: 0.0002083333333 | I169: 0.008565116195 | K169: 2026-06-15T08:00:00 | L169: 938.4964334 | M169: 0
A170: System | B170: Region | C170: Island | D170: - | E170: 2026-01-07T22:00:00 | F170: 1504.764958 | G170: 31.43615837 | H170: 0 | I170: 0 | K170: 2026-06-16T07:00:00 | L170: 846.5106429 | M170: 0
A171: System | B171: Region | C171: Island | D171: - | E171: 2026-01-07T23:00:00 | F171: 1430.306099 | G171: 30.0717135 | H171: 0 | I171: 0 | K171: 2026-06-17T11:00:00 | L171: 896.5114543 | M171: 0
A172: System | B172: Region | C172: Island | D172: - | E172: 2026-01-08 | F172: 1363.169569 | G172: 28.54269018 | H172: 0 | I172: 0 | K172: 2026-06-18T07:00:00 | L172: 826.7563997 | M172: 0
A173: System | B173: Region | C173: Island | D173: - | E173: 2026-01-08T01:00:00 | F173: 1322.340436 | G173: 28.12445987 | H173: 0 | I173: 0 | K173: 2026-06-19T08:00:00 | L173: 748.3898326 | M173: 0
A174: System | B174: Region | C174: Island | D174: - | E174: 2026-01-08T02:00:00 | F174: 1320.070121 | G174: 28.14124345 | H174: 0.0002083333333 | I174: 0.02020519407 | K174: 2026-06-20T11:00:00 | L174: 746.4907057 | M174: 0
A175: System | B175: Region | C175: Island | D175: - | E175: 2026-01-08T03:00:00 | F175: 1319.991206 | G175: 28.16809056 | H175: 0 | I175: 0 | K175: 2026-06-21T10:00:00 | L175: 738.5722289 | M175: 0
A176: System | B176: Region | C176: Island | D176: - | E176: 2026-01-08T04:00:00 | F176: 1338.761272 | G176: 28.33960558 | H176: 0 | I176: 0 | K176: 2026-06-22T11:00:00 | L176: 769.1726561 | M176: 0
A177: System | B177: Region | C177: Island | D177: - | E177: 2026-01-08T05:00:00 | F177: 1358.092394 | G177: 28.46618161 | H177: 0.0002083333333 | I177: 0.01176528106 | K177: 2026-06-23T21:00:00 | L177: 808.8829153 | M177: 0
A178: System | B178: Region | C178: Island | D178: - | E178: 2026-01-08T06:00:00 | F178: 1411.268175 | G178: 30.17377434 | H178: 0.0002083333333 | I178: 0.04754038433 | K178: 2026-06-24T09:00:00 | L178: 882.5477219 | M178: 0
A179: System | B179: Region | C179: Island | D179: - | E179: 2026-01-08T07:00:00 | F179: 1505.638944 | G179: 31.21943008 | H179: 0.0002083333333 | I179: 0.0207056544 | K179: 2026-06-25T10:00:00 | L179: 904.5032072 | M179: 0
A180: System | B180: Region | C180: Island | D180: - | E180: 2026-01-08T08:00:00 | F180: 1581.038507 | G180: 32.34313202 | H180: 0 | I180: 0 | K180: 2026-06-26T09:00:00 | L180: 894.5727156 | M180: 0
A181: System | B181: Region | C181: Island | D181: - | E181: 2026-01-08T09:00:00 | F181: 1597.493224 | G181: 32.59745565 | H181: 0.0004166666667 | I181: 0.08679356365 | K181: 2026-06-27T10:00:00 | L181: 850.5213358 | M181: 0
A182: System | B182: Region | C182: Island | D182: - | E182: 2026-01-08T10:00:00 | F182: 1599.898218 | G182: 32.63120088 | H182: 0.0008333333333 | I182: 0.09071893627 | K182: 2026-06-28T11:00:00 | L182: 756.1767312 | M182: 0
A183: System | B183: Region | C183: Island | D183: - | E183: 2026-01-08T11:00:00 | F183: 1609.737522 | G183: 32.79893676 | H183: 0.0004166666667 | I183: 0.08764345237 | K183: 2026-06-29T11:00:00 | L183: 797.9527882 | M183: 0
A184: System | B184: Region | C184: Island | D184: - | E184: 2026-01-08T12:00:00 | F184: 1606.67003 | G184: 32.80344525 | H184: 0.0002083333333 | I184: 0.01345188205 | K184: 2026-06-30T09:00:00 | L184: 788.7990627 | M184: 0
A185: System | B185: Region | C185: Island | D185: - | E185: 2026-01-08T13:00:00 | F185: 1582.601813 | G185: 32.37400614 | H185: 0 | I185: 0 | K185: 2026-07-01T11:00:00 | L185: 727.0188769 | M185: 0
A186: System | B186: Region | C186: Island | D186: - | E186: 2026-01-08T14:00:00 | F186: 1563.296849 | G186: 32.0525266 | H186: 0.0004166666667 | I186: 0.06064249992 | K186: 2026-07-02T16:00:00 | L186: 745.5592601 | M186: 0
A187: System | B187: Region | C187: Island | D187: - | E187: 2026-01-08T15:00:00 | F187: 1566.497048 | G187: 32.11742038 | H187: 0.0004166666667 | I187: 0.1085626164 | K187: 2026-07-03T11:00:00 | L187: 761.2624932 | M187: 0
A188: System | B188: Region | C188: Island | D188: - | E188: 2026-01-08T16:00:00 | F188: 1582.27124 | G188: 32.42241789 | H188: 0.0002083333333 | I188: 0.006688535486 | K188: 2026-07-04T11:00:00 | L188: 681.9338502 | M188: 0
A189: System | B189: Region | C189: Island | D189: - | E189: 2026-01-08T17:00:00 | F189: 1669.252248 | G189: 34.07163151 | H189: 0.000625 | I189: 0.08929923159 | K189: 2026-07-05T11:00:00 | L189: 713.005861 | M189: 0
A190: System | B190: Region | C190: Island | D190: - | E190: 2026-01-08T18:00:00 | F190: 1659.868161 | G190: 33.84555016 | H190: 0.000625 | I190: 0.106146683 | K190: 2026-07-06T11:00:00 | L190: 848.4869337 | M190: 0
A191: System | B191: Region | C191: Island | D191: - | E191: 2026-01-08T19:00:00 | F191: 1634.279826 | G191: 33.44940911 | H191: 0.0004166666667 | I191: 0.06757142211 | K191: 2026-07-07T10:00:00 | L191: 825.5094559 | M191: 0
A192: System | B192: Region | C192: Island | D192: - | E192: 2026-01-08T20:00:00 | F192: 1620.57334 | G192: 33.17241399 | H192: 0.0008333333333 | I192: 0.039504446 | K192: 2026-07-08T11:00:00 | L192: 766.0431864 | M192: 0
A193: System | B193: Region | C193: Island | D193: - | E193: 2026-01-08T21:00:00 | F193: 1593.682777 | G193: 32.65771349 | H193: 0.0004166666667 | I193: 0.08940919374 | K193: 2026-07-09T11:00:00 | L193: 703.0678746 | M193: 0
A194: System | B194: Region | C194: Island | D194: - | E194: 2026-01-08T22:00:00 | F194: 1548.545435 | G194: 31.85610013 | H194: 0 | I194: 0 | K194: 2026-07-10T10:00:00 | L194: 728.7602127 | M194: 0
A195: System | B195: Region | C195: Island | D195: - | E195: 2026-01-08T23:00:00 | F195: 1465.420069 | G195: 29.53357586 | H195: 0 | I195: 0 | K195: 2026-07-11T11:00:00 | L195: 766.3213618 | M195: 0
A196: System | B196: Region | C196: Island | D196: - | E196: 2026-01-09 | F196: 1417.15848 | G196: 30.35053865 | H196: 0 | I196: 0 | K196: 2026-07-12T09:00:00 | L196: 740.7327283 | M196: 0
A197: System | B197: Region | C197: Island | D197: - | E197: 2026-01-09T01:00:00 | F197: 1399.629133 | G197: 30.22651392 | H197: 0.0002083333333 | I197: 0.02054706939 | K197: 2026-07-13T11:00:00 | L197: =MAX(OFFSET($F$4:$F$27,(ROW()-4)*24,0)) -> 819.7077702 | M197: =VLOOKUP(L197,OFFSET($F$4:$H$27,(ROW()-4)*24,0),3,FALSE) -> 0
A198: System | B198: Region | C198: Island | D198: - | E198: 2026-01-09T02:00:00 | F198: 1401.706811 | G198: 30.25541671 | H198: 0 | I198: 0 | K198: 2026-07-14T11:00:00 | L198: 732.808446 | M198: 0
A199: System | B199: Region | C199: Island | D199: - | E199: 2026-01-09T03:00:00 | F199: 1411.110677 | G199: 30.28703984 | H199: 0.0002083333333 | I199: 0.01851915253 | K199: 2026-07-15T12:00:00 | L199: 674.9761025 | M199: 0
A200: System | B200: Region | C200: Island | D200: - | E200: 2026-01-09T04:00:00 | F200: 1426.03635 | G200: 30.40012269 | H200: 0.0002083333333 | I200: 0.02367715043 | K200: 2026-07-16T11:00:00 | L200: 758.2622051 | M200: 0
A201: System | B201: Region | C201: Island | D201: - | E201: 2026-01-09T05:00:00 | F201: 1449.837422 | G201: 30.54649203 | H201: 0 | I201: 0 | K201: 2026-07-17T10:00:00 | L201: 734.8610477 | M201: 0
A202: System | B202: Region | C202: Island | D202: - | E202: 2026-01-09T06:00:00 | F202: 1505.701874 | G202: 31.59767896 | H202: 0.0002083333333 | I202: 0.03957798813 | K202: 2026-07-18T11:00:00 | L202: 733.7311043 | M202: 0
... 8561 more rows

Sheet Run 3
A3: Parent Name | B3: Collection | C3: Child Name | D3: Category | E3: Datetime | F3: Load (MW) | G3: Transmission Losses (MW) | H3: Unserved Energy Hours (h) | I3: Unserved Energy (MW) | K3: Daily Peak | L3: Daily Peak Load | M3: Average Unserved Energy Hours
A4: System | B4: Region | C4: Island | D4: - | E4: 2026-01-01 | F4: 1446.643368 | G4: 30.6236692 | H4: 0 | I4: 0 | K4: 2026-01-01T17:00:00 | L4: =MAX(OFFSET($F$4:$F$27,(ROW()-4)*24,0)) -> 1605.345169 | M4: =VLOOKUP(L4,OFFSET($F$4:$H$27,(ROW()-4)*24,0),3,FALSE) -> 0.0004166666667 | P4: LOLE | Q4: =SUM(M4:M368) -> 0.09645833333
A5: System | B5: Region | C5: Island | D5: - | E5: 2026-01-01T01:00:00 | F5: 1413.931121 | G5: 30.52765011 | H5: 0.0002083333333 | I5: 0.02278655877 | K5: 2026-01-02T17:00:00 | L5: =MAX(OFFSET($F$4:$F$27,(ROW()-4)*24,0)) -> 1477.985958 | M5: =VLOOKUP(L5,OFFSET($F$4:$H$27,(ROW()-4)*24,0),3,FALSE) -> 0.0002083333333 | P5: LOLH | Q5: =SUM(H4:H8763) -> 0.5827083333
A6: System | B6: Region | C6: Island | D6: - | E6: 2026-01-01T02:00:00 | F6: 1391.234661 | G6: 30.33785175 | H6: 0 | I6: 0 | K6: 2026-01-03T20:00:00 | L6: 1694.744864 | M6: 0.004166666667 | P6: EUE | Q6: =SUM(I4:I8763) -> 61.73756968
A7: System | B7: Region | C7: Island | D7: - | E7: 2026-01-01T03:00:00 | F7: 1376.666461 | G7: 30.3484726 | H7: 0 | I7: 0 | K7: 2026-01-04T17:00:00 | L7: 1696.561496 | M7: 0.002916666667 | P7: Peak | Q7: =MAX(F4:F8763) -> 1758.324498
A8: System | B8: Region | C8: Island | D8: - | E8: 2026-01-01T04:00:00 | F8: 1375.376829 | G8: 30.3533809 | H8: 0 | I8: 0 | K8: 2026-01-05T17:00:00 | L8: 1459.346991 | M8: 0 | P8: Loss @ Peak | Q8: =VLOOKUP(Q7,F4:G8763,2,FALSE) -> 38.57261814
A9: System | B9: Region | C9: Island | D9: - | E9: 2026-01-01T05:00:00 | F9: 1390.098899 | G9: 30.4583291 | H9: 0.0004166666667 | I9: 0.02716797722 | K9: 2026-01-06T17:00:00 | L9: 1696.616893 | M9: 0.001666666667 | P9: Peak with Losses | Q9: =Q7+Q8 -> 1796.897116
A10: System | B10: Region | C10: Island | D10: - | E10: 2026-01-01T06:00:00 | F10: 1418.889468 | G10: 30.89286036 | H10: 0 | I10: 0 | K10: 2026-01-07T17:00:00 | L10: 1640.144296 | M10: 0.0004166666667 | P10: Peak Losses | Q10: =MAX(G4:G8763) -> 42.15848573
A11: System | B11: Region | C11: Island | D11: - | E11: 2026-01-01T07:00:00 | F11: 1458.120944 | G11: 31.28924719 | H11: 0 | I11: 0 | K11: 2026-01-08T17:00:00 | L11: 1672.107233 | M11: 0.001875 | P11: Firm Capacity | Q11: 2086.986
A12: System | B12: Region | C12: Island | D12: - | E12: 2026-01-01T08:00:00 | F12: 1489.469781 | G12: 31.67776002 | H12: 0.0002083333333 | I12: 0.03992138719 | K12: 2026-01-09T08:00:00 | L12: 1696.493218 | M12: 0.001875 | P12: Reserve Margin | Q12: =Q11-Q7 -> 328.6615024
A13: System | B13: Region | C13: Island | D13: - | E13: 2026-01-01T09:00:00 | F13: 1498.958032 | G13: 31.80039161 | H13: 0.0004166666667 | I13: 0.0856645211 | K13: 2026-01-10T17:00:00 | L13: 1538.80236 | M13: 0 | P13: Reserve Margin % | Q13: =Q12/Q7 -> 0.1869174335
A14: System | B14: Region | C14: Island | D14: - | E14: 2026-01-01T10:00:00 | F14: 1509.475957 | G14: 31.98230679 | H14: 0.0004166666667 | I14: 0.09146296135 | K14: 2026-01-11T20:00:00 | L14: 1630.991285 | M14: 0.000625 | P14: Reserve Magin w/Loss | Q14: =Q11-Q9 -> 290.0888843
A15: System | B15: Region | C15: Island | D15: - | E15: 2026-01-01T11:00:00 | F15: 1526.85433 | G15: 32.18179897 | H15: 0 | I15: 0 | K15: 2026-01-12T08:00:00 | L15: 1665.072004 | M15: 0.001041666667 | P15: Reserve Margin % w/ Loss | Q15: =Q14/Q9 -> 0.1614387834
A16: System | B16: Region | C16: Island | D16: - | E16: 2026-01-01T12:00:00 | F16: 1536.052666 | G16: 32.39111493 | H16: 0.0002083333333 | I16: 0.0031866629 | K16: 2026-01-13T18:00:00 | L16: 1648.0993 | M16: 0.000625
A17: System | B17: Region | C17: Island | D17: - | E17: 2026-01-01T13:00:00 | F17: 1536.306089 | G17: 32.3728991 | H17: 0.0002083333333 | I17: 0.04306366168 | K17: 2026-01-14T08:00:00 | L17: 1709.546453 | M17: 0.003125 | P17: Checks
A18: System | B18: Region | C18: Island | D18: - | E18: 2026-01-01T14:00:00 | F18: 1536.416516 | G18: 32.34189979 | H18: 0 | I18: 0 | K18: 2026-01-15T08:00:00 | L18: 1573.906411 | M18: 0.0008333333333 | P18: Island Energy (Original) | Q18: 8357
A19: System | B19: Region | C19: Island | D19: - | E19: 2026-01-01T15:00:00 | F19: 1540.998958 | G19: 32.42240708 | H19: 0.0004166666667 | I19: 0.08167984814 | K19: 2026-01-16T17:00:00 | L19: 1488.23861 | M19: 0 | P19: Island Energy (Escalated) | Q19: =SUM(F4:F8763)/1000 -> 8624.468769
A20: System | B20: Region | C20: Island | D20: - | E20: 2026-01-01T16:00:00 | F20: 1558.094036 | G20: 32.68019502 | H20: 0.0004166666667 | I20: 0.066171631 | K20: 2026-01-17T20:00:00 | L20: 1496.524704 | M20: 0.0002083333333 | P20: Escalation Factor Check | Q20: =Q19/Q18 -> 1.032005357
A21: System | B21: Region | C21: Island | D21: - | E21: 2026-01-01T17:00:00 | F21: 1605.345169 | G21: 33.43908942 | H21: 0.0004166666667 | I21: 0.01920530375 | K21: 2026-01-18T18:00:00 | L21: 1579.027561 | M21: 0.000625
A22: System | B22: Region | C22: Island | D22: - | E22: 2026-01-01T18:00:00 | F22: 1580.056785 | G22: 32.99440032 | H22: 0 | I22: 0 | K22: 2026-01-19T08:00:00 | L22: 1509.94497 | M22: 0.0004166666667 | P22: Island Peak (Original) | Q22: 1704
A23: System | B23: Region | C23: Island | D23: - | E23: 2026-01-01T19:00:00 | F23: 1558.106841 | G23: 32.72216407 | H23: 0.0004166666667 | I23: 0.1083426858 | K23: 2026-01-20T18:00:00 | L23: 1421.2451 | M23: 0 | P23: Island Peak (Escalated) | Q23: =MAX(F4:F8763) -> 1758.324498
A24: System | B24: Region | C24: Island | D24: - | E24: 2026-01-01T20:00:00 | F24: 1541.114662 | G24: 32.40321805 | H24: 0 | I24: 0 | K24: 2026-01-21T18:00:00 | L24: 1486.717625 | M24: 0 | P24: Escalation Factor Check | Q24: =Q23/Q22 -> 1.031880574
A25: System | B25: Region | C25: Island | D25: - | E25: 2026-01-01T21:00:00 | F25: 1511.759886 | G25: 31.94243192 | H25: 0.0002083333333 | I25: 0.05084818286 | K25: 2026-01-22T08:00:00 | L25: 1501.561108 | M25: 0.0002083333333
A26: System | B26: Region | C26: Island | D26: - | E26: 2026-01-01T22:00:00 | F26: 1470.688346 | G26: 31.39220367 | H26: 0.0002083333333 | I26: 0.03417111775 | K26: 2026-01-23T18:00:00 | L26: 1533.044923 | M26: 0.0002083333333
A27: System | B27: Region | C27: Island | D27: - | E27: 2026-01-01T23:00:00 | F27: 1394.015979 | G27: 30.38241284 | H27: 0 | I27: 0 | K27: 2026-01-24T10:00:00 | L27: 1538.650142 | M27: 0.0002083333333
A28: System | B28: Region | C28: Island | D28: - | E28: 2026-01-02 | F28: 1314.731402 | G28: 22.53486885 | H28: 0.0002083333333 | I28: 0.005050195293 | K28: 2026-01-25T18:00:00 | L28: 1446.119417 | M28: 0.0002083333333
A29: System | B29: Region | C29: Island | D29: - | E29: 2026-01-02T01:00:00 | F29: 1258.945065 | G29: 21.36082706 | H29: 0 | I29: 0 | K29: 2026-01-26T18:00:00 | L29: 1608.635718 | M29: 0.001458333333
A30: System | B30: Region | C30: Island | D30: - | E30: 2026-01-02T02:00:00 | F30: 1238.407152 | G30: 20.91113605 | H30: 0 | I30: 0 | K30: 2026-01-27T17:00:00 | L30: 1700.177654 | M30: 0.005
A31: System | B31: Region | C31: Island | D31: - | E31: 2026-01-02T03:00:00 | F31: 1235.02024 | G31: 20.84639271 | H31: 0 | I31: 0 | K31: 2026-01-28T08:00:00 | L31: 1412.458428 | M31: 0
A32: System | B32: Region | C32: Island | D32: - | E32: 2026-01-02T04:00:00 | F32: 1243.970531 | G32: 21.04331586 | H32: 0 | I32: 0 | K32: 2026-01-29T18:00:00 | L32: 1387.319963 | M32: 0
A33: System | B33: Region | C33: Island | D33: - | E33: 2026-01-02T05:00:00 | F33: 1262.157607 | G33: 21.42610476 | H33: 0 | I33: 0 | K33: 2026-01-30T12:00:00 | L33: 1494.514244 | M33: 0.0002083333333
A34: System | B34: Region | C34: Island | D34: - | E34: 2026-01-02T06:00:00 | F34: 1299.668685 | G34: 27.36189647 | H34: 0 | I34: 0 | K34: 2026-01-31T18:00:00 | L34: 1448.88664 | M34: 0
A35: System | B35: Region | C35: Island | D35: - | E35: 2026-01-02T07:00:00 | F35: 1368.03886 | G35: 28.75807399 | H35: 0 | I35: 0 | K35: 2026-02-01T10:00:00 | L35: 1321.468533 | M35: 0
A36: System | B36: Region | C36: Island | D36: - | E36: 2026-01-02T08:00:00 | F36: 1405.646574 | G36: 29.54499978 | H36: 0.0002083333333 | I36: 0.02454665581 | K36: 2026-02-02T17:00:00 | L36: 1630.140498 | M36: 0.000625
A37: System | B37: Region | C37: Island | D37: - | E37: 2026-01-02T09:00:00 | F37: 1444.893516 | G37: 30.26163735 | H37: 0.0002083333333 | I37: 0.02584432212 | K37: 2026-02-03T18:00:00 | L37: 1531.395387 | M37: 0.0002083333333
A38: System | B38: Region | C38: Island | D38: - | E38: 2026-01-02T10:00:00 | F38: 1445.185911 | G38: 30.22577506 | H38: 0 | I38: 0 | K38: 2026-02-04T08:00:00 | L38: 1607.477661 | M38: 0
A39: System | B39: Region | C39: Island | D39: - | E39: 2026-01-02T11:00:00 | F39: 1452.815716 | G39: 30.35604235 | H39: 0.0004166666667 | I39: 0.05345667021 | K39: 2026-02-05T08:00:00 | L39: 1653.632401 | M39: 0.001458333333
A40: System | B40: Region | C40: Island | D40: - | E40: 2026-01-02T12:00:00 | F40: 1443.741759 | G40: 30.20602147 | H40: 0.0004166666667 | I40: 0.1047566564 | K40: 2026-02-06T12:00:00 | L40: 1449.856477 | M40: 0.0002083333333
A41: System | B41: Region | C41: Island | D41: - | E41: 2026-01-02T13:00:00 | F41: 1421.126027 | G41: 29.83807901 | H41: 0.0004166666667 | I41: 0.0502231913 | K41: 2026-02-07T18:00:00 | L41: 1558.261017 | M41: 0.00125
A42: System | B42: Region | C42: Island | D42: - | E42: 2026-01-02T14:00:00 | F42: 1378.025359 | G42: 29.01515521 | H42: 0.0004166666667 | I42: 0.0394885777 | K42: 2026-02-08T19:00:00 | L42: 1586.934764 | M42: 0.001041666667
A43: System | B43: Region | C43: Island | D43: - | E43: 2026-01-02T15:00:00 | F43: 1356.178234 | G43: 28.52084393 | H43: 0 | I43: 0 | K43: 2026-02-09T08:00:00 | L43: 1744.561891 | M43: 0.01083333333
A44: System | B44: Region | C44: Island | D44: - | E44: 2026-01-02T16:00:00 | F44: 1376.93244 | G44: 29.00373969 | H44: 0 | I44: 0 | K44: 2026-02-10T08:00:00 | L44: 1693.47947 | M44: 0.002291666667
A45: System | B45: Region | C45: Island | D45: - | E45: 2026-01-02T17:00:00 | F45: 1477.985958 | G45: 30.77924601 | H45: 0.0002083333333 | I45: 0.006279662308 | K45: 2026-02-11T18:00:00 | L45: 1556.083642 | M45: 0.000625
A46: System | B46: Region | C46: Island | D46: - | E46: 2026-01-02T18:00:00 | F46: 1461.763586 | G46: 30.49744591 | H46: 0 | I46: 0 | K46: 2026-02-12T12:00:00 | L46: 1691.365542 | M46: 0.003541666667
A47: System | B47: Region | C47: Island | D47: - | E47: 2026-01-02T19:00:00 | F47: 1423.967494 | G47: 29.91820403 | H47: 0.0002083333333 | I47: 0.03229129843 | K47: 2026-02-13T08:00:00 | L47: 1555.685949 | M47: 0.000625
A48: System | B48: Region | C48: Island | D48: - | E48: 2026-01-02T20:00:00 | F48: 1415.112449 | G48: 29.70170034 | H48: 0 | I48: 0 | K48: 2026-02-14T18:00:00 | L48: 1514.303515 | M48: 0
A49: System | B49: Region | C49: Island | D49: - | E49: 2026-01-02T21:00:00 | F49: 1392.560005 | G49: 29.27083918 | H49: 0 | I49: 0 | K49: 2026-02-15T18:00:00 | L49: 1498.811003 | M49: 0
A50: System | B50: Region | C50: Island | D50: - | E50: 2026-01-02T22:00:00 | F50: 1352.620253 | G50: 28.50143576 | H50: 0.0004166666667 | I50: 0.02808111232 | K50: 2026-02-16T18:00:00 | L50: 1512.345127 | M50: 0.0002083333333
A51: System | B51: Region | C51: Island | D51: - | E51: 2026-01-02T23:00:00 | F51: 1299.557143 | G51: 22.24409178 | H51: 0 | I51: 0 | K51: 2026-02-17T18:00:00 | L51: 1576.355697 | M51: 0.0002083333333
A52: System | B52: Region | C52: Island | D52: - | E52: 2026-01-03 | F52: 1228.23578 | G52: 26.54538003 | H52: 0 | I52: 0 | K52: 2026-02-18T08:00:00 | L52: 1556.041689 | M52: 0.0004166666667
A53: System | B53: Region | C53: Island | D53: - | E53: 2026-01-03T01:00:00 | F53: 1183.325909 | G53: 25.60485053 | H53: 0 | I53: 0 | K53: 2026-02-19T18:00:00 | L53: 1481.428033 | M53: 0
A54: System | B54: Region | C54: Island | D54: - | E54: 2026-01-03T02:00:00 | F54: 1189.026808 | G54: 25.74308252 | H54: 0 | I54: 0 | K54: 2026-02-20T08:00:00 | L54: 1370.720787 | M54: 0
A55: System | B55: Region | C55: Island | D55: - | E55: 2026-01-03T03:00:00 | F55: 1193.828921 | G55: 25.89260264 | H55: 0 | I55: 0 | K55: 2026-02-21T19:00:00 | L55: 1543.269409 | M55: 0.0002083333333
A56: System | B56: Region | C56: Island | D56: - | E56: 2026-01-03T04:00:00 | F56: 1208.348428 | G56: 26.07320952 | H56: 0 | I56: 0 | K56: 2026-02-22T10:00:00 | L56: 1505.577636 | M56: 0.0002083333333
A57: System | B57: Region | C57: Island | D57: - | E57: 2026-01-03T05:00:00 | F57: 1225.335693 | G57: 26.37084534 | H57: 0 | I57: 0 | K57: 2026-02-23T18:00:00 | L57: 1395.650294 | M57: 0.0004166666667
A58: System | B58: Region | C58: Island | D58: - | E58: 2026-01-03T06:00:00 | F58: 1262.168175 | G58: 28.90194834 | H58: 0 | I58: 0 | K58: 2026-02-24T19:00:00 | L58: 1657.906501 | M58: 0.0008333333333
A59: System | B59: Region | C59: Island | D59: - | E59: 2026-01-03T07:00:00 | F59: 1322.586156 | G59: 29.55432424 | H59: 0.0004166666667 | I59: 0.009647684094 | K59: 2026-02-25T08:00:00 | L59: 1658.178666 | M59: 0.002291666667
A60: System | B60: Region | C60: Island | D60: - | E60: 2026-01-03T08:00:00 | F60: 1378.148342 | G60: 30.12795593 | H60: 0 | I60: 0 | K60: 2026-02-26T08:00:00 | L60: 1484.36097 | M60: 0.0002083333333
A61: System | B61: Region | C61: Island | D61: - | E61: 2026-01-03T09:00:00 | F61: 1455.234029 | G61: 31.08700323 | H61: 0.0002083333333 | I61: 0.037891314 | K61: 2026-02-27T08:00:00 | L61: 1496.481802 | M61: 0
A62: System | B62: Region | C62: Island | D62: - | E62: 2026-01-03T10:00:00 | F62: 1460.422057 | G62: 31.17004544 | H62: 0.0002083333333 | I62: 0.03170776504 | K62: 2026-02-28T19:00:00 | L62: 1584.697161 | M62: 0.000625
A63: System | B63: Region | C63: Island | D63: - | E63: 2026-01-03T11:00:00 | F63: 1452.817066 | G63: 31.03013801 | H63: 0.0002083333333 | I63: 0.05364553935 | K63: 2026-03-01T10:00:00 | L63: 1443.739637 | M63: 0
A64: System | B64: Region | C64: Island | D64: - | E64: 2026-01-03T12:00:00 | F64: 1462.334146 | G64: 31.17468643 | H64: 0.0004166666667 | I64: 0.07576443184 | K64: 2026-03-02T09:00:00 | L64: 1594.048505 | M64: 0.0002083333333
A65: System | B65: Region | C65: Island | D65: - | E65: 2026-01-03T13:00:00 | F65: 1462.161775 | G65: 31.18372463 | H65: 0 | I65: 0 | K65: 2026-03-03T19:00:00 | L65: 1638.037915 | M65: 0.0004166666667
A66: System | B66: Region | C66: Island | D66: - | E66: 2026-01-03T14:00:00 | F66: 1486.805206 | G66: 31.51933192 | H66: 0.000625 | I66: 0.01543693375 | K66: 2026-03-04T07:00:00 | L66: 1572.172194 | M66: 0.0008333333333
A67: System | B67: Region | C67: Island | D67: - | E67: 2026-01-03T15:00:00 | F67: 1491.589329 | G67: 31.54316043 | H67: 0.0002083333333 | I67: 0.04890897041 | K67: 2026-03-05T20:00:00 | L67: 1515.15036 | M67: 0
A68: System | B68: Region | C68: Island | D68: - | E68: 2026-01-03T16:00:00 | F68: 1539.86027 | G68: 32.20213796 | H68: 0.000625 | I68: 0.03586896572 | K68: 2026-03-06T08:00:00 | L68: 1684.799735 | M68: 0.003958333333
A69: System | B69: Region | C69: Island | D69: - | E69: 2026-01-03T17:00:00 | F69: 1678.835579 | G69: 35.36442359 | H69: 0.002916666667 | I69: 0.3860172234 | K69: 2026-03-07T08:00:00 | L69: =MAX(OFFSET($F$4:$F$27,(ROW()-4)*24,0)) -> 1554.614843 | M69: =VLOOKUP(L69,OFFSET($F$4:$H$27,(ROW()-4)*24,0),3,FALSE) -> 0.0004166666667
A70: System | B70: Region | C70: Island | D70: - | E70: 2026-01-03T18:00:00 | F70: 1661.233478 | G70: 35.24044043 | H70: 0.003541666667 | I70: 0.1196838545 | K70: 2026-03-08T08:00:00 | L70: 1392.507112 | M70: 0.0002083333333
A71: System | B71: Region | C71: Island | D71: - | E71: 2026-01-03T19:00:00 | F71: 1666.526703 | G71: 35.08748657 | H71: 0.002291666667 | I71: 0.1953737657 | K71: 2026-03-09T07:00:00 | L71: 1551.364047 | M71: 0
A72: System | B72: Region | C72: Island | D72: - | E72: 2026-01-03T20:00:00 | F72: 1694.744864 | G72: 35.57631518 | H72: 0.004166666667 | I72: 0.2152857575 | K72: 2026-03-10T07:00:00 | L72: 1725.846792 | M72: 0.0025
A73: System | B73: Region | C73: Island | D73: - | E73: 2026-01-03T21:00:00 | F73: 1679.103321 | G73: 35.30159583 | H73: 0.004166666667 | I73: 0.1527261212 | K73: 2026-03-11T07:00:00 | L73: 1606.184854 | M73: 0.0004166666667
A74: System | B74: Region | C74: Island | D74: - | E74: 2026-01-03T22:00:00 | F74: 1648.561117 | G74: 34.34882589 | H74: 0.00125 | I74: 0.02915475274 | K74: 2026-03-12T19:00:00 | L74: 1518.906106 | M74: 0.0004166666667
A75: System | B75: Region | C75: Island | D75: - | E75: 2026-01-03T23:00:00 | F75: 1579.18451 | G75: 30.79808037 | H75: 0 | I75: 0 | K75: 2026-03-13T08:00:00 | L75: 1707.469601 | M75: 0.002291666667
A76: System | B76: Region | C76: Island | D76: - | E76: 2026-01-04 | F76: 1522.550553 | G76: 36.05481176 | H76: 0 | I76: 0 | K76: 2026-03-14T10:00:00 | L76: 1636.38799 | M76: 0.0002083333333
A77: System | B77: Region | C77: Island | D77: - | E77: 2026-01-04T01:00:00 | F77: 1434.34803 | G77: 36.61597472 | H77: 0.0002083333333 | I77: 0.02262272642 | K77: 2026-03-15T09:00:00 | L77: 1576.162816 | M77: 0.0004166666667
A78: System | B78: Region | C78: Island | D78: - | E78: 2026-01-04T02:00:00 | F78: 1419.03398 | G78: 36.81380203 | H78: 0 | I78: 0 | K78: 2026-03-16T10:00:00 | L78: 1627.647952 | M78: 0.0004166666667
A79: System | B79: Region | C79: Island | D79: - | E79: 2026-01-04T03:00:00 | F79: 1453.252252 | G79: 36.53232189 | H79: 0.0004166666667 | I79: 0.0557657797 | K79: 2026-03-17T07:00:00 | L79: 1373.256151 | M79: 0
A80: System | B80: Region | C80: Island | D80: - | E80: 2026-01-04T04:00:00 | F80: 1472.084736 | G80: 36.28231268 | H80: 0.0002083333333 | I80: 0.03033453268 | K80: 2026-03-18T16:00:00 | L80: 1357.654317 | M80: 0.0002083333333
A81: System | B81: Region | C81: Island | D81: - | E81: 2026-01-04T05:00:00 | F81: 1467.255272 | G81: 36.38230101 | H81: 0.000625 | I81: 0.08302049241 | K81: 2026-03-19T07:00:00 | L81: 1312.447698 | M81: 0.0002083333333
A82: System | B82: Region | C82: Island | D82: - | E82: 2026-01-04T06:00:00 | F82: 1503.966391 | G82: 34.25143027 | H82: 0.000625 | I82: 0.0896704004 | K82: 2026-03-20T07:00:00 | L82: 1446.104971 | M82: 0
A83: System | B83: Region | C83: Island | D83: - | E83: 2026-01-04T07:00:00 | F83: 1537.675729 | G83: 34.53003359 | H83: 0 | I83: 0 | K83: 2026-03-21T08:00:00 | L83: 1324.835718 | M83: 0
A84: System | B84: Region | C84: Island | D84: - | E84: 2026-01-04T08:00:00 | F84: 1566.111245 | G84: 34.97370716 | H84: 0.0004166666667 | I84: 0.01704844832 | K84: 2026-03-22T10:00:00 | L84: 1438.745486 | M84: 0
A85: System | B85: Region | C85: Island | D85: - | E85: 2026-01-04T09:00:00 | F85: 1644.893209 | G85: 36.50815916 | H85: 0.002291666667 | I85: 0.3147469078 | K85: 2026-03-23T19:00:00 | L85: 1550.239917 | M85: 0.0002083333333
A86: System | B86: Region | C86: Island | D86: - | E86: 2026-01-04T10:00:00 | F86: 1658.743593 | G86: 36.93733202 | H86: 0.003333333333 | I86: 0.1679857719 | K86: 2026-03-24T07:00:00 | L86: 1500.535674 | M86: 0.0002083333333
A87: System | B87: Region | C87: Island | D87: - | E87: 2026-01-04T11:00:00 | F87: 1640.434172 | G87: 36.49930393 | H87: 0.001458333333 | I87: 0.09505476019 | K87: 2026-03-25T07:00:00 | L87: 1465.967637 | M87: 0
A88: System | B88: Region | C88: Island | D88: - | E88: 2026-01-04T12:00:00 | F88: 1615.149366 | G88: 35.87546779 | H88: 0.00125 | I88: 0.03275406242 | K88: 2026-03-26T07:00:00 | L88: 1426.58087 | M88: 0.0002083333333
A89: System | B89: Region | C89: Island | D89: - | E89: 2026-01-04T13:00:00 | F89: 1598.489117 | G89: 35.56964901 | H89: 0.0008333333333 | I89: 0.09486994335 | K89: 2026-03-27T07:00:00 | L89: 1210.531969 | M89: 0
A90: System | B90: Region | C90: Island | D90: - | E90: 2026-01-04T14:00:00 | F90: 1595.174076 | G90: 35.44828161 | H90: 0.0008333333333 | I90: 0.02925926105 | K90: 2026-03-28T19:00:00 | L90: 1189.021926 | M90: 0
A91: System | B91: Region | C91: Island | D91: - | E91: 2026-01-04T15:00:00 | F91: 1607.56985 | G91: 35.72067626 | H91: 0.0004166666667 | I91: 0.0232121901 | K91: 2026-03-29T20:00:00 | L91: 1247.173772 | M91: 0
A92: System | B92: Region | C92: Island | D92: - | E92: 2026-01-04T16:00:00 | F92: 1640.593422 | G92: 36.43485823 | H92: 0.00125 | I92: 0.04344750108 | K92: 2026-03-30T07:00:00 | L92: 1391.42142 | M92: 0.0004166666667
A93: System | B93: Region | C93: Island | D93: - | E93: 2026-01-04T17:00:00 | F93: 1696.561496 | G93: 37.24328892 | H93: 0.002916666667 | I93: 0.1474183142 | K93: 2026-03-31T07:00:00 | L93: 1352.774697 | M93: 0.0002083333333
A94: System | B94: Region | C94: Island | D94: - | E94: 2026-01-04T18:00:00 | F94: 1676.784703 | G94: 36.74286782 | H94: 0.00125 | I94: 0.2208221388 | K94: 2026-04-01T07:00:00 | L94: 1264.302317 | M94: 0
A95: System | B95: Region | C95: Island | D95: - | E95: 2026-01-04T19:00:00 | F95: 1656.650679 | G95: 36.4762137 | H95: 0.001041666667 | I95: 0.02025840273 | K95: 2026-04-02T20:00:00 | L95: 1295.297694 | M95: 0
A96: System | B96: Region | C96: Island | D96: - | E96: 2026-01-04T20:00:00 | F96: 1655.58422 | G96: 36.42719623 | H96: 0.0008333333333 | I96: 0.0316428353 | K96: 2026-04-03T08:00:00 | L96: 1232.983086 | M96: 0
A97: System | B97: Region | C97: Island | D97: - | E97: 2026-01-04T21:00:00 | F97: 1624.447995 | G97: 35.86909297 | H97: 0.0008333333333 | I97: 0.148005683 | K97: 2026-04-04T09:00:00 | L97: 1146.595072 | M97: 0
A98: System | B98: Region | C98: Island | D98: - | E98: 2026-01-04T22:00:00 | F98: 1554.769184 | G98: 34.65751323 | H98: 0.0002083333333 | I98: 0.05962241771 | K98: 2026-04-05T20:00:00 | L98: 1335.555388 | M98: 0.0002083333333
A99: System | B99: Region | C99: Island | D99: - | E99: 2026-01-04T23:00:00 | F99: 1462.278011 | G99: 36.43275716 | H99: 0 | I99: 0 | K99: 2026-04-06T20:00:00 | L99: 1388.691347 | M99: 0.000625
A100: System | B100: Region | C100: Island | D100: - | E100: 2026-01-05 | F100: 1373.050343 | G100: 22.92421817 | H100: 0 | I100: 0 | K100: 2026-04-07T07:00:00 | L100: 1448.806928 | M100: 0
A101: System | B101: Region | C101: Island | D101: - | E101: 2026-01-05T01:00:00 | F101: 1324.885912 | G101: 21.77376468 | H101: 0.0004166666667 | I101: 0.0199412647 | K101: 2026-04-08T07:00:00 | L101: 1393.726283 | M101: 0
A102: System | B102: Region | C102: Island | D102: - | E102: 2026-01-05T02:00:00 | F102: 1298.49003 | G102: 21.12248065 | H102: 0 | I102: 0 | K102: 2026-04-09T07:00:00 | L102: 1460.923542 | M102: 0.0004166666667
A103: System | B103: Region | C103: Island | D103: - | E103: 2026-01-05T03:00:00 | F103: 1284.100997 | G103: 20.78332485 | H103: 0.0002083333333 | I103: 0.001076188547 | K103: 2026-04-10T07:00:00 | L103: 1408.985127 | M103: 0.0002083333333
A104: System | B104: Region | C104: Island | D104: - | E104: 2026-01-05T04:00:00 | F104: 1278.596604 | G104: 20.65852691 | H104: 0 | I104: 0 | K104: 2026-04-11T09:00:00 | L104: 1312.333374 | M104: 0.0002083333333
A105: System | B105: Region | C105: Island | D105: - | E105: 2026-01-05T05:00:00 | F105: 1278.891045 | G105: 20.66730048 | H105: 0 | I105: 0 | K105: 2026-04-12T09:00:00 | L105: 1133.640933 | M105: 0
A106: System | B106: Region | C106: Island | D106: - | E106: 2026-01-05T06:00:00 | F106: 1308.771608 | G106: 27.02093791 | H106: 0.0002083333333 | I106: 0.02246354758 | K106: 2026-04-13T07:00:00 | L106: 1234.03087 | M106: 0
A107: System | B107: Region | C107: Island | D107: - | E107: 2026-01-05T07:00:00 | F107: 1404.570087 | G107: 29.03310409 | H107: 0.0002083333333 | I107: 0.02734910108 | K107: 2026-04-14T07:00:00 | L107: 1132.521521 | M107: 0
A108: System | B108: Region | C108: Island | D108: - | E108: 2026-01-05T08:00:00 | F108: 1444.957192 | G108: 29.84115973 | H108: 0 | I108: 0 | K108: 2026-04-15T07:00:00 | L108: 1049.976343 | M108: 0
A109: System | B109: Region | C109: Island | D109: - | E109: 2026-01-05T09:00:00 | F109: 1430.50875 | G109: 29.5597135 | H109: 0 | I109: 0 | K109: 2026-04-16T20:00:00 | L109: 1433.187082 | M109: 0.0004166666667
A110: System | B110: Region | C110: Island | D110: - | E110: 2026-01-05T10:00:00 | F110: 1427.881496 | G110: 29.50272341 | H110: 0.0002083333333 | I110: 0.02838928935 | K110: 2026-04-17T07:00:00 | L110: 1446.200675 | M110: 0.0004166666667
A111: System | B111: Region | C111: Island | D111: - | E111: 2026-01-05T11:00:00 | F111: 1417.266766 | G111: 29.29688952 | H111: 0 | I111: 0 | K111: 2026-04-18T20:00:00 | L111: 1081.406806 | M111: 0
A112: System | B112: Region | C112: Island | D112: - | E112: 2026-01-05T12:00:00 | F112: 1399.086212 | G112: 28.90239942 | H112: 0 | I112: 0 | K112: 2026-04-19T09:00:00 | L112: 1222.264653 | M112: 0
A113: System | B113: Region | C113: Island | D113: - | E113: 2026-01-05T13:00:00 | F113: 1367.981438 | G113: 28.25664646 | H113: 0.0002083333333 | I113: 0.01910621552 | K113: 2026-04-20T07:00:00 | L113: 1320.202223 | M113: 0.0002083333333
A114: System | B114: Region | C114: Island | D114: - | E114: 2026-01-05T14:00:00 | F114: 1341.162273 | G114: 27.67083377 | H114: 0 | I114: 0 | K114: 2026-04-21T07:00:00 | L114: 1302.185509 | M114: 0
A115: System | B115: Region | C115: Island | D115: - | E115: 2026-01-05T15:00:00 | F115: 1338.925985 | G115: 27.66344028 | H115: 0 | I115: 0 | K115: 2026-04-22T07:00:00 | L115: 1279.88028 | M115: 0
A116: System | B116: Region | C116: Island | D116: - | E116: 2026-01-05T16:00:00 | F116: 1371.857128 | G116: 28.33638865 | H116: 0.0002083333333 | I116: 0.02487965785 | K116: 2026-04-23T07:00:00 | L116: 1144.357082 | M116: 0
A117: System | B117: Region | C117: Island | D117: - | E117: 2026-01-05T17:00:00 | F117: 1459.346991 | G117: 30.1016497 | H117: 0 | I117: 0 | K117: 2026-04-24T07:00:00 | L117: 1114.336199 | M117: 0
A118: System | B118: Region | C118: Island | D118: - | E118: 2026-01-05T18:00:00 | F118: 1455.136206 | G118: 30.04026369 | H118: 0 | I118: 0 | K118: 2026-04-25T11:00:00 | L118: 1155.964759 | M118: 0
A119: System | B119: Region | C119: Island | D119: - | E119: 2026-01-05T19:00:00 | F119: 1451.196953 | G119: 29.97346129 | H119: 0 | I119: 0 | K119: 2026-04-26T11:00:00 | L119: 1123.861642 | M119: 0.0002083333333
A120: System | B120: Region | C120: Island | D120: - | E120: 2026-01-05T20:00:00 | F120: 1443.778909 | G120: 29.82716486 | H120: 0 | I120: 0 | K120: 2026-04-27T20:00:00 | L120: 1075.27753 | M120: 0
A121: System | B121: Region | C121: Island | D121: - | E121: 2026-01-05T21:00:00 | F121: 1427.810344 | G121: 29.5486685 | H121: 0 | I121: 0 | K121: 2026-04-28T07:00:00 | L121: 1164.844493 | M121: 0
A122: System | B122: Region | C122: Island | D122: - | E122: 2026-01-05T22:00:00 | F122: 1387.247555 | G122: 28.68672263 | H122: 0 | I122: 0 | K122: 2026-04-29T07:00:00 | L122: 1127.020818 | M122: 0
A123: System | B123: Region | C123: Island | D123: - | E123: 2026-01-05T23:00:00 | F123: 1308.480052 | G123: 21.36237219 | H123: 0 | I123: 0 | K123: 2026-04-30T08:00:00 | L123: 1209.234962 | M123: 0
A124: System | B124: Region | C124: Island | D124: - | E124: 2026-01-06 | F124: 1232.511286 | G124: 28.74796062 | H124: 0 | I124: 0 | K124: 2026-05-01T07:00:00 | L124: 1257.447613 | M124: 0.0002083333333
A125: System | B125: Region | C125: Island | D125: - | E125: 2026-01-06T01:00:00 | F125: 1188.799407 | G125: 28.22033117 | H125: 0 | I125: 0 | K125: 2026-05-02T09:00:00 | L125: 1094.166855 | M125: 0
A126: System | B126: Region | C126: Island | D126: - | E126: 2026-01-06T02:00:00 | F126: 1203.687971 | G126: 28.36464389 | H126: 0 | I126: 0 | K126: 2026-05-03T09:00:00 | L126: 1044.881523 | M126: 0
A127: System | B127: Region | C127: Island | D127: - | E127: 2026-01-06T03:00:00 | F127: 1220.567895 | G127: 28.60421598 | H127: 0 | I127: 0 | K127: 2026-05-04T07:00:00 | L127: 1034.58291 | M127: 0
A128: System | B128: Region | C128: Island | D128: - | E128: 2026-01-06T04:00:00 | F128: 1244.157211 | G128: 28.74392846 | H128: 0 | I128: 0 | K128: 2026-05-05T07:00:00 | L128: 999.0109144 | M128: 0
A129: System | B129: Region | C129: Island | D129: - | E129: 2026-01-06T05:00:00 | F129: 1297.389989 | G129: 29.37666662 | H129: 0 | I129: 0 | K129: 2026-05-06T07:00:00 | L129: 984.6474518 | M129: 0
A130: System | B130: Region | C130: Island | D130: - | E130: 2026-01-06T06:00:00 | F130: 1365.376398 | G130: 30.12663278 | H130: 0.0002083333333 | I130: 0.0147794753 | K130: 2026-05-07T07:00:00 | L130: 1032.534207 | M130: 0
A131: System | B131: Region | C131: Island | D131: - | E131: 2026-01-06T07:00:00 | F131: 1482.780714 | G131: 31.06844274 | H131: 0.000625 | I131: 0.1404081282 | K131: 2026-05-08T09:00:00 | L131: 1201.126971 | M131: 0
A132: System | B132: Region | C132: Island | D132: - | E132: 2026-01-06T08:00:00 | F132: 1570.699733 | G132: 32.31878354 | H132: 0.0002083333333 | I132: 0.0002778354531 | K132: 2026-05-09T09:00:00 | L132: 1120.7156 | M132: 0
A133: System | B133: Region | C133: Island | D133: - | E133: 2026-01-06T09:00:00 | F133: 1586.588178 | G133: 32.6366288 | H133: 0.0002083333333 | I133: 0.001886249749 | K133: 2026-05-10T09:00:00 | L133: =MAX(OFFSET($F$4:$F$27,(ROW()-4)*24,0)) -> 1145.549191 | M133: =VLOOKUP(L133,OFFSET($F$4:$H$27,(ROW()-4)*24,0),3,FALSE) -> 0
A134: System | B134: Region | C134: Island | D134: - | E134: 2026-01-06T10:00:00 | F134: 1584.363741 | G134: 32.53501433 | H134: 0.0004166666667 | I134: 0.064291856 | K134: 2026-05-11T08:00:00 | L134: 1038.743839 | M134: 0
A135: System | B135: Region | C135: Island | D135: - | E135: 2026-01-06T11:00:00 | F135: 1577.80557 | G135: 32.45726652 | H135: 0.0004166666667 | I135: 0.1141555747 | K135: 2026-05-12T07:00:00 | L135: 1121.37492 | M135: 0
A136: System | B136: Region | C136: Island | D136: - | E136: 2026-01-06T12:00:00 | F136: 1569.584039 | G136: 32.24579767 | H136: 0.0002083333333 | I136: 0.0004130250411 | K136: 2026-05-13T20:00:00 | L136: 1077.364406 | M136: 0
A137: System | B137: Region | C137: Island | D137: - | E137: 2026-01-06T13:00:00 | F137: 1552.109765 | G137: 31.99225492 | H137: 0.0002083333333 | I137: 0.002862272712 | K137: 2026-05-14T07:00:00 | L137: 1081.427401 | M137: 0
A138: System | B138: Region | C138: Island | D138: - | E138: 2026-01-06T14:00:00 | F138: 1557.209321 | G138: 32.09115719 | H138: 0.0002083333333 | I138: 0.00647174348 | K138: 2026-05-15T07:00:00 | L138: 994.936777 | M138: 0
A139: System | B139: Region | C139: Island | D139: - | E139: 2026-01-06T15:00:00 | F139: 1569.669383 | G139: 32.28513199 | H139: 0 | I139: 0 | K139: 2026-05-16T09:00:00 | L139: 827.1928064 | M139: 0
A140: System | B140: Region | C140: Island | D140: - | E140: 2026-01-06T16:00:00 | F140: 1621.406556 | G140: 33.13615156 | H140: 0.0002083333333 | I140: 0.09322648151 | K140: 2026-05-17T09:00:00 | L140: 895.3996589 | M140: 0
A141: System | B141: Region | C141: Island | D141: - | E141: 2026-01-06T17:00:00 | F141: 1696.616893 | G141: 34.78568115 | H141: 0.001666666667 | I141: 0.1216409461 | K141: 2026-05-18T11:00:00 | L141: 982.7171813 | M141: 0
A142: System | B142: Region | C142: Island | D142: - | E142: 2026-01-06T18:00:00 | F142: 1689.469028 | G142: 34.55213158 | H142: 0.001458333333 | I142: 0.125930754 | K142: 2026-05-19T07:00:00 | L142: 950.4936798 | M142: 0
A143: System | B143: Region | C143: Island | D143: - | E143: 2026-01-06T19:00:00 | F143: 1669.510006 | G143: 34.17344576 | H143: 0.001666666667 | I143: 0.04380563343 | K143: 2026-05-20T20:00:00 | L143: 839.2983264 | M143: 0
A144: System | B144: Region | C144: Island | D144: - | E144: 2026-01-06T20:00:00 | F144: 1655.567393 | G144: 33.8276479 | H144: 0.0002083333333 | I144: 0.01325349426 | K144: 2026-05-21T07:00:00 | L144: 888.2049262 | M144: 0
A145: System | B145: Region | C145: Island | D145: - | E145: 2026-01-06T21:00:00 | F145: 1623.425949 | G145: 33.28675799 | H145: 0.0008333333333 | I145: 0.0200192346 | K145: 2026-05-22T07:00:00 | L145: 897.390589 | M145: 0
A146: System | B146: Region | C146: Island | D146: - | E146: 2026-01-06T22:00:00 | F146: 1567.111952 | G146: 32.30298846 | H146: 0.0002083333333 | I146: 0.005638271686 | K146: 2026-05-23T11:00:00 | L146: 911.4831642 | M146: 0
A147: System | B147: Region | C147: Island | D147: - | E147: 2026-01-06T23:00:00 | F147: 1470.565739 | G147: 30.498053 | H147: 0.0002083333333 | I147: 0.04000735982 | K147: 2026-05-24T09:00:00 | L147: 951.4898381 | M147: 0
A148: System | B148: Region | C148: Island | D148: - | E148: 2026-01-07 | F148: 1377.162486 | G148: 30.03210787 | H148: 0.000625 | I148: 0.0654884731 | K148: 2026-05-25T07:00:00 | L148: 898.2362583 | M148: 0
A149: System | B149: Region | C149: Island | D149: - | E149: 2026-01-07T01:00:00 | F149: 1356.487951 | G149: 29.89375075 | H149: 0 | I149: 0 | K149: 2026-05-26T07:00:00 | L149: 815.4538718 | M149: 0
A150: System | B150: Region | C150: Island | D150: - | E150: 2026-01-07T02:00:00 | F150: 1342.69245 | G150: 29.82029151 | H150: 0 | I150: 0 | K150: 2026-05-27T09:00:00 | L150: 829.4383095 | M150: 0
A151: System | B151: Region | C151: Island | D151: - | E151: 2026-01-07T03:00:00 | F151: 1342.808463 | G151: 29.82767454 | H151: 0.0002083333333 | I151: 0.004948416727 | K151: 2026-05-28T09:00:00 | L151: 840.2839001 | M151: 0
A152: System | B152: Region | C152: Island | D152: - | E152: 2026-01-07T04:00:00 | F152: 1352.915938 | G152: 29.78124642 | H152: 0.0002083333333 | I152: 0.034892773 | K152: 2026-05-29T11:00:00 | L152: 892.2460566 | M152: 0
A153: System | B153: Region | C153: Island | D153: - | E153: 2026-01-07T05:00:00 | F153: 1369.456841 | G153: 29.95062539 | H153: 0 | I153: 0 | K153: 2026-05-30T09:00:00 | L153: 845.1260374 | M153: 0
A154: System | B154: Region | C154: Island | D154: - | E154: 2026-01-07T06:00:00 | F154: 1419.953269 | G154: 30.60464962 | H154: 0.0002083333333 | I154: 0.02648567005 | K154: 2026-05-31T11:00:00 | L154: 791.5132726 | M154: 0
A155: System | B155: Region | C155: Island | D155: - | E155: 2026-01-07T07:00:00 | F155: 1533.107331 | G155: 31.96176566 | H155: 0.0002083333333 | I155: 0.0007731199678 | K155: 2026-06-01T07:00:00 | L155: 916.6054637 | M155: 0
A156: System | B156: Region | C156: Island | D156: - | E156: 2026-01-07T08:00:00 | F156: 1590.45761 | G156: 32.92374609 | H156: 0 | I156: 0 | K156: 2026-06-02T07:00:00 | L156: 953.5415859 | M156: 0
A157: System | B157: Region | C157: Island | D157: - | E157: 2026-01-07T09:00:00 | F157: 1599.734916 | G157: 33.06498779 | H157: 0.0004166666667 | I157: 0.008302116493 | K157: 2026-06-03T07:00:00 | L157: 896.1392026 | M157: 0
A158: System | B158: Region | C158: Island | D158: - | E158: 2026-01-07T10:00:00 | F158: 1586.805237 | G158: 32.7923352 | H158: 0.0004166666667 | I158: 0.07451407271 | K158: 2026-06-04T07:00:00 | L158: 910.3567451 | M158: 0
A159: System | B159: Region | C159: Island | D159: - | E159: 2026-01-07T11:00:00 | F159: 1571.674406 | G159: 32.4688784 | H159: 0.000625 | I159: 0.1691677273 | K159: 2026-06-05T07:00:00 | L159: 909.2668211 | M159: 0
A160: System | B160: Region | C160: Island | D160: - | E160: 2026-01-07T12:00:00 | F160: 1568.419093 | G160: 32.46541301 | H160: 0.0002083333333 | I160: 0.0510750847 | K160: 2026-06-06T10:00:00 | L160: 859.2685024 | M160: 0
A161: System | B161: Region | C161: Island | D161: - | E161: 2026-01-07T13:00:00 | F161: 1541.124864 | G161: 32.01415358 | H161: 0 | I161: 0 | K161: 2026-06-07T11:00:00 | L161: 879.3848483 | M161: 0
A162: System | B162: Region | C162: Island | D162: - | E162: 2026-01-07T14:00:00 | F162: 1523.442632 | G162: 31.71286057 | H162: 0.0002083333333 | I162: 0.04027428916 | K162: 2026-06-08T07:00:00 | L162: 944.4059749 | M162: 0
A163: System | B163: Region | C163: Island | D163: - | E163: 2026-01-07T15:00:00 | F163: 1530.288398 | G163: 31.84801099 | H163: 0.0004166666667 | I163: 0.09520806441 | K163: 2026-06-09T07:00:00 | L163: 869.3050177 | M163: 0
A164: System | B164: Region | C164: Island | D164: - | E164: 2026-01-07T16:00:00 | F164: 1567.1517 | G164: 32.41941179 | H164: 0 | I164: 0 | K164: 2026-06-10T07:00:00 | L164: 806.2023277 | M164: 0
A165: System | B165: Region | C165: Island | D165: - | E165: 2026-01-07T17:00:00 | F165: 1640.144296 | G165: 33.63626422 | H165: 0.0004166666667 | I165: 0.1281983908 | K165: 2026-06-11T07:00:00 | L165: 793.5131319 | M165: 0
A166: System | B166: Region | C166: Island | D166: - | E166: 2026-01-07T18:00:00 | F166: 1625.55774 | G166: 33.43008362 | H166: 0.0004166666667 | I166: 0.06601503802 | K166: 2026-06-12T11:00:00 | L166: 795.5204615 | M166: 0
A167: System | B167: Region | C167: Island | D167: - | E167: 2026-01-07T19:00:00 | F167: 1603.067545 | G167: 33.01249686 | H167: 0.0004166666667 | I167: 0.1421021799 | K167: 2026-06-13T16:00:00 | L167: 842.3218661 | M167: 0
A168: System | B168: Region | C168: Island | D168: - | E168: 2026-01-07T20:00:00 | F168: 1585.915647 | G168: 32.709477 | H168: 0.0002083333333 | I168: 0.06870947452 | K168: 2026-06-14T10:00:00 | L168: 939.1315393 | M168: 0
A169: System | B169: Region | C169: Island | D169: - | E169: 2026-01-07T21:00:00 | F169: 1558.592494 | G169: 32.2925695 | H169: 0 | I169: 0 | K169: 2026-06-15T08:00:00 | L169: 940.2909643 | M169: 0
A170: System | B170: Region | C170: Island | D170: - | E170: 2026-01-07T22:00:00 | F170: 1507.676273 | G170: 31.49487572 | H170: 0.0004166666667 | I170: 0.0874802843 | K170: 2026-06-16T07:00:00 | L170: 848.3560831 | M170: 0
A171: System | B171: Region | C171: Island | D171: - | E171: 2026-01-07T23:00:00 | F171: 1432.996731 | G171: 30.32561338 | H171: 0.0002083333333 | I171: 0.0262861521 | K171: 2026-06-17T11:00:00 | L171: 898.4074004 | M171: 0
A172: System | B172: Region | C172: Island | D172: - | E172: 2026-01-08 | F172: 1365.871344 | G172: 28.72618984 | H172: 0 | I172: 0 | K172: 2026-06-18T07:00:00 | L172: 828.4298114 | M172: 0
A173: System | B173: Region | C173: Island | D173: - | E173: 2026-01-08T01:00:00 | F173: 1324.871315 | G173: 28.36661861 | H173: 0 | I173: 0 | K173: 2026-06-19T08:00:00 | L173: 749.824553 | M173: 0
A174: System | B174: Region | C174: Island | D174: - | E174: 2026-01-08T02:00:00 | F174: 1322.645049 | G174: 28.29314506 | H174: 0 | I174: 0 | K174: 2026-06-20T11:00:00 | L174: 748.142238 | M174: 0
A175: System | B175: Region | C175: Island | D175: - | E175: 2026-01-08T03:00:00 | F175: 1322.625769 | G175: 28.35130291 | H175: 0 | I175: 0 | K175: 2026-06-21T10:00:00 | L175: 740.2186539 | M175: 0
A176: System | B176: Region | C176: Island | D176: - | E176: 2026-01-08T04:00:00 | F176: 1341.313726 | G176: 28.55784526 | H176: 0 | I176: 0 | K176: 2026-06-22T11:00:00 | L176: 770.7902737 | M176: 0
A177: System | B177: Region | C177: Island | D177: - | E177: 2026-01-08T05:00:00 | F177: 1360.798437 | G177: 28.68403388 | H177: 0 | I177: 0 | K177: 2026-06-23T21:00:00 | L177: 810.2914212 | M177: 0
A178: System | B178: Region | C178: Island | D178: - | E178: 2026-01-08T06:00:00 | F178: 1413.85031 | G178: 30.26398362 | H178: 0.0002083333333 | I178: 0.03068938275 | K178: 2026-06-24T09:00:00 | L178: 884.253685 | M178: 0
A179: System | B179: Region | C179: Island | D179: - | E179: 2026-01-08T07:00:00 | F179: 1508.475093 | G179: 31.28230787 | H179: 0.0004166666667 | I179: 0.08010157422 | K179: 2026-06-25T10:00:00 | L179: 906.4389339 | M179: 0
A180: System | B180: Region | C180: Island | D180: - | E180: 2026-01-08T08:00:00 | F180: 1584.551275 | G180: 32.38859587 | H180: 0.0002083333333 | I180: 0.003168006246 | K180: 2026-06-26T09:00:00 | L180: 896.3206179 | M180: 0
A181: System | B181: Region | C181: Island | D181: - | E181: 2026-01-08T09:00:00 | F181: 1601.140909 | G181: 32.71170495 | H181: 0.0004166666667 | I181: 0.07168651967 | K181: 2026-06-27T10:00:00 | L181: 852.1487963 | M181: 0
A182: System | B182: Region | C182: Island | D182: - | E182: 2026-01-08T10:00:00 | F182: 1603.121766 | G182: 32.80120229 | H182: 0 | I182: 0 | K182: 2026-06-28T11:00:00 | L182: 757.756104 | M182: 0
A183: System | B183: Region | C183: Island | D183: - | E183: 2026-01-08T11:00:00 | F183: 1613.070575 | G183: 32.8936896 | H183: 0 | I183: 0 | K183: 2026-06-29T11:00:00 | L183: 799.3428207 | M183: 0
A184: System | B184: Region | C184: Island | D184: - | E184: 2026-01-08T12:00:00 | F184: 1610.152651 | G184: 32.85750021 | H184: 0 | I184: 0 | K184: 2026-06-30T09:00:00 | L184: 790.4965969 | M184: 0
A185: System | B185: Region | C185: Island | D185: - | E185: 2026-01-08T13:00:00 | F185: 1585.816674 | G185: 32.46679709 | H185: 0.0002083333333 | I185: 0.05671462797 | K185: 2026-07-01T11:00:00 | L185: 728.2035669 | M185: 0
A186: System | B186: Region | C186: Island | D186: - | E186: 2026-01-08T14:00:00 | F186: 1566.554577 | G186: 32.1504205 | H186: 0 | I186: 0 | K186: 2026-07-02T16:00:00 | L186: 747.2048238 | M186: 0
A187: System | B187: Region | C187: Island | D187: - | E187: 2026-01-08T15:00:00 | F187: 1569.837523 | G187: 32.1992607 | H187: 0.0004166666667 | I187: 0.08711470963 | K187: 2026-07-03T11:00:00 | L187: 762.8218743 | M187: 0
A188: System | B188: Region | C188: Island | D188: - | E188: 2026-01-08T16:00:00 | F188: 1585.622622 | G188: 32.49565816 | H188: 0 | I188: 0 | K188: 2026-07-04T11:00:00 | L188: 683.0698393 | M188: 0
A189: System | B189: Region | C189: Island | D189: - | E189: 2026-01-08T17:00:00 | F189: 1672.107233 | G189: 34.18854608 | H189: 0.001875 | I189: 0.1250932199 | K189: 2026-07-05T11:00:00 | L189: 714.4249849 | M189: 0
A190: System | B190: Region | C190: Island | D190: - | E190: 2026-01-08T18:00:00 | F190: 1663.012608 | G190: 33.96001005 | H190: 0.001458333333 | I190: 0.1432402707 | K190: 2026-07-06T11:00:00 | L190: 850.3539358 | M190: 0
A191: System | B191: Region | C191: Island | D191: - | E191: 2026-01-08T19:00:00 | F191: 1637.352345 | G191: 33.51505306 | H191: 0.00125 | I191: 0.1977570218 | K191: 2026-07-07T10:00:00 | L191: 827.237707 | M191: 0
A192: System | B192: Region | C192: Island | D192: - | E192: 2026-01-08T20:00:00 | F192: 1623.437873 | G192: 33.22202464 | H192: 0.0004166666667 | I192: 0.1620726212 | K192: 2026-07-08T11:00:00 | L192: 767.73179 | M192: 0
A193: System | B193: Region | C193: Island | D193: - | E193: 2026-01-08T21:00:00 | F193: 1596.161337 | G193: 32.7647197 | H193: 0.000625 | I193: 0.1762500319 | K193: 2026-07-09T11:00:00 | L193: 704.6893896 | M193: 0
A194: System | B194: Region | C194: Island | D194: - | E194: 2026-01-08T22:00:00 | F194: 1551.218867 | G194: 31.90704654 | H194: 0.0002083333333 | I194: 0.05778901335 | K194: 2026-07-10T10:00:00 | L194: 730.3063216 | M194: 0
A195: System | B195: Region | C195: Island | D195: - | E195: 2026-01-08T23:00:00 | F195: 1468.461976 | G195: 29.6513794 | H195: 0 | I195: 0 | K195: 2026-07-11T11:00:00 | L195: 767.7983413 | M195: 0
A196: System | B196: Region | C196: Island | D196: - | E196: 2026-01-09 | F196: 1419.884772 | G196: 30.59869297 | H196: 0 | I196: 0 | K196: 2026-07-12T09:00:00 | L196: 741.9629738 | M196: 0
A197: System | B197: Region | C197: Island | D197: - | E197: 2026-01-09T01:00:00 | F197: 1402.054001 | G197: 30.48628074 | H197: 0.0002083333333 | I197: 0.01282176417 | K197: 2026-07-13T11:00:00 | L197: =MAX(OFFSET($F$4:$F$27,(ROW()-4)*24,0)) -> 821.2745096 | M197: =VLOOKUP(L197,OFFSET($F$4:$H$27,(ROW()-4)*24,0),3,FALSE) -> 0
A198: System | B198: Region | C198: Island | D198: - | E198: 2026-01-09T02:00:00 | F198: 1404.075266 | G198: 30.48284676 | H198: 0.0002083333333 | I198: 0.0153219747 | K198: 2026-07-14T11:00:00 | L198: 734.2454559 | M198: 0
A199: System | B199: Region | C199: Island | D199: - | E199: 2026-01-09T03:00:00 | F199: 1413.812851 | G199: 30.55234169 | H199: 0 | I199: 0 | K199: 2026-07-15T12:00:00 | L199: 676.2833564 | M199: 0
A200: System | B200: Region | C200: Island | D200: - | E200: 2026-01-09T04:00:00 | F200: 1428.713701 | G200: 30.61759665 | H200: 0 | I200: 0 | K200: 2026-07-16T11:00:00 | L200: 759.7346903 | M200: 0
A201: System | B201: Region | C201: Island | D201: - | E201: 2026-01-09T05:00:00 | F201: 1452.369612 | G201: 30.80353883 | H201: 0 | I201: 0 | K201: 2026-07-17T10:00:00 | L201: 736.183365 | M201: 0
A202: System | B202: Region | C202: Island | D202: - | E202: 2026-01-09T06:00:00 | F202: 1508.522067 | G202: 31.6937174 | H202: 0 | I202: 0 | K202: 2026-07-18T11:00:00 | L202: 735.2371619 | M202: 0
... 8561 more rows

Sheet Run 4
A3: Parent Name | B3: Collection | C3: Child Name | D3: Category | E3: Datetime | F3: Load (MW) | G3: Transmission Losses (MW) | H3: Unserved Energy Hours (h) | I3: Unserved Energy (MW) | K3: Daily Peak | L3: Daily Peak Load | M3: Average Unserved Energy Hours
A4: System | B4: Region | C4: Island | D4: - | E4: 2026-01-01 | F4: 1441.680099 | G4: 30.23328269 | H4: 0 | I4: 0 | K4: 2026-01-01T17:00:00 | L4: =MAX(OFFSET($F$4:$F$27,(ROW()-4)*24,0)) -> 1600.482702 | M4: =VLOOKUP(L4,OFFSET($F$4:$H$27,(ROW()-4)*24,0),3,FALSE) -> 0.000625 | P4: LOLE | Q4: =SUM(M4:M368) -> 0.08875
A5: System | B5: Region | C5: Island | D5: - | E5: 2026-01-01T01:00:00 | F5: 1409.385396 | G5: 30.01748339 | H5: 0 | I5: 0 | K5: 2026-01-02T17:00:00 | L5: =MAX(OFFSET($F$4:$F$27,(ROW()-4)*24,0)) -> 1473.251619 | M5: =VLOOKUP(L5,OFFSET($F$4:$H$27,(ROW()-4)*24,0),3,FALSE) -> 0.0002083333333 | P5: LOLH | Q5: =SUM(H4:H8763) -> 0.5604166667
A6: System | B6: Region | C6: Island | D6: - | E6: 2026-01-01T02:00:00 | F6: 1387.058205 | G6: 29.95196876 | H6: 0.0002083333333 | I6: 0.01376861262 | K6: 2026-01-03T20:00:00 | L6: 1689.438124 | M6: 0.003125 | P6: EUE | Q6: =SUM(I4:I8763) -> 60.91558006
A7: System | B7: Region | C7: Island | D7: - | E7: 2026-01-01T03:00:00 | F7: 1372.682919 | G7: 29.84139176 | H7: 0 | I7: 0 | K7: 2026-01-04T17:00:00 | L7: 1691.156216 | M7: 0.002291666667 | P7: Peak | Q7: =MAX(F4:F8763) -> 1753.131281
A8: System | B8: Region | C8: Island | D8: - | E8: 2026-01-01T04:00:00 | F8: 1371.469929 | G8: 29.77079304 | H8: 0 | I8: 0 | K8: 2026-01-05T17:00:00 | L8: 1455.027561 | M8: 0.0002083333333 | P8: Loss @ Peak | Q8: =VLOOKUP(Q7,F4:G8763,2,FALSE) -> 38.36993411
A9: System | B9: Region | C9: Island | D9: - | E9: 2026-01-01T05:00:00 | F9: 1385.958735 | G9: 29.90631068 | H9: 0 | I9: 0 | K9: 2026-01-06T17:00:00 | L9: 1691.403587 | M9: 0.001458333333 | P9: Peak with Losses | Q9: =Q7+Q8 -> 1791.501215
A10: System | B10: Region | C10: Island | D10: - | E10: 2026-01-01T06:00:00 | F10: 1414.42964 | G10: 30.7352072 | H10: 0 | I10: 0 | K10: 2026-01-07T17:00:00 | L10: 1635.745731 | M10: 0.0004166666667 | P10: Peak Losses | Q10: =MAX(G4:G8763) -> 42.20830243
A11: System | B11: Region | C11: Island | D11: - | E11: 2026-01-01T07:00:00 | F11: 1453.295407 | G11: 31.16024857 | H11: 0.0004166666667 | I11: 0.09777826979 | K11: 2026-01-08T17:00:00 | L11: 1668.071001 | M11: 0.002083333333 | P11: Firm Capacity | Q11: 2086.986
A12: System | B12: Region | C12: Island | D12: - | E12: 2026-01-01T08:00:00 | F12: 1484.53408 | G12: 31.56044643 | H12: 0 | I12: 0 | K12: 2026-01-09T08:00:00 | L12: 1691.912168 | M12: 0.001458333333 | P12: Reserve Margin | Q12: =Q11-Q7 -> 333.8547187
A13: System | B13: Region | C13: Island | D13: - | E13: 2026-01-01T09:00:00 | F13: 1494.251531 | G13: 31.70156236 | H13: 0 | I13: 0 | K13: 2026-01-10T17:00:00 | L13: 1534.319614 | M13: 0.0004166666667 | P13: Reserve Margin % | Q13: =Q12/Q7 -> 0.1904333818
A14: System | B14: Region | C14: Island | D14: - | E14: 2026-01-01T10:00:00 | F14: 1504.91539 | G14: 31.90119989 | H14: 0.0002083333333 | I14: 0.01221540321 | K14: 2026-01-11T20:00:00 | L14: 1626.166725 | M14: 0.0002083333333 | P14: Reserve Magin w/Loss | Q14: =Q11-Q9 -> 295.4847846
A15: System | B15: Region | C15: Island | D15: - | E15: 2026-01-01T11:00:00 | F15: 1522.290404 | G15: 32.08688276 | H15: 0.0002083333333 | I15: 0.04780623951 | K15: 2026-01-12T08:00:00 | L15: 1660.147663 | M15: 0.001041666667 | P15: Reserve Margin % w/ Loss | Q15: =Q14/Q9 -> 0.1649369713
A16: System | B16: Region | C16: Island | D16: - | E16: 2026-01-01T12:00:00 | F16: 1531.657674 | G16: 32.28246033 | H16: 0.0004166666667 | I16: 0.05609521652 | K16: 2026-01-13T18:00:00 | L16: 1643.122499 | M16: 0.001041666667
A17: System | B17: Region | C17: Island | D17: - | E17: 2026-01-01T13:00:00 | F17: 1531.679056 | G17: 32.30087721 | H17: 0.0002083333333 | I17: 0.0500249335 | K17: 2026-01-14T08:00:00 | L17: 1705.203056 | M17: 0.001875 | P17: Checks
A18: System | B18: Region | C18: Island | D18: - | E18: 2026-01-01T14:00:00 | F18: 1531.810833 | G18: 32.21130778 | H18: 0.0004166666667 | I18: 0.06174592621 | K18: 2026-01-15T08:00:00 | L18: 1569.832654 | M18: 0 | P18: Island Energy (Original) | Q18: 8357
A19: System | B19: Region | C19: Island | D19: - | E19: 2026-01-01T15:00:00 | F19: 1536.384443 | G19: 32.30073565 | H19: 0.0002083333333 | I19: 0.04529146533 | K19: 2026-01-16T17:00:00 | L19: 1483.469638 | M19: 0.0004166666667 | P19: Island Energy (Escalated) | Q19: =SUM(F4:F8763)/1000 -> 8599.355347
A20: System | B20: Region | C20: Island | D20: - | E20: 2026-01-01T16:00:00 | F20: 1553.612232 | G20: 32.55671066 | H20: 0.0008333333333 | I20: 0.1667529513 | K20: 2026-01-17T20:00:00 | L20: 1492.140685 | M20: 0 | P20: Escalation Factor Check | Q20: =Q19/Q18 -> 1.029000281
A21: System | B21: Region | C21: Island | D21: - | E21: 2026-01-01T17:00:00 | F21: 1600.482702 | G21: 33.3139992 | H21: 0.000625 | I21: 0.1401049913 | K21: 2026-01-18T18:00:00 | L21: 1574.336125 | M21: 0.0002083333333
A22: System | B22: Region | C22: Island | D22: - | E22: 2026-01-01T18:00:00 | F22: 1575.455731 | G22: 32.91708303 | H22: 0.000625 | I22: 0.1028290325 | K22: 2026-01-19T08:00:00 | L22: 1505.135828 | M22: 0.0004166666667 | P22: Island Peak (Original) | Q22: 1704
A23: System | B23: Region | C23: Island | D23: - | E23: 2026-01-01T19:00:00 | F23: 1554.063371 | G23: 32.60734513 | H23: 0.0004166666667 | I23: 0.05442596179 | K23: 2026-01-20T18:00:00 | L23: 1417.150635 | M23: 0 | P23: Island Peak (Escalated) | Q23: =MAX(F4:F8763) -> 1753.131281
A24: System | B24: Region | C24: Island | D24: - | E24: 2026-01-01T20:00:00 | F24: 1536.860827 | G24: 32.31236484 | H24: 0.0004166666667 | I24: 0.1122120068 | K24: 2026-01-21T18:00:00 | L24: 1482.33127 | M24: 0.0002083333333 | P24: Escalation Factor Check | Q24: =Q23/Q22 -> 1.028832912
A25: System | B25: Region | C25: Island | D25: - | E25: 2026-01-01T21:00:00 | F25: 1507.544128 | G25: 31.85638487 | H25: 0.0004166666667 | I25: 0.08510028952 | K25: 2026-01-22T08:00:00 | L25: 1496.474638 | M25: 0
A26: System | B26: Region | C26: Island | D26: - | E26: 2026-01-01T22:00:00 | F26: 1466.431135 | G26: 31.28740205 | H26: 0.0002083333333 | I26: 0.03149891773 | K26: 2026-01-23T18:00:00 | L26: 1528.848442 | M26: 0
A27: System | B27: Region | C27: Island | D27: - | E27: 2026-01-01T23:00:00 | F27: 1389.794196 | G27: 29.87770686 | H27: 0.0004166666667 | I27: 0.04034260951 | K27: 2026-01-24T10:00:00 | L27: 1534.617462 | M27: 0.0002083333333
A28: System | B28: Region | C28: Island | D28: - | E28: 2026-01-02 | F28: 1310.735835 | G28: 22.36649888 | H28: 0 | I28: 0 | K28: 2026-01-25T18:00:00 | L28: 1442.052345 | M28: 0.0004166666667
A29: System | B29: Region | C29: Island | D29: - | E29: 2026-01-02T01:00:00 | F29: 1254.801531 | G29: 21.14555491 | H29: 0 | I29: 0 | K29: 2026-01-26T18:00:00 | L29: 1603.943063 | M29: 0.001041666667
A30: System | B30: Region | C30: Island | D30: - | E30: 2026-01-02T02:00:00 | F30: 1234.771562 | G30: 20.74889507 | H30: 0.0002083333333 | I30: 0.0008320894753 | K30: 2026-01-27T17:00:00 | L30: 1695.840162 | M30: 0.002708333333
A31: System | B31: Region | C31: Island | D31: - | E31: 2026-01-02T03:00:00 | F31: 1231.274272 | G31: 20.66875162 | H31: 0 | I31: 0 | K31: 2026-01-28T08:00:00 | L31: 1408.447087 | M31: 0
A32: System | B32: Region | C32: Island | D32: - | E32: 2026-01-02T04:00:00 | F32: 1240.112568 | G32: 20.84577098 | H32: 0 | I32: 0 | K32: 2026-01-29T18:00:00 | L32: 1383.507231 | M32: 0
A33: System | B33: Region | C33: Island | D33: - | E33: 2026-01-02T05:00:00 | F33: 1258.312892 | G33: 21.18807231 | H33: 0 | I33: 0 | K33: 2026-01-30T12:00:00 | L33: 1489.893808 | M33: 0
A34: System | B34: Region | C34: Island | D34: - | E34: 2026-01-02T06:00:00 | F34: 1295.885298 | G34: 27.2098342 | H34: 0 | I34: 0 | K34: 2026-01-31T18:00:00 | L34: 1444.781179 | M34: 0.0002083333333
A35: System | B35: Region | C35: Island | D35: - | E35: 2026-01-02T07:00:00 | F35: 1363.869591 | G35: 28.62588518 | H35: 0.0002083333333 | I35: 0.02486213599 | K35: 2026-02-01T10:00:00 | L35: 1317.495538 | M35: 0
A36: System | B36: Region | C36: Island | D36: - | E36: 2026-01-02T08:00:00 | F36: 1401.460016 | G36: 29.37023374 | H36: 0 | I36: 0 | K36: 2026-02-02T17:00:00 | L36: 1625.180938 | M36: 0.0004166666667
A37: System | B37: Region | C37: Island | D37: - | E37: 2026-01-02T09:00:00 | F37: 1440.721264 | G37: 30.10509188 | H37: 0 | I37: 0 | K37: 2026-02-03T18:00:00 | L37: 1527.421328 | M37: 0.0002083333333
A38: System | B38: Region | C38: Island | D38: - | E38: 2026-01-02T10:00:00 | F38: 1440.723323 | G38: 30.10338827 | H38: 0.0002083333333 | I38: 0.02368702685 | K38: 2026-02-04T08:00:00 | L38: 1602.667098 | M38: 0.0008333333333
A39: System | B39: Region | C39: Island | D39: - | E39: 2026-01-02T11:00:00 | F39: 1448.54479 | G39: 30.22066755 | H39: 0 | I39: 0 | K39: 2026-02-05T08:00:00 | L39: 1648.662804 | M39: 0.0008333333333
A40: System | B40: Region | C40: Island | D40: - | E40: 2026-01-02T12:00:00 | F40: 1439.419299 | G40: 30.07755914 | H40: 0 | I40: 0 | K40: 2026-02-06T12:00:00 | L40: 1445.606634 | M40: 0
A41: System | B41: Region | C41: Island | D41: - | E41: 2026-01-02T13:00:00 | F41: 1416.891483 | G41: 29.72026792 | H41: 0.000625 | I41: 0.1134942113 | K41: 2026-02-07T18:00:00 | L41: 1553.789695 | M41: 0
A42: System | B42: Region | C42: Island | D42: - | E42: 2026-01-02T14:00:00 | F42: 1373.902273 | G42: 28.86588128 | H42: 0.0004166666667 | I42: 0.03478320265 | K42: 2026-02-08T19:00:00 | L42: 1582.550589 | M42: 0.0008333333333
A43: System | B43: Region | C43: Island | D43: - | E43: 2026-01-02T15:00:00 | F43: 1352.233941 | G43: 28.41260755 | H43: 0 | I43: 0 | K43: 2026-02-09T08:00:00 | L43: 1739.396716 | M43: 0.01020833333
A44: System | B44: Region | C44: Island | D44: - | E44: 2026-01-02T16:00:00 | F44: 1372.486746 | G44: 28.83963178 | H44: 0.0002083333333 | I44: 0.01770444384 | K44: 2026-02-10T08:00:00 | L44: 1688.596233 | M44: 0.0025
A45: System | B45: Region | C45: Island | D45: - | E45: 2026-01-02T17:00:00 | F45: 1473.251619 | G45: 30.64685225 | H45: 0.0002083333333 | I45: 0.04983858127 | K45: 2026-02-11T18:00:00 | L45: 1551.48475 | M45: 0
A46: System | B46: Region | C46: Island | D46: - | E46: 2026-01-02T18:00:00 | F46: 1457.069859 | G46: 30.39853814 | H46: 0 | I46: 0 | K46: 2026-02-12T12:00:00 | L46: 1686.190664 | M46: 0.004583333333
A47: System | B47: Region | C47: Island | D47: - | E47: 2026-01-02T19:00:00 | F47: 1419.219632 | G47: 29.76800544 | H47: 0.0002083333333 | I47: 0.0326600212 | K47: 2026-02-13T08:00:00 | L47: 1551.26102 | M47: 0
A48: System | B48: Region | C48: Island | D48: - | E48: 2026-01-02T20:00:00 | F48: 1410.46763 | G48: 29.54676062 | H48: 0 | I48: 0 | K48: 2026-02-14T18:00:00 | L48: 1510.078963 | M48: 0
A49: System | B49: Region | C49: Island | D49: - | E49: 2026-01-02T21:00:00 | F49: 1388.178665 | G49: 29.13892525 | H49: 0.0002083333333 | I49: 0.03572729227 | K49: 2026-02-15T18:00:00 | L49: 1494.377196 | M49: 0.000625
A50: System | B50: Region | C50: Island | D50: - | E50: 2026-01-02T22:00:00 | F50: 1348.545969 | G50: 28.32777902 | H50: 0 | I50: 0 | K50: 2026-02-16T18:00:00 | L50: 1507.857621 | M50: 0.000625
A51: System | B51: Region | C51: Island | D51: - | E51: 2026-01-02T23:00:00 | F51: 1295.619402 | G51: 22.10151902 | H51: 0 | I51: 0 | K51: 2026-02-17T18:00:00 | L51: 1571.75043 | M51: 0.0002083333333
A52: System | B52: Region | C52: Island | D52: - | E52: 2026-01-03 | F52: 1224.529397 | G52: 25.94309962 | H52: 0 | I52: 0 | K52: 2026-02-18T08:00:00 | L52: 1551.076587 | M52: 0.0002083333333
A53: System | B53: Region | C53: Island | D53: - | E53: 2026-01-03T01:00:00 | F53: 1179.421248 | G53: 25.09879859 | H53: 0 | I53: 0 | K53: 2026-02-19T18:00:00 | L53: 1477.188567 | M53: 0
A54: System | B54: Region | C54: Island | D54: - | E54: 2026-01-03T02:00:00 | F54: 1185.355477 | G54: 25.21495742 | H54: 0 | I54: 0 | K54: 2026-02-20T08:00:00 | L54: 1366.628114 | M54: 0.0002083333333
A55: System | B55: Region | C55: Island | D55: - | E55: 2026-01-03T03:00:00 | F55: 1189.977182 | G55: 25.33387339 | H55: 0 | I55: 0 | K55: 2026-02-21T19:00:00 | L55: 1538.885177 | M55: 0.0004166666667
A56: System | B56: Region | C56: Island | D56: - | E56: 2026-01-03T04:00:00 | F56: 1204.543417 | G56: 25.54667516 | H56: 0 | I56: 0 | K56: 2026-02-22T10:00:00 | L56: 1500.716349 | M56: 0
A57: System | B57: Region | C57: Island | D57: - | E57: 2026-01-03T05:00:00 | F57: 1221.443853 | G57: 25.84870834 | H57: 0 | I57: 0 | K57: 2026-02-23T18:00:00 | L57: 1391.725103 | M57: 0
A58: System | B58: Region | C58: Island | D58: - | E58: 2026-01-03T06:00:00 | F58: 1258.260035 | G58: 28.71907826 | H58: 0 | I58: 0 | K58: 2026-02-24T19:00:00 | L58: 1653.414594 | M58: 0.0008333333333
A59: System | B59: Region | C59: Island | D59: - | E59: 2026-01-03T07:00:00 | F59: 1318.867122 | G59: 29.3723772 | H59: 0.0002083333333 | I59: 0.006381863234 | K59: 2026-02-25T08:00:00 | L59: 1653.360032 | M59: 0.001458333333
A60: System | B60: Region | C60: Island | D60: - | E60: 2026-01-03T08:00:00 | F60: 1374.107497 | G60: 30.00006839 | H60: 0.000625 | I60: 0.035304265 | K60: 2026-02-26T08:00:00 | L60: 1480.103084 | M60: 0.0004166666667
A61: System | B61: Region | C61: Island | D61: - | E61: 2026-01-03T09:00:00 | F61: 1451.457657 | G61: 30.98094063 | H61: 0 | I61: 0 | K61: 2026-02-27T08:00:00 | L61: 1492.224377 | M61: 0
A62: System | B62: Region | C62: Island | D62: - | E62: 2026-01-03T10:00:00 | F62: 1456.248044 | G62: 31.05124339 | H62: 0 | I62: 0 | K62: 2026-02-28T19:00:00 | L62: 1579.479381 | M62: 0.000625
A63: System | B63: Region | C63: Island | D63: - | E63: 2026-01-03T11:00:00 | F63: 1448.453256 | G63: 30.89367147 | H63: 0 | I63: 0 | K63: 2026-03-01T10:00:00 | L63: 1439.47149 | M63: 0.0002083333333
A64: System | B64: Region | C64: Island | D64: - | E64: 2026-01-03T12:00:00 | F64: 1457.578225 | G64: 31.06577185 | H64: 0.0008333333333 | I64: 0.146354187 | K64: 2026-03-02T09:00:00 | L64: 1589.583793 | M64: 0.0002083333333
A65: System | B65: Region | C65: Island | D65: - | E65: 2026-01-03T13:00:00 | F65: 1457.517067 | G65: 31.04666664 | H65: 0.0004166666667 | I65: 0.1143319069 | K65: 2026-03-03T19:00:00 | L65: 1633.675223 | M65: 0.001041666667
A66: System | B66: Region | C66: Island | D66: - | E66: 2026-01-03T14:00:00 | F66: 1481.864112 | G66: 31.37675978 | H66: 0 | I66: 0 | K66: 2026-03-04T07:00:00 | L66: 1567.744418 | M66: 0.0004166666667
A67: System | B67: Region | C67: Island | D67: - | E67: 2026-01-03T15:00:00 | F67: 1486.980812 | G67: 31.45658292 | H67: 0 | I67: 0 | K67: 2026-03-05T20:00:00 | L67: 1510.763882 | M67: 0
A68: System | B68: Region | C68: Island | D68: - | E68: 2026-01-03T16:00:00 | F68: 1535.224714 | G68: 32.08745914 | H68: 0 | I68: 0 | K68: 2026-03-06T08:00:00 | L68: 1680.071398 | M68: 0.002916666667
A69: System | B69: Region | C69: Island | D69: - | E69: 2026-01-03T17:00:00 | F69: 1673.65846 | G69: 35.15759819 | H69: 0.003125 | I69: 0.1474811131 | K69: 2026-03-07T08:00:00 | L69: =MAX(OFFSET($F$4:$F$27,(ROW()-4)*24,0)) -> 1550.094287 | M69: =VLOOKUP(L69,OFFSET($F$4:$H$27,(ROW()-4)*24,0),3,FALSE) -> 0.000625
A70: System | B70: Region | C70: Island | D70: - | E70: 2026-01-03T18:00:00 | F70: 1656.226298 | G70: 35.04309593 | H70: 0.004375 | I70: 0.3361562809 | K70: 2026-03-08T08:00:00 | L70: 1388.37446 | M70: 0.0002083333333
A71: System | B71: Region | C71: Island | D71: - | E71: 2026-01-03T19:00:00 | F71: 1661.252696 | G71: 34.98192054 | H71: 0.003125 | I71: 0.2224172269 | K71: 2026-03-09T07:00:00 | L71: 1546.323258 | M71: 0.0004166666667
A72: System | B72: Region | C72: Island | D72: - | E72: 2026-01-03T20:00:00 | F72: 1689.438124 | G72: 35.40838591 | H72: 0.003125 | I72: 0.1664813178 | K72: 2026-03-10T07:00:00 | L72: 1721.438529 | M72: 0.004375
A73: System | B73: Region | C73: Island | D73: - | E73: 2026-01-03T21:00:00 | F73: 1674.308265 | G73: 35.22896553 | H73: 0.004583333333 | I73: 0.1636835318 | K73: 2026-03-11T07:00:00 | L73: 1601.796559 | M73: 0.001041666667
A74: System | B74: Region | C74: Island | D74: - | E74: 2026-01-03T22:00:00 | F74: 1643.580047 | G74: 34.16911794 | H74: 0.002291666667 | I74: 0.2502601641 | K74: 2026-03-12T19:00:00 | L74: 1513.992342 | M74: 0.0002083333333
A75: System | B75: Region | C75: Island | D75: - | E75: 2026-01-03T23:00:00 | F75: 1574.504943 | G75: 30.58933408 | H75: 0 | I75: 0 | K75: 2026-03-13T08:00:00 | L75: 1702.794428 | M75: 0.002916666667
A76: System | B76: Region | C76: Island | D76: - | E76: 2026-01-04 | F76: 1518.343323 | G76: 35.57251657 | H76: 0.0004166666667 | I76: 0.07299832653 | K76: 2026-03-14T10:00:00 | L76: 1631.515182 | M76: 0.0002083333333
A77: System | B77: Region | C77: Island | D77: - | E77: 2026-01-04T01:00:00 | F77: 1430.23037 | G77: 36.27653721 | H77: 0 | I77: 0 | K77: 2026-03-15T09:00:00 | L77: 1571.212479 | M77: 0
A78: System | B78: Region | C78: Island | D78: - | E78: 2026-01-04T02:00:00 | F78: 1414.64151 | G78: 36.41514147 | H78: 0.0002083333333 | I78: 0.02542843853 | K78: 2026-03-16T10:00:00 | L78: 1622.845164 | M78: 0
A79: System | B79: Region | C79: Island | D79: - | E79: 2026-01-04T03:00:00 | F79: 1449.033902 | G79: 36.11812734 | H79: 0 | I79: 0 | K79: 2026-03-17T07:00:00 | L79: 1369.162432 | M79: 0.0002083333333
A80: System | B80: Region | C80: Island | D80: - | E80: 2026-01-04T04:00:00 | F80: 1467.888474 | G80: 35.88378804 | H80: 0 | I80: 0 | K80: 2026-03-18T16:00:00 | L80: 1353.409007 | M80: 0.0002083333333
A81: System | B81: Region | C81: Island | D81: - | E81: 2026-01-04T05:00:00 | F81: 1462.916295 | G81: 35.99115267 | H81: 0 | I81: 0 | K81: 2026-03-19T07:00:00 | L81: 1308.418718 | M81: 0
A82: System | B82: Region | C82: Island | D82: - | E82: 2026-01-04T06:00:00 | F82: 1499.760682 | G82: 33.95122872 | H82: 0 | I82: 0 | K82: 2026-03-20T07:00:00 | L82: 1441.506849 | M82: 0.0004166666667
A83: System | B83: Region | C83: Island | D83: - | E83: 2026-01-04T07:00:00 | F83: 1533.422612 | G83: 34.27597758 | H83: 0.0002083333333 | I83: 0.001379180007 | K83: 2026-03-21T08:00:00 | L83: 1321.2627 | M83: 0
A84: System | B84: Region | C84: Island | D84: - | E84: 2026-01-04T08:00:00 | F84: 1561.809204 | G84: 34.74010602 | H84: 0.0002083333333 | I84: 0.001698051026 | K84: 2026-03-22T10:00:00 | L84: 1434.424387 | M84: 0
A85: System | B85: Region | C85: Island | D85: - | E85: 2026-01-04T09:00:00 | F85: 1639.959088 | G85: 36.34996689 | H85: 0.0025 | I85: 0.1504163824 | K85: 2026-03-23T19:00:00 | L85: 1545.827362 | M85: 0.0002083333333
A86: System | B86: Region | C86: Island | D86: - | E86: 2026-01-04T10:00:00 | F86: 1653.701087 | G86: 36.76275379 | H86: 0.004375 | I86: 0.4079614048 | K86: 2026-03-24T07:00:00 | L86: 1495.791823 | M86: 0
A87: System | B87: Region | C87: Island | D87: - | E87: 2026-01-04T11:00:00 | F87: 1635.473768 | G87: 36.24385946 | H87: 0.002083333333 | I87: 0.1279446266 | K87: 2026-03-25T07:00:00 | L87: 1461.94883 | M87: 0
A88: System | B88: Region | C88: Island | D88: - | E88: 2026-01-04T12:00:00 | F88: 1610.025385 | G88: 35.64374441 | H88: 0.0002083333333 | I88: 0.007352438252 | K88: 2026-03-26T07:00:00 | L88: 1422.578995 | M88: 0.0002083333333
A89: System | B89: Region | C89: Island | D89: - | E89: 2026-01-04T13:00:00 | F89: 1593.700086 | G89: 35.32469569 | H89: 0.0004166666667 | I89: 0.09322137072 | K89: 2026-03-27T07:00:00 | L89: 1206.648022 | M89: 0
A90: System | B90: Region | C90: Island | D90: - | E90: 2026-01-04T14:00:00 | F90: 1590.474817 | G90: 35.21604252 | H90: 0.0008333333333 | I90: 0.1446160092 | K90: 2026-03-28T19:00:00 | L90: 1185.769878 | M90: 0.0002083333333
A91: System | B91: Region | C91: Island | D91: - | E91: 2026-01-04T15:00:00 | F91: 1602.569687 | G91: 35.47196903 | H91: 0.0008333333333 | I91: 0.09077130331 | K91: 2026-03-29T20:00:00 | L91: 1243.796731 | M91: 0
A92: System | B92: Region | C92: Island | D92: - | E92: 2026-01-04T16:00:00 | F92: 1635.812943 | G92: 36.15674042 | H92: 0.001458333333 | I92: 0.1078758817 | K92: 2026-03-30T07:00:00 | L92: 1387.270699 | M92: 0.0002083333333
A93: System | B93: Region | C93: Island | D93: - | E93: 2026-01-04T17:00:00 | F93: 1691.156216 | G93: 37.0777683 | H93: 0.002291666667 | I93: 0.05461618778 | K93: 2026-03-31T07:00:00 | L93: 1348.325079 | M93: 0.000625
A94: System | B94: Region | C94: Island | D94: - | E94: 2026-01-04T18:00:00 | F94: 1671.73618 | G94: 36.60182799 | H94: 0.001041666667 | I94: 0.04088669876 | K94: 2026-04-01T07:00:00 | L94: 1260.643213 | M94: 0.0002083333333
A95: System | B95: Region | C95: Island | D95: - | E95: 2026-01-04T19:00:00 | F95: 1651.628404 | G95: 36.26115099 | H95: 0.0004166666667 | I95: 0.07874533223 | K95: 2026-04-02T20:00:00 | L95: 1291.65865 | M95: 0
A96: System | B96: Region | C96: Island | D96: - | E96: 2026-01-04T20:00:00 | F96: 1650.600782 | G96: 36.24175735 | H96: 0.000625 | I96: 0.02956957494 | K96: 2026-04-03T08:00:00 | L96: 1229.185817 | M96: 0
A97: System | B97: Region | C97: Island | D97: - | E97: 2026-01-04T21:00:00 | F97: 1619.798497 | G97: 35.64932764 | H97: 0.000625 | I97: 0.02724388336 | K97: 2026-04-04T09:00:00 | L97: 1142.927811 | M97: 0
A98: System | B98: Region | C98: Island | D98: - | E98: 2026-01-04T22:00:00 | F98: 1549.981435 | G98: 34.39615946 | H98: 0 | I98: 0 | K98: 2026-04-05T20:00:00 | L98: 1331.53807 | M98: 0.0004166666667
A99: System | B99: Region | C99: Island | D99: - | E99: 2026-01-04T23:00:00 | F99: 1457.879872 | G99: 36.09162449 | H99: 0.0004166666667 | I99: 0.04931823055 | K99: 2026-04-06T20:00:00 | L99: 1384.501911 | M99: 0.0002083333333
A100: System | B100: Region | C100: Island | D100: - | E100: 2026-01-05 | F100: 1369.202172 | G100: 22.81786513 | H100: 0 | I100: 0 | K100: 2026-04-07T07:00:00 | L100: 1444.280948 | M100: 0.0002083333333
A101: System | B101: Region | C101: Island | D101: - | E101: 2026-01-05T01:00:00 | F101: 1321.500313 | G101: 21.66142217 | H101: 0 | I101: 0 | K101: 2026-04-08T07:00:00 | L101: 1389.898695 | M101: 0.0002083333333
A102: System | B102: Region | C102: Island | D102: - | E102: 2026-01-05T02:00:00 | F102: 1295.094708 | G102: 21.03045853 | H102: 0 | I102: 0 | K102: 2026-04-09T07:00:00 | L102: 1456.117217 | M102: 0.000625
A103: System | B103: Region | C103: Island | D103: - | E103: 2026-01-05T03:00:00 | F103: 1280.513189 | G103: 20.70562877 | H103: 0.0002083333333 | I103: 0.01392154424 | K103: 2026-04-10T07:00:00 | L103: 1404.959633 | M103: 0
A104: System | B104: Region | C104: Island | D104: - | E104: 2026-01-05T04:00:00 | F104: 1275.142377 | G104: 20.55284636 | H104: 0 | I104: 0 | K104: 2026-04-11T09:00:00 | L104: 1308.547518 | M104: 0
A105: System | B105: Region | C105: Island | D105: - | E105: 2026-01-05T05:00:00 | F105: 1275.207461 | G105: 20.54654136 | H105: 0 | I105: 0 | K105: 2026-04-12T09:00:00 | L105: 1129.886823 | M105: 0
A106: System | B106: Region | C106: Island | D106: - | E106: 2026-01-05T06:00:00 | F106: 1305.091172 | G106: 26.96814666 | H106: 0.0002083333333 | I106: 0.006892023342 | K106: 2026-04-13T07:00:00 | L106: 1230.288164 | M106: 0
A107: System | B107: Region | C107: Island | D107: - | E107: 2026-01-05T07:00:00 | F107: 1400.256545 | G107: 28.96679578 | H107: 0.0008333333333 | I107: 0.09404882997 | K107: 2026-04-14T07:00:00 | L107: 1129.092332 | M107: 0
A108: System | B108: Region | C108: Island | D108: - | E108: 2026-01-05T08:00:00 | F108: 1440.699163 | G108: 29.76210988 | H108: 0.0002083333333 | I108: 0.01689570692 | K108: 2026-04-15T07:00:00 | L108: 1047.211643 | M108: 0
A109: System | B109: Region | C109: Island | D109: - | E109: 2026-01-05T09:00:00 | F109: 1425.960387 | G109: 29.48169577 | H109: 0 | I109: 0 | K109: 2026-04-16T20:00:00 | L109: 1428.869693 | M109: 0
A110: System | B110: Region | C110: Island | D110: - | E110: 2026-01-05T10:00:00 | F110: 1423.289676 | G110: 29.4219143 | H110: 0 | I110: 0 | K110: 2026-04-17T07:00:00 | L110: 1442.197424 | M110: 0.0002083333333
A111: System | B111: Region | C111: Island | D111: - | E111: 2026-01-05T11:00:00 | F111: 1413.150544 | G111: 29.19804418 | H111: 0 | I111: 0 | K111: 2026-04-18T20:00:00 | L111: 1078.289536 | M111: 0
A112: System | B112: Region | C112: Island | D112: - | E112: 2026-01-05T12:00:00 | F112: 1395.505101 | G112: 28.84334942 | H112: 0 | I112: 0 | K112: 2026-04-19T09:00:00 | L112: 1218.991561 | M112: 0
A113: System | B113: Region | C113: Island | D113: - | E113: 2026-01-05T13:00:00 | F113: 1364.350329 | G113: 28.17747379 | H113: 0 | I113: 0 | K113: 2026-04-20T07:00:00 | L113: 1316.298836 | M113: 0
A114: System | B114: Region | C114: Island | D114: - | E114: 2026-01-05T14:00:00 | F114: 1337.676534 | G114: 27.62922629 | H114: 0 | I114: 0 | K114: 2026-04-21T07:00:00 | L114: 1298.139103 | M114: 0
A115: System | B115: Region | C115: Island | D115: - | E115: 2026-01-05T15:00:00 | F115: 1335.302389 | G115: 27.59790237 | H115: 0.0002083333333 | I115: 0.01109531884 | K115: 2026-04-22T07:00:00 | L115: 1276.219876 | M115: 0
A116: System | B116: Region | C116: Island | D116: - | E116: 2026-01-05T16:00:00 | F116: 1367.861058 | G116: 28.26326438 | H116: 0.0002083333333 | I116: 0.02496979854 | K116: 2026-04-23T07:00:00 | L116: 1141.032262 | M116: 0
A117: System | B117: Region | C117: Island | D117: - | E117: 2026-01-05T17:00:00 | F117: 1455.027561 | G117: 30.04335286 | H117: 0.0002083333333 | I117: 0.04518902164 | K117: 2026-04-24T07:00:00 | L117: 1110.980462 | M117: 0.0002083333333
A118: System | B118: Region | C118: Island | D118: - | E118: 2026-01-05T18:00:00 | F118: 1451.114397 | G118: 29.95517426 | H118: 0.000625 | I118: 0.08965687152 | K118: 2026-04-25T11:00:00 | L118: 1152.592591 | M118: 0
A119: System | B119: Region | C119: Island | D119: - | E119: 2026-01-05T19:00:00 | F119: 1446.96152 | G119: 29.90881397 | H119: 0 | I119: 0 | K119: 2026-04-26T11:00:00 | L119: 1120.531293 | M119: 0
A120: System | B120: Region | C120: Island | D120: - | E120: 2026-01-05T20:00:00 | F120: 1439.369309 | G120: 29.7517054 | H120: 0 | I120: 0 | K120: 2026-04-27T20:00:00 | L120: 1072.038791 | M120: 0
A121: System | B121: Region | C121: Island | D121: - | E121: 2026-01-05T21:00:00 | F121: 1423.468542 | G121: 29.46659918 | H121: 0 | I121: 0 | K121: 2026-04-28T07:00:00 | L121: 1161.276214 | M121: 0
A122: System | B122: Region | C122: Island | D122: - | E122: 2026-01-05T22:00:00 | F122: 1383.30272 | G122: 28.6031398 | H122: 0.0002083333333 | I122: 0.02141660661 | K122: 2026-04-29T07:00:00 | L122: 1123.761932 | M122: 0
A123: System | B123: Region | C123: Island | D123: - | E123: 2026-01-05T23:00:00 | F123: 1305.026733 | G123: 21.25509065 | H123: 0 | I123: 0 | K123: 2026-04-30T08:00:00 | L123: 1205.672372 | M123: 0.0002083333333
A124: System | B124: Region | C124: Island | D124: - | E124: 2026-01-06 | F124: 1229.072095 | G124: 28.10668069 | H124: 0 | I124: 0 | K124: 2026-05-01T07:00:00 | L124: 1253.594526 | M124: 0
A125: System | B125: Region | C125: Island | D125: - | E125: 2026-01-06T01:00:00 | F125: 1185.455384 | G125: 27.50956783 | H125: 0 | I125: 0 | K125: 2026-05-02T09:00:00 | L125: 1091.098922 | M125: 0
A126: System | B126: Region | C126: Island | D126: - | E126: 2026-01-06T02:00:00 | F126: 1200.2316 | G126: 27.72339671 | H126: 0 | I126: 0 | K126: 2026-05-03T09:00:00 | L126: 1042.011666 | M126: 0
A127: System | B127: Region | C127: Island | D127: - | E127: 2026-01-06T03:00:00 | F127: 1216.730746 | G127: 27.88445233 | H127: 0 | I127: 0 | K127: 2026-05-04T07:00:00 | L127: 1031.723162 | M127: 0
A128: System | B128: Region | C128: Island | D128: - | E128: 2026-01-06T04:00:00 | F128: 1240.203055 | G128: 28.2036762 | H128: 0 | I128: 0 | K128: 2026-05-05T07:00:00 | L128: 995.8601202 | M128: 0
A129: System | B129: Region | C129: Island | D129: - | E129: 2026-01-06T05:00:00 | F129: 1293.633809 | G129: 28.76994188 | H129: 0 | I129: 0 | K129: 2026-05-06T07:00:00 | L129: 981.6675674 | M129: 0
A130: System | B130: Region | C130: Island | D130: - | E130: 2026-01-06T06:00:00 | F130: 1361.403851 | G130: 29.98301948 | H130: 0.0002083333333 | I130: 0.008034886915 | K130: 2026-05-07T07:00:00 | L130: 1029.956923 | M130: 0
A131: System | B131: Region | C131: Island | D131: - | E131: 2026-01-06T07:00:00 | F131: 1478.664868 | G131: 30.99080517 | H131: 0.0002083333333 | I131: 0.0397724883 | K131: 2026-05-08T09:00:00 | L131: 1197.878076 | M131: 0
A132: System | B132: Region | C132: Island | D132: - | E132: 2026-01-06T08:00:00 | F132: 1566.247656 | G132: 32.21581905 | H132: 0.0004166666667 | I132: 0.0291474125 | K132: 2026-05-09T09:00:00 | L132: 1117.681291 | M132: 0
A133: System | B133: Region | C133: Island | D133: - | E133: 2026-01-06T09:00:00 | F133: 1581.98351 | G133: 32.55092852 | H133: 0.0002083333333 | I133: 0.06787836812 | K133: 2026-05-10T09:00:00 | L133: =MAX(OFFSET($F$4:$F$27,(ROW()-4)*24,0)) -> 1142.271779 | M133: =VLOOKUP(L133,OFFSET($F$4:$H$27,(ROW()-4)*24,0),3,FALSE) -> 0
A134: System | B134: Region | C134: Island | D134: - | E134: 2026-01-06T10:00:00 | F134: 1579.798739 | G134: 32.4518033 | H134: 0 | I134: 0 | K134: 2026-05-11T08:00:00 | L134: 1035.5917 | M134: 0
A135: System | B135: Region | C135: Island | D135: - | E135: 2026-01-06T11:00:00 | F135: 1573.244799 | G135: 32.34159997 | H135: 0.000625 | I135: 0.1344595742 | K135: 2026-05-12T07:00:00 | L135: 1118.311442 | M135: 0
A136: System | B136: Region | C136: Island | D136: - | E136: 2026-01-06T12:00:00 | F136: 1564.763667 | G136: 32.17879381 | H136: 0 | I136: 0 | K136: 2026-05-13T20:00:00 | L136: 1074.18445 | M136: 0
A137: System | B137: Region | C137: Island | D137: - | E137: 2026-01-06T13:00:00 | F137: 1547.676738 | G137: 31.8829287 | H137: 0 | I137: 0 | K137: 2026-05-14T07:00:00 | L137: 1078.522574 | M137: 0
A138: System | B138: Region | C138: Island | D138: - | E138: 2026-01-06T14:00:00 | F138: 1552.297468 | G138: 31.9655751 | H138: 0.0002083333333 | I138: 0.05033669707 | K138: 2026-05-15T07:00:00 | L138: 992.3163015 | M138: 0
A139: System | B139: Region | C139: Island | D139: - | E139: 2026-01-06T15:00:00 | F139: 1564.831316 | G139: 32.18232479 | H139: 0 | I139: 0 | K139: 2026-05-16T09:00:00 | L139: 824.844362 | M139: 0
A140: System | B140: Region | C140: Island | D140: - | E140: 2026-01-06T16:00:00 | F140: 1616.763047 | G140: 33.06289051 | H140: 0.0002083333333 | I140: 0.05990234276 | K140: 2026-05-17T09:00:00 | L140: 892.6871001 | M140: 0
A141: System | B141: Region | C141: Island | D141: - | E141: 2026-01-06T17:00:00 | F141: 1691.403587 | G141: 34.66084682 | H141: 0.001458333333 | I141: 0.1138900348 | K141: 2026-05-18T11:00:00 | L141: 979.9080981 | M141: 0
A142: System | B142: Region | C142: Island | D142: - | E142: 2026-01-06T18:00:00 | F142: 1684.331524 | G142: 34.47433169 | H142: 0.001666666667 | I142: 0.2495804355 | K142: 2026-05-19T07:00:00 | L142: 947.7594069 | M142: 0
A143: System | B143: Region | C143: Island | D143: - | E143: 2026-01-06T19:00:00 | F143: 1664.360156 | G143: 34.05304279 | H143: 0.00125 | I143: 0.120197392 | K143: 2026-05-20T20:00:00 | L143: 836.5525488 | M143: 0
A144: System | B144: Region | C144: Island | D144: - | E144: 2026-01-06T20:00:00 | F144: 1650.763851 | G144: 33.73751628 | H144: 0.001875 | I144: 0.122026152 | K144: 2026-05-21T07:00:00 | L144: 885.7616029 | M144: 0
A145: System | B145: Region | C145: Island | D145: - | E145: 2026-01-06T21:00:00 | F145: 1618.72468 | G145: 33.18126399 | H145: 0.001041666667 | I145: 0.06751986368 | K145: 2026-05-22T07:00:00 | L145: 894.7110355 | M145: 0
A146: System | B146: Region | C146: Island | D146: - | E146: 2026-01-06T22:00:00 | F146: 1562.823091 | G146: 32.15506888 | H146: 0 | I146: 0 | K146: 2026-05-23T11:00:00 | L146: 908.8201025 | M146: 0
A147: System | B147: Region | C147: Island | D147: - | E147: 2026-01-06T23:00:00 | F147: 1466.160617 | G147: 30.15742606 | H147: 0 | I147: 0 | K147: 2026-05-24T09:00:00 | L147: 948.9683715 | M147: 0
A148: System | B148: Region | C148: Island | D148: - | E148: 2026-01-07 | F148: 1372.816785 | G148: 29.49590859 | H148: 0 | I148: 0 | K148: 2026-05-25T07:00:00 | L148: 895.6327436 | M148: 0
A149: System | B149: Region | C149: Island | D149: - | E149: 2026-01-07T01:00:00 | F149: 1352.190359 | G149: 29.405704 | H149: 0.0004166666667 | I149: 0.01709279111 | K149: 2026-05-26T07:00:00 | L149: 812.8726437 | M149: 0
A150: System | B150: Region | C150: Island | D150: - | E150: 2026-01-07T02:00:00 | F150: 1338.697374 | G150: 29.21904909 | H150: 0.0002083333333 | I150: 0.003956857378 | K150: 2026-05-27T09:00:00 | L150: 826.7902637 | M150: 0
A151: System | B151: Region | C151: Island | D151: - | E151: 2026-01-07T03:00:00 | F151: 1338.605311 | G151: 29.21943059 | H151: 0.0002083333333 | I151: 0.001311216029 | K151: 2026-05-28T09:00:00 | L151: 837.8441743 | M151: 0
A152: System | B152: Region | C152: Island | D152: - | E152: 2026-01-07T04:00:00 | F152: 1348.70729 | G152: 29.30307262 | H152: 0 | I152: 0 | K152: 2026-05-29T11:00:00 | L152: 889.6468506 | M152: 0
A153: System | B153: Region | C153: Island | D153: - | E153: 2026-01-07T05:00:00 | F153: 1365.637533 | G153: 29.45614328 | H153: 0 | I153: 0 | K153: 2026-05-30T09:00:00 | L153: 842.7784594 | M153: 0
A154: System | B154: Region | C154: Island | D154: - | E154: 2026-01-07T06:00:00 | F154: 1415.916941 | G154: 30.52449577 | H154: 0.0002083333333 | I154: 0.02570623415 | K154: 2026-05-31T11:00:00 | L154: 789.1490835 | M154: 0
A155: System | B155: Region | C155: Island | D155: - | E155: 2026-01-07T07:00:00 | F155: 1528.889749 | G155: 31.87455041 | H155: 0 | I155: 0 | K155: 2026-06-01T07:00:00 | L155: 913.5227045 | M155: 0
A156: System | B156: Region | C156: Island | D156: - | E156: 2026-01-07T08:00:00 | F156: 1585.688008 | G156: 32.79936933 | H156: 0.001041666667 | I156: 0.08889454177 | K156: 2026-06-02T07:00:00 | L156: 950.6898796 | M156: 0
A157: System | B157: Region | C157: Island | D157: - | E157: 2026-01-07T09:00:00 | F157: 1595.365795 | G157: 32.91864831 | H157: 0.0002083333333 | I157: 0.005095140986 | K157: 2026-06-03T07:00:00 | L157: 893.5779604 | M157: 0
A158: System | B158: Region | C158: Island | D158: - | E158: 2026-01-07T10:00:00 | F158: 1582.461261 | G158: 32.70087498 | H158: 0.0002083333333 | I158: 0.005448099944 | K158: 2026-06-04T07:00:00 | L158: 907.5277792 | M158: 0
A159: System | B159: Region | C159: Island | D159: - | E159: 2026-01-07T11:00:00 | F159: 1567.727825 | G159: 32.41078362 | H159: 0 | I159: 0 | K159: 2026-06-05T07:00:00 | L159: 906.6885971 | M159: 0
A160: System | B160: Region | C160: Island | D160: - | E160: 2026-01-07T12:00:00 | F160: 1564.416383 | G160: 32.38701353 | H160: 0 | I160: 0 | K160: 2026-06-06T10:00:00 | L160: 856.7517294 | M160: 0
A161: System | B161: Region | C161: Island | D161: - | E161: 2026-01-07T13:00:00 | F161: 1536.685185 | G161: 31.9345405 | H161: 0.0002083333333 | I161: 0.07729423841 | K161: 2026-06-07T11:00:00 | L161: 876.8324338 | M161: 0
A162: System | B162: Region | C162: Island | D162: - | E162: 2026-01-07T14:00:00 | F162: 1519.176746 | G162: 31.63219138 | H162: 0.0002083333333 | I162: 0.0496629006 | K162: 2026-06-08T07:00:00 | L162: 941.7219945 | M162: 0
A163: System | B163: Region | C163: Island | D163: - | E163: 2026-01-07T15:00:00 | F163: 1526.124445 | G163: 31.74607171 | H163: 0.0002083333333 | I163: 0.04323461855 | K163: 2026-06-09T07:00:00 | L163: 866.9700024 | M163: 0
A164: System | B164: Region | C164: Island | D164: - | E164: 2026-01-07T16:00:00 | F164: 1562.633701 | G164: 32.30717534 | H164: 0.0004166666667 | I164: 0.06924284716 | K164: 2026-06-10T07:00:00 | L164: 804.2371183 | M164: 0
A165: System | B165: Region | C165: Island | D165: - | E165: 2026-01-07T17:00:00 | F165: 1635.745731 | G165: 33.54223049 | H165: 0.0004166666667 | I165: 0.004661878108 | K165: 2026-06-11T07:00:00 | L165: 791.2601357 | M165: 0
A166: System | B166: Region | C166: Island | D166: - | E166: 2026-01-07T18:00:00 | F166: 1620.809827 | G166: 33.29354829 | H166: 0.000625 | I166: 0.03015087644 | K166: 2026-06-12T11:00:00 | L166: 793.2068495 | M166: 0
A167: System | B167: Region | C167: Island | D167: - | E167: 2026-01-07T19:00:00 | F167: 1597.972445 | G167: 32.84643305 | H167: 0 | I167: 0 | K167: 2026-06-13T16:00:00 | L167: 840.014284 | M167: 0
A168: System | B168: Region | C168: Island | D168: - | E168: 2026-01-07T20:00:00 | F168: 1580.281823 | G168: 32.58872264 | H168: 0.0004166666667 | I168: 0.0634960223 | K168: 2026-06-14T10:00:00 | L168: 936.8085096 | M168: 0
A169: System | B169: Region | C169: Island | D169: - | E169: 2026-01-07T21:00:00 | F169: 1553.306356 | G169: 32.14708436 | H169: 0 | I169: 0 | K169: 2026-06-15T08:00:00 | L169: 937.7482304 | M169: 0
A170: System | B170: Region | C170: Island | D170: - | E170: 2026-01-07T22:00:00 | F170: 1502.596302 | G170: 31.41095328 | H170: 0.0002083333333 | I170: 0.04842802723 | K170: 2026-06-16T07:00:00 | L170: 845.8830364 | M170: 0
A171: System | B171: Region | C171: Island | D171: - | E171: 2026-01-07T23:00:00 | F171: 1428.114227 | G171: 29.8929817 | H171: 0.0004166666667 | I171: 0.04474487367 | K171: 2026-06-17T11:00:00 | L171: 895.6187952 | M171: 0
A172: System | B172: Region | C172: Island | D172: - | E172: 2026-01-08 | F172: 1361.371889 | G172: 28.29017314 | H172: 0.0002083333333 | I172: 0.01274431392 | K172: 2026-06-18T07:00:00 | L172: 825.8813699 | M172: 0
A173: System | B173: Region | C173: Island | D173: - | E173: 2026-01-08T01:00:00 | F173: 1321.01246 | G173: 27.84405838 | H173: 0 | I173: 0 | K173: 2026-06-19T08:00:00 | L173: 747.8764426 | M173: 0
A174: System | B174: Region | C174: Island | D174: - | E174: 2026-01-08T02:00:00 | F174: 1318.541259 | G174: 27.76710601 | H174: 0.0002083333333 | I174: 0.01382288044 | K174: 2026-06-20T11:00:00 | L174: 745.8440156 | M174: 0
A175: System | B175: Region | C175: Island | D175: - | E175: 2026-01-08T03:00:00 | F175: 1318.408903 | G175: 27.76035342 | H175: 0.0002083333333 | I175: 0.01088882396 | K175: 2026-06-21T10:00:00 | L175: 738.0057104 | M175: 0
A176: System | B176: Region | C176: Island | D176: - | E176: 2026-01-08T04:00:00 | F176: 1337.229873 | G176: 28.033392 | H176: 0.0002083333333 | I176: 0.01147547711 | K176: 2026-06-22T11:00:00 | L176: 768.2979014 | M176: 0
A177: System | B177: Region | C177: Island | D177: - | E177: 2026-01-08T05:00:00 | F177: 1356.74547 | G177: 28.28431558 | H177: 0.0002083333333 | I177: 0.009167315031 | K177: 2026-06-23T21:00:00 | L177: 807.8652313 | M177: 0
A178: System | B178: Region | C178: Island | D178: - | E178: 2026-01-08T06:00:00 | F178: 1409.584598 | G178: 30.12478201 | H178: 0 | I178: 0 | K178: 2026-06-24T09:00:00 | L178: 881.5577681 | M178: 0
A179: System | B179: Region | C179: Island | D179: - | E179: 2026-01-08T07:00:00 | F179: 1504.209035 | G179: 31.17347898 | H179: 0 | I179: 0 | K179: 2026-06-25T10:00:00 | L179: 903.8273209 | M179: 0
A180: System | B180: Region | C180: Island | D180: - | E180: 2026-01-08T08:00:00 | F180: 1579.654904 | G180: 32.29232533 | H180: 0.0002083333333 | I180: 0.06386023238 | K180: 2026-06-26T09:00:00 | L180: 893.7052762 | M180: 0
A181: System | B181: Region | C181: Island | D181: - | E181: 2026-01-08T09:00:00 | F181: 1596.035307 | G181: 32.5808422 | H181: 0.0004166666667 | I181: 0.1122160119 | K181: 2026-06-27T10:00:00 | L181: 849.5708169 | M181: 0
A182: System | B182: Region | C182: Island | D182: - | E182: 2026-01-08T10:00:00 | F182: 1598.218441 | G182: 32.61808707 | H182: 0.0004166666667 | I182: 0.07799291763 | K182: 2026-06-28T11:00:00 | L182: 755.6475624 | M182: 0
A183: System | B183: Region | C183: Island | D183: - | E183: 2026-01-08T11:00:00 | F183: 1608.182978 | G183: 32.79537447 | H183: 0.0002083333333 | I183: 0.06219655482 | K183: 2026-06-29T11:00:00 | L183: 797.2348076 | M183: 0
A184: System | B184: Region | C184: Island | D184: - | E184: 2026-01-08T12:00:00 | F184: 1605.158245 | G184: 32.76492068 | H184: 0.000625 | I184: 0.1453317149 | K184: 2026-06-30T09:00:00 | L184: 788.1625726 | M184: 0
A185: System | B185: Region | C185: Island | D185: - | E185: 2026-01-08T13:00:00 | F185: 1581.355244 | G185: 32.41190452 | H185: 0.000625 | I185: 0.09174793494 | K185: 2026-07-01T11:00:00 | L185: 726.1796704 | M185: 0
A186: System | B186: Region | C186: Island | D186: - | E186: 2026-01-08T14:00:00 | F186: 1562.569988 | G186: 32.02563621 | H186: 0.0002083333333 | I186: 0.07238808175 | K186: 2026-07-02T16:00:00 | L186: 744.9019604 | M186: 0
A187: System | B187: Region | C187: Island | D187: - | E187: 2026-01-08T15:00:00 | F187: 1565.672197 | G187: 32.12693043 | H187: 0 | I187: 0 | K187: 2026-07-03T11:00:00 | L187: 760.5920182 | M187: 0
A188: System | B188: Region | C188: Island | D188: - | E188: 2026-01-08T16:00:00 | F188: 1581.512178 | G188: 32.41382983 | H188: 0.0002083333333 | I188: 0.06110873983 | K188: 2026-07-04T11:00:00 | L188: 681.0797299 | M188: 0
A189: System | B189: Region | C189: Island | D189: - | E189: 2026-01-08T17:00:00 | F189: 1668.071001 | G189: 34.07734304 | H189: 0.002083333333 | I189: 0.09757434075 | K189: 2026-07-05T11:00:00 | L189: 712.5134676 | M189: 0
A190: System | B190: Region | C190: Island | D190: - | E190: 2026-01-08T18:00:00 | F190: 1658.717806 | G190: 33.93107715 | H190: 0.00125 | I190: 0.03375122546 | K190: 2026-07-06T11:00:00 | L190: 848.0001634 | M190: 0
A191: System | B191: Region | C191: Island | D191: - | E191: 2026-01-08T19:00:00 | F191: 1633.115903 | G191: 33.38859399 | H191: 0.0008333333333 | I191: 0.08811359872 | K191: 2026-07-07T10:00:00 | L191: 824.9201363 | M191: 0
A192: System | B192: Region | C192: Island | D192: - | E192: 2026-01-08T20:00:00 | F192: 1619.033131 | G192: 33.10981996 | H192: 0.000625 | I192: 0.02571189892 | K192: 2026-07-08T11:00:00 | L192: 765.4443598 | M192: 0
A193: System | B193: Region | C193: Island | D193: - | E193: 2026-01-08T21:00:00 | F193: 1591.690071 | G193: 32.6424888 | H193: 0 | I193: 0 | K193: 2026-07-09T11:00:00 | L193: 702.5713237 | M193: 0
A194: System | B194: Region | C194: Island | D194: - | E194: 2026-01-08T22:00:00 | F194: 1546.769944 | G194: 31.79052087 | H194: 0.0004166666667 | I194: 0.06391078914 | K194: 2026-07-10T10:00:00 | L194: 728.0939049 | M194: 0
A195: System | B195: Region | C195: Island | D195: - | E195: 2026-01-08T23:00:00 | F195: 1463.774873 | G195: 29.29034069 | H195: 0 | I195: 0 | K195: 2026-07-11T11:00:00 | L195: 765.5530472 | M195: 0
A196: System | B196: Region | C196: Island | D196: - | E196: 2026-01-09 | F196: 1415.54732 | G196: 30.18405371 | H196: 0 | I196: 0 | K196: 2026-07-12T09:00:00 | L196: 739.8052403 | M196: 0
A197: System | B197: Region | C197: Island | D197: - | E197: 2026-01-09T01:00:00 | F197: 1397.978794 | G197: 30.04640905 | H197: 0.000625 | I197: 0.06195882673 | K197: 2026-07-13T11:00:00 | L197: =MAX(OFFSET($F$4:$F$27,(ROW()-4)*24,0)) -> 818.8384243 | M197: =VLOOKUP(L197,OFFSET($F$4:$H$27,(ROW()-4)*24,0),3,FALSE) -> 0
A198: System | B198: Region | C198: Island | D198: - | E198: 2026-01-09T02:00:00 | F198: 1400.123505 | G198: 30.05061821 | H198: 0 | I198: 0 | K198: 2026-07-14T11:00:00 | L198: 732.1560939 | M198: 0
A199: System | B199: Region | C199: Island | D199: - | E199: 2026-01-09T03:00:00 | F199: 1409.562812 | G199: 30.06851599 | H199: 0 | I199: 0 | K199: 2026-07-15T12:00:00 | L199: 674.3871303 | M199: 0
A200: System | B200: Region | C200: Island | D200: - | E200: 2026-01-09T04:00:00 | F200: 1424.651933 | G200: 30.24555832 | H200: 0.0002083333333 | I200: 0.03100459881 | K200: 2026-07-16T11:00:00 | L200: 757.7138557 | M200: 0
A201: System | B201: Region | C201: Island | D201: - | E201: 2026-01-09T05:00:00 | F201: 1448.137484 | G201: 30.41145259 | H201: 0 | I201: 0 | K201: 2026-07-17T10:00:00 | L201: 733.8891618 | M201: 0
A202: System | B202: Region | C202: Island | D202: - | E202: 2026-01-09T06:00:00 | F202: 1504.096498 | G202: 31.59531888 | H202: 0.0002083333333 | I202: 0.002016929296 | K202: 2026-07-18T11:00:00 | L202: 733.0041918 | M202: 0
... 8561 more rows

Sheet Run 5
A3: Parent Name | B3: Collection | C3: Child Name | D3: Category | E3: Datetime | F3: Load (MW) | G3: Transmission Losses (MW) | H3: Unserved Energy Hours (h) | I3: Unserved Energy (MW) | K3: Daily Peak | L3: Daily Peak Load | M3: Average Unserved Energy Hours
A4: System | B4: Region | C4: Island | D4: - | E4: 2026-01-01 | F4: 1441.774642 | G4: 30.2891098 | H4: 0 | I4: 0 | K4: 2026-01-01T17:00:00 | L4: =MAX(OFFSET($F$4:$F$27,(ROW()-4)*24,0)) -> 1600.677255 | M4: =VLOOKUP(L4,OFFSET($F$4:$H$27,(ROW()-4)*24,0),3,FALSE) -> 0.0004166666667 | P4: LOLE | Q4: =SUM(M4:M368) -> 0.0825
A5: System | B5: Region | C5: Island | D5: - | E5: 2026-01-01T01:00:00 | F5: 1409.497649 | G5: 30.17640498 | H5: 0.0004166666667 | I5: 0.05927280961 | K5: 2026-01-02T17:00:00 | L5: =MAX(OFFSET($F$4:$F$27,(ROW()-4)*24,0)) -> 1473.862993 | M5: =VLOOKUP(L5,OFFSET($F$4:$H$27,(ROW()-4)*24,0),3,FALSE) -> 0.0004166666667 | P5: LOLH | Q5: =SUM(H4:H8763) -> 0.5385416667
A6: System | B6: Region | C6: Island | D6: - | E6: 2026-01-01T02:00:00 | F6: 1387.142085 | G6: 30.04931109 | H6: 0 | I6: 0 | K6: 2026-01-03T20:00:00 | L6: 1689.796999 | M6: 0.002916666667 | P6: EUE | Q6: =SUM(I4:I8763) -> 56.64922096
A7: System | B7: Region | C7: Island | D7: - | E7: 2026-01-01T03:00:00 | F7: 1372.814059 | G7: 29.96457021 | H7: 0 | I7: 0 | K7: 2026-01-04T17:00:00 | L7: 1691.884441 | M7: 0.003958333333 | P7: Peak | Q7: =MAX(F4:F8763) -> 1753.508891
A8: System | B8: Region | C8: Island | D8: - | E8: 2026-01-01T04:00:00 | F8: 1371.364147 | G8: 29.8844292 | H8: 0 | I8: 0 | K8: 2026-01-05T17:00:00 | L8: 1454.506755 | M8: 0.0002083333333 | P8: Loss @ Peak | Q8: =VLOOKUP(Q7,F4:G8763,2,FALSE) -> 38.42641058
A9: System | B9: Region | C9: Island | D9: - | E9: 2026-01-01T05:00:00 | F9: 1385.800295 | G9: 30.03145976 | H9: 0.0002083333333 | I9: 0.01391574847 | K9: 2026-01-06T17:00:00 | L9: 1691.223558 | M9: 0.001666666667 | P9: Peak with Losses | Q9: =Q7+Q8 -> 1791.935302
A10: System | B10: Region | C10: Island | D10: - | E10: 2026-01-01T06:00:00 | F10: 1414.470703 | G10: 30.78484305 | H10: 0.0002083333333 | I10: 0.02400548099 | K10: 2026-01-07T17:00:00 | L10: 1635.649754 | M10: 0.000625 | P10: Peak Losses | Q10: =MAX(G4:G8763) -> 42.04312295
A11: System | B11: Region | C11: Island | D11: - | E11: 2026-01-01T07:00:00 | F11: 1453.357713 | G11: 31.12744275 | H11: 0 | I11: 0 | K11: 2026-01-08T17:00:00 | L11: 1667.729779 | M11: 0.00125 | P11: Firm Capacity | Q11: 2086.986
A12: System | B12: Region | C12: Island | D12: - | E12: 2026-01-01T08:00:00 | F12: 1484.907608 | G12: 31.52906168 | H12: 0 | I12: 0 | K12: 2026-01-09T08:00:00 | L12: 1692.023665 | M12: 0.002083333333 | P12: Reserve Margin | Q12: =Q11-Q7 -> 333.4771087
A13: System | B13: Region | C13: Island | D13: - | E13: 2026-01-01T09:00:00 | F13: 1494.530245 | G13: 31.69567964 | H13: 0.000625 | I13: 0.1175271523 | K13: 2026-01-10T17:00:00 | L13: 1534.167472 | M13: 0 | P13: Reserve Margin % | Q13: =Q12/Q7 -> 0.1901770276
A14: System | B14: Region | C14: Island | D14: - | E14: 2026-01-01T10:00:00 | F14: 1504.991886 | G14: 31.85956561 | H14: 0.0002083333333 | I14: 0.001578137916 | K14: 2026-01-11T20:00:00 | L14: 1626.362427 | M14: 0.000625 | P14: Reserve Magin w/Loss | Q14: =Q11-Q9 -> 295.0506982
A15: System | B15: Region | C15: Island | D15: - | E15: 2026-01-01T11:00:00 | F15: 1522.518159 | G15: 32.07347993 | H15: 0 | I15: 0 | K15: 2026-01-12T08:00:00 | L15: 1660.736175 | M15: 0.0008333333333 | P15: Reserve Margin % w/ Loss | Q15: =Q14/Q9 -> 0.1646547718
A16: System | B16: Region | C16: Island | D16: - | E16: 2026-01-01T12:00:00 | F16: 1531.751117 | G16: 32.2745152 | H16: 0.0002083333333 | I16: 0.0007231946085 | K16: 2026-01-13T18:00:00 | L16: 1643.062154 | M16: 0.0008333333333
A17: System | B17: Region | C17: Island | D17: - | E17: 2026-01-01T13:00:00 | F17: 1531.994672 | G17: 32.26549696 | H17: 0.0002083333333 | I17: 0.09023957007 | K17: 2026-01-14T08:00:00 | L17: 1704.361802 | M17: 0.00125 | P17: Checks
A18: System | B18: Region | C18: Island | D18: - | E18: 2026-01-01T14:00:00 | F18: 1532.213706 | G18: 32.19069605 | H18: 0.001041666667 | I18: 0.1770242356 | K18: 2026-01-15T08:00:00 | L18: 1569.402999 | M18: 0 | P18: Island Energy (Original) | Q18: 8357
A19: System | B19: Region | C19: Island | D19: - | E19: 2026-01-01T15:00:00 | F19: 1536.860355 | G19: 32.27347916 | H19: 0 | I19: 0 | K19: 2026-01-16T17:00:00 | L19: 1483.64309 | M19: 0.0002083333333 | P19: Island Energy (Escalated) | Q19: =SUM(F4:F8763)/1000 -> 8599.311496
A20: System | B20: Region | C20: Island | D20: - | E20: 2026-01-01T16:00:00 | F20: 1553.994781 | G20: 32.58048057 | H20: 0.0002083333333 | I20: 0.04723420119 | K20: 2026-01-17T20:00:00 | L20: 1492.137539 | M20: 0 | P20: Escalation Factor Check | Q20: =Q19/Q18 -> 1.028995034
A21: System | B21: Region | C21: Island | D21: - | E21: 2026-01-01T17:00:00 | F21: 1600.677255 | G21: 33.31873853 | H21: 0.0004166666667 | I21: 0.07079736722 | K21: 2026-01-18T18:00:00 | L21: 1574.218655 | M21: 0.0004166666667
A22: System | B22: Region | C22: Island | D22: - | E22: 2026-01-01T18:00:00 | F22: 1575.344544 | G22: 32.84372878 | H22: 0.0002083333333 | I22: 0.06163867505 | K22: 2026-01-19T08:00:00 | L22: 1505.527133 | M22: 0 | P22: Island Peak (Original) | Q22: 1704
A23: System | B23: Region | C23: Island | D23: - | E23: 2026-01-01T19:00:00 | F23: 1554.020953 | G23: 32.55148422 | H23: 0.000625 | I23: 0.1376755999 | K23: 2026-01-20T18:00:00 | L23: 1417.52576 | M23: 0.0004166666667 | P23: Island Peak (Escalated) | Q23: =MAX(F4:F8763) -> 1753.508891
A24: System | B24: Region | C24: Island | D24: - | E24: 2026-01-01T20:00:00 | F24: 1536.783645 | G24: 32.29327781 | H24: 0.0002083333333 | I24: 0.0117341898 | K24: 2026-01-21T18:00:00 | L24: 1482.119664 | M24: 0 | P24: Escalation Factor Check | Q24: =Q23/Q22 -> 1.029054514
A25: System | B25: Region | C25: Island | D25: - | E25: 2026-01-01T21:00:00 | F25: 1507.791465 | G25: 31.81253159 | H25: 0.0002083333333 | I25: 0.03784662903 | K25: 2026-01-22T08:00:00 | L25: 1496.794687 | M25: 0
A26: System | B26: Region | C26: Island | D26: - | E26: 2026-01-01T22:00:00 | F26: 1466.582618 | G26: 31.27079403 | H26: 0.0002083333333 | I26: 0.03649110736 | K26: 2026-01-23T18:00:00 | L26: 1528.566171 | M26: 0.0004166666667
A27: System | B27: Region | C27: Island | D27: - | E27: 2026-01-01T23:00:00 | F27: 1389.840012 | G27: 30.01224663 | H27: 0.0002083333333 | I27: 0.008051826216 | K27: 2026-01-24T10:00:00 | L27: 1534.601596 | M27: 0.0002083333333
A28: System | B28: Region | C28: Island | D28: - | E28: 2026-01-02 | F28: 1310.839185 | G28: 22.36892204 | H28: 0 | I28: 0 | K28: 2026-01-25T18:00:00 | L28: 1441.864602 | M28: 0.0002083333333
A29: System | B29: Region | C29: Island | D29: - | E29: 2026-01-02T01:00:00 | F29: 1255.051699 | G29: 21.13258961 | H29: 0 | I29: 0 | K29: 2026-01-26T18:00:00 | L29: 1603.790267 | M29: 0.000625
A30: System | B30: Region | C30: Island | D30: - | E30: 2026-01-02T02:00:00 | F30: 1234.787908 | G30: 20.66429394 | H30: 0 | I30: 0 | K30: 2026-01-27T17:00:00 | L30: 1695.210997 | M30: 0.002083333333
A31: System | B31: Region | C31: Island | D31: - | E31: 2026-01-02T03:00:00 | F31: 1231.424935 | G31: 20.61226885 | H31: 0 | I31: 0 | K31: 2026-01-28T08:00:00 | L31: 1408.522334 | M31: 0.0002083333333
A32: System | B32: Region | C32: Island | D32: - | E32: 2026-01-02T04:00:00 | F32: 1240.090353 | G32: 20.78284254 | H32: 0 | I32: 0 | K32: 2026-01-29T18:00:00 | L32: 1383.663879 | M32: 0.0002083333333
A33: System | B33: Region | C33: Island | D33: - | E33: 2026-01-02T05:00:00 | F33: 1258.219616 | G33: 21.21808903 | H33: 0 | I33: 0 | K33: 2026-01-30T12:00:00 | L33: 1489.720055 | M33: 0.0004166666667
A34: System | B34: Region | C34: Island | D34: - | E34: 2026-01-02T06:00:00 | F34: 1295.918372 | G34: 27.2278758 | H34: 0.0002083333333 | I34: 0.01865946137 | K34: 2026-01-31T18:00:00 | L34: 1444.514949 | M34: 0
A35: System | B35: Region | C35: Island | D35: - | E35: 2026-01-02T07:00:00 | F35: 1363.84703 | G35: 28.6142775 | H35: 0.0002083333333 | I35: 0.02014301154 | K35: 2026-02-01T10:00:00 | L35: 1317.40025 | M35: 0
A36: System | B36: Region | C36: Island | D36: - | E36: 2026-01-02T08:00:00 | F36: 1401.190349 | G36: 29.39461304 | H36: 0.0002083333333 | I36: 0.05259135641 | K36: 2026-02-02T17:00:00 | L36: 1625.534761 | M36: 0.0004166666667
A37: System | B37: Region | C37: Island | D37: - | E37: 2026-01-02T09:00:00 | F37: 1440.567541 | G37: 30.1145599 | H37: 0 | I37: 0 | K37: 2026-02-03T18:00:00 | L37: 1527.326057 | M37: 0
A38: System | B38: Region | C38: Island | D38: - | E38: 2026-01-02T10:00:00 | F38: 1440.603379 | G38: 30.11856254 | H38: 0.0002083333333 | I38: 0.03179827692 | K38: 2026-02-04T08:00:00 | L38: 1603.009116 | M38: 0.0002083333333
A39: System | B39: Region | C39: Island | D39: - | E39: 2026-01-02T11:00:00 | F39: 1448.424028 | G39: 30.27048411 | H39: 0 | I39: 0 | K39: 2026-02-05T08:00:00 | L39: 1648.368608 | M39: 0.00125
A40: System | B40: Region | C40: Island | D40: - | E40: 2026-01-02T12:00:00 | F40: 1439.615957 | G40: 30.09487053 | H40: 0.0004166666667 | I40: 0.05866961208 | K40: 2026-02-06T12:00:00 | L40: 1445.346153 | M40: 0
A41: System | B41: Region | C41: Island | D41: - | E41: 2026-01-02T13:00:00 | F41: 1416.807715 | G41: 29.70398582 | H41: 0.0002083333333 | I41: 0.02583056454 | K41: 2026-02-07T18:00:00 | L41: 1553.906261 | M41: 0
A42: System | B42: Region | C42: Island | D42: - | E42: 2026-01-02T14:00:00 | F42: 1374.095711 | G42: 28.89696658 | H42: 0.0002083333333 | I42: 0.007939483868 | K42: 2026-02-08T19:00:00 | L42: 1582.339892 | M42: 0.0004166666667
A43: System | B43: Region | C43: Island | D43: - | E43: 2026-01-02T15:00:00 | F43: 1352.373942 | G43: 28.43207762 | H43: 0.0004166666667 | I43: 0.02511877399 | K43: 2026-02-09T08:00:00 | L43: 1739.161398 | M43: 0.008333333333
A44: System | B44: Region | C44: Island | D44: - | E44: 2026-01-02T16:00:00 | F44: 1372.694541 | G44: 28.84445217 | H44: 0.0002083333333 | I44: 0.02619875175 | K44: 2026-02-10T08:00:00 | L44: 1688.183476 | M44: 0.001666666667
A45: System | B45: Region | C45: Island | D45: - | E45: 2026-01-02T17:00:00 | F45: 1473.862993 | G45: 30.66436214 | H45: 0.0004166666667 | I45: 0.08620714873 | K45: 2026-02-11T18:00:00 | L45: 1551.304252 | M45: 0
A46: System | B46: Region | C46: Island | D46: - | E46: 2026-01-02T18:00:00 | F46: 1457.496808 | G46: 30.41214871 | H46: 0 | I46: 0 | K46: 2026-02-12T12:00:00 | L46: 1686.596791 | M46: 0.004375
A47: System | B47: Region | C47: Island | D47: - | E47: 2026-01-02T19:00:00 | F47: 1419.695693 | G47: 29.79028808 | H47: 0.0004166666667 | I47: 0.0956146066 | K47: 2026-02-13T08:00:00 | L47: 1551.412319 | M47: 0.0004166666667
A48: System | B48: Region | C48: Island | D48: - | E48: 2026-01-02T20:00:00 | F48: 1410.505011 | G48: 29.5578929 | H48: 0 | I48: 0 | K48: 2026-02-14T18:00:00 | L48: 1509.947554 | M48: 0
A49: System | B49: Region | C49: Island | D49: - | E49: 2026-01-02T21:00:00 | F49: 1388.220127 | G49: 29.15600669 | H49: 0.0002083333333 | I49: 0.01448032374 | K49: 2026-02-15T18:00:00 | L49: 1494.261396 | M49: 0
A50: System | B50: Region | C50: Island | D50: - | E50: 2026-01-02T22:00:00 | F50: 1348.949479 | G50: 28.32121613 | H50: 0 | I50: 0 | K50: 2026-02-16T18:00:00 | L50: 1507.853146 | M50: 0.0008333333333
A51: System | B51: Region | C51: Island | D51: - | E51: 2026-01-02T23:00:00 | F51: 1295.777189 | G51: 22.04590006 | H51: 0.0002083333333 | I51: 0.009923741902 | K51: 2026-02-17T18:00:00 | L51: 1571.739273 | M51: 0
A52: System | B52: Region | C52: Island | D52: - | E52: 2026-01-03 | F52: 1224.461928 | G52: 26.02965341 | H52: 0 | I52: 0 | K52: 2026-02-18T08:00:00 | L52: 1551.334144 | M52: 0
A53: System | B53: Region | C53: Island | D53: - | E53: 2026-01-03T01:00:00 | F53: 1179.875274 | G53: 25.1797697 | H53: 0 | I53: 0 | K53: 2026-02-19T18:00:00 | L53: 1477.251424 | M53: 0.0002083333333
A54: System | B54: Region | C54: Island | D54: - | E54: 2026-01-03T02:00:00 | F54: 1185.586737 | G54: 25.30891104 | H54: 0 | I54: 0 | K54: 2026-02-20T08:00:00 | L54: 1366.686521 | M54: 0
A55: System | B55: Region | C55: Island | D55: - | E55: 2026-01-03T03:00:00 | F55: 1189.960683 | G55: 25.3790764 | H55: 0 | I55: 0 | K55: 2026-02-21T19:00:00 | L55: 1538.954857 | M55: 0.0002083333333
A56: System | B56: Region | C56: Island | D56: - | E56: 2026-01-03T04:00:00 | F56: 1204.437109 | G56: 25.67496455 | H56: 0 | I56: 0 | K56: 2026-02-22T10:00:00 | L56: 1500.865182 | M56: 0.0002083333333
A57: System | B57: Region | C57: Island | D57: - | E57: 2026-01-03T05:00:00 | F57: 1221.173191 | G57: 25.9200291 | H57: 0 | I57: 0 | K57: 2026-02-23T18:00:00 | L57: 1392.189158 | M57: 0
A58: System | B58: Region | C58: Island | D58: - | E58: 2026-01-03T06:00:00 | F58: 1258.166219 | G58: 28.73702349 | H58: 0 | I58: 0 | K58: 2026-02-24T19:00:00 | L58: 1652.672894 | M58: 0.000625
A59: System | B59: Region | C59: Island | D59: - | E59: 2026-01-03T07:00:00 | F59: 1318.744401 | G59: 29.37276628 | H59: 0.0002083333333 | I59: 0.009644030043 | K59: 2026-02-25T08:00:00 | L59: 1652.896181 | M59: 0.002083333333
A60: System | B60: Region | C60: Island | D60: - | E60: 2026-01-03T08:00:00 | F60: 1374.039815 | G60: 29.99313316 | H60: 0 | I60: 0 | K60: 2026-02-26T08:00:00 | L60: 1479.852017 | M60: 0.0008333333333
A61: System | B61: Region | C61: Island | D61: - | E61: 2026-01-03T09:00:00 | F61: 1451.233487 | G61: 30.97160507 | H61: 0.0002083333333 | I61: 0.0284220309 | K61: 2026-02-27T08:00:00 | L61: 1491.957368 | M61: 0
A62: System | B62: Region | C62: Island | D62: - | E62: 2026-01-03T10:00:00 | F62: 1456.269943 | G62: 31.06449809 | H62: 0 | I62: 0 | K62: 2026-02-28T19:00:00 | L62: 1579.665791 | M62: 0
A63: System | B63: Region | C63: Island | D63: - | E63: 2026-01-03T11:00:00 | F63: 1448.602839 | G63: 30.91719178 | H63: 0 | I63: 0 | K63: 2026-03-01T10:00:00 | L63: 1439.700291 | M63: 0
A64: System | B64: Region | C64: Island | D64: - | E64: 2026-01-03T12:00:00 | F64: 1457.907603 | G64: 31.05424554 | H64: 0 | I64: 0 | K64: 2026-03-02T09:00:00 | L64: 1589.18072 | M64: 0.0004166666667
A65: System | B65: Region | C65: Island | D65: - | E65: 2026-01-03T13:00:00 | F65: 1457.862307 | G65: 31.04724522 | H65: 0 | I65: 0 | K65: 2026-03-03T19:00:00 | L65: 1633.943098 | M65: 0.0008333333333
A66: System | B66: Region | C66: Island | D66: - | E66: 2026-01-03T14:00:00 | F66: 1482.198372 | G66: 31.36771685 | H66: 0.0002083333333 | I66: 0.03548592562 | K66: 2026-03-04T07:00:00 | L66: 1567.505021 | M66: 0
A67: System | B67: Region | C67: Island | D67: - | E67: 2026-01-03T15:00:00 | F67: 1487.369981 | G67: 31.44979855 | H67: 0 | I67: 0 | K67: 2026-03-05T20:00:00 | L67: 1511.277962 | M67: 0.0004166666667
A68: System | B68: Region | C68: Island | D68: - | E68: 2026-01-03T16:00:00 | F68: 1535.848516 | G68: 32.11454166 | H68: 0 | I68: 0 | K68: 2026-03-06T08:00:00 | L68: 1680.030371 | M68: 0.005
A69: System | B69: Region | C69: Island | D69: - | E69: 2026-01-03T17:00:00 | F69: 1674.151974 | G69: 35.18684282 | H69: 0.004166666667 | I69: 0.207867138 | K69: 2026-03-07T08:00:00 | L69: =MAX(OFFSET($F$4:$F$27,(ROW()-4)*24,0)) -> 1550.14423 | M69: =VLOOKUP(L69,OFFSET($F$4:$H$27,(ROW()-4)*24,0),3,FALSE) -> 0
A70: System | B70: Region | C70: Island | D70: - | E70: 2026-01-03T18:00:00 | F70: 1656.418455 | G70: 35.10392069 | H70: 0.00375 | I70: 0.2393886565 | K70: 2026-03-08T08:00:00 | L70: 1388.234871 | M70: 0
A71: System | B71: Region | C71: Island | D71: - | E71: 2026-01-03T19:00:00 | F71: 1661.912045 | G71: 35.06495291 | H71: 0.0025 | I71: 0.1156119252 | K71: 2026-03-09T07:00:00 | L71: 1546.37813 | M71: 0.0004166666667
A72: System | B72: Region | C72: Island | D72: - | E72: 2026-01-03T20:00:00 | F72: 1689.796999 | G72: 35.45919511 | H72: 0.002916666667 | I72: 0.2074032492 | K72: 2026-03-10T07:00:00 | L72: 1720.683839 | M72: 0.003958333333
A73: System | B73: Region | C73: Island | D73: - | E73: 2026-01-03T21:00:00 | F73: 1674.271828 | G73: 35.12650334 | H73: 0.003541666667 | I73: 0.3230962266 | K73: 2026-03-11T07:00:00 | L73: 1601.814016 | M73: 0.0002083333333
A74: System | B74: Region | C74: Island | D74: - | E74: 2026-01-03T22:00:00 | F74: 1643.424919 | G74: 34.20608944 | H74: 0.002083333333 | I74: 0.08419115143 | K74: 2026-03-12T19:00:00 | L74: 1514.752074 | M74: 0.0002083333333
A75: System | B75: Region | C75: Island | D75: - | E75: 2026-01-03T23:00:00 | F75: 1574.511647 | G75: 30.63631587 | H75: 0.0004166666667 | I75: 0.1069741446 | K75: 2026-03-13T08:00:00 | L75: 1703.068759 | M75: 0.002708333333
A76: System | B76: Region | C76: Island | D76: - | E76: 2026-01-04 | F76: 1518.371463 | G76: 35.73715295 | H76: 0.0004166666667 | I76: 0.1117784099 | K76: 2026-03-14T10:00:00 | L76: 1631.830374 | M76: 0.0008333333333
A77: System | B77: Region | C77: Island | D77: - | E77: 2026-01-04T01:00:00 | F77: 1430.101638 | G77: 36.38583155 | H77: 0.0004166666667 | I77: 0.04152604189 | K77: 2026-03-15T09:00:00 | L77: 1571.136297 | M77: 0.0002083333333
A78: System | B78: Region | C78: Island | D78: - | E78: 2026-01-04T02:00:00 | F78: 1414.682394 | G78: 36.43575902 | H78: 0 | I78: 0 | K78: 2026-03-16T10:00:00 | L78: 1623.229303 | M78: 0
A79: System | B79: Region | C79: Island | D79: - | E79: 2026-01-04T03:00:00 | F79: 1448.926935 | G79: 36.1886557 | H79: 0.0004166666667 | I79: 0.04394522609 | K79: 2026-03-17T07:00:00 | L79: 1368.895025 | M79: 0.0002083333333
A80: System | B80: Region | C80: Island | D80: - | E80: 2026-01-04T04:00:00 | F80: 1467.571741 | G80: 35.97504047 | H80: 0.0002083333333 | I80: 0.02757408518 | K80: 2026-03-18T16:00:00 | L80: 1353.71776 | M80: 0
A81: System | B81: Region | C81: Island | D81: - | E81: 2026-01-04T05:00:00 | F81: 1462.781969 | G81: 36.04232341 | H81: 0 | I81: 0 | K81: 2026-03-19T07:00:00 | L81: 1308.388169 | M81: 0.0002083333333
A82: System | B82: Region | C82: Island | D82: - | E82: 2026-01-04T06:00:00 | F82: 1499.544917 | G82: 33.88531304 | H82: 0 | I82: 0 | K82: 2026-03-20T07:00:00 | L82: 1441.615776 | M82: 0.0002083333333
A83: System | B83: Region | C83: Island | D83: - | E83: 2026-01-04T07:00:00 | F83: 1533.104526 | G83: 34.30624736 | H83: 0.0004166666667 | I83: 0.07342470833 | K83: 2026-03-21T08:00:00 | L83: 1321.09868 | M83: 0.000625
A84: System | B84: Region | C84: Island | D84: - | E84: 2026-01-04T08:00:00 | F84: 1561.80783 | G84: 34.67958008 | H84: 0.0002083333333 | I84: 0.01077988354 | K84: 2026-03-22T10:00:00 | L84: 1434.774197 | M84: 0
A85: System | B85: Region | C85: Island | D85: - | E85: 2026-01-04T09:00:00 | F85: 1640.481696 | G85: 36.37231606 | H85: 0.004166666667 | I85: 0.3430601594 | K85: 2026-03-23T19:00:00 | L85: 1545.489194 | M85: 0.000625
A86: System | B86: Region | C86: Island | D86: - | E86: 2026-01-04T10:00:00 | F86: 1654.39245 | G86: 36.73777426 | H86: 0.00125 | I86: 0.0567481434 | K86: 2026-03-24T07:00:00 | L86: 1496.094388 | M86: 0.0004166666667
A87: System | B87: Region | C87: Island | D87: - | E87: 2026-01-04T11:00:00 | F87: 1636.12589 | G87: 36.28533121 | H87: 0.001666666667 | I87: 0.2372167928 | K87: 2026-03-25T07:00:00 | L87: 1461.771661 | M87: 0
A88: System | B88: Region | C88: Island | D88: - | E88: 2026-01-04T12:00:00 | F88: 1610.807439 | G88: 35.650963 | H88: 0.0004166666667 | I88: 0.003473209122 | K88: 2026-03-26T07:00:00 | L88: 1422.172117 | M88: 0
A89: System | B89: Region | C89: Island | D89: - | E89: 2026-01-04T13:00:00 | F89: 1594.130559 | G89: 35.29117923 | H89: 0.0004166666667 | I89: 0.0337084138 | K89: 2026-03-27T07:00:00 | L89: 1206.698678 | M89: 0
A90: System | B90: Region | C90: Island | D90: - | E90: 2026-01-04T14:00:00 | F90: 1590.869626 | G90: 35.21470229 | H90: 0.000625 | I90: 0.09693783326 | K90: 2026-03-28T19:00:00 | L90: 1185.486243 | M90: 0
A91: System | B91: Region | C91: Island | D91: - | E91: 2026-01-04T15:00:00 | F91: 1603.268291 | G91: 35.45457153 | H91: 0.000625 | I91: 0.1506136188 | K91: 2026-03-29T20:00:00 | L91: 1243.845235 | M91: 0
A92: System | B92: Region | C92: Island | D92: - | E92: 2026-01-04T16:00:00 | F92: 1636.467782 | G92: 36.21353661 | H92: 0.001041666667 | I92: 0.03731506408 | K92: 2026-03-30T07:00:00 | L92: 1387.140999 | M92: 0
A93: System | B93: Region | C93: Island | D93: - | E93: 2026-01-04T17:00:00 | F93: 1691.884441 | G93: 37.06361088 | H93: 0.003958333333 | I93: 0.2525289244 | K93: 2026-03-31T07:00:00 | L93: 1348.962866 | M93: 0.000625
A94: System | B94: Region | C94: Island | D94: - | E94: 2026-01-04T18:00:00 | F94: 1672.3878 | G94: 36.61506838 | H94: 0.00125 | I94: 0.1179565087 | K94: 2026-04-01T07:00:00 | L94: 1260.659101 | M94: 0
A95: System | B95: Region | C95: Island | D95: - | E95: 2026-01-04T19:00:00 | F95: 1652.184667 | G95: 36.27534932 | H95: 0.001041666667 | I95: 0.1080062968 | K95: 2026-04-02T20:00:00 | L95: 1291.467448 | M95: 0.0002083333333
A96: System | B96: Region | C96: Island | D96: - | E96: 2026-01-04T20:00:00 | F96: 1650.930626 | G96: 36.24159298 | H96: 0.0008333333333 | I96: 0.1769396839 | K96: 2026-04-03T08:00:00 | L96: 1228.976477 | M96: 0
A97: System | B97: Region | C97: Island | D97: - | E97: 2026-01-04T21:00:00 | F97: 1620.098966 | G97: 35.65376451 | H97: 0.0004166666667 | I97: 0.1368231756 | K97: 2026-04-04T09:00:00 | L97: 1142.868212 | M97: 0
A98: System | B98: Region | C98: Island | D98: - | E98: 2026-01-04T22:00:00 | F98: 1549.926563 | G98: 34.37452522 | H98: 0.0004166666667 | I98: 0.0804181978 | K98: 2026-04-05T20:00:00 | L98: 1331.629212 | M98: 0
A99: System | B99: Region | C99: Island | D99: - | E99: 2026-01-04T23:00:00 | F99: 1457.790405 | G99: 36.11924897 | H99: 0.0002083333333 | I99: 0.03333222266 | K99: 2026-04-06T20:00:00 | L99: 1384.812624 | M99: 0.0002083333333
A100: System | B100: Region | C100: Island | D100: - | E100: 2026-01-05 | F100: 1368.887796 | G100: 22.7732274 | H100: 0.0002083333333 | I100: 0.007850366783 | K100: 2026-04-07T07:00:00 | L100: 1444.622684 | M100: 0.0002083333333
A101: System | B101: Region | C101: Island | D101: - | E101: 2026-01-05T01:00:00 | F101: 1320.905203 | G101: 21.59176524 | H101: 0 | I101: 0 | K101: 2026-04-08T07:00:00 | L101: 1389.862675 | M101: 0.0004166666667
A102: System | B102: Region | C102: Island | D102: - | E102: 2026-01-05T02:00:00 | F102: 1294.471401 | G102: 20.99575865 | H102: 0.0002083333333 | I102: 0.0174968586 | K102: 2026-04-09T07:00:00 | L102: 1456.384639 | M102: 0
A103: System | B103: Region | C103: Island | D103: - | E103: 2026-01-05T03:00:00 | F103: 1280.046589 | G103: 20.62539283 | H103: 0 | I103: 0 | K103: 2026-04-10T07:00:00 | L103: 1405.324967 | M103: 0.0002083333333
A104: System | B104: Region | C104: Island | D104: - | E104: 2026-01-05T04:00:00 | F104: 1274.843396 | G104: 20.4856861 | H104: 0.0002083333333 | I104: 0.002920594711 | K104: 2026-04-11T09:00:00 | L104: 1308.115131 | M104: 0
A105: System | B105: Region | C105: Island | D105: - | E105: 2026-01-05T05:00:00 | F105: 1274.925882 | G105: 20.52456871 | H105: 0 | I105: 0 | K105: 2026-04-12T09:00:00 | L105: 1130.254799 | M105: 0
A106: System | B106: Region | C106: Island | D106: - | E106: 2026-01-05T06:00:00 | F106: 1304.785005 | G106: 26.9572775 | H106: 0 | I106: 0 | K106: 2026-04-13T07:00:00 | L106: 1230.174565 | M106: 0
A107: System | B107: Region | C107: Island | D107: - | E107: 2026-01-05T07:00:00 | F107: 1400.116906 | G107: 28.94651034 | H107: 0 | I107: 0 | K107: 2026-04-14T07:00:00 | L107: 1129.04889 | M107: 0
A108: System | B108: Region | C108: Island | D108: - | E108: 2026-01-05T08:00:00 | F108: 1440.912227 | G108: 29.77422404 | H108: 0.0002083333333 | I108: 0.02721034735 | K108: 2026-04-15T07:00:00 | L108: 1047.205132 | M108: 0
A109: System | B109: Region | C109: Island | D109: - | E109: 2026-01-05T09:00:00 | F109: 1426.005818 | G109: 29.47579776 | H109: 0 | I109: 0 | K109: 2026-04-16T20:00:00 | L109: 1428.219022 | M109: 0
A110: System | B110: Region | C110: Island | D110: - | E110: 2026-01-05T10:00:00 | F110: 1423.808969 | G110: 29.43720032 | H110: 0.0002083333333 | I110: 0.03125643848 | K110: 2026-04-17T07:00:00 | L110: 1442.057753 | M110: 0
A111: System | B111: Region | C111: Island | D111: - | E111: 2026-01-05T11:00:00 | F111: 1413.578505 | G111: 29.2210817 | H111: 0 | I111: 0 | K111: 2026-04-18T20:00:00 | L111: 1078.22805 | M111: 0
A112: System | B112: Region | C112: Island | D112: - | E112: 2026-01-05T12:00:00 | F112: 1395.697368 | G112: 28.88026812 | H112: 0.000625 | I112: 0.09857158177 | K112: 2026-04-19T09:00:00 | L112: 1219.031903 | M112: 0
A113: System | B113: Region | C113: Island | D113: - | E113: 2026-01-05T13:00:00 | F113: 1364.226726 | G113: 28.17427753 | H113: 0 | I113: 0 | K113: 2026-04-20T07:00:00 | L113: 1316.319401 | M113: 0
A114: System | B114: Region | C114: Island | D114: - | E114: 2026-01-05T14:00:00 | F114: 1337.447721 | G114: 27.63913524 | H114: 0 | I114: 0 | K114: 2026-04-21T07:00:00 | L114: 1298.31088 | M114: 0.0002083333333
A115: System | B115: Region | C115: Island | D115: - | E115: 2026-01-05T15:00:00 | F115: 1335.026914 | G115: 27.58463357 | H115: 0.0002083333333 | I115: 0.005514653172 | K115: 2026-04-22T07:00:00 | L115: 1276.18412 | M115: 0
A116: System | B116: Region | C116: Island | D116: - | E116: 2026-01-05T16:00:00 | F116: 1367.788983 | G116: 28.2664625 | H116: 0.0004166666667 | I116: 0.06062129075 | K116: 2026-04-23T07:00:00 | L116: 1140.888632 | M116: 0
A117: System | B117: Region | C117: Island | D117: - | E117: 2026-01-05T17:00:00 | F117: 1454.506755 | G117: 30.04933255 | H117: 0.0002083333333 | I117: 0.05318282807 | K117: 2026-04-24T07:00:00 | L117: 1111.354255 | M117: 0
A118: System | B118: Region | C118: Island | D118: - | E118: 2026-01-05T18:00:00 | F118: 1450.582406 | G118: 29.9498092 | H118: 0.0002083333333 | I118: 0.06947707508 | K118: 2026-04-25T11:00:00 | L118: 1152.693921 | M118: 0
A119: System | B119: Region | C119: Island | D119: - | E119: 2026-01-05T19:00:00 | F119: 1446.817252 | G119: 29.89734205 | H119: 0 | I119: 0 | K119: 2026-04-26T11:00:00 | L119: 1120.418481 | M119: 0
A120: System | B120: Region | C120: Island | D120: - | E120: 2026-01-05T20:00:00 | F120: 1439.290293 | G120: 29.78445875 | H120: 0 | I120: 0 | K120: 2026-04-27T20:00:00 | L120: 1072.457534 | M120: 0
A121: System | B121: Region | C121: Island | D121: - | E121: 2026-01-05T21:00:00 | F121: 1423.532387 | G121: 29.4782942 | H121: 0.000625 | I121: 0.08153913366 | K121: 2026-04-28T07:00:00 | L121: 1161.244752 | M121: 0
A122: System | B122: Region | C122: Island | D122: - | E122: 2026-01-05T22:00:00 | F122: 1383.692027 | G122: 28.64433496 | H122: 0 | I122: 0 | K122: 2026-04-29T07:00:00 | L122: 1123.587165 | M122: 0
A123: System | B123: Region | C123: Island | D123: - | E123: 2026-01-05T23:00:00 | F123: 1305.366086 | G123: 21.25457345 | H123: 0 | I123: 0 | K123: 2026-04-30T08:00:00 | L123: 1205.407036 | M123: 0
A124: System | B124: Region | C124: Island | D124: - | E124: 2026-01-06 | F124: 1229.400102 | G124: 28.07000355 | H124: 0 | I124: 0 | K124: 2026-05-01T07:00:00 | L124: 1253.879718 | M124: 0
A125: System | B125: Region | C125: Island | D125: - | E125: 2026-01-06T01:00:00 | F125: 1185.618696 | G125: 27.60861949 | H125: 0 | I125: 0 | K125: 2026-05-02T09:00:00 | L125: 1091.08534 | M125: 0
A126: System | B126: Region | C126: Island | D126: - | E126: 2026-01-06T02:00:00 | F126: 1200.118427 | G126: 27.75852178 | H126: 0 | I126: 0 | K126: 2026-05-03T09:00:00 | L126: 1042.078841 | M126: 0
A127: System | B127: Region | C127: Island | D127: - | E127: 2026-01-06T03:00:00 | F127: 1216.781473 | G127: 28.00839009 | H127: 0 | I127: 0 | K127: 2026-05-04T07:00:00 | L127: 1031.475798 | M127: 0
A128: System | B128: Region | C128: Island | D128: - | E128: 2026-01-06T04:00:00 | F128: 1240.221344 | G128: 28.19516947 | H128: 0 | I128: 0 | K128: 2026-05-05T07:00:00 | L128: 996.1416337 | M128: 0
A129: System | B129: Region | C129: Island | D129: - | E129: 2026-01-06T05:00:00 | F129: 1293.50436 | G129: 28.79954739 | H129: 0 | I129: 0 | K129: 2026-05-06T07:00:00 | L129: 981.7665692 | M129: 0
A130: System | B130: Region | C130: Island | D130: - | E130: 2026-01-06T06:00:00 | F130: 1361.570716 | G130: 30.0176868 | H130: 0 | I130: 0 | K130: 2026-05-07T07:00:00 | L130: 1029.524987 | M130: 0
A131: System | B131: Region | C131: Island | D131: - | E131: 2026-01-06T07:00:00 | F131: 1478.858479 | G131: 30.9570702 | H131: 0 | I131: 0 | K131: 2026-05-08T09:00:00 | L131: 1197.930299 | M131: 0
A132: System | B132: Region | C132: Island | D132: - | E132: 2026-01-06T08:00:00 | F132: 1566.494323 | G132: 32.22492905 | H132: 0 | I132: 0 | K132: 2026-05-09T09:00:00 | L132: 1117.24878 | M132: 0
A133: System | B133: Region | C133: Island | D133: - | E133: 2026-01-06T09:00:00 | F133: 1581.955899 | G133: 32.55801357 | H133: 0.0004166666667 | I133: 0.1011872208 | K133: 2026-05-10T09:00:00 | L133: =MAX(OFFSET($F$4:$F$27,(ROW()-4)*24,0)) -> 1141.81174 | M133: =VLOOKUP(L133,OFFSET($F$4:$H$27,(ROW()-4)*24,0),3,FALSE) -> 0
A134: System | B134: Region | C134: Island | D134: - | E134: 2026-01-06T10:00:00 | F134: 1579.738064 | G134: 32.41135395 | H134: 0.000625 | I134: 0.07658534167 | K134: 2026-05-11T08:00:00 | L134: 1035.645684 | M134: 0
A135: System | B135: Region | C135: Island | D135: - | E135: 2026-01-06T11:00:00 | F135: 1573.365147 | G135: 32.32962966 | H135: 0.0002083333333 | I135: 0.005937501685 | K135: 2026-05-12T07:00:00 | L135: 1118.368333 | M135: 0
A136: System | B136: Region | C136: Island | D136: - | E136: 2026-01-06T12:00:00 | F136: 1565.368588 | G136: 32.1853499 | H136: 0.0004166666667 | I136: 0.1114737304 | K136: 2026-05-13T20:00:00 | L136: 1074.240443 | M136: 0
A137: System | B137: Region | C137: Island | D137: - | E137: 2026-01-06T13:00:00 | F137: 1548.039068 | G137: 31.91389426 | H137: 0.000625 | I137: 0.1663688627 | K137: 2026-05-14T07:00:00 | L137: 1078.145512 | M137: 0
A138: System | B138: Region | C138: Island | D138: - | E138: 2026-01-06T14:00:00 | F138: 1552.748337 | G138: 31.96274214 | H138: 0 | I138: 0 | K138: 2026-05-15T07:00:00 | L138: 991.9024994 | M138: 0
A139: System | B139: Region | C139: Island | D139: - | E139: 2026-01-06T15:00:00 | F139: 1565.128299 | G139: 32.14905743 | H139: 0.0004166666667 | I139: 0.1519888251 | K139: 2026-05-16T09:00:00 | L139: 824.9528056 | M139: 0
A140: System | B140: Region | C140: Island | D140: - | E140: 2026-01-06T16:00:00 | F140: 1616.646959 | G140: 33.02987309 | H140: 0 | I140: 0 | K140: 2026-05-17T09:00:00 | L140: 892.523442 | M140: 0
A141: System | B141: Region | C141: Island | D141: - | E141: 2026-01-06T17:00:00 | F141: 1691.223558 | G141: 34.62451703 | H141: 0.001666666667 | I141: 0.08597985421 | K141: 2026-05-18T11:00:00 | L141: 980.1895537 | M141: 0
A142: System | B142: Region | C142: Island | D142: - | E142: 2026-01-06T18:00:00 | F142: 1684.077354 | G142: 34.42904685 | H142: 0.001666666667 | I142: 0.1444682639 | K142: 2026-05-19T07:00:00 | L142: 947.4899757 | M142: 0
A143: System | B143: Region | C143: Island | D143: - | E143: 2026-01-06T19:00:00 | F143: 1664.229933 | G143: 34.03687826 | H143: 0.0008333333333 | I143: 0.09282144242 | K143: 2026-05-20T20:00:00 | L143: 836.828933 | M143: 0
A144: System | B144: Region | C144: Island | D144: - | E144: 2026-01-06T20:00:00 | F144: 1650.408623 | G144: 33.76849279 | H144: 0.000625 | I144: 0.07691456324 | K144: 2026-05-21T07:00:00 | L144: 885.6807181 | M144: 0
A145: System | B145: Region | C145: Island | D145: - | E145: 2026-01-06T21:00:00 | F145: 1618.597001 | G145: 33.1939415 | H145: 0.0008333333333 | I145: 0.1414200372 | K145: 2026-05-22T07:00:00 | L145: 894.6724587 | M145: 0
A146: System | B146: Region | C146: Island | D146: - | E146: 2026-01-06T22:00:00 | F146: 1562.462786 | G146: 32.17471045 | H146: 0.00125 | I146: 0.1748101634 | K146: 2026-05-23T11:00:00 | L146: 908.8846979 | M146: 0
A147: System | B147: Region | C147: Island | D147: - | E147: 2026-01-06T23:00:00 | F147: 1466.132467 | G147: 30.25068225 | H147: 0.000625 | I147: 0.09583896106 | K147: 2026-05-24T09:00:00 | L147: 948.6973351 | M147: 0
A148: System | B148: Region | C148: Island | D148: - | E148: 2026-01-07 | F148: 1372.778284 | G148: 29.55984225 | H148: 0 | I148: 0 | K148: 2026-05-25T07:00:00 | L148: 895.4957344 | M148: 0
A149: System | B149: Region | C149: Island | D149: - | E149: 2026-01-07T01:00:00 | F149: 1352.141255 | G149: 29.44259057 | H149: 0.0002083333333 | I149: 0.01739127091 | K149: 2026-05-26T07:00:00 | L149: 812.9798738 | M149: 0
A150: System | B150: Region | C150: Island | D150: - | E150: 2026-01-07T02:00:00 | F150: 1338.458989 | G150: 29.38088582 | H150: 0.000625 | I150: 0.03797475314 | K150: 2026-05-27T09:00:00 | L150: 827.0659691 | M150: 0
A151: System | B151: Region | C151: Island | D151: - | E151: 2026-01-07T03:00:00 | F151: 1338.434672 | G151: 29.30894627 | H151: 0 | I151: 0 | K151: 2026-05-28T09:00:00 | L151: 837.9842716 | M151: 0
A152: System | B152: Region | C152: Island | D152: - | E152: 2026-01-07T04:00:00 | F152: 1348.362401 | G152: 29.37988601 | H152: 0 | I152: 0 | K152: 2026-05-29T11:00:00 | L152: 889.6815374 | M152: 0
A153: System | B153: Region | C153: Island | D153: - | E153: 2026-01-07T05:00:00 | F153: 1365.147244 | G153: 29.47221326 | H153: 0.0002083333333 | I153: 0.006916180735 | K153: 2026-05-30T09:00:00 | L153: 842.8266016 | M153: 0
A154: System | B154: Region | C154: Island | D154: - | E154: 2026-01-07T06:00:00 | F154: 1415.648672 | G154: 30.49875715 | H154: 0.0004166666667 | I154: 0.05557844092 | K154: 2026-05-31T11:00:00 | L154: 789.2482688 | M154: 0
A155: System | B155: Region | C155: Island | D155: - | E155: 2026-01-07T07:00:00 | F155: 1528.554222 | G155: 31.85345921 | H155: 0.0004166666667 | I155: 0.006155287604 | K155: 2026-06-01T07:00:00 | L155: 913.4337196 | M155: 0
A156: System | B156: Region | C156: Island | D156: - | E156: 2026-01-07T08:00:00 | F156: 1585.490616 | G156: 32.78387521 | H156: 0.0002083333333 | I156: 0.0004355797193 | K156: 2026-06-02T07:00:00 | L156: 950.794869 | M156: 0
A157: System | B157: Region | C157: Island | D157: - | E157: 2026-01-07T09:00:00 | F157: 1595.181021 | G157: 32.92232922 | H157: 0.0002083333333 | I157: 0.01351884243 | K157: 2026-06-03T07:00:00 | L157: 893.5376025 | M157: 0
A158: System | B158: Region | C158: Island | D158: - | E158: 2026-01-07T10:00:00 | F158: 1582.236504 | G158: 32.67682068 | H158: 0 | I158: 0 | K158: 2026-06-04T07:00:00 | L158: 907.5423196 | M158: 0
A159: System | B159: Region | C159: Island | D159: - | E159: 2026-01-07T11:00:00 | F159: 1567.492117 | G159: 32.41313024 | H159: 0 | I159: 0 | K159: 2026-06-05T07:00:00 | L159: 906.6552328 | M159: 0
A160: System | B160: Region | C160: Island | D160: - | E160: 2026-01-07T12:00:00 | F160: 1564.300839 | G160: 32.37911664 | H160: 0.0002083333333 | I160: 0.01098045527 | K160: 2026-06-06T10:00:00 | L160: 856.7731834 | M160: 0
A161: System | B161: Region | C161: Island | D161: - | E161: 2026-01-07T13:00:00 | F161: 1536.807397 | G161: 31.92079322 | H161: 0 | I161: 0 | K161: 2026-06-07T11:00:00 | L161: 876.7081408 | M161: 0
A162: System | B162: Region | C162: Island | D162: - | E162: 2026-01-07T14:00:00 | F162: 1519.345289 | G162: 31.60353617 | H162: 0.0004166666667 | I162: 0.08548355376 | K162: 2026-06-08T07:00:00 | L162: 941.9334013 | M162: 0
A163: System | B163: Region | C163: Island | D163: - | E163: 2026-01-07T15:00:00 | F163: 1526.134618 | G163: 31.69741629 | H163: 0 | I163: 0 | K163: 2026-06-09T07:00:00 | L163: 866.819084 | M163: 0
A164: System | B164: Region | C164: Island | D164: - | E164: 2026-01-07T16:00:00 | F164: 1562.608272 | G164: 32.324953 | H164: 0 | I164: 0 | K164: 2026-06-10T07:00:00 | L164: 804.0016412 | M164: 0
A165: System | B165: Region | C165: Island | D165: - | E165: 2026-01-07T17:00:00 | F165: 1635.649754 | G165: 33.54306215 | H165: 0.000625 | I165: 0.08777703861 | K165: 2026-06-11T07:00:00 | L165: 791.518366 | M165: 0
A166: System | B166: Region | C166: Island | D166: - | E166: 2026-01-07T18:00:00 | F166: 1620.965248 | G166: 33.3040398 | H166: 0.0002083333333 | I166: 0.00230717177 | K166: 2026-06-12T11:00:00 | L166: 793.167656 | M166: 0
A167: System | B167: Region | C167: Island | D167: - | E167: 2026-01-07T19:00:00 | F167: 1598.415368 | G167: 32.86100063 | H167: 0.0002083333333 | I167: 0.01023658282 | K167: 2026-06-13T16:00:00 | L167: 839.8261125 | M167: 0
A168: System | B168: Region | C168: Island | D168: - | E168: 2026-01-07T20:00:00 | F168: 1581.240248 | G168: 32.58347729 | H168: 0.0004166666667 | I168: 0.06621151147 | K168: 2026-06-14T10:00:00 | L168: 936.6765744 | M168: 0
A169: System | B169: Region | C169: Island | D169: - | E169: 2026-01-07T21:00:00 | F169: 1553.642101 | G169: 32.16478716 | H169: 0.0002083333333 | I169: 0.05449143889 | K169: 2026-06-15T08:00:00 | L169: 937.5070153 | M169: 0
A170: System | B170: Region | C170: Island | D170: - | E170: 2026-01-07T22:00:00 | F170: 1503.060204 | G170: 31.41249144 | H170: 0.0002083333333 | I170: 0.04779096604 | K170: 2026-06-16T07:00:00 | L170: 845.8318042 | M170: 0
A171: System | B171: Region | C171: Island | D171: - | E171: 2026-01-07T23:00:00 | F171: 1428.81697 | G171: 29.94691711 | H171: 0.0002083333333 | I171: 0.02445962629 | K171: 2026-06-17T11:00:00 | L171: 895.6690206 | M171: 0
A172: System | B172: Region | C172: Island | D172: - | E172: 2026-01-08 | F172: 1361.864882 | G172: 28.40956214 | H172: 0.000625 | I172: 0.06080205344 | K172: 2026-06-18T07:00:00 | L172: 825.7039873 | M172: 0
A173: System | B173: Region | C173: Island | D173: - | E173: 2026-01-08T01:00:00 | F173: 1321.169527 | G173: 27.94608176 | H173: 0 | I173: 0 | K173: 2026-06-19T08:00:00 | L173: 747.8301773 | M173: 0
A174: System | B174: Region | C174: Island | D174: - | E174: 2026-01-08T02:00:00 | F174: 1318.643783 | G174: 27.94358306 | H174: 0 | I174: 0 | K174: 2026-06-20T11:00:00 | L174: 745.829682 | M174: 0
A175: System | B175: Region | C175: Island | D175: - | E175: 2026-01-08T03:00:00 | F175: 1318.838829 | G175: 27.8970853 | H175: 0 | I175: 0 | K175: 2026-06-21T10:00:00 | L175: 738.0702572 | M175: 0
A176: System | B176: Region | C176: Island | D176: - | E176: 2026-01-08T04:00:00 | F176: 1337.443546 | G176: 28.15096301 | H176: 0 | I176: 0 | K176: 2026-06-22T11:00:00 | L176: 768.5802334 | M176: 0
A177: System | B177: Region | C177: Island | D177: - | E177: 2026-01-08T05:00:00 | F177: 1356.920545 | G177: 28.39051577 | H177: 0.0002083333333 | I177: 0.02043923755 | K177: 2026-06-23T21:00:00 | L177: 808.2733768 | M177: 0
A178: System | B178: Region | C178: Island | D178: - | E178: 2026-01-08T06:00:00 | F178: 1409.583078 | G178: 30.14527273 | H178: 0.0002083333333 | I178: 0.02533834049 | K178: 2026-06-24T09:00:00 | L178: 881.7689505 | M178: 0
A179: System | B179: Region | C179: Island | D179: - | E179: 2026-01-08T07:00:00 | F179: 1504.57286 | G179: 31.18596366 | H179: 0 | I179: 0 | K179: 2026-06-25T10:00:00 | L179: 903.6724244 | M179: 0
A180: System | B180: Region | C180: Island | D180: - | E180: 2026-01-08T08:00:00 | F180: 1579.964096 | G180: 32.29932722 | H180: 0 | I180: 0 | K180: 2026-06-26T09:00:00 | L180: 893.627652 | M180: 0
A181: System | B181: Region | C181: Island | D181: - | E181: 2026-01-08T09:00:00 | F181: 1596.313895 | G181: 32.62443885 | H181: 0.001041666667 | I181: 0.1911384633 | K181: 2026-06-27T10:00:00 | L181: 849.8923073 | M181: 0
A182: System | B182: Region | C182: Island | D182: - | E182: 2026-01-08T10:00:00 | F182: 1598.694242 | G182: 32.62759852 | H182: 0.0002083333333 | I182: 0.0643928907 | K182: 2026-06-28T11:00:00 | L182: 755.6079252 | M182: 0
A183: System | B183: Region | C183: Island | D183: - | E183: 2026-01-08T11:00:00 | F183: 1608.460427 | G183: 32.79674107 | H183: 0.0008333333333 | I183: 0.02795202364 | K183: 2026-06-29T11:00:00 | L183: 797.1426222 | M183: 0
A184: System | B184: Region | C184: Island | D184: - | E184: 2026-01-08T12:00:00 | F184: 1605.318519 | G184: 32.73970623 | H184: 0.0004166666667 | I184: 0.0026743152 | K184: 2026-06-30T09:00:00 | L184: 788.2788879 | M184: 0
A185: System | B185: Region | C185: Island | D185: - | E185: 2026-01-08T13:00:00 | F185: 1580.877742 | G185: 32.32773769 | H185: 0.0002083333333 | I185: 0.05928128317 | K185: 2026-07-01T11:00:00 | L185: 726.0488548 | M185: 0
A186: System | B186: Region | C186: Island | D186: - | E186: 2026-01-08T14:00:00 | F186: 1561.850348 | G186: 31.98993456 | H186: 0.0002083333333 | I186: 0.0259658335 | K186: 2026-07-02T16:00:00 | L186: 745.01051 | M186: 0
A187: System | B187: Region | C187: Island | D187: - | E187: 2026-01-08T15:00:00 | F187: 1565.276403 | G187: 32.08511075 | H187: 0 | I187: 0 | K187: 2026-07-03T11:00:00 | L187: 760.5482933 | M187: 0
A188: System | B188: Region | C188: Island | D188: - | E188: 2026-01-08T16:00:00 | F188: 1580.98429 | G188: 32.35937496 | H188: 0.0002083333333 | I188: 0.002305778126 | K188: 2026-07-04T11:00:00 | L188: 681.1586883 | M188: 0
A189: System | B189: Region | C189: Island | D189: - | E189: 2026-01-08T17:00:00 | F189: 1667.729779 | G189: 34.03660987 | H189: 0.00125 | I189: 0.09756836103 | K189: 2026-07-05T11:00:00 | L189: 712.4469266 | M189: 0
A190: System | B190: Region | C190: Island | D190: - | E190: 2026-01-08T18:00:00 | F190: 1658.150117 | G190: 33.85759092 | H190: 0.001666666667 | I190: 0.2044516185 | K190: 2026-07-06T11:00:00 | L190: 847.6805708 | M190: 0
A191: System | B191: Region | C191: Island | D191: - | E191: 2026-01-08T19:00:00 | F191: 1632.655265 | G191: 33.38464825 | H191: 0.0004166666667 | I191: 0.03246362464 | K191: 2026-07-07T10:00:00 | L191: 824.9177742 | M191: 0
A192: System | B192: Region | C192: Island | D192: - | E192: 2026-01-08T20:00:00 | F192: 1619.018297 | G192: 33.09633987 | H192: 0.0004166666667 | I192: 0.04759105701 | K192: 2026-07-08T11:00:00 | L192: 765.622674 | M192: 0
A193: System | B193: Region | C193: Island | D193: - | E193: 2026-01-08T21:00:00 | F193: 1592.092087 | G193: 32.6340538 | H193: 0.0004166666667 | I193: 0.07792723177 | K193: 2026-07-09T11:00:00 | L193: 702.5973511 | M193: 0
A194: System | B194: Region | C194: Island | D194: - | E194: 2026-01-08T22:00:00 | F194: 1546.926614 | G194: 31.80253208 | H194: 0.000625 | I194: 0.108584087 | K194: 2026-07-10T10:00:00 | L194: 728.2034554 | M194: 0
A195: System | B195: Region | C195: Island | D195: - | E195: 2026-01-08T23:00:00 | F195: 1463.877451 | G195: 29.42825028 | H195: 0 | I195: 0 | K195: 2026-07-11T11:00:00 | L195: 765.6219671 | M195: 0
A196: System | B196: Region | C196: Island | D196: - | E196: 2026-01-09 | F196: 1415.739989 | G196: 30.21660496 | H196: 0.0002083333333 | I196: 0.01824941818 | K196: 2026-07-12T09:00:00 | L196: 739.8059403 | M196: 0
A197: System | B197: Region | C197: Island | D197: - | E197: 2026-01-09T01:00:00 | F197: 1398.095229 | G197: 30.10938949 | H197: 0.0004166666667 | I197: 0.03651179901 | K197: 2026-07-13T11:00:00 | L197: =MAX(OFFSET($F$4:$F$27,(ROW()-4)*24,0)) -> 818.8945325 | M197: =VLOOKUP(L197,OFFSET($F$4:$H$27,(ROW()-4)*24,0),3,FALSE) -> 0
A198: System | B198: Region | C198: Island | D198: - | E198: 2026-01-09T02:00:00 | F198: 1400.337185 | G198: 30.11822191 | H198: 0.0002083333333 | I198: 0.01639684303 | K198: 2026-07-14T11:00:00 | L198: 731.9631352 | M198: 0
A199: System | B199: Region | C199: Island | D199: - | E199: 2026-01-09T03:00:00 | F199: 1409.847971 | G199: 30.1915811 | H199: 0 | I199: 0 | K199: 2026-07-15T12:00:00 | L199: 674.3552061 | M199: 0
A200: System | B200: Region | C200: Island | D200: - | E200: 2026-01-09T04:00:00 | F200: 1424.737817 | G200: 30.28786067 | H200: 0 | I200: 0 | K200: 2026-07-16T11:00:00 | L200: 757.6083592 | M200: 0
A201: System | B201: Region | C201: Island | D201: - | E201: 2026-01-09T05:00:00 | F201: 1448.567176 | G201: 30.44100185 | H201: 0.0002083333333 | I201: 0.0246348793 | K201: 2026-07-17T10:00:00 | L201: 733.9494946 | M201: 0
A202: System | B202: Region | C202: Island | D202: - | E202: 2026-01-09T06:00:00 | F202: 1504.725907 | G202: 31.58334981 | H202: 0 | I202: 0 | K202: 2026-07-18T11:00:00 | L202: 732.9408343 | M202: 0
... 8561 more rows

Sheet Run 6
A3: Parent Name | B3: Collection | C3: Child Name | D3: Category | E3: Datetime | F3: Load (MW) | G3: Transmission Losses (MW) | H3: Unserved Energy Hours (h) | I3: Unserved Energy (MW) | K3: Daily Peak | L3: Daily Peak Load | M3: Average Unserved Energy Hours
A4: System | B4: Region | C4: Island | D4: - | E4: 2026-01-01 | F4: 1441.774642 | G4: 30.2891098 | H4: 0 | I4: 0 | K4: 2026-01-01T17:00:00 | L4: =MAX(OFFSET($F$4:$F$27,(ROW()-4)*24,0)) -> 1600.677255 | M4: =VLOOKUP(L4,OFFSET($F$4:$H$27,(ROW()-4)*24,0),3,FALSE) -> 0.0004166666667 | P4: LOLE | Q4: =SUM(M4:M368) -> 0.0825
A5: System | B5: Region | C5: Island | D5: - | E5: 2026-01-01T01:00:00 | F5: 1409.497649 | G5: 30.17640498 | H5: 0.0004166666667 | I5: 0.05927280961 | K5: 2026-01-02T17:00:00 | L5: =MAX(OFFSET($F$4:$F$27,(ROW()-4)*24,0)) -> 1473.862993 | M5: =VLOOKUP(L5,OFFSET($F$4:$H$27,(ROW()-4)*24,0),3,FALSE) -> 0.0004166666667 | P5: LOLH | Q5: =SUM(H4:H8763) -> 0.5385416667
A6: System | B6: Region | C6: Island | D6: - | E6: 2026-01-01T02:00:00 | F6: 1387.142085 | G6: 30.04931109 | H6: 0 | I6: 0 | K6: 2026-01-03T20:00:00 | L6: 1689.796999 | M6: 0.002916666667 | P6: EUE | Q6: =SUM(I4:I8763) -> 56.64922096
A7: System | B7: Region | C7: Island | D7: - | E7: 2026-01-01T03:00:00 | F7: 1372.814059 | G7: 29.96457021 | H7: 0 | I7: 0 | K7: 2026-01-04T17:00:00 | L7: 1691.884441 | M7: 0.003958333333 | P7: Peak | Q7: =MAX(F4:F8763) -> 1753.508891
A8: System | B8: Region | C8: Island | D8: - | E8: 2026-01-01T04:00:00 | F8: 1371.364147 | G8: 29.8844292 | H8: 0 | I8: 0 | K8: 2026-01-05T17:00:00 | L8: 1454.506755 | M8: 0.0002083333333 | P8: Loss @ Peak | Q8: =VLOOKUP(Q7,F4:G8763,2,FALSE) -> 38.42641058
A9: System | B9: Region | C9: Island | D9: - | E9: 2026-01-01T05:00:00 | F9: 1385.800295 | G9: 30.03145976 | H9: 0.0002083333333 | I9: 0.01391574847 | K9: 2026-01-06T17:00:00 | L9: 1691.223558 | M9: 0.001666666667 | P9: Peak with Losses | Q9: =Q7+Q8 -> 1791.935302
A10: System | B10: Region | C10: Island | D10: - | E10: 2026-01-01T06:00:00 | F10: 1414.470703 | G10: 30.78484305 | H10: 0.0002083333333 | I10: 0.02400548099 | K10: 2026-01-07T17:00:00 | L10: 1635.649754 | M10: 0.000625 | P10: Peak Losses | Q10: =MAX(G4:G8763) -> 42.04312295
A11: System | B11: Region | C11: Island | D11: - | E11: 2026-01-01T07:00:00 | F11: 1453.357713 | G11: 31.12744275 | H11: 0 | I11: 0 | K11: 2026-01-08T17:00:00 | L11: 1667.729779 | M11: 0.00125 | P11: Firm Capacity | Q11: 2086.986
A12: System | B12: Region | C12: Island | D12: - | E12: 2026-01-01T08:00:00 | F12: 1484.907608 | G12: 31.52906168 | H12: 0 | I12: 0 | K12: 2026-01-09T08:00:00 | L12: 1692.023665 | M12: 0.002083333333 | P12: Reserve Margin | Q12: =Q11-Q7 -> 333.4771087
A13: System | B13: Region | C13: Island | D13: - | E13: 2026-01-01T09:00:00 | F13: 1494.530245 | G13: 31.69567964 | H13: 0.000625 | I13: 0.1175271523 | K13: 2026-01-10T17:00:00 | L13: 1534.167472 | M13: 0 | P13: Reserve Margin % | Q13: =Q12/Q7 -> 0.1901770276
A14: System | B14: Region | C14: Island | D14: - | E14: 2026-01-01T10:00:00 | F14: 1504.991886 | G14: 31.85956561 | H14: 0.0002083333333 | I14: 0.001578137916 | K14: 2026-01-11T20:00:00 | L14: 1626.362427 | M14: 0.000625 | P14: Reserve Magin w/Loss | Q14: =Q11-Q9 -> 295.0506982
A15: System | B15: Region | C15: Island | D15: - | E15: 2026-01-01T11:00:00 | F15: 1522.518159 | G15: 32.07347993 | H15: 0 | I15: 0 | K15: 2026-01-12T08:00:00 | L15: 1660.736175 | M15: 0.0008333333333 | P15: Reserve Margin % w/ Loss | Q15: =Q14/Q9 -> 0.1646547718
A16: System | B16: Region | C16: Island | D16: - | E16: 2026-01-01T12:00:00 | F16: 1531.751117 | G16: 32.2745152 | H16: 0.0002083333333 | I16: 0.0007231946085 | K16: 2026-01-13T18:00:00 | L16: 1643.062154 | M16: 0.0008333333333
A17: System | B17: Region | C17: Island | D17: - | E17: 2026-01-01T13:00:00 | F17: 1531.994672 | G17: 32.26549696 | H17: 0.0002083333333 | I17: 0.09023957007 | K17: 2026-01-14T08:00:00 | L17: 1704.361802 | M17: 0.00125 | P17: Checks
A18: System | B18: Region | C18: Island | D18: - | E18: 2026-01-01T14:00:00 | F18: 1532.213706 | G18: 32.19069605 | H18: 0.001041666667 | I18: 0.1770242356 | K18: 2026-01-15T08:00:00 | L18: 1569.402999 | M18: 0 | P18: Island Energy (Original) | Q18: 8357
A19: System | B19: Region | C19: Island | D19: - | E19: 2026-01-01T15:00:00 | F19: 1536.860355 | G19: 32.27347916 | H19: 0 | I19: 0 | K19: 2026-01-16T17:00:00 | L19: 1483.64309 | M19: 0.0002083333333 | P19: Island Energy (Escalated) | Q19: =SUM(F4:F8763)/1000 -> 8599.311496
A20: System | B20: Region | C20: Island | D20: - | E20: 2026-01-01T16:00:00 | F20: 1553.994781 | G20: 32.58048057 | H20: 0.0002083333333 | I20: 0.04723420119 | K20: 2026-01-17T20:00:00 | L20: 1492.137539 | M20: 0 | P20: Escalation Factor Check | Q20: =Q19/Q18 -> 1.028995034
A21: System | B21: Region | C21: Island | D21: - | E21: 2026-01-01T17:00:00 | F21: 1600.677255 | G21: 33.31873853 | H21: 0.0004166666667 | I21: 0.07079736722 | K21: 2026-01-18T18:00:00 | L21: 1574.218655 | M21: 0.0004166666667
A22: System | B22: Region | C22: Island | D22: - | E22: 2026-01-01T18:00:00 | F22: 1575.344544 | G22: 32.84372878 | H22: 0.0002083333333 | I22: 0.06163867505 | K22: 2026-01-19T08:00:00 | L22: 1505.527133 | M22: 0 | P22: Island Peak (Original) | Q22: 1704
A23: System | B23: Region | C23: Island | D23: - | E23: 2026-01-01T19:00:00 | F23: 1554.020953 | G23: 32.55148422 | H23: 0.000625 | I23: 0.1376755999 | K23: 2026-01-20T18:00:00 | L23: 1417.52576 | M23: 0.0004166666667 | P23: Island Peak (Escalated) | Q23: =MAX(F4:F8763) -> 1753.508891
A24: System | B24: Region | C24: Island | D24: - | E24: 2026-01-01T20:00:00 | F24: 1536.783645 | G24: 32.29327781 | H24: 0.0002083333333 | I24: 0.0117341898 | K24: 2026-01-21T18:00:00 | L24: 1482.119664 | M24: 0 | P24: Escalation Factor Check | Q24: =Q23/Q22 -> 1.029054514
A25: System | B25: Region | C25: Island | D25: - | E25: 2026-01-01T21:00:00 | F25: 1507.791465 | G25: 31.81253159 | H25: 0.0002083333333 | I25: 0.03784662903 | K25: 2026-01-22T08:00:00 | L25: 1496.794687 | M25: 0
A26: System | B26: Region | C26: Island | D26: - | E26: 2026-01-01T22:00:00 | F26: 1466.582618 | G26: 31.27079403 | H26: 0.0002083333333 | I26: 0.03649110736 | K26: 2026-01-23T18:00:00 | L26: 1528.566171 | M26: 0.0004166666667
A27: System | B27: Region | C27: Island | D27: - | E27: 2026-01-01T23:00:00 | F27: 1389.840012 | G27: 30.01224663 | H27: 0.0002083333333 | I27: 0.008051826216 | K27: 2026-01-24T10:00:00 | L27: 1534.601596 | M27: 0.0002083333333
A28: System | B28: Region | C28: Island | D28: - | E28: 2026-01-02 | F28: 1310.839185 | G28: 22.36892204 | H28: 0 | I28: 0 | K28: 2026-01-25T18:00:00 | L28: 1441.864602 | M28: 0.0002083333333
A29: System | B29: Region | C29: Island | D29: - | E29: 2026-01-02T01:00:00 | F29: 1255.051699 | G29: 21.13258961 | H29: 0 | I29: 0 | K29: 2026-01-26T18:00:00 | L29: 1603.790267 | M29: 0.000625
A30: System | B30: Region | C30: Island | D30: - | E30: 2026-01-02T02:00:00 | F30: 1234.787908 | G30: 20.66429394 | H30: 0 | I30: 0 | K30: 2026-01-27T17:00:00 | L30: 1695.210997 | M30: 0.002083333333
A31: System | B31: Region | C31: Island | D31: - | E31: 2026-01-02T03:00:00 | F31: 1231.424935 | G31: 20.61226885 | H31: 0 | I31: 0 | K31: 2026-01-28T08:00:00 | L31: 1408.522334 | M31: 0.0002083333333
A32: System | B32: Region | C32: Island | D32: - | E32: 2026-01-02T04:00:00 | F32: 1240.090353 | G32: 20.78284254 | H32: 0 | I32: 0 | K32: 2026-01-29T18:00:00 | L32: 1383.663879 | M32: 0.0002083333333
A33: System | B33: Region | C33: Island | D33: - | E33: 2026-01-02T05:00:00 | F33: 1258.219616 | G33: 21.21808903 | H33: 0 | I33: 0 | K33: 2026-01-30T12:00:00 | L33: 1489.720055 | M33: 0.0004166666667
A34: System | B34: Region | C34: Island | D34: - | E34: 2026-01-02T06:00:00 | F34: 1295.918372 | G34: 27.2278758 | H34: 0.0002083333333 | I34: 0.01865946137 | K34: 2026-01-31T18:00:00 | L34: 1444.514949 | M34: 0
A35: System | B35: Region | C35: Island | D35: - | E35: 2026-01-02T07:00:00 | F35: 1363.84703 | G35: 28.6142775 | H35: 0.0002083333333 | I35: 0.02014301154 | K35: 2026-02-01T10:00:00 | L35: 1317.40025 | M35: 0
A36: System | B36: Region | C36: Island | D36: - | E36: 2026-01-02T08:00:00 | F36: 1401.190349 | G36: 29.39461304 | H36: 0.0002083333333 | I36: 0.05259135641 | K36: 2026-02-02T17:00:00 | L36: 1625.534761 | M36: 0.0004166666667
A37: System | B37: Region | C37: Island | D37: - | E37: 2026-01-02T09:00:00 | F37: 1440.567541 | G37: 30.1145599 | H37: 0 | I37: 0 | K37: 2026-02-03T18:00:00 | L37: 1527.326057 | M37: 0
A38: System | B38: Region | C38: Island | D38: - | E38: 2026-01-02T10:00:00 | F38: 1440.603379 | G38: 30.11856254 | H38: 0.0002083333333 | I38: 0.03179827692 | K38: 2026-02-04T08:00:00 | L38: 1603.009116 | M38: 0.0002083333333
A39: System | B39: Region | C39: Island | D39: - | E39: 2026-01-02T11:00:00 | F39: 1448.424028 | G39: 30.27048411 | H39: 0 | I39: 0 | K39: 2026-02-05T08:00:00 | L39: 1648.368608 | M39: 0.00125
A40: System | B40: Region | C40: Island | D40: - | E40: 2026-01-02T12:00:00 | F40: 1439.615957 | G40: 30.09487053 | H40: 0.0004166666667 | I40: 0.05866961208 | K40: 2026-02-06T12:00:00 | L40: 1445.346153 | M40: 0
A41: System | B41: Region | C41: Island | D41: - | E41: 2026-01-02T13:00:00 | F41: 1416.807715 | G41: 29.70398582 | H41: 0.0002083333333 | I41: 0.02583056454 | K41: 2026-02-07T18:00:00 | L41: 1553.906261 | M41: 0
A42: System | B42: Region | C42: Island | D42: - | E42: 2026-01-02T14:00:00 | F42: 1374.095711 | G42: 28.89696658 | H42: 0.0002083333333 | I42: 0.007939483868 | K42: 2026-02-08T19:00:00 | L42: 1582.339892 | M42: 0.0004166666667
A43: System | B43: Region | C43: Island | D43: - | E43: 2026-01-02T15:00:00 | F43: 1352.373942 | G43: 28.43207762 | H43: 0.0004166666667 | I43: 0.02511877399 | K43: 2026-02-09T08:00:00 | L43: 1739.161398 | M43: 0.008333333333
A44: System | B44: Region | C44: Island | D44: - | E44: 2026-01-02T16:00:00 | F44: 1372.694541 | G44: 28.84445217 | H44: 0.0002083333333 | I44: 0.02619875175 | K44: 2026-02-10T08:00:00 | L44: 1688.183476 | M44: 0.001666666667
A45: System | B45: Region | C45: Island | D45: - | E45: 2026-01-02T17:00:00 | F45: 1473.862993 | G45: 30.66436214 | H45: 0.0004166666667 | I45: 0.08620714873 | K45: 2026-02-11T18:00:00 | L45: 1551.304252 | M45: 0
A46: System | B46: Region | C46: Island | D46: - | E46: 2026-01-02T18:00:00 | F46: 1457.496808 | G46: 30.41214871 | H46: 0 | I46: 0 | K46: 2026-02-12T12:00:00 | L46: 1686.596791 | M46: 0.004375
A47: System | B47: Region | C47: Island | D47: - | E47: 2026-01-02T19:00:00 | F47: 1419.695693 | G47: 29.79028808 | H47: 0.0004166666667 | I47: 0.0956146066 | K47: 2026-02-13T08:00:00 | L47: 1551.412319 | M47: 0.0004166666667
A48: System | B48: Region | C48: Island | D48: - | E48: 2026-01-02T20:00:00 | F48: 1410.505011 | G48: 29.5578929 | H48: 0 | I48: 0 | K48: 2026-02-14T18:00:00 | L48: 1509.947554 | M48: 0
A49: System | B49: Region | C49: Island | D49: - | E49: 2026-01-02T21:00:00 | F49: 1388.220127 | G49: 29.15600669 | H49: 0.0002083333333 | I49: 0.01448032374 | K49: 2026-02-15T18:00:00 | L49: 1494.261396 | M49: 0
A50: System | B50: Region | C50: Island | D50: - | E50: 2026-01-02T22:00:00 | F50: 1348.949479 | G50: 28.32121613 | H50: 0 | I50: 0 | K50: 2026-02-16T18:00:00 | L50: 1507.853146 | M50: 0.0008333333333
A51: System | B51: Region | C51: Island | D51: - | E51: 2026-01-02T23:00:00 | F51: 1295.777189 | G51: 22.04590006 | H51: 0.0002083333333 | I51: 0.009923741902 | K51: 2026-02-17T18:00:00 | L51: 1571.739273 | M51: 0
A52: System | B52: Region | C52: Island | D52: - | E52: 2026-01-03 | F52: 1224.461928 | G52: 26.02965341 | H52: 0 | I52: 0 | K52: 2026-02-18T08:00:00 | L52: 1551.334144 | M52: 0
A53: System | B53: Region | C53: Island | D53: - | E53: 2026-01-03T01:00:00 | F53: 1179.875274 | G53: 25.1797697 | H53: 0 | I53: 0 | K53: 2026-02-19T18:00:00 | L53: 1477.251424 | M53: 0.0002083333333
A54: System | B54: Region | C54: Island | D54: - | E54: 2026-01-03T02:00:00 | F54: 1185.586737 | G54: 25.30891104 | H54: 0 | I54: 0 | K54: 2026-02-20T08:00:00 | L54: 1366.686521 | M54: 0
A55: System | B55: Region | C55: Island | D55: - | E55: 2026-01-03T03:00:00 | F55: 1189.960683 | G55: 25.3790764 | H55: 0 | I55: 0 | K55: 2026-02-21T19:00:00 | L55: 1538.954857 | M55: 0.0002083333333
A56: System | B56: Region | C56: Island | D56: - | E56: 2026-01-03T04:00:00 | F56: 1204.437109 | G56: 25.67496455 | H56: 0 | I56: 0 | K56: 2026-02-22T10:00:00 | L56: 1500.865182 | M56: 0.0002083333333
A57: System | B57: Region | C57: Island | D57: - | E57: 2026-01-03T05:00:00 | F57: 1221.173191 | G57: 25.9200291 | H57: 0 | I57: 0 | K57: 2026-02-23T18:00:00 | L57: 1392.189158 | M57: 0
A58: System | B58: Region | C58: Island | D58: - | E58: 2026-01-03T06:00:00 | F58: 1258.166219 | G58: 28.73702349 | H58: 0 | I58: 0 | K58: 2026-02-24T19:00:00 | L58: 1652.672894 | M58: 0.000625
A59: System | B59: Region | C59: Island | D59: - | E59: 2026-01-03T07:00:00 | F59: 1318.744401 | G59: 29.37276628 | H59: 0.0002083333333 | I59: 0.009644030043 | K59: 2026-02-25T08:00:00 | L59: 1652.896181 | M59: 0.002083333333
A60: System | B60: Region | C60: Island | D60: - | E60: 2026-01-03T08:00:00 | F60: 1374.039815 | G60: 29.99313316 | H60: 0 | I60: 0 | K60: 2026-02-26T08:00:00 | L60: 1479.852017 | M60: 0.0008333333333
A61: System | B61: Region | C61: Island | D61: - | E61: 2026-01-03T09:00:00 | F61: 1451.233487 | G61: 30.97160507 | H61: 0.0002083333333 | I61: 0.0284220309 | K61: 2026-02-27T08:00:00 | L61: 1491.957368 | M61: 0
A62: System | B62: Region | C62: Island | D62: - | E62: 2026-01-03T10:00:00 | F62: 1456.269943 | G62: 31.06449809 | H62: 0 | I62: 0 | K62: 2026-02-28T19:00:00 | L62: 1579.665791 | M62: 0
A63: System | B63: Region | C63: Island | D63: - | E63: 2026-01-03T11:00:00 | F63: 1448.602839 | G63: 30.91719178 | H63: 0 | I63: 0 | K63: 2026-03-01T10:00:00 | L63: 1439.700291 | M63: 0
A64: System | B64: Region | C64: Island | D64: - | E64: 2026-01-03T12:00:00 | F64: 1457.907603 | G64: 31.05424554 | H64: 0 | I64: 0 | K64: 2026-03-02T09:00:00 | L64: 1589.18072 | M64: 0.0004166666667
A65: System | B65: Region | C65: Island | D65: - | E65: 2026-01-03T13:00:00 | F65: 1457.862307 | G65: 31.04724522 | H65: 0 | I65: 0 | K65: 2026-03-03T19:00:00 | L65: 1633.943098 | M65: 0.0008333333333
A66: System | B66: Region | C66: Island | D66: - | E66: 2026-01-03T14:00:00 | F66: 1482.198372 | G66: 31.36771685 | H66: 0.0002083333333 | I66: 0.03548592562 | K66: 2026-03-04T07:00:00 | L66: 1567.505021 | M66: 0
A67: System | B67: Region | C67: Island | D67: - | E67: 2026-01-03T15:00:00 | F67: 1487.369981 | G67: 31.44979855 | H67: 0 | I67: 0 | K67: 2026-03-05T20:00:00 | L67: 1511.277962 | M67: 0.0004166666667
A68: System | B68: Region | C68: Island | D68: - | E68: 2026-01-03T16:00:00 | F68: 1535.848516 | G68: 32.11454166 | H68: 0 | I68: 0 | K68: 2026-03-06T08:00:00 | L68: 1680.030371 | M68: 0.005
A69: System | B69: Region | C69: Island | D69: - | E69: 2026-01-03T17:00:00 | F69: 1674.151974 | G69: 35.18684282 | H69: 0.004166666667 | I69: 0.207867138 | K69: 2026-03-07T08:00:00 | L69: =MAX(OFFSET($F$4:$F$27,(ROW()-4)*24,0)) -> 1550.14423 | M69: =VLOOKUP(L69,OFFSET($F$4:$H$27,(ROW()-4)*24,0),3,FALSE) -> 0
A70: System | B70: Region | C70: Island | D70: - | E70: 2026-01-03T18:00:00 | F70: 1656.418455 | G70: 35.10392069 | H70: 0.00375 | I70: 0.2393886565 | K70: 2026-03-08T08:00:00 | L70: 1388.234871 | M70: 0
A71: System | B71: Region | C71: Island | D71: - | E71: 2026-01-03T19:00:00 | F71: 1661.912045 | G71: 35.06495291 | H71: 0.0025 | I71: 0.1156119252 | K71: 2026-03-09T07:00:00 | L71: 1546.37813 | M71: 0.0004166666667
A72: System | B72: Region | C72: Island | D72: - | E72: 2026-01-03T20:00:00 | F72: 1689.796999 | G72: 35.45919511 | H72: 0.002916666667 | I72: 0.2074032492 | K72: 2026-03-10T07:00:00 | L72: 1720.683839 | M72: 0.003958333333
A73: System | B73: Region | C73: Island | D73: - | E73: 2026-01-03T21:00:00 | F73: 1674.271828 | G73: 35.12650334 | H73: 0.003541666667 | I73: 0.3230962266 | K73: 2026-03-11T07:00:00 | L73: 1601.814016 | M73: 0.0002083333333
A74: System | B74: Region | C74: Island | D74: - | E74: 2026-01-03T22:00:00 | F74: 1643.424919 | G74: 34.20608944 | H74: 0.002083333333 | I74: 0.08419115143 | K74: 2026-03-12T19:00:00 | L74: 1514.752074 | M74: 0.0002083333333
A75: System | B75: Region | C75: Island | D75: - | E75: 2026-01-03T23:00:00 | F75: 1574.511647 | G75: 30.63631587 | H75: 0.0004166666667 | I75: 0.1069741446 | K75: 2026-03-13T08:00:00 | L75: 1703.068759 | M75: 0.002708333333
A76: System | B76: Region | C76: Island | D76: - | E76: 2026-01-04 | F76: 1518.371463 | G76: 35.73715295 | H76: 0.0004166666667 | I76: 0.1117784099 | K76: 2026-03-14T10:00:00 | L76: 1631.830374 | M76: 0.0008333333333
A77: System | B77: Region | C77: Island | D77: - | E77: 2026-01-04T01:00:00 | F77: 1430.101638 | G77: 36.38583155 | H77: 0.0004166666667 | I77: 0.04152604189 | K77: 2026-03-15T09:00:00 | L77: 1571.136297 | M77: 0.0002083333333
A78: System | B78: Region | C78: Island | D78: - | E78: 2026-01-04T02:00:00 | F78: 1414.682394 | G78: 36.43575902 | H78: 0 | I78: 0 | K78: 2026-03-16T10:00:00 | L78: 1623.229303 | M78: 0
A79: System | B79: Region | C79: Island | D79: - | E79: 2026-01-04T03:00:00 | F79: 1448.926935 | G79: 36.1886557 | H79: 0.0004166666667 | I79: 0.04394522609 | K79: 2026-03-17T07:00:00 | L79: 1368.895025 | M79: 0.0002083333333
A80: System | B80: Region | C80: Island | D80: - | E80: 2026-01-04T04:00:00 | F80: 1467.571741 | G80: 35.97504047 | H80: 0.0002083333333 | I80: 0.02757408518 | K80: 2026-03-18T16:00:00 | L80: 1353.71776 | M80: 0
A81: System | B81: Region | C81: Island | D81: - | E81: 2026-01-04T05:00:00 | F81: 1462.781969 | G81: 36.04232341 | H81: 0 | I81: 0 | K81: 2026-03-19T07:00:00 | L81: 1308.388169 | M81: 0.0002083333333
A82: System | B82: Region | C82: Island | D82: - | E82: 2026-01-04T06:00:00 | F82: 1499.544917 | G82: 33.88531304 | H82: 0 | I82: 0 | K82: 2026-03-20T07:00:00 | L82: 1441.615776 | M82: 0.0002083333333
A83: System | B83: Region | C83: Island | D83: - | E83: 2026-01-04T07:00:00 | F83: 1533.104526 | G83: 34.30624736 | H83: 0.0004166666667 | I83: 0.07342470833 | K83: 2026-03-21T08:00:00 | L83: 1321.09868 | M83: 0.000625
A84: System | B84: Region | C84: Island | D84: - | E84: 2026-01-04T08:00:00 | F84: 1561.80783 | G84: 34.67958008 | H84: 0.0002083333333 | I84: 0.01077988354 | K84: 2026-03-22T10:00:00 | L84: 1434.774197 | M84: 0
A85: System | B85: Region | C85: Island | D85: - | E85: 2026-01-04T09:00:00 | F85: 1640.481696 | G85: 36.37231606 | H85: 0.004166666667 | I85: 0.3430601594 | K85: 2026-03-23T19:00:00 | L85: 1545.489194 | M85: 0.000625
A86: System | B86: Region | C86: Island | D86: - | E86: 2026-01-04T10:00:00 | F86: 1654.39245 | G86: 36.73777426 | H86: 0.00125 | I86: 0.0567481434 | K86: 2026-03-24T07:00:00 | L86: 1496.094388 | M86: 0.0004166666667
A87: System | B87: Region | C87: Island | D87: - | E87: 2026-01-04T11:00:00 | F87: 1636.12589 | G87: 36.28533121 | H87: 0.001666666667 | I87: 0.2372167928 | K87: 2026-03-25T07:00:00 | L87: 1461.771661 | M87: 0
A88: System | B88: Region | C88: Island | D88: - | E88: 2026-01-04T12:00:00 | F88: 1610.807439 | G88: 35.650963 | H88: 0.0004166666667 | I88: 0.003473209122 | K88: 2026-03-26T07:00:00 | L88: 1422.172117 | M88: 0
A89: System | B89: Region | C89: Island | D89: - | E89: 2026-01-04T13:00:00 | F89: 1594.130559 | G89: 35.29117923 | H89: 0.0004166666667 | I89: 0.0337084138 | K89: 2026-03-27T07:00:00 | L89: 1206.698678 | M89: 0
A90: System | B90: Region | C90: Island | D90: - | E90: 2026-01-04T14:00:00 | F90: 1590.869626 | G90: 35.21470229 | H90: 0.000625 | I90: 0.09693783326 | K90: 2026-03-28T19:00:00 | L90: 1185.486243 | M90: 0
A91: System | B91: Region | C91: Island | D91: - | E91: 2026-01-04T15:00:00 | F91: 1603.268291 | G91: 35.45457153 | H91: 0.000625 | I91: 0.1506136188 | K91: 2026-03-29T20:00:00 | L91: 1243.845235 | M91: 0
A92: System | B92: Region | C92: Island | D92: - | E92: 2026-01-04T16:00:00 | F92: 1636.467782 | G92: 36.21353661 | H92: 0.001041666667 | I92: 0.03731506408 | K92: 2026-03-30T07:00:00 | L92: 1387.140999 | M92: 0
A93: System | B93: Region | C93: Island | D93: - | E93: 2026-01-04T17:00:00 | F93: 1691.884441 | G93: 37.06361088 | H93: 0.003958333333 | I93: 0.2525289244 | K93: 2026-03-31T07:00:00 | L93: 1348.962866 | M93: 0.000625
A94: System | B94: Region | C94: Island | D94: - | E94: 2026-01-04T18:00:00 | F94: 1672.3878 | G94: 36.61506838 | H94: 0.00125 | I94: 0.1179565087 | K94: 2026-04-01T07:00:00 | L94: 1260.659101 | M94: 0
A95: System | B95: Region | C95: Island | D95: - | E95: 2026-01-04T19:00:00 | F95: 1652.184667 | G95: 36.27534932 | H95: 0.001041666667 | I95: 0.1080062968 | K95: 2026-04-02T20:00:00 | L95: 1291.467448 | M95: 0.0002083333333
A96: System | B96: Region | C96: Island | D96: - | E96: 2026-01-04T20:00:00 | F96: 1650.930626 | G96: 36.24159298 | H96: 0.0008333333333 | I96: 0.1769396839 | K96: 2026-04-03T08:00:00 | L96: 1228.976477 | M96: 0
A97: System | B97: Region | C97: Island | D97: - | E97: 2026-01-04T21:00:00 | F97: 1620.098966 | G97: 35.65376451 | H97: 0.0004166666667 | I97: 0.1368231756 | K97: 2026-04-04T09:00:00 | L97: 1142.868212 | M97: 0
A98: System | B98: Region | C98: Island | D98: - | E98: 2026-01-04T22:00:00 | F98: 1549.926563 | G98: 34.37452522 | H98: 0.0004166666667 | I98: 0.0804181978 | K98: 2026-04-05T20:00:00 | L98: 1331.629212 | M98: 0
A99: System | B99: Region | C99: Island | D99: - | E99: 2026-01-04T23:00:00 | F99: 1457.790405 | G99: 36.11924897 | H99: 0.0002083333333 | I99: 0.03333222266 | K99: 2026-04-06T20:00:00 | L99: 1384.812624 | M99: 0.0002083333333
A100: System | B100: Region | C100: Island | D100: - | E100: 2026-01-05 | F100: 1368.887796 | G100: 22.7732274 | H100: 0.0002083333333 | I100: 0.007850366783 | K100: 2026-04-07T07:00:00 | L100: 1444.622684 | M100: 0.0002083333333
A101: System | B101: Region | C101: Island | D101: - | E101: 2026-01-05T01:00:00 | F101: 1320.905203 | G101: 21.59176524 | H101: 0 | I101: 0 | K101: 2026-04-08T07:00:00 | L101: 1389.862675 | M101: 0.0004166666667
A102: System | B102: Region | C102: Island | D102: - | E102: 2026-01-05T02:00:00 | F102: 1294.471401 | G102: 20.99575865 | H102: 0.0002083333333 | I102: 0.0174968586 | K102: 2026-04-09T07:00:00 | L102: 1456.384639 | M102: 0
A103: System | B103: Region | C103: Island | D103: - | E103: 2026-01-05T03:00:00 | F103: 1280.046589 | G103: 20.62539283 | H103: 0 | I103: 0 | K103: 2026-04-10T07:00:00 | L103: 1405.324967 | M103: 0.0002083333333
A104: System | B104: Region | C104: Island | D104: - | E104: 2026-01-05T04:00:00 | F104: 1274.843396 | G104: 20.4856861 | H104: 0.0002083333333 | I104: 0.002920594711 | K104: 2026-04-11T09:00:00 | L104: 1308.115131 | M104: 0
A105: System | B105: Region | C105: Island | D105: - | E105: 2026-01-05T05:00:00 | F105: 1274.925882 | G105: 20.52456871 | H105: 0 | I105: 0 | K105: 2026-04-12T09:00:00 | L105: 1130.254799 | M105: 0
A106: System | B106: Region | C106: Island | D106: - | E106: 2026-01-05T06:00:00 | F106: 1304.785005 | G106: 26.9572775 | H106: 0 | I106: 0 | K106: 2026-04-13T07:00:00 | L106: 1230.174565 | M106: 0
A107: System | B107: Region | C107: Island | D107: - | E107: 2026-01-05T07:00:00 | F107: 1400.116906 | G107: 28.94651034 | H107: 0 | I107: 0 | K107: 2026-04-14T07:00:00 | L107: 1129.04889 | M107: 0
A108: System | B108: Region | C108: Island | D108: - | E108: 2026-01-05T08:00:00 | F108: 1440.912227 | G108: 29.77422404 | H108: 0.0002083333333 | I108: 0.02721034735 | K108: 2026-04-15T07:00:00 | L108: 1047.205132 | M108: 0
A109: System | B109: Region | C109: Island | D109: - | E109: 2026-01-05T09:00:00 | F109: 1426.005818 | G109: 29.47579776 | H109: 0 | I109: 0 | K109: 2026-04-16T20:00:00 | L109: 1428.219022 | M109: 0
A110: System | B110: Region | C110: Island | D110: - | E110: 2026-01-05T10:00:00 | F110: 1423.808969 | G110: 29.43720032 | H110: 0.0002083333333 | I110: 0.03125643848 | K110: 2026-04-17T07:00:00 | L110: 1442.057753 | M110: 0
A111: System | B111: Region | C111: Island | D111: - | E111: 2026-01-05T11:00:00 | F111: 1413.578505 | G111: 29.2210817 | H111: 0 | I111: 0 | K111: 2026-04-18T20:00:00 | L111: 1078.22805 | M111: 0
A112: System | B112: Region | C112: Island | D112: - | E112: 2026-01-05T12:00:00 | F112: 1395.697368 | G112: 28.88026812 | H112: 0.000625 | I112: 0.09857158177 | K112: 2026-04-19T09:00:00 | L112: 1219.031903 | M112: 0
A113: System | B113: Region | C113: Island | D113: - | E113: 2026-01-05T13:00:00 | F113: 1364.226726 | G113: 28.17427753 | H113: 0 | I113: 0 | K113: 2026-04-20T07:00:00 | L113: 1316.319401 | M113: 0
A114: System | B114: Region | C114: Island | D114: - | E114: 2026-01-05T14:00:00 | F114: 1337.447721 | G114: 27.63913524 | H114: 0 | I114: 0 | K114: 2026-04-21T07:00:00 | L114: 1298.31088 | M114: 0.0002083333333
A115: System | B115: Region | C115: Island | D115: - | E115: 2026-01-05T15:00:00 | F115: 1335.026914 | G115: 27.58463357 | H115: 0.0002083333333 | I115: 0.005514653172 | K115: 2026-04-22T07:00:00 | L115: 1276.18412 | M115: 0
A116: System | B116: Region | C116: Island | D116: - | E116: 2026-01-05T16:00:00 | F116: 1367.788983 | G116: 28.2664625 | H116: 0.0004166666667 | I116: 0.06062129075 | K116: 2026-04-23T07:00:00 | L116: 1140.888632 | M116: 0
A117: System | B117: Region | C117: Island | D117: - | E117: 2026-01-05T17:00:00 | F117: 1454.506755 | G117: 30.04933255 | H117: 0.0002083333333 | I117: 0.05318282807 | K117: 2026-04-24T07:00:00 | L117: 1111.354255 | M117: 0
A118: System | B118: Region | C118: Island | D118: - | E118: 2026-01-05T18:00:00 | F118: 1450.582406 | G118: 29.9498092 | H118: 0.0002083333333 | I118: 0.06947707508 | K118: 2026-04-25T11:00:00 | L118: 1152.693921 | M118: 0
A119: System | B119: Region | C119: Island | D119: - | E119: 2026-01-05T19:00:00 | F119: 1446.817252 | G119: 29.89734205 | H119: 0 | I119: 0 | K119: 2026-04-26T11:00:00 | L119: 1120.418481 | M119: 0
A120: System | B120: Region | C120: Island | D120: - | E120: 2026-01-05T20:00:00 | F120: 1439.290293 | G120: 29.78445875 | H120: 0 | I120: 0 | K120: 2026-04-27T20:00:00 | L120: 1072.457534 | M120: 0
A121: System | B121: Region | C121: Island | D121: - | E121: 2026-01-05T21:00:00 | F121: 1423.532387 | G121: 29.4782942 | H121: 0.000625 | I121: 0.08153913366 | K121: 2026-04-28T07:00:00 | L121: 1161.244752 | M121: 0
A122: System | B122: Region | C122: Island | D122: - | E122: 2026-01-05T22:00:00 | F122: 1383.692027 | G122: 28.64433496 | H122: 0 | I122: 0 | K122: 2026-04-29T07:00:00 | L122: 1123.587165 | M122: 0
A123: System | B123: Region | C123: Island | D123: - | E123: 2026-01-05T23:00:00 | F123: 1305.366086 | G123: 21.25457345 | H123: 0 | I123: 0 | K123: 2026-04-30T08:00:00 | L123: 1205.407036 | M123: 0
A124: System | B124: Region | C124: Island | D124: - | E124: 2026-01-06 | F124: 1229.400102 | G124: 28.07000355 | H124: 0 | I124: 0 | K124: 2026-05-01T07:00:00 | L124: 1253.879718 | M124: 0
A125: System | B125: Region | C125: Island | D125: - | E125: 2026-01-06T01:00:00 | F125: 1185.618696 | G125: 27.60861949 | H125: 0 | I125: 0 | K125: 2026-05-02T09:00:00 | L125: 1091.08534 | M125: 0
A126: System | B126: Region | C126: Island | D126: - | E126: 2026-01-06T02:00:00 | F126: 1200.118427 | G126: 27.75852178 | H126: 0 | I126: 0 | K126: 2026-05-03T09:00:00 | L126: 1042.078841 | M126: 0
A127: System | B127: Region | C127: Island | D127: - | E127: 2026-01-06T03:00:00 | F127: 1216.781473 | G127: 28.00839009 | H127: 0 | I127: 0 | K127: 2026-05-04T07:00:00 | L127: 1031.475798 | M127: 0
A128: System | B128: Region | C128: Island | D128: - | E128: 2026-01-06T04:00:00 | F128: 1240.221344 | G128: 28.19516947 | H128: 0 | I128: 0 | K128: 2026-05-05T07:00:00 | L128: 996.1416337 | M128: 0
A129: System | B129: Region | C129: Island | D129: - | E129: 2026-01-06T05:00:00 | F129: 1293.50436 | G129: 28.79954739 | H129: 0 | I129: 0 | K129: 2026-05-06T07:00:00 | L129: 981.7665692 | M129: 0
A130: System | B130: Region | C130: Island | D130: - | E130: 2026-01-06T06:00:00 | F130: 1361.570716 | G130: 30.0176868 | H130: 0 | I130: 0 | K130: 2026-05-07T07:00:00 | L130: 1029.524987 | M130: 0
A131: System | B131: Region | C131: Island | D131: - | E131: 2026-01-06T07:00:00 | F131: 1478.858479 | G131: 30.9570702 | H131: 0 | I131: 0 | K131: 2026-05-08T09:00:00 | L131: 1197.930299 | M131: 0
A132: System | B132: Region | C132: Island | D132: - | E132: 2026-01-06T08:00:00 | F132: 1566.494323 | G132: 32.22492905 | H132: 0 | I132: 0 | K132: 2026-05-09T09:00:00 | L132: 1117.24878 | M132: 0
A133: System | B133: Region | C133: Island | D133: - | E133: 2026-01-06T09:00:00 | F133: 1581.955899 | G133: 32.55801357 | H133: 0.0004166666667 | I133: 0.1011872208 | K133: 2026-05-10T09:00:00 | L133: =MAX(OFFSET($F$4:$F$27,(ROW()-4)*24,0)) -> 1141.81174 | M133: =VLOOKUP(L133,OFFSET($F$4:$H$27,(ROW()-4)*24,0),3,FALSE) -> 0
A134: System | B134: Region | C134: Island | D134: - | E134: 2026-01-06T10:00:00 | F134: 1579.738064 | G134: 32.41135395 | H134: 0.000625 | I134: 0.07658534167 | K134: 2026-05-11T08:00:00 | L134: 1035.645684 | M134: 0
A135: System | B135: Region | C135: Island | D135: - | E135: 2026-01-06T11:00:00 | F135: 1573.365147 | G135: 32.32962966 | H135: 0.0002083333333 | I135: 0.005937501685 | K135: 2026-05-12T07:00:00 | L135: 1118.368333 | M135: 0
A136: System | B136: Region | C136: Island | D136: - | E136: 2026-01-06T12:00:00 | F136: 1565.368588 | G136: 32.1853499 | H136: 0.0004166666667 | I136: 0.1114737304 | K136: 2026-05-13T20:00:00 | L136: 1074.240443 | M136: 0
A137: System | B137: Region | C137: Island | D137: - | E137: 2026-01-06T13:00:00 | F137: 1548.039068 | G137: 31.91389426 | H137: 0.000625 | I137: 0.1663688627 | K137: 2026-05-14T07:00:00 | L137: 1078.145512 | M137: 0
A138: System | B138: Region | C138: Island | D138: - | E138: 2026-01-06T14:00:00 | F138: 1552.748337 | G138: 31.96274214 | H138: 0 | I138: 0 | K138: 2026-05-15T07:00:00 | L138: 991.9024994 | M138: 0
A139: System | B139: Region | C139: Island | D139: - | E139: 2026-01-06T15:00:00 | F139: 1565.128299 | G139: 32.14905743 | H139: 0.0004166666667 | I139: 0.1519888251 | K139: 2026-05-16T09:00:00 | L139: 824.9528056 | M139: 0
A140: System | B140: Region | C140: Island | D140: - | E140: 2026-01-06T16:00:00 | F140: 1616.646959 | G140: 33.02987309 | H140: 0 | I140: 0 | K140: 2026-05-17T09:00:00 | L140: 892.523442 | M140: 0
A141: System | B141: Region | C141: Island | D141: - | E141: 2026-01-06T17:00:00 | F141: 1691.223558 | G141: 34.62451703 | H141: 0.001666666667 | I141: 0.08597985421 | K141: 2026-05-18T11:00:00 | L141: 980.1895537 | M141: 0
A142: System | B142: Region | C142: Island | D142: - | E142: 2026-01-06T18:00:00 | F142: 1684.077354 | G142: 34.42904685 | H142: 0.001666666667 | I142: 0.1444682639 | K142: 2026-05-19T07:00:00 | L142: 947.4899757 | M142: 0
A143: System | B143: Region | C143: Island | D143: - | E143: 2026-01-06T19:00:00 | F143: 1664.229933 | G143: 34.03687826 | H143: 0.0008333333333 | I143: 0.09282144242 | K143: 2026-05-20T20:00:00 | L143: 836.828933 | M143: 0
A144: System | B144: Region | C144: Island | D144: - | E144: 2026-01-06T20:00:00 | F144: 1650.408623 | G144: 33.76849279 | H144: 0.000625 | I144: 0.07691456324 | K144: 2026-05-21T07:00:00 | L144: 885.6807181 | M144: 0
A145: System | B145: Region | C145: Island | D145: - | E145: 2026-01-06T21:00:00 | F145: 1618.597001 | G145: 33.1939415 | H145: 0.0008333333333 | I145: 0.1414200372 | K145: 2026-05-22T07:00:00 | L145: 894.6724587 | M145: 0
A146: System | B146: Region | C146: Island | D146: - | E146: 2026-01-06T22:00:00 | F146: 1562.462786 | G146: 32.17471045 | H146: 0.00125 | I146: 0.1748101634 | K146: 2026-05-23T11:00:00 | L146: 908.8846979 | M146: 0
A147: System | B147: Region | C147: Island | D147: - | E147: 2026-01-06T23:00:00 | F147: 1466.132467 | G147: 30.25068225 | H147: 0.000625 | I147: 0.09583896106 | K147: 2026-05-24T09:00:00 | L147: 948.6973351 | M147: 0
A148: System | B148: Region | C148: Island | D148: - | E148: 2026-01-07 | F148: 1372.778284 | G148: 29.55984225 | H148: 0 | I148: 0 | K148: 2026-05-25T07:00:00 | L148: 895.4957344 | M148: 0
A149: System | B149: Region | C149: Island | D149: - | E149: 2026-01-07T01:00:00 | F149: 1352.141255 | G149: 29.44259057 | H149: 0.0002083333333 | I149: 0.01739127091 | K149: 2026-05-26T07:00:00 | L149: 812.9798738 | M149: 0
A150: System | B150: Region | C150: Island | D150: - | E150: 2026-01-07T02:00:00 | F150: 1338.458989 | G150: 29.38088582 | H150: 0.000625 | I150: 0.03797475314 | K150: 2026-05-27T09:00:00 | L150: 827.0659691 | M150: 0
A151: System | B151: Region | C151: Island | D151: - | E151: 2026-01-07T03:00:00 | F151: 1338.434672 | G151: 29.30894627 | H151: 0 | I151: 0 | K151: 2026-05-28T09:00:00 | L151: 837.9842716 | M151: 0
A152: System | B152: Region | C152: Island | D152: - | E152: 2026-01-07T04:00:00 | F152: 1348.362401 | G152: 29.37988601 | H152: 0 | I152: 0 | K152: 2026-05-29T11:00:00 | L152: 889.6815374 | M152: 0
A153: System | B153: Region | C153: Island | D153: - | E153: 2026-01-07T05:00:00 | F153: 1365.147244 | G153: 29.47221326 | H153: 0.0002083333333 | I153: 0.006916180735 | K153: 2026-05-30T09:00:00 | L153: 842.8266016 | M153: 0
A154: System | B154: Region | C154: Island | D154: - | E154: 2026-01-07T06:00:00 | F154: 1415.648672 | G154: 30.49875715 | H154: 0.0004166666667 | I154: 0.05557844092 | K154: 2026-05-31T11:00:00 | L154: 789.2482688 | M154: 0
A155: System | B155: Region | C155: Island | D155: - | E155: 2026-01-07T07:00:00 | F155: 1528.554222 | G155: 31.85345921 | H155: 0.0004166666667 | I155: 0.006155287604 | K155: 2026-06-01T07:00:00 | L155: 913.4337196 | M155: 0
A156: System | B156: Region | C156: Island | D156: - | E156: 2026-01-07T08:00:00 | F156: 1585.490616 | G156: 32.78387521 | H156: 0.0002083333333 | I156: 0.0004355797193 | K156: 2026-06-02T07:00:00 | L156: 950.794869 | M156: 0
A157: System | B157: Region | C157: Island | D157: - | E157: 2026-01-07T09:00:00 | F157: 1595.181021 | G157: 32.92232922 | H157: 0.0002083333333 | I157: 0.01351884243 | K157: 2026-06-03T07:00:00 | L157: 893.5376025 | M157: 0
A158: System | B158: Region | C158: Island | D158: - | E158: 2026-01-07T10:00:00 | F158: 1582.236504 | G158: 32.67682068 | H158: 0 | I158: 0 | K158: 2026-06-04T07:00:00 | L158: 907.5423196 | M158: 0
A159: System | B159: Region | C159: Island | D159: - | E159: 2026-01-07T11:00:00 | F159: 1567.492117 | G159: 32.41313024 | H159: 0 | I159: 0 | K159: 2026-06-05T07:00:00 | L159: 906.6552328 | M159: 0
A160: System | B160: Region | C160: Island | D160: - | E160: 2026-01-07T12:00:00 | F160: 1564.300839 | G160: 32.37911664 | H160: 0.0002083333333 | I160: 0.01098045527 | K160: 2026-06-06T10:00:00 | L160: 856.7731834 | M160: 0
A161: System | B161: Region | C161: Island | D161: - | E161: 2026-01-07T13:00:00 | F161: 1536.807397 | G161: 31.92079322 | H161: 0 | I161: 0 | K161: 2026-06-07T11:00:00 | L161: 876.7081408 | M161: 0
A162: System | B162: Region | C162: Island | D162: - | E162: 2026-01-07T14:00:00 | F162: 1519.345289 | G162: 31.60353617 | H162: 0.0004166666667 | I162: 0.08548355376 | K162: 2026-06-08T07:00:00 | L162: 941.9334013 | M162: 0
A163: System | B163: Region | C163: Island | D163: - | E163: 2026-01-07T15:00:00 | F163: 1526.134618 | G163: 31.69741629 | H163: 0 | I163: 0 | K163: 2026-06-09T07:00:00 | L163: 866.819084 | M163: 0
A164: System | B164: Region | C164: Island | D164: - | E164: 2026-01-07T16:00:00 | F164: 1562.608272 | G164: 32.324953 | H164: 0 | I164: 0 | K164: 2026-06-10T07:00:00 | L164: 804.0016412 | M164: 0
A165: System | B165: Region | C165: Island | D165: - | E165: 2026-01-07T17:00:00 | F165: 1635.649754 | G165: 33.54306215 | H165: 0.000625 | I165: 0.08777703861 | K165: 2026-06-11T07:00:00 | L165: 791.518366 | M165: 0
A166: System | B166: Region | C166: Island | D166: - | E166: 2026-01-07T18:00:00 | F166: 1620.965248 | G166: 33.3040398 | H166: 0.0002083333333 | I166: 0.00230717177 | K166: 2026-06-12T11:00:00 | L166: 793.167656 | M166: 0
A167: System | B167: Region | C167: Island | D167: - | E167: 2026-01-07T19:00:00 | F167: 1598.415368 | G167: 32.86100063 | H167: 0.0002083333333 | I167: 0.01023658282 | K167: 2026-06-13T16:00:00 | L167: 839.8261125 | M167: 0
A168: System | B168: Region | C168: Island | D168: - | E168: 2026-01-07T20:00:00 | F168: 1581.240248 | G168: 32.58347729 | H168: 0.0004166666667 | I168: 0.06621151147 | K168: 2026-06-14T10:00:00 | L168: 936.6765744 | M168: 0
A169: System | B169: Region | C169: Island | D169: - | E169: 2026-01-07T21:00:00 | F169: 1553.642101 | G169: 32.16478716 | H169: 0.0002083333333 | I169: 0.05449143889 | K169: 2026-06-15T08:00:00 | L169: 937.5070153 | M169: 0
A170: System | B170: Region | C170: Island | D170: - | E170: 2026-01-07T22:00:00 | F170: 1503.060204 | G170: 31.41249144 | H170: 0.0002083333333 | I170: 0.04779096604 | K170: 2026-06-16T07:00:00 | L170: 845.8318042 | M170: 0
A171: System | B171: Region | C171: Island | D171: - | E171: 2026-01-07T23:00:00 | F171: 1428.81697 | G171: 29.94691711 | H171: 0.0002083333333 | I171: 0.02445962629 | K171: 2026-06-17T11:00:00 | L171: 895.6690206 | M171: 0
A172: System | B172: Region | C172: Island | D172: - | E172: 2026-01-08 | F172: 1361.864882 | G172: 28.40956214 | H172: 0.000625 | I172: 0.06080205344 | K172: 2026-06-18T07:00:00 | L172: 825.7039873 | M172: 0
A173: System | B173: Region | C173: Island | D173: - | E173: 2026-01-08T01:00:00 | F173: 1321.169527 | G173: 27.94608176 | H173: 0 | I173: 0 | K173: 2026-06-19T08:00:00 | L173: 747.8301773 | M173: 0
A174: System | B174: Region | C174: Island | D174: - | E174: 2026-01-08T02:00:00 | F174: 1318.643783 | G174: 27.94358306 | H174: 0 | I174: 0 | K174: 2026-06-20T11:00:00 | L174: 745.829682 | M174: 0
A175: System | B175: Region | C175: Island | D175: - | E175: 2026-01-08T03:00:00 | F175: 1318.838829 | G175: 27.8970853 | H175: 0 | I175: 0 | K175: 2026-06-21T10:00:00 | L175: 738.0702572 | M175: 0
A176: System | B176: Region | C176: Island | D176: - | E176: 2026-01-08T04:00:00 | F176: 1337.443546 | G176: 28.15096301 | H176: 0 | I176: 0 | K176: 2026-06-22T11:00:00 | L176: 768.5802334 | M176: 0
A177: System | B177: Region | C177: Island | D177: - | E177: 2026-01-08T05:00:00 | F177: 1356.920545 | G177: 28.39051577 | H177: 0.0002083333333 | I177: 0.02043923755 | K177: 2026-06-23T21:00:00 | L177: 808.2733768 | M177: 0
A178: System | B178: Region | C178: Island | D178: - | E178: 2026-01-08T06:00:00 | F178: 1409.583078 | G178: 30.14527273 | H178: 0.0002083333333 | I178: 0.02533834049 | K178: 2026-06-24T09:00:00 | L178: 881.7689505 | M178: 0
A179: System | B179: Region | C179: Island | D179: - | E179: 2026-01-08T07:00:00 | F179: 1504.57286 | G179: 31.18596366 | H179: 0 | I179: 0 | K179: 2026-06-25T10:00:00 | L179: 903.6724244 | M179: 0
A180: System | B180: Region | C180: Island | D180: - | E180: 2026-01-08T08:00:00 | F180: 1579.964096 | G180: 32.29932722 | H180: 0 | I180: 0 | K180: 2026-06-26T09:00:00 | L180: 893.627652 | M180: 0
A181: System | B181: Region | C181: Island | D181: - | E181: 2026-01-08T09:00:00 | F181: 1596.313895 | G181: 32.62443885 | H181: 0.001041666667 | I181: 0.1911384633 | K181: 2026-06-27T10:00:00 | L181: 849.8923073 | M181: 0
A182: System | B182: Region | C182: Island | D182: - | E182: 2026-01-08T10:00:00 | F182: 1598.694242 | G182: 32.62759852 | H182: 0.0002083333333 | I182: 0.0643928907 | K182: 2026-06-28T11:00:00 | L182: 755.6079252 | M182: 0
A183: System | B183: Region | C183: Island | D183: - | E183: 2026-01-08T11:00:00 | F183: 1608.460427 | G183: 32.79674107 | H183: 0.0008333333333 | I183: 0.02795202364 | K183: 2026-06-29T11:00:00 | L183: 797.1426222 | M183: 0
A184: System | B184: Region | C184: Island | D184: - | E184: 2026-01-08T12:00:00 | F184: 1605.318519 | G184: 32.73970623 | H184: 0.0004166666667 | I184: 0.0026743152 | K184: 2026-06-30T09:00:00 | L184: 788.2788879 | M184: 0
A185: System | B185: Region | C185: Island | D185: - | E185: 2026-01-08T13:00:00 | F185: 1580.877742 | G185: 32.32773769 | H185: 0.0002083333333 | I185: 0.05928128317 | K185: 2026-07-01T11:00:00 | L185: 726.0488548 | M185: 0
A186: System | B186: Region | C186: Island | D186: - | E186: 2026-01-08T14:00:00 | F186: 1561.850348 | G186: 31.98993456 | H186: 0.0002083333333 | I186: 0.0259658335 | K186: 2026-07-02T16:00:00 | L186: 745.01051 | M186: 0
A187: System | B187: Region | C187: Island | D187: - | E187: 2026-01-08T15:00:00 | F187: 1565.276403 | G187: 32.08511075 | H187: 0 | I187: 0 | K187: 2026-07-03T11:00:00 | L187: 760.5482933 | M187: 0
A188: System | B188: Region | C188: Island | D188: - | E188: 2026-01-08T16:00:00 | F188: 1580.98429 | G188: 32.35937496 | H188: 0.0002083333333 | I188: 0.002305778126 | K188: 2026-07-04T11:00:00 | L188: 681.1586883 | M188: 0
A189: System | B189: Region | C189: Island | D189: - | E189: 2026-01-08T17:00:00 | F189: 1667.729779 | G189: 34.03660987 | H189: 0.00125 | I189: 0.09756836103 | K189: 2026-07-05T11:00:00 | L189: 712.4469266 | M189: 0
A190: System | B190: Region | C190: Island | D190: - | E190: 2026-01-08T18:00:00 | F190: 1658.150117 | G190: 33.85759092 | H190: 0.001666666667 | I190: 0.2044516185 | K190: 2026-07-06T11:00:00 | L190: 847.6805708 | M190: 0
A191: System | B191: Region | C191: Island | D191: - | E191: 2026-01-08T19:00:00 | F191: 1632.655265 | G191: 33.38464825 | H191: 0.0004166666667 | I191: 0.03246362464 | K191: 2026-07-07T10:00:00 | L191: 824.9177742 | M191: 0
A192: System | B192: Region | C192: Island | D192: - | E192: 2026-01-08T20:00:00 | F192: 1619.018297 | G192: 33.09633987 | H192: 0.0004166666667 | I192: 0.04759105701 | K192: 2026-07-08T11:00:00 | L192: 765.622674 | M192: 0
A193: System | B193: Region | C193: Island | D193: - | E193: 2026-01-08T21:00:00 | F193: 1592.092087 | G193: 32.6340538 | H193: 0.0004166666667 | I193: 0.07792723177 | K193: 2026-07-09T11:00:00 | L193: 702.5973511 | M193: 0
A194: System | B194: Region | C194: Island | D194: - | E194: 2026-01-08T22:00:00 | F194: 1546.926614 | G194: 31.80253208 | H194: 0.000625 | I194: 0.108584087 | K194: 2026-07-10T10:00:00 | L194: 728.2034554 | M194: 0
A195: System | B195: Region | C195: Island | D195: - | E195: 2026-01-08T23:00:00 | F195: 1463.877451 | G195: 29.42825028 | H195: 0 | I195: 0 | K195: 2026-07-11T11:00:00 | L195: 765.6219671 | M195: 0
A196: System | B196: Region | C196: Island | D196: - | E196: 2026-01-09 | F196: 1415.739989 | G196: 30.21660496 | H196: 0.0002083333333 | I196: 0.01824941818 | K196: 2026-07-12T09:00:00 | L196: 739.8059403 | M196: 0
A197: System | B197: Region | C197: Island | D197: - | E197: 2026-01-09T01:00:00 | F197: 1398.095229 | G197: 30.10938949 | H197: 0.0004166666667 | I197: 0.03651179901 | K197: 2026-07-13T11:00:00 | L197: =MAX(OFFSET($F$4:$F$27,(ROW()-4)*24,0)) -> 818.8945325 | M197: =VLOOKUP(L197,OFFSET($F$4:$H$27,(ROW()-4)*24,0),3,FALSE) -> 0
A198: System | B198: Region | C198: Island | D198: - | E198: 2026-01-09T02:00:00 | F198: 1400.337185 | G198: 30.11822191 | H198: 0.0002083333333 | I198: 0.01639684303 | K198: 2026-07-14T11:00:00 | L198: 731.9631352 | M198: 0
A199: System | B199: Region | C199: Island | D199: - | E199: 2026-01-09T03:00:00 | F199: 1409.847971 | G199: 30.1915811 | H199: 0 | I199: 0 | K199: 2026-07-15T12:00:00 | L199: 674.3552061 | M199: 0
A200: System | B200: Region | C200: Island | D200: - | E200: 2026-01-09T04:00:00 | F200: 1424.737817 | G200: 30.28786067 | H200: 0 | I200: 0 | K200: 2026-07-16T11:00:00 | L200: 757.6083592 | M200: 0
A201: System | B201: Region | C201: Island | D201: - | E201: 2026-01-09T05:00:00 | F201: 1448.567176 | G201: 30.44100185 | H201: 0.0002083333333 | I201: 0.0246348793 | K201: 2026-07-17T10:00:00 | L201: 733.9494946 | M201: 0
A202: System | B202: Region | C202: Island | D202: - | E202: 2026-01-09T06:00:00 | F202: 1504.725907 | G202: 31.58334981 | H202: 0 | I202: 0 | K202: 2026-07-18T11:00:00 | L202: 732.9408343 | M202: 0
... 8561 more rows

Sheet Run 7
A3: Parent Name | B3: Collection | C3: Child Name | D3: Category | E3: Datetime | F3: Load (MW) | G3: Transmission Losses (MW) | H3: Unserved Energy Hours (h) | I3: Unserved Energy (MW) | K3: Daily Peak | L3: Daily Peak Load | M3: Average Unserved Energy Hours
A4: System | B4: Region | C4: Island | D4: - | E4: 2026-01-01 | F4: 1445.894118 | G4: 30.43540549 | H4: 0 | I4: 0 | K4: 2026-01-01T17:00:00 | L4: =MAX(OFFSET($F$4:$F$27,(ROW()-4)*24,0)) -> 1603.424583 | M4: =VLOOKUP(L4,OFFSET($F$4:$H$27,(ROW()-4)*24,0),3,FALSE) -> 0.0002083333333 | P4: LOLE | Q4: =SUM(M4:M368) -> 0.094375
A5: System | B5: Region | C5: Island | D5: - | E5: 2026-01-01T01:00:00 | F5: 1413.235578 | G5: 30.26096091 | H5: 0 | I5: 0 | K5: 2026-01-02T17:00:00 | L5: =MAX(OFFSET($F$4:$F$27,(ROW()-4)*24,0)) -> 1476.767476 | M5: =VLOOKUP(L5,OFFSET($F$4:$H$27,(ROW()-4)*24,0),3,FALSE) -> 0.0002083333333 | P5: LOLH | Q5: =SUM(H4:H8763) -> 0.5822916667
A6: System | B6: Region | C6: Island | D6: - | E6: 2026-01-01T02:00:00 | F6: 1390.380475 | G6: 30.13181965 | H6: 0 | I6: 0 | K6: 2026-01-03T20:00:00 | L6: 1692.579261 | M6: 0.004375 | P6: EUE | Q6: =SUM(I4:I8763) -> 62.1691884
A7: System | B7: Region | C7: Island | D7: - | E7: 2026-01-01T03:00:00 | F7: 1375.813633 | G7: 30.07204574 | H7: 0 | I7: 0 | K7: 2026-01-04T17:00:00 | L7: 1694.936566 | M7: 0.002291666667 | P7: Peak | Q7: =MAX(F4:F8763) -> 1756.81584
A8: System | B8: Region | C8: Island | D8: - | E8: 2026-01-01T04:00:00 | F8: 1374.344832 | G8: 30.02083466 | H8: 0.0002083333333 | I8: 0.04293054604 | K8: 2026-01-05T17:00:00 | L8: 1457.991896 | M8: 0.0004166666667 | P8: Loss @ Peak | Q8: =VLOOKUP(Q7,F4:G8763,2,FALSE) -> 38.46871863
A9: System | B9: Region | C9: Island | D9: - | E9: 2026-01-01T05:00:00 | F9: 1388.591668 | G9: 30.10305038 | H9: 0 | I9: 0 | K9: 2026-01-06T17:00:00 | L9: 1694.58506 | M9: 0.001458333333 | P9: Peak with Losses | Q9: =Q7+Q8 -> 1795.284559
A10: System | B10: Region | C10: Island | D10: - | E10: 2026-01-01T06:00:00 | F10: 1417.172103 | G10: 30.79278751 | H10: 0 | I10: 0 | K10: 2026-01-07T17:00:00 | L10: 1639.11462 | M10: 0.0004166666667 | P10: Peak Losses | Q10: =MAX(G4:G8763) -> 42.3608566
A11: System | B11: Region | C11: Island | D11: - | E11: 2026-01-01T07:00:00 | F11: 1456.197698 | G11: 31.19674002 | H11: 0 | I11: 0 | K11: 2026-01-08T17:00:00 | L11: 1670.719988 | M11: 0.002291666667 | P11: Firm Capacity | Q11: 2086.986
A12: System | B12: Region | C12: Island | D12: - | E12: 2026-01-01T08:00:00 | F12: 1487.421546 | G12: 31.60345302 | H12: 0.0002083333333 | I12: 0.00383792852 | K12: 2026-01-09T08:00:00 | L12: 1694.27648 | M12: 0.003125 | P12: Reserve Margin | Q12: =Q11-Q7 -> 330.1701596
A13: System | B13: Region | C13: Island | D13: - | E13: 2026-01-01T09:00:00 | F13: 1496.988537 | G13: 31.74650256 | H13: 0.0004166666667 | I13: 0.03277703979 | K13: 2026-01-10T17:00:00 | L13: 1537.617961 | M13: 0 | P13: Reserve Margin % | Q13: =Q12/Q7 -> 0.1879366932
A14: System | B14: Region | C14: Island | D14: - | E14: 2026-01-01T10:00:00 | F14: 1507.846708 | G14: 31.91809979 | H14: 0.0002083333333 | I14: 0.0451063739 | K14: 2026-01-11T20:00:00 | L14: 1629.261776 | M14: 0.0008333333333 | P14: Reserve Magin w/Loss | Q14: =Q11-Q9 -> 291.7014409
A15: System | B15: Region | C15: Island | D15: - | E15: 2026-01-01T11:00:00 | F15: 1525.497729 | G15: 32.12760853 | H15: 0 | I15: 0 | K15: 2026-01-12T08:00:00 | L15: 1663.725929 | M15: 0.001041666667 | P15: Reserve Margin % w/ Loss | Q15: =Q14/Q9 -> 0.1624820085
A16: System | B16: Region | C16: Island | D16: - | E16: 2026-01-01T12:00:00 | F16: 1534.595156 | G16: 32.33957028 | H16: 0 | I16: 0 | K16: 2026-01-13T18:00:00 | L16: 1646.601887 | M16: 0.00125
A17: System | B17: Region | C17: Island | D17: - | E17: 2026-01-01T13:00:00 | F17: 1534.640612 | G17: 32.3271795 | H17: 0 | I17: 0 | K17: 2026-01-14T08:00:00 | L17: 1707.751443 | M17: 0.001041666667 | P17: Checks
A18: System | B18: Region | C18: Island | D18: - | E18: 2026-01-01T14:00:00 | F18: 1534.599361 | G18: 32.27948337 | H18: 0.0002083333333 | I18: 0.01688871036 | K18: 2026-01-15T08:00:00 | L18: 1572.635243 | M18: 0.0002083333333 | P18: Island Energy (Original) | Q18: 8357
A19: System | B19: Region | C19: Island | D19: - | E19: 2026-01-01T15:00:00 | F19: 1539.453505 | G19: 32.36540651 | H19: 0.000625 | I19: 0.1122274487 | K19: 2026-01-16T17:00:00 | L19: 1486.37259 | M19: 0.0002083333333 | P19: Island Energy (Escalated) | Q19: =SUM(F4:F8763)/1000 -> 8616.028052
A20: System | B20: Region | C20: Island | D20: - | E20: 2026-01-01T16:00:00 | F20: 1556.292322 | G20: 32.60673908 | H20: 0 | I20: 0 | K20: 2026-01-17T20:00:00 | L20: 1495.37306 | M20: 0.0004166666667 | P20: Escalation Factor Check | Q20: =Q19/Q18 -> 1.030995339
A21: System | B21: Region | C21: Island | D21: - | E21: 2026-01-01T17:00:00 | F21: 1603.424583 | G21: 33.35759406 | H21: 0.0002083333333 | I21: 0.04197160257 | K21: 2026-01-18T18:00:00 | L21: 1577.309941 | M21: 0.000625
A22: System | B22: Region | C22: Island | D22: - | E22: 2026-01-01T18:00:00 | F22: 1578.194774 | G22: 32.97503553 | H22: 0.0002083333333 | I22: 0.02957559471 | K22: 2026-01-19T08:00:00 | L22: 1508.298568 | M22: 0 | P22: Island Peak (Original) | Q22: 1704
A23: System | B23: Region | C23: Island | D23: - | E23: 2026-01-01T19:00:00 | F23: 1556.84803 | G23: 32.65216258 | H23: 0 | I23: 0 | K23: 2026-01-20T18:00:00 | L23: 1419.967764 | M23: 0 | P23: Island Peak (Escalated) | Q23: =MAX(F4:F8763) -> 1756.81584
A24: System | B24: Region | C24: Island | D24: - | E24: 2026-01-01T20:00:00 | F24: 1539.494742 | G24: 32.34817486 | H24: 0.0004166666667 | I24: 0.05469104885 | K24: 2026-01-21T18:00:00 | L24: 1484.990073 | M24: 0.0002083333333 | P24: Escalation Factor Check | Q24: =Q23/Q22 -> 1.030995212
A25: System | B25: Region | C25: Island | D25: - | E25: 2026-01-01T21:00:00 | F25: 1510.255254 | G25: 31.89331737 | H25: 0.0002083333333 | I25: 0.04817901433 | K25: 2026-01-22T08:00:00 | L25: 1499.752638 | M25: 0
A26: System | B26: Region | C26: Island | D26: - | E26: 2026-01-01T22:00:00 | F26: 1469.006645 | G26: 31.29656232 | H26: 0.0004166666667 | I26: 0.0898754076 | K26: 2026-01-23T18:00:00 | L26: 1531.589826 | M26: 0.0002083333333
A27: System | B27: Region | C27: Island | D27: - | E27: 2026-01-01T23:00:00 | F27: 1392.09572 | G27: 30.16154904 | H27: 0 | I27: 0 | K27: 2026-01-24T10:00:00 | L27: 1537.350759 | M27: 0.000625
A28: System | B28: Region | C28: Island | D28: - | E28: 2026-01-02 | F28: 1312.869015 | G28: 22.46911556 | H28: 0.0002083333333 | I28: 0.004425437959 | K28: 2026-01-25T18:00:00 | L28: 1444.537986 | M28: 0.0002083333333
A29: System | B29: Region | C29: Island | D29: - | E29: 2026-01-02T01:00:00 | F29: 1257.197478 | G29: 21.24218815 | H29: 0 | I29: 0 | K29: 2026-01-26T18:00:00 | L29: 1606.556433 | M29: 0.0002083333333
A30: System | B30: Region | C30: Island | D30: - | E30: 2026-01-02T02:00:00 | F30: 1237.232875 | G30: 20.81985208 | H30: 0 | I30: 0 | K30: 2026-01-27T17:00:00 | L30: 1698.7105 | M30: 0.003125
A31: System | B31: Region | C31: Island | D31: - | E31: 2026-01-02T03:00:00 | F31: 1233.846378 | G31: 20.75204377 | H31: 0 | I31: 0 | K31: 2026-01-28T08:00:00 | L31: 1411.279994 | M31: 0.0002083333333
A32: System | B32: Region | C32: Island | D32: - | E32: 2026-01-02T04:00:00 | F32: 1242.650027 | G32: 20.9303579 | H32: 0 | I32: 0 | K32: 2026-01-29T18:00:00 | L32: 1386.48325 | M32: 0
A33: System | B33: Region | C33: Island | D33: - | E33: 2026-01-02T05:00:00 | F33: 1260.510722 | G33: 21.30960773 | H33: 0 | I33: 0 | K33: 2026-01-30T12:00:00 | L33: 1492.492352 | M33: 0
A34: System | B34: Region | C34: Island | D34: - | E34: 2026-01-02T06:00:00 | F34: 1298.134332 | G34: 27.29443127 | H34: 0 | I34: 0 | K34: 2026-01-31T18:00:00 | L34: 1447.301434 | M34: 0
A35: System | B35: Region | C35: Island | D35: - | E35: 2026-01-02T07:00:00 | F35: 1366.559462 | G35: 28.70341523 | H35: 0 | I35: 0 | K35: 2026-02-01T10:00:00 | L35: 1320.240944 | M35: 0
A36: System | B36: Region | C36: Island | D36: - | E36: 2026-01-02T08:00:00 | F36: 1404.184143 | G36: 29.45406599 | H36: 0.0002083333333 | I36: 0.05989853971 | K36: 2026-02-02T17:00:00 | L36: 1628.471501 | M36: 0.001666666667
A37: System | B37: Region | C37: Island | D37: - | E37: 2026-01-02T09:00:00 | F37: 1443.625522 | G37: 30.18663082 | H37: 0.0002083333333 | I37: 0.0243762322 | K37: 2026-02-03T18:00:00 | L37: 1530.138276 | M37: 0.0004166666667
A38: System | B38: Region | C38: Island | D38: - | E38: 2026-01-02T10:00:00 | F38: 1443.493523 | G38: 30.1633258 | H38: 0.0002083333333 | I38: 0.03107201781 | K38: 2026-02-04T08:00:00 | L38: 1605.935968 | M38: 0.0008333333333
A39: System | B39: Region | C39: Island | D39: - | E39: 2026-01-02T11:00:00 | F39: 1451.189448 | G39: 30.30170572 | H39: 0.0004166666667 | I39: 0.06566444992 | K39: 2026-02-05T08:00:00 | L39: 1651.9833 | M39: 0.000625
A40: System | B40: Region | C40: Island | D40: - | E40: 2026-01-02T12:00:00 | F40: 1442.275199 | G40: 30.17062485 | H40: 0.0004166666667 | I40: 0.09062222336 | K40: 2026-02-06T12:00:00 | L40: 1448.684822 | M40: 0.0002083333333
A41: System | B41: Region | C41: Island | D41: - | E41: 2026-01-02T13:00:00 | F41: 1419.318368 | G41: 29.77955565 | H41: 0.0002083333333 | I41: 0.0284750875 | K41: 2026-02-07T18:00:00 | L41: 1556.856651 | M41: 0
A42: System | B42: Region | C42: Island | D42: - | E42: 2026-01-02T14:00:00 | F42: 1376.458033 | G42: 28.92445975 | H42: 0 | I42: 0 | K42: 2026-02-08T19:00:00 | L42: 1585.288439 | M42: 0.0008333333333
A43: System | B43: Region | C43: Island | D43: - | E43: 2026-01-02T15:00:00 | F43: 1354.915261 | G43: 28.49564667 | H43: 0 | I43: 0 | K43: 2026-02-09T08:00:00 | L43: 1742.815765 | M43: 0.01104166667
A44: System | B44: Region | C44: Island | D44: - | E44: 2026-01-02T16:00:00 | F44: 1375.438831 | G44: 28.91555118 | H44: 0.0002083333333 | I44: 0.01859373125 | K44: 2026-02-10T08:00:00 | L44: 1691.89378 | M44: 0.00125
A45: System | B45: Region | C45: Island | D45: - | E45: 2026-01-02T17:00:00 | F45: 1476.767476 | G45: 30.7374939 | H45: 0.0002083333333 | I45: 0.03452182847 | K45: 2026-02-11T18:00:00 | L45: 1554.356686 | M45: 0.0002083333333
A46: System | B46: Region | C46: Island | D46: - | E46: 2026-01-02T18:00:00 | F46: 1460.329013 | G46: 30.45890621 | H46: 0.0002083333333 | I46: 0.03492369586 | K46: 2026-02-12T12:00:00 | L46: 1689.610645 | M46: 0.003541666667
A47: System | B47: Region | C47: Island | D47: - | E47: 2026-01-02T19:00:00 | F47: 1422.526832 | G47: 29.84272052 | H47: 0.0008333333333 | I47: 0.09055264606 | K47: 2026-02-13T08:00:00 | L47: 1553.968012 | M47: 0.0002083333333
A48: System | B48: Region | C48: Island | D48: - | E48: 2026-01-02T20:00:00 | F48: 1413.708708 | G48: 29.64843417 | H48: 0.0002083333333 | I48: 0.03083178634 | K48: 2026-02-14T18:00:00 | L48: 1513.079032 | M48: 0.0004166666667
A49: System | B49: Region | C49: Island | D49: - | E49: 2026-01-02T21:00:00 | F49: 1391.195017 | G49: 29.2388431 | H49: 0.0002083333333 | I49: 0.02649395786 | K49: 2026-02-15T18:00:00 | L49: 1497.866791 | M49: 0.0002083333333
A50: System | B50: Region | C50: Island | D50: - | E50: 2026-01-02T22:00:00 | F50: 1351.759973 | G50: 28.4257078 | H50: 0.0004166666667 | I50: 0.02323153494 | K50: 2026-02-16T18:00:00 | L50: 1510.582936 | M50: 0
A51: System | B51: Region | C51: Island | D51: - | E51: 2026-01-02T23:00:00 | F51: 1298.761409 | G51: 22.16726377 | H51: 0 | I51: 0 | K51: 2026-02-17T18:00:00 | L51: 1575.139915 | M51: 0.000625
A52: System | B52: Region | C52: Island | D52: - | E52: 2026-01-03 | F52: 1227.350285 | G52: 26.21260882 | H52: 0 | I52: 0 | K52: 2026-02-18T08:00:00 | L52: 1554.114916 | M52: 0
A53: System | B53: Region | C53: Island | D53: - | E53: 2026-01-03T01:00:00 | F53: 1182.625135 | G53: 25.43224826 | H53: 0 | I53: 0 | K53: 2026-02-19T18:00:00 | L53: 1480.427414 | M53: 0.0002083333333
A54: System | B54: Region | C54: Island | D54: - | E54: 2026-01-03T02:00:00 | F54: 1188.179859 | G54: 25.55474834 | H54: 0 | I54: 0 | K54: 2026-02-20T08:00:00 | L54: 1369.554419 | M54: 0
A55: System | B55: Region | C55: Island | D55: - | E55: 2026-01-03T03:00:00 | F55: 1192.568173 | G55: 25.61265405 | H55: 0 | I55: 0 | K55: 2026-02-21T19:00:00 | L55: 1541.901762 | M55: 0
A56: System | B56: Region | C56: Island | D56: - | E56: 2026-01-03T04:00:00 | F56: 1206.891975 | G56: 25.81643919 | H56: 0 | I56: 0 | K56: 2026-02-22T10:00:00 | L56: 1503.559915 | M56: 0.0004166666667
A57: System | B57: Region | C57: Island | D57: - | E57: 2026-01-03T05:00:00 | F57: 1223.479594 | G57: 26.18954771 | H57: 0 | I57: 0 | K57: 2026-02-23T18:00:00 | L57: 1394.570113 | M57: 0
A58: System | B58: Region | C58: Island | D58: - | E58: 2026-01-03T06:00:00 | F58: 1260.826474 | G58: 28.80455748 | H58: 0 | I58: 0 | K58: 2026-02-24T19:00:00 | L58: 1656.236661 | M58: 0
A59: System | B59: Region | C59: Island | D59: - | E59: 2026-01-03T07:00:00 | F59: 1321.330088 | G59: 29.45506724 | H59: 0 | I59: 0 | K59: 2026-02-25T08:00:00 | L59: 1656.407079 | M59: 0.004583333333
A60: System | B60: Region | C60: Island | D60: - | E60: 2026-01-03T08:00:00 | F60: 1377.04761 | G60: 30.0462218 | H60: 0 | I60: 0 | K60: 2026-02-26T08:00:00 | L60: 1482.940738 | M60: 0
A61: System | B61: Region | C61: Island | D61: - | E61: 2026-01-03T09:00:00 | F61: 1454.042719 | G61: 31.04657886 | H61: 0.000625 | I61: 0.0795843166 | K61: 2026-02-27T08:00:00 | L61: 1494.765188 | M61: 0.0002083333333
A62: System | B62: Region | C62: Island | D62: - | E62: 2026-01-03T10:00:00 | F62: 1459.323757 | G62: 31.09622679 | H62: 0 | I62: 0 | K62: 2026-02-28T19:00:00 | L62: 1582.424494 | M62: 0.0002083333333
A63: System | B63: Region | C63: Island | D63: - | E63: 2026-01-03T11:00:00 | F63: 1451.391353 | G63: 30.95076951 | H63: 0 | I63: 0 | K63: 2026-03-01T10:00:00 | L63: 1442.348475 | M63: 0.0002083333333
A64: System | B64: Region | C64: Island | D64: - | E64: 2026-01-03T12:00:00 | F64: 1460.843805 | G64: 31.09839615 | H64: 0.0002083333333 | I64: 0.04673154169 | K64: 2026-03-02T09:00:00 | L64: 1592.340925 | M64: 0.0008333333333
A65: System | B65: Region | C65: Island | D65: - | E65: 2026-01-03T13:00:00 | F65: 1460.678425 | G65: 31.10306875 | H65: 0.0004166666667 | I65: 0.04510436462 | K65: 2026-03-03T19:00:00 | L65: 1637.099701 | M65: 0.00125
A66: System | B66: Region | C66: Island | D66: - | E66: 2026-01-03T14:00:00 | F66: 1485.100408 | G66: 31.44079477 | H66: 0.0004166666667 | I66: 0.07774384855 | K66: 2026-03-04T07:00:00 | L66: 1570.59381 | M66: 0.0002083333333
A67: System | B67: Region | C67: Island | D67: - | E67: 2026-01-03T15:00:00 | F67: 1490.041126 | G67: 31.49880593 | H67: 0.0002083333333 | I67: 0.01063747554 | K67: 2026-03-05T20:00:00 | L67: 1514.147382 | M67: 0.0008333333333
A68: System | B68: Region | C68: Island | D68: - | E68: 2026-01-03T16:00:00 | F68: 1538.495217 | G68: 32.14609182 | H68: 0.0002083333333 | I68: 0.0165387902 | K68: 2026-03-06T08:00:00 | L68: 1683.659484 | M68: 0.002083333333
A69: System | B69: Region | C69: Island | D69: - | E69: 2026-01-03T17:00:00 | F69: 1677.103742 | G69: 35.29237839 | H69: 0.004375 | I69: 0.1590028784 | K69: 2026-03-07T08:00:00 | L69: =MAX(OFFSET($F$4:$F$27,(ROW()-4)*24,0)) -> 1553.328622 | M69: =VLOOKUP(L69,OFFSET($F$4:$H$27,(ROW()-4)*24,0),3,FALSE) -> 0.0004166666667
A70: System | B70: Region | C70: Island | D70: - | E70: 2026-01-03T18:00:00 | F70: 1659.742439 | G70: 35.14053631 | H70: 0.003541666667 | I70: 0.1667333153 | K70: 2026-03-08T08:00:00 | L70: 1390.884173 | M70: 0.0004166666667
A71: System | B71: Region | C71: Island | D71: - | E71: 2026-01-03T19:00:00 | F71: 1664.80981 | G71: 35.07575989 | H71: 0.003541666667 | I71: 0.2492372637 | K71: 2026-03-09T07:00:00 | L71: 1550.092028 | M71: 0.0002083333333
A72: System | B72: Region | C72: Island | D72: - | E72: 2026-01-03T20:00:00 | F72: 1692.579261 | G72: 35.52615664 | H72: 0.004375 | I72: 0.234171466 | K72: 2026-03-10T07:00:00 | L72: 1724.188904 | M72: 0.003958333333
A73: System | B73: Region | C73: Island | D73: - | E73: 2026-01-03T21:00:00 | F73: 1677.154236 | G73: 35.28876245 | H73: 0.004375 | I73: 0.2067897946 | K73: 2026-03-11T07:00:00 | L73: 1604.790851 | M73: 0.000625
A74: System | B74: Region | C74: Island | D74: - | E74: 2026-01-03T22:00:00 | F74: 1646.390851 | G74: 34.27782434 | H74: 0.002708333333 | I74: 0.2825153776 | K74: 2026-03-12T19:00:00 | L74: 1517.649299 | M74: 0.0008333333333
A75: System | B75: Region | C75: Island | D75: - | E75: 2026-01-03T23:00:00 | F75: 1577.364728 | G75: 30.64834672 | H75: 0.0004166666667 | I75: 0.1107076427 | K75: 2026-03-13T08:00:00 | L75: 1705.474067 | M75: 0.001875
A76: System | B76: Region | C76: Island | D76: - | E76: 2026-01-04 | F76: 1520.936107 | G76: 35.77071949 | H76: 0 | I76: 0 | K76: 2026-03-14T10:00:00 | L76: 1634.987573 | M76: 0.0004166666667
A77: System | B77: Region | C77: Island | D77: - | E77: 2026-01-04T01:00:00 | F77: 1432.647716 | G77: 36.36671115 | H77: 0.0002083333333 | I77: 0.03087345559 | K77: 2026-03-15T09:00:00 | L77: 1574.113161 | M77: 0.0002083333333
A78: System | B78: Region | C78: Island | D78: - | E78: 2026-01-04T02:00:00 | F78: 1417.084933 | G78: 36.58062357 | H78: 0 | I78: 0 | K78: 2026-03-16T10:00:00 | L78: 1626.115129 | M78: 0.0002083333333
A79: System | B79: Region | C79: Island | D79: - | E79: 2026-01-04T03:00:00 | F79: 1451.350595 | G79: 36.27790363 | H79: 0 | I79: 0 | K79: 2026-03-17T07:00:00 | L79: 1371.979384 | M79: 0
A80: System | B80: Region | C80: Island | D80: - | E80: 2026-01-04T04:00:00 | F80: 1470.452165 | G80: 36.10034551 | H80: 0.0002083333333 | I80: 0.03387824748 | K80: 2026-03-18T16:00:00 | L80: 1356.253166 | M80: 0
A81: System | B81: Region | C81: Island | D81: - | E81: 2026-01-04T05:00:00 | F81: 1465.604257 | G81: 36.11193234 | H81: 0.0002083333333 | I81: 0.04329036776 | K81: 2026-03-19T07:00:00 | L81: 1311.303959 | M81: 0.0004166666667
A82: System | B82: Region | C82: Island | D82: - | E82: 2026-01-04T06:00:00 | F82: 1502.442444 | G82: 34.07159029 | H82: 0.0004166666667 | I82: 0.09429601278 | K82: 2026-03-20T07:00:00 | L82: 1445.002742 | M82: 0
A83: System | B83: Region | C83: Island | D83: - | E83: 2026-01-04T07:00:00 | F83: 1535.944746 | G83: 34.41501703 | H83: 0 | I83: 0 | K83: 2026-03-21T08:00:00 | L83: 1323.645481 | M83: 0.0002083333333
A84: System | B84: Region | C84: Island | D84: - | E84: 2026-01-04T08:00:00 | F84: 1564.530656 | G84: 34.83143495 | H84: 0 | I84: 0 | K84: 2026-03-22T10:00:00 | L84: 1437.120642 | M84: 0
A85: System | B85: Region | C85: Island | D85: - | E85: 2026-01-04T09:00:00 | F85: 1643.132388 | G85: 36.46827926 | H85: 0.001875 | I85: 0.156994176 | K85: 2026-03-23T19:00:00 | L85: 1548.622852 | M85: 0
A86: System | B86: Region | C86: Island | D86: - | E86: 2026-01-04T10:00:00 | F86: 1657.149335 | G86: 36.88076445 | H86: 0.002916666667 | I86: 0.09658652598 | K86: 2026-03-24T07:00:00 | L86: 1498.631245 | M86: 0.0002083333333
A87: System | B87: Region | C87: Island | D87: - | E87: 2026-01-04T11:00:00 | F87: 1638.984633 | G87: 36.39406865 | H87: 0.001458333333 | I87: 0.03517877528 | K87: 2026-03-25T07:00:00 | L87: 1464.564573 | M87: 0.0002083333333
A88: System | B88: Region | C88: Island | D88: - | E88: 2026-01-04T12:00:00 | F88: 1613.919779 | G88: 35.7769304 | H88: 0.001458333333 | I88: 0.03665222691 | K88: 2026-03-26T07:00:00 | L88: 1425.348704 | M88: 0
A89: System | B89: Region | C89: Island | D89: - | E89: 2026-01-04T13:00:00 | F89: 1597.124468 | G89: 35.40277943 | H89: 0.0004166666667 | I89: 0.0356025311 | K89: 2026-03-27T07:00:00 | L89: 1208.894824 | M89: 0
A90: System | B90: Region | C90: Island | D90: - | E90: 2026-01-04T14:00:00 | F90: 1593.893898 | G90: 35.34087134 | H90: 0.0008333333333 | I90: 0.07932919305 | K90: 2026-03-28T19:00:00 | L90: 1187.838061 | M90: 0
A91: System | B91: Region | C91: Island | D91: - | E91: 2026-01-04T15:00:00 | F91: 1605.942859 | G91: 35.59032377 | H91: 0.000625 | I91: 0.01369192589 | K91: 2026-03-29T20:00:00 | L91: 1246.019981 | M91: 0
A92: System | B92: Region | C92: Island | D92: - | E92: 2026-01-04T16:00:00 | F92: 1639.216638 | G92: 36.32412697 | H92: 0.0002083333333 | I92: 0.01333660244 | K92: 2026-03-30T07:00:00 | L92: 1389.867998 | M92: 0
A93: System | B93: Region | C93: Island | D93: - | E93: 2026-01-04T17:00:00 | F93: 1694.936566 | G93: 37.10267147 | H93: 0.002291666667 | I93: 0.1235754237 | K93: 2026-03-31T07:00:00 | L93: 1350.984728 | M93: 0
A94: System | B94: Region | C94: Island | D94: - | E94: 2026-01-04T18:00:00 | F94: 1675.073354 | G94: 36.69529549 | H94: 0.0008333333333 | I94: 0.1154132501 | K94: 2026-04-01T07:00:00 | L94: 1262.875771 | M94: 0
A95: System | B95: Region | C95: Island | D95: - | E95: 2026-01-04T19:00:00 | F95: 1655.148006 | G95: 36.38023302 | H95: 0.0004166666667 | I95: 0.02583509709 | K95: 2026-04-02T20:00:00 | L95: 1293.89119 | M95: 0.0004166666667
A96: System | B96: Region | C96: Island | D96: - | E96: 2026-01-04T20:00:00 | F96: 1654.051665 | G96: 36.32858613 | H96: 0.001041666667 | I96: 0.02032803695 | K96: 2026-04-03T08:00:00 | L96: 1231.466852 | M96: 0
A97: System | B97: Region | C97: Island | D97: - | E97: 2026-01-04T21:00:00 | F97: 1623.095839 | G97: 35.76980276 | H97: 0.000625 | I97: 0.02419381357 | K97: 2026-04-04T09:00:00 | L97: 1145.422794 | M97: 0
A98: System | B98: Region | C98: Island | D98: - | E98: 2026-01-04T22:00:00 | F98: 1553.317836 | G98: 34.55341004 | H98: 0 | I98: 0 | K98: 2026-04-05T20:00:00 | L98: 1334.462646 | M98: 0
A99: System | B99: Region | C99: Island | D99: - | E99: 2026-01-04T23:00:00 | F99: 1460.747061 | G99: 36.11571104 | H99: 0 | I99: 0 | K99: 2026-04-06T20:00:00 | L99: 1387.938452 | M99: 0
A100: System | B100: Region | C100: Island | D100: - | E100: 2026-01-05 | F100: 1372.079931 | G100: 22.8601129 | H100: 0.0002083333333 | I100: 0.02395014731 | K100: 2026-04-07T07:00:00 | L100: 1447.599375 | M100: 0.0004166666667
A101: System | B101: Region | C101: Island | D101: - | E101: 2026-01-05T01:00:00 | F101: 1323.885229 | G101: 21.72917556 | H101: 0 | I101: 0 | K101: 2026-04-08T07:00:00 | L101: 1392.118525 | M101: 0
A102: System | B102: Region | C102: Island | D102: - | E102: 2026-01-05T02:00:00 | F102: 1297.395602 | G102: 21.05629617 | H102: 0 | I102: 0 | K102: 2026-04-09T07:00:00 | L102: 1459.54455 | M102: 0
A103: System | B103: Region | C103: Island | D103: - | E103: 2026-01-05T03:00:00 | F103: 1282.792252 | G103: 20.73095821 | H103: 0 | I103: 0 | K103: 2026-04-10T07:00:00 | L103: 1407.755128 | M103: 0.0002083333333
A104: System | B104: Region | C104: Island | D104: - | E104: 2026-01-05T04:00:00 | F104: 1277.569503 | G104: 20.5831836 | H104: 0.0002083333333 | I104: 0.001536004018 | K104: 2026-04-11T09:00:00 | L104: 1311.00035 | M104: 0
A105: System | B105: Region | C105: Island | D105: - | E105: 2026-01-05T05:00:00 | F105: 1277.320767 | G105: 20.58081303 | H105: 0 | I105: 0 | K105: 2026-04-12T09:00:00 | L105: 1132.338335 | M105: 0
A106: System | B106: Region | C106: Island | D106: - | E106: 2026-01-05T06:00:00 | F106: 1307.302756 | G106: 26.99541247 | H106: 0 | I106: 0 | K106: 2026-04-13T07:00:00 | L106: 1232.770052 | M106: 0
A107: System | B107: Region | C107: Island | D107: - | E107: 2026-01-05T07:00:00 | F107: 1402.814483 | G107: 28.98666028 | H107: 0.0002083333333 | I107: 0.03923583754 | K107: 2026-04-14T07:00:00 | L107: 1131.141462 | M107: 0
A108: System | B108: Region | C108: Island | D108: - | E108: 2026-01-05T08:00:00 | F108: 1443.489294 | G108: 29.81133991 | H108: 0 | I108: 0 | K108: 2026-04-15T07:00:00 | L108: 1049.121226 | M108: 0
A109: System | B109: Region | C109: Island | D109: - | E109: 2026-01-05T09:00:00 | F109: 1428.975095 | G109: 29.54459372 | H109: 0.0002083333333 | I109: 0.02757212223 | K109: 2026-04-16T20:00:00 | L109: 1431.30918 | M109: 0
A110: System | B110: Region | C110: Island | D110: - | E110: 2026-01-05T10:00:00 | F110: 1426.346749 | G110: 29.48910794 | H110: 0.0004166666667 | I110: 0.05213167736 | K110: 2026-04-17T07:00:00 | L110: 1444.89704 | M110: 0
A111: System | B111: Region | C111: Island | D111: - | E111: 2026-01-05T11:00:00 | F111: 1415.964737 | G111: 29.24623629 | H111: 0 | I111: 0 | K111: 2026-04-18T20:00:00 | L111: 1080.484144 | M111: 0
A112: System | B112: Region | C112: Island | D112: - | E112: 2026-01-05T12:00:00 | F112: 1397.968967 | G112: 28.8897599 | H112: 0 | I112: 0 | K112: 2026-04-19T09:00:00 | L112: 1221.384023 | M112: 0
A113: System | B113: Region | C113: Island | D113: - | E113: 2026-01-05T13:00:00 | F113: 1366.762158 | G113: 28.20544006 | H113: 0.0002083333333 | I113: 0.01214040052 | K113: 2026-04-20T07:00:00 | L113: 1319.040927 | M113: 0.0002083333333
A114: System | B114: Region | C114: Island | D114: - | E114: 2026-01-05T14:00:00 | F114: 1340.189909 | G114: 27.66664411 | H114: 0 | I114: 0 | K114: 2026-04-21T07:00:00 | L114: 1300.773464 | M114: 0.0002083333333
A115: System | B115: Region | C115: Island | D115: - | E115: 2026-01-05T15:00:00 | F115: 1337.670165 | G115: 27.62114348 | H115: 0.0002083333333 | I115: 0.00824822874 | K115: 2026-04-22T07:00:00 | L115: 1278.381635 | M115: 0
A116: System | B116: Region | C116: Island | D116: - | E116: 2026-01-05T16:00:00 | F116: 1370.685257 | G116: 28.30289155 | H116: 0.0002083333333 | I116: 0.0170112108 | K116: 2026-04-23T07:00:00 | L116: 1142.90678 | M116: 0
A117: System | B117: Region | C117: Island | D117: - | E117: 2026-01-05T17:00:00 | F117: 1457.991896 | G117: 30.08606396 | H117: 0.0004166666667 | I117: 0.06419577016 | K117: 2026-04-24T07:00:00 | L117: 1113.225983 | M117: 0
A118: System | B118: Region | C118: Island | D118: - | E118: 2026-01-05T18:00:00 | F118: 1453.971293 | G118: 30.00789062 | H118: 0.000625 | I118: 0.1084758842 | K118: 2026-04-25T11:00:00 | L118: 1155.156407 | M118: 0
A119: System | B119: Region | C119: Island | D119: - | E119: 2026-01-05T19:00:00 | F119: 1450.095127 | G119: 29.96814666 | H119: 0.0004166666667 | I119: 0.05547660375 | K119: 2026-04-26T11:00:00 | L119: 1122.684995 | M119: 0
A120: System | B120: Region | C120: Island | D120: - | E120: 2026-01-05T20:00:00 | F120: 1442.601969 | G120: 29.83680607 | H120: 0.000625 | I120: 0.0841065318 | K120: 2026-04-27T20:00:00 | L120: 1074.287938 | M120: 0
A121: System | B121: Region | C121: Island | D121: - | E121: 2026-01-05T21:00:00 | F121: 1426.402386 | G121: 29.48186059 | H121: 0.0002083333333 | I121: 0.03669574023 | K121: 2026-04-28T07:00:00 | L121: 1163.784878 | M121: 0
A122: System | B122: Region | C122: Island | D122: - | E122: 2026-01-05T22:00:00 | F122: 1385.745635 | G122: 28.65564262 | H122: 0 | I122: 0 | K122: 2026-04-29T07:00:00 | L122: 1125.979231 | M122: 0
A123: System | B123: Region | C123: Island | D123: - | E123: 2026-01-05T23:00:00 | F123: 1307.346705 | G123: 21.30164533 | H123: 0 | I123: 0 | K123: 2026-04-30T08:00:00 | L123: 1208.060252 | M123: 0
A124: System | B124: Region | C124: Island | D124: - | E124: 2026-01-06 | F124: 1231.106115 | G124: 28.37509891 | H124: 0 | I124: 0 | K124: 2026-05-01T07:00:00 | L124: 1256.008789 | M124: 0.0002083333333
A125: System | B125: Region | C125: Island | D125: - | E125: 2026-01-06T01:00:00 | F125: 1187.616607 | G125: 27.812747 | H125: 0 | I125: 0 | K125: 2026-05-02T09:00:00 | L125: 1093.283975 | M125: 0
A126: System | B126: Region | C126: Island | D126: - | E126: 2026-01-06T02:00:00 | F126: 1202.290902 | G126: 28.06108517 | H126: 0 | I126: 0 | K126: 2026-05-03T09:00:00 | L126: 1043.710639 | M126: 0
A127: System | B127: Region | C127: Island | D127: - | E127: 2026-01-06T03:00:00 | F127: 1219.131649 | G127: 28.22013732 | H127: 0 | I127: 0 | K127: 2026-05-04T07:00:00 | L127: 1033.656647 | M127: 0
A128: System | B128: Region | C128: Island | D128: - | E128: 2026-01-06T04:00:00 | F128: 1242.54851 | G128: 28.47669964 | H128: 0 | I128: 0 | K128: 2026-05-05T07:00:00 | L128: 997.6581751 | M128: 0
A129: System | B129: Region | C129: Island | D129: - | E129: 2026-01-06T05:00:00 | F129: 1296.091774 | G129: 28.92850416 | H129: 0 | I129: 0 | K129: 2026-05-06T07:00:00 | L129: 983.8792801 | M129: 0
A130: System | B130: Region | C130: Island | D130: - | E130: 2026-01-06T06:00:00 | F130: 1364.034041 | G130: 30.02986338 | H130: 0.0002083333333 | I130: 0.04430067933 | K130: 2026-05-07T07:00:00 | L130: 1031.616479 | M130: 0
A131: System | B131: Region | C131: Island | D131: - | E131: 2026-01-06T07:00:00 | F131: 1481.447377 | G131: 31.01867408 | H131: 0 | I131: 0 | K131: 2026-05-08T09:00:00 | L131: 1200.059734 | M131: 0
A132: System | B132: Region | C132: Island | D132: - | E132: 2026-01-06T08:00:00 | F132: 1569.031138 | G132: 32.25329127 | H132: 0.0002083333333 | I132: 0.001915453833 | K132: 2026-05-09T09:00:00 | L132: 1119.781274 | M132: 0
A133: System | B133: Region | C133: Island | D133: - | E133: 2026-01-06T09:00:00 | F133: 1584.880584 | G133: 32.60236921 | H133: 0.000625 | I133: 0.117993032 | K133: 2026-05-10T09:00:00 | L133: =MAX(OFFSET($F$4:$F$27,(ROW()-4)*24,0)) -> 1143.986767 | M133: =VLOOKUP(L133,OFFSET($F$4:$H$27,(ROW()-4)*24,0),3,FALSE) -> 0
A134: System | B134: Region | C134: Island | D134: - | E134: 2026-01-06T10:00:00 | F134: 1582.534841 | G134: 32.48749212 | H134: 0.0004166666667 | I134: 0.01595715179 | K134: 2026-05-11T08:00:00 | L134: 1037.81576 | M134: 0
A135: System | B135: Region | C135: Island | D135: - | E135: 2026-01-06T11:00:00 | F135: 1576.000622 | G135: 32.40779622 | H135: 0.0004166666667 | I135: 0.1102364683 | K135: 2026-05-12T07:00:00 | L135: 1120.494721 | M135: 0
A136: System | B136: Region | C136: Island | D136: - | E136: 2026-01-06T12:00:00 | F136: 1567.857702 | G136: 32.23033857 | H136: 0.0002083333333 | I136: 0.001852751836 | K136: 2026-05-13T20:00:00 | L136: 1076.514742 | M136: 0
A137: System | B137: Region | C137: Island | D137: - | E137: 2026-01-06T13:00:00 | F137: 1551.05675 | G137: 31.92910361 | H137: 0.0004166666667 | I137: 0.1126075269 | K137: 2026-05-14T07:00:00 | L137: 1080.270218 | M137: 0
A138: System | B138: Region | C138: Island | D138: - | E138: 2026-01-06T14:00:00 | F138: 1555.363254 | G138: 32.02585347 | H138: 0 | I138: 0 | K138: 2026-05-15T07:00:00 | L138: 993.9803554 | M138: 0
A139: System | B139: Region | C139: Island | D139: - | E139: 2026-01-06T15:00:00 | F139: 1567.869236 | G139: 32.19681264 | H139: 0.0002083333333 | I139: 0.0557518286 | K139: 2026-05-16T09:00:00 | L139: 826.6605963 | M139: 0
A140: System | B140: Region | C140: Island | D140: - | E140: 2026-01-06T16:00:00 | F140: 1619.538065 | G140: 33.10604494 | H140: 0.0008333333333 | I140: 0.1002752777 | K140: 2026-05-17T09:00:00 | L140: 894.3006109 | M140: 0
A141: System | B141: Region | C141: Island | D141: - | E141: 2026-01-06T17:00:00 | F141: 1694.58506 | G141: 34.72217956 | H141: 0.001458333333 | I141: 0.07266055875 | K141: 2026-05-18T11:00:00 | L141: 981.9801904 | M141: 0
A142: System | B142: Region | C142: Island | D142: - | E142: 2026-01-06T18:00:00 | F142: 1687.617036 | G142: 34.52431307 | H142: 0.001875 | I142: 0.3650280388 | K142: 2026-05-19T07:00:00 | L142: 949.6186402 | M142: 0
A143: System | B143: Region | C143: Island | D143: - | E143: 2026-01-06T19:00:00 | F143: 1667.964383 | G143: 34.05975695 | H143: 0.00125 | I143: 0.02670517172 | K143: 2026-05-20T20:00:00 | L143: 838.4490036 | M143: 0
A144: System | B144: Region | C144: Island | D144: - | E144: 2026-01-06T20:00:00 | F144: 1654.409988 | G144: 33.80851835 | H144: 0.000625 | I144: 0.09574496039 | K144: 2026-05-21T07:00:00 | L144: 887.2943971 | M144: 0
A145: System | B145: Region | C145: Island | D145: - | E145: 2026-01-06T21:00:00 | F145: 1622.018456 | G145: 33.28123963 | H145: 0.0008333333333 | I145: 0.1294879052 | K145: 2026-05-22T07:00:00 | L145: 896.3956161 | M145: 0
A146: System | B146: Region | C146: Island | D146: - | E146: 2026-01-06T22:00:00 | F146: 1565.824446 | G146: 32.22777961 | H146: 0 | I146: 0 | K146: 2026-05-23T11:00:00 | L146: 910.3059782 | M146: 0
A147: System | B147: Region | C147: Island | D147: - | E147: 2026-01-06T23:00:00 | F147: 1469.00912 | G147: 30.28127712 | H147: 0 | I147: 0 | K147: 2026-05-24T09:00:00 | L147: 950.6555208 | M147: 0
A148: System | B148: Region | C148: Island | D148: - | E148: 2026-01-07 | F148: 1375.4886 | G148: 29.77496857 | H148: 0 | I148: 0 | K148: 2026-05-25T07:00:00 | L148: 897.3556502 | M148: 0
A149: System | B149: Region | C149: Island | D149: - | E149: 2026-01-07T01:00:00 | F149: 1354.989014 | G149: 29.63451429 | H149: 0 | I149: 0 | K149: 2026-05-26T07:00:00 | L149: 814.6241642 | M149: 0
A150: System | B150: Region | C150: Island | D150: - | E150: 2026-01-07T02:00:00 | F150: 1341.217187 | G150: 29.47816263 | H150: 0.0002083333333 | I150: 0.004828510404 | K150: 2026-05-27T09:00:00 | L150: 828.2198357 | M150: 0
A151: System | B151: Region | C151: Island | D151: - | E151: 2026-01-07T03:00:00 | F151: 1341.460754 | G151: 29.53078408 | H151: 0 | I151: 0 | K151: 2026-05-28T09:00:00 | L151: 839.2756166 | M151: 0
A152: System | B152: Region | C152: Island | D152: - | E152: 2026-01-07T04:00:00 | F152: 1351.147411 | G152: 29.59725527 | H152: 0.0002083333333 | I152: 0.01091240366 | K152: 2026-05-29T11:00:00 | L152: 891.3528089 | M152: 0
A153: System | B153: Region | C153: Island | D153: - | E153: 2026-01-07T05:00:00 | F153: 1368.202501 | G153: 29.72765923 | H153: 0.0002083333333 | I153: 0.004804811226 | K153: 2026-05-30T09:00:00 | L153: 844.3218271 | M153: 0
A154: System | B154: Region | C154: Island | D154: - | E154: 2026-01-07T06:00:00 | F154: 1418.398909 | G154: 30.53335019 | H154: 0.0002083333333 | I154: 0.0306602595 | K154: 2026-05-31T11:00:00 | L154: 790.5921275 | M154: 0
A155: System | B155: Region | C155: Island | D155: - | E155: 2026-01-07T07:00:00 | F155: 1531.670014 | G155: 31.92282822 | H155: 0.0002083333333 | I155: 0.002424593476 | K155: 2026-06-01T07:00:00 | L155: 915.381428 | M155: 0
